Workbook

Sheet الرئيسية
A1: بسم الله الرحمن الرحيم | J1: كنترول شيت الصف الاول
B2: ادارة | C2: القليوبية | J2: للعام الدراسى : | K2: 2019 / 2020
B3: مدرسة | C3: التجارية
J4: اضغط زر تعليمات للتعرف على طريقة الاستخدام
B5: مدير إدارة المدرسة الاستاذ / | E5: الحاج
B6: مدير المدرسة الاستاذ …. / | E6: الحاج
B7: رئيس الكنترول الاستاذ .... / | E7: الحاج
B8: مسئول كنترول الاستاذ …. / | E8: الحاج
B9: تاريخ حساب السن ........ / | E9: 2021-10-01

Sheet تعليمات
A1: بسم الله الرحمن الرحيم | G1: تعليمات و إرشادات | L1: كل الخلايا الملونة بها معادلات و العبث بها بفقد البرنامج اهم مميزاته
A3: و الحمد لله رب العالمين و الصلاة و السلام على اشرف المرسلين سيدنا محمد و على آله وصحبه وسلم
A4: اما بعد :
A5: الى اخوتى و احبتى العاملين في مجال الكنترول بالمدارس التجارية نظام الثلاث سنوات
A6: اليكم الشيت كنترول للصف الاول التجارى
A7: بداية يمكنكم الاستغناء عن التعليمات الآتية اذا كان تعداد المدرسة صغير و لا تحتوى على شعب متعددة و سيعمل معك البرنامج فيما تبقى بمنتهى الكفاءة - كما اسلفت في تعليمات الصف الثانى
A8: وهذه ترتيبات و تعليمات الاستخدام : - ( عذرا فالتعليمات طويلة نوعا ما نظرا لاهميتها القصوى)
B10: المرحلة الأولى :
A11: 1 - البداية في ورقة الرئيسية ملء جميع البيانات الخاصة بالمحافظة و الإدارة التعليمية و اسم المدرسة و العام الدراسى و تاريخ حساب سن الطالب اما باقى البيانات فهى اختيارية
A12: 2 - الذهاب مباشرة الى الورقة المسماة شيت و إتمام البيانات التالية جميعها دون نقصان او زيادة في الاعمدة المخصصة لها قبل الشروع في اى عمل آخر
B13: ا - اسم الطالب | D13: ب - فصل الطالب | F13: ج - تاريخ الميلاد | H13: د - ديانة الطالب | J13: هـ - النوع ( بنين - بنات و ليس ذكر - انثى )
D14: و - الفئة ( انتظام - خدمات ) | G14: م - لا يتم تسجيل اى بيانات أخرى في الورقة " شيت"
D15: ن - الحالة ( يكتفى بكلمة باقى للبنين - باقية للبنات و لاتوجد ضرورة لكلمة مستجد -مستجدة)
A16: 3 - الذهاب الى ورقة الاعدادات
B17: ا - تم ترتيب الخطوات كما سوف ترى ( الخطوة الأولى - الثانية - الثالثة و هكذا ...... ) عليك اتباع الترتيب حتى تحصل على نتائج جيدة
B19: ******* لا تقم بتسطير اى ورقة فالتسطير يتم تلقائيا
B21: الخطوة الأولى :
B22: يمكنك التغيير بين المعايير المختلفة لاجراء عملية الفرز الشامل على اساسها ( بنين - بنات - انتظام - خدمات ) من الخلايا E6 و E7
B23: ضغط الزر "اضغط للفرز الشامل" و انتظر حتى تتم العملية بنجاح
B26: الخطوة الثانية :
B27: في الخلية F13 قم بكتابة الأرقام المتفق عليها بالنسبة للفترة الصباحية و اترك الباقى للبرنامج
B28: اضغط زر " اضغط لتوزيع الفترات "
B30: الخطوة الثالثة :
B31: اضغط الزر المكتوب عليه : "اضغط لتعبئة الجداول "
B32: املأ العمود S و العمود Z بأول رقم جلوس بما تم الاتفاق عليه مع السادة المنوطين بالامر في السابق و كذلك عدد اللجان المقترحة في العمود W و العمود AD حسب رؤية القائمين على هذا الامر امام كل شريحة
B33: سيقوم البرنامج بوضع رقم اول لجنة و رقم آخر لجنة في الاعمدة المخصصة لذلك
B34: اعود و اكرر الحذر كل الحذر من الاقتراب من الاعمدة التي تحتوى معادلات
B35: الضغط على زر : "توزيع ارقام الجلوس على الشيت العام" و قد يستغرق وقتا بعض الشئ
B36: سيقوم الكود بتوزيع ارقام الجلوس حسب الجداول السابقة بمنتهى الدقة
B37: هنا ينتهى العمل بورقة الاعدادات و ان كان هناك أمور مرتبطة بها في الأوراق الأخرى و لكن دون الرجوع الى ورقة الاعدادات مرةاخرى . لذا الرجاء إخفاء هذه الورقة ( الاعدادات ) بعد نهاية الخطوة الرابعة
B38: لا يمكن الحصول على اخطارات ارقام الجلوس في الورقة المسماة ارقام الجلوس الا بعد اجراء الخطوات السابقة
B41: المرحلة الثانية :
B42: في الورقة المسماة اعدادات اللجان
B43: اكتب أسماء الفصول او المقرات المتاحة لآداء التلاميذ الامتحان فيها ( الصباحية في العمود "K" - المسائية في العمود "T" ) و اترك الباقى للبرنامج
B44: اذا اردت الاستفادة من كامل مزايا هذه الورقة عليك اختيار توزيع آلى من القائمة المنسدلة
B45: في حالة اختيار توزيع يدوى من الخلية D3 او الخلية S3 لن يعمل الكود بهذه الخاصية لكل فترة على حدة الا الزر الثالث
B46: اضغط زر توزيع لجان الفترة الصباحية ثم زر توزيع لجان الفترة المسائية
B47: اما قوائم اللجان فهى سهلة الاستخدام و لا تحتاج الى شرح يكفى الاختيار من القوائم المنسدلة بين صباحى و مسائى -- وأرقام اللجان
B50: المرحلة الثالثة :
B51: في الورقة "شيت" قبل عملية الفرز يتم عمل الأرقام السرية بإحدى الطريقتين : -
B52: 1 - وضع السرى يدويا كما خطط له من قبل القائمين على العمل في عمود السرى بالشيت مباشرة
B53: 2 - او الذهاب الى ورقة السرى كالآتى :
B54: ا - الضغط أولا على زر اضغط لاستدعاء البيانات فيقوم البرنامج باستعاء جميع بيانات ارقم الجلوس
B55: ب - ثم نقوم بتوزيع الأرقام السرية المقترحة يدويا في الجدول المقابل ( يقبل السرى التنازلى )
B56: ج - بعد ذلك نقوم بالضغط على زر فرز سرى و بعد انتهاء عملية الفرز نقوم باخفاء الاعمد من A الى L كما هو متبع مع الشيتات
B57: الان أصبحت الشيتات جاهزة لرصد الدرجات لاى فترة كانت
B58: لا تنسى في عمود الحالة من كتابة ( باقى - باقية ) و لا داعى ل ( مستجد - مستجدة )
B59: في حالة وجود طلاب مسيحين يجب كتابة كلمة ( مسيحى - مسيحية ) لان ذلك سيظهر في ورقة اللجان اثناء امتحان مادة التربية الدينية
B62: المرحلة الرابعة :
B63: و هي تخص شهادات نصف العام و آخر العام
B66: المرحلة الخامسة :
B67: وهى الخاصة بأوائل الطلبة يمكنك التبديل بين الفترات باستخدام القوائم المنسدلة
B68: ينطبق هذا الامر على أوائل آخر العام
B69: أوائل آخر العام للطلاب الناجحين فقط لذلك لن تحصل على نتيجة الا بعد عملية ترحيل الناجحين
B73: المرحلة السادسة :
B74: و هي تخص آخر العام
B75: - ملحوظة هامة بالنسبة لشهاد ة آخر العام و هي نادرة بالنسبة للطلاب الحاصلين على ملحق في مادة رغم درجاتهم اكبر من درجة النجاح و سترى اسم المادة في الخلية المخصصة لمواد الرسوب
B76: و السبب هو عدم حصول الطالب على ربع الدرجة في امتحان آخر العام في هذه الحالة يجب على مسئول الكنترول وضع دائرة يدويا بالقلم الأحمر ( بالشهادة المطبوعة ) على درجة المادة و ذكر السبب في خلية مادة الرسوب
B77: و هو ( عدم الحصول على ربع الدرجة )
B78: - بالنسبة للورقة المسماة " رفع " يمكن في هذه الورقة معرفة الأوراق المحتاجة الى درجات رفع يتم تحديدها في الورقة بالارقام السرية ( و رؤية الورقة على الطبيعة و تجربتها افضل من اى شرح )
B79: - يوجد أيضا ورقة تسمى " رصد " لمتابعة العدد الذى تم رصده سواء درجات اعمال سنة او درجات نصف العام او درجات آخر العام و متابعة الغياب أيضا
B80: - توجد العديد من الأوراق التي يسهل التعامل معها و لها العديد من المزايا يستحسن التعرف عليها بأنفسكم
B83: المرحلة السابعة :
B84: بالنسبة للدور الثانى
B85: 1 - بعد عملية الترحيل لا نفعل اى شيء في شيت الملاحق الا بعد امتحان الدور الثانى فقط نقوم بكتابة درجة امتحان الدور الثانى في الخلية التي تعلو مجموع درجة مادة الرسوب
B86: 2 - يوجد شيت لاستدعاة طلاب الدور الثانى كل مادة على حدة و المواد المشتركة بين الشعب دفعة واحدة و يتم ترقيم الجلوس و المقار يدويا
B87: لان الطالب الواحد قد يكون له اكثر من رقم جلوس في حال تعدد مواد تخلفه
B88: حسب رؤية القائمين على الامر فالبعض يفضل ان يمتحن الطالب في الدور الثانى بنفس رقم جلوس الدور الأول
B89: 3 - توجد شيت مخصص لادراج درجات الدور الثانى يسمى مساعد إدارة - مساعد تسويق ........... وهكذا لكل شعبة
B90: 4 - في هذا الشيت نقوم بالضغط على زر استدعاء مواد الرسوب فيمتلئ الشيت ببيانات الطلاب و بياناتهم
B91: 5 - في هذا الشيت يتم تبديل الدرجة الجديدة بدلا من الدرجة القديمة و هكذا لباقى مواد الرسوب لجميع طلاب الشعبة
B92: و نفس الدرجة الجديدة توضع فوق درجة مجموع المادة في شيت الملاحق لتظهر شكلا عند طبع شيت الملاحق ( كما اسلفت في رقم 1 )
B93: 6 - بعد الانتهاء من جميع عمليات الرصد نضغط زر نتيجة الدور الثانى فسيظهر الطلاب الناجحون من الطلاب الراسبون سواء لهم حق الإعادة ام لا
B94: 7 - الضغط على زر ترحيل النتيجة لتظهر النتائج في شيت الدور الثانى الذى سوف يتم طبعه
B95: 8 - توجد ورقة خاصة لشهادات الدور الثانى كما يوجد كشف خاص للطلاب الراسبون
C97: هذا و الله ولى التوفيق
D98: مستعد لاى استفسار على منتدى اوفيسنا او منتدى اكاديمية الصقر
E99: و السلام عليكم ورحمته و بركاته
G100: اخيكم / إبراهيم الحداد

Sheet اعدادات
N1: 617
C3: الخطوة الأولى : اعداد معايير الفرز ثم اجراء عملية الفرز | Z3: 2 - | AA3: بعد تعبئة الجدول اضغط الزر التالى
B4: 1 - | C4: اختر معايير الفرز التي تريدها ثم اضغط الزر المخصص لذلك | M4: الخطوة الثانية : | O4: 1 - اضغط الزر التالى :
B5: أسس الفرز | C5: معايير الفرز | P5: اعدادات الفترة الصباحية | X5: اعدادات الفترة المسائية
C6: المعيار الأول : | E6: بنين | N6: م | O6: النوع | P6: الفئة | Q6: الفترة | R6: عدد الشريحة | S6: اول رقم جلوس | T6: آخر رقم جلوس | U6: من لجنة | V6: الى لجنة | W6: عدد اللجان | X6: الفترة | Y6: عدد الشريحة | Z6: اول رقم جلوس | AA6: آخر رقم جلوس | AB6: من لجنة | AC6: الى لجنة | AD6: عدد اللجان
C7: المعيار الثانى : | E7: انتظام
C8: العـــدد : | E8: 208 | N8: 1 | O8: بنات | P8: انتظام | Q8: صباحى | T8: =IF(AND(R8>0,S8>0),R8+S8-1,"") ->  | U8: =IF(W8>0,1,"") ->  | V8: =IF(W8>0,SUM($W$8:W8),"") ->  | X8: مسائى | AA8: =IF(AND(Y8>0,Z8>0),Y8+Z8-1,"") ->  | AB8: =IF(AD8>0,1,"") ->  | AC8: =IF(AD8>0,SUM(AD8:$AD$8),"") -> 
C9: العــدد الكلى : | E9: 208 | N9: 2 | O9: بنات | P9: خدمات | Q9: صباحى | T9: =IF(AND(R9>0,S9>0),R9+S9-1,"") ->  | U9: =IF(W9>0,SUM($W$8:W8)+1,"") ->  | V9: =IF(W9>0,SUM($W$8:W9),"") ->  | X9: مسائى | AA9: =IF(AND(Y9>0,Z9>0),Y9+Z9-1,"") ->  | AB9: =IF(AD9>0,SUM(AD8:$AD$8)+1,"") ->  | AC9: =IF(AD9>0,SUM(AD$8:$AD9),"") -> 
N10: 3 | O10: بنين | P10: انتظام | Q10: صباحى | R10: 208 | S10: 1 | T10: 208 | U10: =IF(W10>0,SUM($W$8:W9)+1,"") -> 1 | V10: =IF(W10>0,SUM($W$8:W10),"") -> 12 | W10: 12 | X10: مسائى | AB10: =IF(AD10>0,SUM(AD$8:$AD9)+1,"") ->  | AC10: =IF(AD10>0,SUM(AD$8:$AD10),"") -> 
C11: 2 - | D11: قم بتعبئة خلية الصباحى ثم اضغط الزر التالى : | N11: 4 | O11: بنين | P11: خدمات | Q11: صباحى | U11: =IF(W11>0,SUM($W$8:W10)+1,"") ->  | V11: =IF(W11>0,SUM($W$8:W11),"") ->  | X11: مسائى | AB11: =IF(AD11>0,SUM(AD$8:$AD10)+1,"") ->  | AC11: =IF(AD11>0,SUM(AD$8:$AD11),"") -> 
E12: اجمالى | F12: صباحى | G12: مسائى
E13: 208 | F13: 208 | G13: =IF(E13="","",E13-F13) -> 0 | Q13: وهكذا ينتهى العمل بهذه الورقة و يجب اخفائها نهائيا لان التعامل معها مرة أخرى سيلزمكم إعادة الخطوات من جديد

Sheet جلوس
C1: مدرسة العمار التجارية بنات | N1: 51 | P1: الورقة رقم : | R1: 1
G2: ارقام جلوس الصف الاول : | J2: =الرئيسية!$K$2 -> 2019 / 2020
C4: اخطار رقم جلوس | H4: صباحى | J4: اخطار رقم جلوس | O4: صباحى
C5: ="مدرسة "& الرئيسية!$C$3 -> مدرسة التجارية | G5: رقم الجلوس / | H5: 1 | J5: ="مدرسة "& الرئيسية!$C$3 -> مدرسة التجارية | N5: رقم الجلوس / | O5: 7
C6: الاسم / | D6: طالب اولى 1 | G6: رقم اللجنة / | H6: 1 | J6: الاسم / | K6: طالب اولى 7 | N6: رقم اللجنة / | O6: 1
C7: الفصل / | D7: 1/1 | G7: مقر اللجنة : | H7: 1/3 | J7: الفصل / | K7: 1/1 | N7: مقر اللجنة : | O7: 1/3
C9: اخطار رقم جلوس | H9: صباحى | J9: اخطار رقم جلوس | O9: صباحى
C10: ="مدرسة "& الرئيسية!$C$3 -> مدرسة التجارية | G10: رقم الجلوس / | H10: 2 | J10: ="مدرسة "& الرئيسية!$C$3 -> مدرسة التجارية | N10: رقم الجلوس / | O10: 8
C11: الاسم / | D11: طالب اولى 2 | G11: رقم اللجنة / | H11: 1 | J11: الاسم / | K11: طالب اولى 8 | N11: رقم اللجنة / | O11: 1
C12: الفصل / | D12: 1/1 | G12: مقر اللجنة : | H12: 1/3 | J12: الفصل / | K12: 1/1 | N12: مقر اللجنة : | O12: 1/3
C14: اخطار رقم جلوس | H14: صباحى | J14: اخطار رقم جلوس | O14: صباحى
C15: ="مدرسة "& الرئيسية!$C$3 -> مدرسة التجارية | G15: رقم الجلوس / | H15: 3 | J15: ="مدرسة "& الرئيسية!$C$3 -> مدرسة التجارية | N15: رقم الجلوس / | O15: 9
C16: الاسم / | D16: طالب اولى 3 | G16: رقم اللجنة / | H16: 1 | J16: الاسم / | K16: طالب اولى 9 | N16: رقم اللجنة / | O16: 1
C17: الفصل / | D17: 1/1 | G17: مقر اللجنة : | H17: 1/3 | J17: الفصل / | K17: 1/1 | N17: مقر اللجنة : | O17: 1/3
C19: اخطار رقم جلوس | H19: صباحى | J19: اخطار رقم جلوس | O19: صباحى
C20: ="مدرسة "& الرئيسية!$C$3 -> مدرسة التجارية | G20: رقم الجلوس / | H20: 4 | J20: ="مدرسة "& الرئيسية!$C$3 -> مدرسة التجارية | N20: رقم الجلوس / | O20: 10
C21: الاسم / | D21: طالب اولى 4 | G21: رقم اللجنة / | H21: 1 | J21: الاسم / | K21: طالب اولى 10 | N21: رقم اللجنة / | O21: 1
C22: الفصل / | D22: 1/1 | G22: مقر اللجنة : | H22: 1/3 | J22: الفصل / | K22: 1/1 | N22: مقر اللجنة : | O22: 1/3
C24: اخطار رقم جلوس | H24: صباحى | J24: اخطار رقم جلوس | O24: صباحى
C25: ="مدرسة "& الرئيسية!$C$3 -> مدرسة التجارية | G25: رقم الجلوس / | H25: 5 | J25: ="مدرسة "& الرئيسية!$C$3 -> مدرسة التجارية | N25: رقم الجلوس / | O25: 11
C26: الاسم / | D26: طالب اولى 5 | G26: رقم اللجنة / | H26: 1 | J26: الاسم / | K26: طالب اولى 11 | N26: رقم اللجنة / | O26: 1
C27: الفصل / | D27: 1/1 | G27: مقر اللجنة : | H27: 1/3 | J27: الفصل / | K27: 1/1 | N27: مقر اللجنة : | O27: 1/3
C29: اخطار رقم جلوس | H29: صباحى | J29: اخطار رقم جلوس | O29: صباحى
C30: ="مدرسة "& الرئيسية!$C$3 -> مدرسة التجارية | G30: رقم الجلوس / | H30: 6 | J30: ="مدرسة "& الرئيسية!$C$3 -> مدرسة التجارية | N30: رقم الجلوس / | O30: 12
C31: الاسم / | D31: طالب اولى 6 | G31: رقم اللجنة / | H31: 1 | J31: الاسم / | K31: طالب اولى 12 | N31: رقم اللجنة / | O31: 1
C32: الفصل / | D32: 1/1 | G32: مقر اللجنة : | H32: 1/3 | J32: الفصل / | K32: 1/1 | N32: مقر اللجنة : | O32: 1/3

Sheet اعدادات اللجان
A1: حتى يتسنى لك الاستفادة من مميزات هذه الورقة ( آليا ) لابد من استيفاء جميع الخطوات في كل من الشيت العام و ورقة الاعدادات او الاستخدام اليدوى فقط
C2: اختر نوع التوزيع للفترة | H2: اعداد و توزيع اللجان على الفترتين | R2: اختر نوع التوزيع للفترة
D3: توزيع آلى | S3: توزيع آلى
E5: لجان الفترة الصباحية | N5: لجان الفترة المسائية
D6: لجنة | E6: من | F6: الى | G6: العدد | H6: الشعبة | I6: النوع | J6: القئة | K6: لجان صباحى | M6: لجنة | N6: من | O6: الى | P6: العدد | Q6: الصف | R6: النوع | S6: القئة | T6: لجان صباحى
D7: 1 | E7: 1 | F7: 19 | G7: =F7-E7+1 -> 19 | K7: 1/3 | M7: 1 | T7: 11/2
D8: 2 | E8: 20 | F8: 38 | G8: =F8-E8+1 -> 19 | K8: 2/3 | M8: 2 | T8: 12/2
D9: 3 | E9: 39 | F9: 57 | G9: 19 | K9: 3/3 | M9: 3 | T9: 1/1
D10: 4 | E10: 58 | F10: 76 | G10: 19 | K10: 4/3 | M10: 4 | T10: 2/1
D11: 5 | E11: 77 | F11: 95 | G11: 19 | K11: 5/3 | M11: 5 | T11: 3/1
D12: 6 | E12: 96 | F12: 114 | G12: 19 | K12: 6/3 | M12: 6 | T12: 4/1
D13: 7 | E13: 115 | F13: 133 | G13: 19 | K13: 7/3 | M13: 7 | T13: 5/1
D14: 8 | E14: 134 | F14: 152 | G14: 19 | K14: 8/3 | M14: 8 | T14: 6/1
D15: 9 | E15: 153 | F15: 171 | G15: 19 | K15: 9/3 | M15: 9 | T15: 7/1
D16: 10 | E16: 172 | F16: 190 | G16: 19 | K16: 10/3 | M16: 10 | T16: 8/1
D17: 11 | E17: 191 | F17: 208 | G17: 18 | K17: 1/2 | M17: 11 | T17: 9/1
D18: 12 | G18: 1 | K18: 2/2 | M18: 12 | T18: 10/1
D19: 13 | G19: 1 | K19: 3/2 | M19: 13
D20: 14 | G20: 1 | K20: 4/2 | M20: 14
D21: 15 | G21: 1 | K21: 5/2 | M21: 15
D22: 16 | G22: 1 | K22: 6/2 | M22: 16
D23: 17 | G23: 1 | K23: 7/2 | M23: 17
D24: 18 | G24: 1 | K24: 8/2 | M24: 18
D25: 19 | G25: 1 | K25: 9/2 | M25: 19
D26: 20 | G26: 1 | K26: 10/2 | M26: 20
D27: 21 | G27: 1 | M27: 21
D28: 22 | G28: 1 | M28: 22
D29: 23 | G29: 1 | M29: 23
D30: 24 | G30: 1 | M30: 24
D31: 25 | G31: 1 | M31: 25
D32: 26 | M32: 26
D33: 27 | M33: 27
D34: 28 | M34: 28
D35: 29 | M35: 29
D36: 30 | M36: 30
D37: 31 | M37: 31
D38: 32 | M38: 32
D39: 33 | M39: 33
D40: 34 | M40: 34
D41: 35 | M41: 35
D42: 36 | M42: 36
D43: 37 | M43: 37
D44: 38 | M44: 38
D45: 39 | M45: 39
D46: 40 | M46: 40
D47: 41 | M47: 41
D48: 42 | M48: 42
D49: 43 | M49: 43
D50: 44 | M50: 44
D51: 45 | M51: 45
D52: 46 | M52: 46
D53: 47 | M53: 47
D54: 48 | M54: 48
D55: 49 | M55: 49
D56: 50 | M56: 50

Sheet لجان
C1: =" ادارة "&الرئيسية!$C$2 -> ادارة القليوبية | F1: لجنة : | G1: 1 | I1: =" ادارة "&الرئيسية!$C$2 -> ادارة القليوبية | L1: لجنة : | M1: =$G$1+1 -> 2
C2: ="مدرسة "& الرئيسية!$C$3 -> مدرسة التجارية | F2: المقر : | G2: 1/3 | I2: ="مدرسة "& الرئيسية!$C$3 -> مدرسة التجارية | L2: المقر : | M2: 2/3
C3: الصف الأول - | I3: الصف الأول -
C4: من : | D4: 1 | F4: الى : | G4: 19 | I4: من : | J4: 20 | L4: الى : | M4: 38
C5: العدد : | D5: 19 | E5: =" للعام الدراسى"&الرئيسية!$K$2 -> للعام الدراسى 2019 / 2020 | F5: الفترة : | G5: صباحى | I5: العدد : | J5: 19 | K5: =" للعام الدراسى"&الرئيسية!$K$2 -> للعام الدراسى 2019 / 2020 | L5: الفترة : | M5: صباحى | P5: الفترة
C6: م | D6: جلوس | E6: اسم الطالبة | F6: الفصل | G6: ملاحظات | I6: م | J6: جلوس | K6: اسم الطالبة | L6: الفصل | M6: ملاحظات | P6: صباحى
C7: 1 | D7: 1 | E7: احمد اشرف محمود عبد المقصود | F7: 1/1 | G7: مسلم | I7: 1 | J7: 20 | K7: محمد حميدو عبد المنعم عبد اللطيف | L7: 1/1 | M7: مسلم
C8: 2 | D8: 2 | E8: احمد خالد محمد رمضان علام | F8: 1/1 | G8: مسلم | I8: 2 | J8: 21 | K8: محمد رمضان عبد الهادي عبد المحسن | L8: 1/1 | M8: مسلم
C9: 3 | D9: 3 | E9: احمد دمرداش فؤاد دمرداش | F9: 1/1 | G9: مسلم | I9: 3 | J9: 22 | K9: محمد فج النور يوسف أحمد | L9: 1/1 | M9: مسلم
C10: 4 | D10: 4 | E10: احمد سعد عبده محمود محمد | F10: 1/1 | G10: مسلم | I10: 4 | J10: 23 | K10: محمد مختار سعد مغازي | L10: 1/1 | M10: مسلم
C11: 5 | D11: 5 | E11: احمد شحاته سعد شحاته | F11: 1/1 | G11: مسلم | I11: 5 | J11: 24 | K11: محمد مختار عبد الله شحاته ابو العلا | L11: 1/1 | M11: مسلم
C12: 6 | D12: 6 | E12: احمد صلاح مصطفي طه | F12: 1/1 | G12: مسلم | I12: 6 | J12: 25 | K12: محمد مسعد عبدالحفيظ | L12: 1/1 | M12: مسلم
C13: 7 | D13: 7 | E13: احمد فوزي رشاد محمد | F13: 1/1 | G13: مسلم | I13: 7 | J13: 26 | K13: محمد مصطفي أحمد السيد محمد | L13: 1/1 | M13: مسلم
C14: 8 | D14: 8 | E14: احمد نعيم أحمد بيومي زايد | F14: 1/1 | G14: مسلم | I14: 8 | J14: 27 | K14: محمد ممدوح معتمد محمد | L14: 1/1 | M14: مسلم
C15: 9 | D15: 9 | E15: باسل محمد اسماعيل عبد الصمد اسماعيل | F15: 1/1 | G15: مسلم | I15: 9 | J15: 28 | K15: محمد وجيه اسماعيل علي احمد | L15: 1/1 | M15: مسلم
C16: 10 | D16: 10 | E16: عبد الرحمن عباس عبد الرحمن محمد | F16: 1/1 | G16: مسلم | I16: 10 | J16: 29 | K16: محمود احمد رفاعي حسن | L16: 1/1 | M16: مسلم
C17: 11 | D17: 11 | E17: عبد الله توفيق عبد العظيم حسنين | F17: 1/1 | G17: مسلم | I17: 11 | J17: 30 | K17: محمود اشرف ابراهيم سليمان | L17: 1/1 | M17: مسلم
C18: 12 | D18: 12 | E18: عبد الله جمال محمد محمد عبد العاطي | F18: 1/1 | G18: مسلم | I18: 12 | J18: 31 | K18: محمود خالد عز الرجال اسماعيل | L18: 1/1 | M18: مسلم
C19: 13 | D19: 13 | E19: عبدالرحمن محمد على عبدالعظيم | F19: 1/1 | G19: مسلم | I19: 13 | J19: 32 | K19: محمود عونى فوزى القطان | L19: 1/1 | M19: مسلم
C20: 14 | D20: 14 | E20: فاروق محمد احمد محمد مرزوق | F20: 1/1 | G20: مسلم | I20: 14 | J20: 33 | K20: مروان عبد العظيم جلال عبد العظيم | L20: 1/1 | M20: مسلم
C21: 15 | D21: 15 | E21: كريم عاطف محمود عبد الفتاح | F21: 1/1 | G21: مسلم | I21: 15 | J21: 34 | K21: مصطفي عبد الحكم عبد الستار عبد الله | L21: 1/1 | M21: مسلم
C22: 16 | D22: 16 | E22: كمال عادل كمال عثمان | F22: 1/1 | G22: مسلم | I22: 16 | J22: 35 | K22: ياسر عبد الخالق اسماعيل عبد الخالق | L22: 1/1 | M22: مسلم
C23: 17 | D23: 17 | E23: محمد السيد محمدي ابراهيم عباس | F23: 1/1 | G23: مسلم | I23: 17 | J23: 36 | K23: ابتهال فتحي رمضان عبد اللطيف | L23: 1/1 | M23: مسلم
C24: 18 | D24: 18 | E24: محمد اشرف السيد عفيفي مصطفي | F24: 1/1 | G24: مسلم | I24: 18 | J24: 37 | K24: اسراء جمعة عبد التواب ابراهيم | L24: 1/1 | M24: مسلم
C25: 19 | D25: 19 | E25: محمد تامر عبد الجليل عبد العظيم | F25: 1/1 | G25: مسلم | I25: 19 | J25: 38 | K25: اسراء رفعت ربيع عبد العزيز | L25: 1/1 | M25: مسلم
C35: كنترول الصف الثانى | F35: رئيس الكنترول | I35: كنترول الصف الثانى | L35: رئيس الكنترول

Sheet لجان ملاحق
H1: اعدادات اللجان | M1: اختر المادة من القائمة اسفله | X1: ادارة | Y1: =[1]الرئيسية!$E1 -> ….................. | AA1: لجنة رقم : | AB1: 1 | AD1: ادارة | AE1: =[1]الرئيسية!$E1 -> ….................. | AG1: لجنة رقم : | AH1: =IF($AB$1="","",$AB$1+1) -> 2 | BI1: لغة عربية
G2: الاعداد لامتحان الدور الثانى كل مادة على حدة | K2: أولا : | L2: مــادة التخلف : | N2: لغة انجليزية | X2: مدرسة | Y2: =[1]الرئيسية!$E2 -> ….................. | AA2: المقر : | AD2: مدرسة | AE2: =[1]الرئيسية!$E2 -> ….................. | AG2: المقر : | BI2: لغة انجليزية
K3: ثانيا : | X3: الصف الاول - | Z3: الدور الثانى | AD3: الصف الاول - | AF3: الدور الثانى | BI3: لغة فرنسية
F4: م | G4: رقم الجلوس | H4: اسم الطلب | I4: الشعبة | J4: الديانة | K4: النوع | L4: ثالثا : | M4: توضع قبل كل امتحان يدويا | X4: من : | AA4: الى : | AD4: من : | AG4: الى : | BI4: رياضة عامة
L5: الفئة | M5: الجلوس الجديد | N5: رقم اللجنة | O5: مقر اللجنة | X5: العدد : | AA5: ="للعام الدراسى"&" "&الرئيسية!$K$2 -> للعام الدراسى 2019 / 2020 | AD5: العدد : | AG5: ="للعام الدراسى"&" "&الرئيسية!$K$2 -> للعام الدراسى 2019 / 2020 | BI5: حاسب ألى
X6: مسلسل | Y6: جلوس | Z6: الاســـــــــــــــــــــــم | AA6: الشعبة | AB6: ملاحظات | AD6: مسلسل | AE6: جلوس | AF6: الاســـــــــــــــــــــــم | AG6: الشعبة | AH6: ملاحظات | AJ6: رابعا : عرض اللجان | BI6: اقتصاد
BI7: سكرتارية عربية
BI8: سكرتارية اجنبية
BI9: ادارة اعمال
BI10: محاسبة مالية
BI11: تسويق
BI12: قانون تجارى
BI13: جغرافيا
BI14: مجموع كلى
BI15: تربية دينية
BI16: تربية وطنية
X36: كنترول الصف الثانى | AA36: رئيس الكنترول | AD36: كنترول الصف الثانى | AG36: رئيس الكنترول

Sheet شيت
O1: =الرئيسية!$B$2&""&الرئيسية!$C$2 -> ادارة القليوبية | AY1: شيت كنترول الصف الاول
O2: =الرئيسية!$B$3&" "&الرئيسية!$C$3 -> مدرسة التجارية | AY2: للعام الدراسى | BE2: =الرئيسية!$K$2 -> 2019 / 2020
A5: مسلسل | B5: بيانات أساسية | M5: سرى | N5: لغة عربية | R5: لغة انجليزية | V5: لغة فرنسية | Z5: جغرافيا | AD5: رياضة عامة | AH5: حاسب آلى | AQ5: اقتصاد | AU5: سكرتارية عربية | AY5: سكرتارية اجنبية | BC5: ادارة اعمال | BG5: محاسبة مالية | BK5: تسويق | BO5: قانون تجارى | BS5: مجموع نصف العام | BT5: مجموع كلى | BU5: تربية دينية | BY5: مواطنة | CC5: النتيجة | CD5: مواد الرسوب | CE5: عدد المواد | CF5: رقم اللجنة | CG5: مقر اللجنة | CM5: لغة عربية | CN5: لغة انجليزية | CO5: لغة فرنسية | CP5: جغرافيا | CQ5: رياضة عامة | CR5: حاسب ألى | CS5: اقتصاد | CT5: سكرتارية عربية | CU5: سكرتارية اجنبية | CV5: ادارة اعمال | CW5: محاسبة مالية | CX5: تسويق | CY5: قانون تجارى | CZ5: مجموع كلى | DA5: تربية دينية | DB5: مواطنة | DC5: مواد لا تستوجب الرسوب | DD5: مواد الرسوب
B6: جلوس | C6: اسم الطالب | D6: الفصل | E6: تاريخ الميلاد | F6: سن الطالب في | G6: الجنسية | H6: الديانة | I6: النوع | J6: الفئة | K6: الفترة | L6: الحــــالة | N6: اعمال السنة | O6: نصف العام | P6: آخر العام | Q6: المجموع | R6: اعمال السنة | S6: نصف العام | T6: آخر العام | U6: المجموع | V6: اعمال السنة | W6: نصف العام | X6: آخر العام | Y6: المجموع | Z6: اعمال السنة | AA6: نصف العام | AB6: آخر العام | AC6: المجموع | AD6: اعمال السنة | AE6: نصف العام | AF6: آخر العام | AG6: المجموع | AH6: اعمال السنة | AJ6: نصف العام | AL6: آخر العام | AN6: مج تحريرى | AO6: مج عملى | AP6: مج حاسب | AQ6: اعمال السنة | AR6: نصف العام | AS6: آخر العام | AT6: المجموع | AU6: اعمال السنة | AV6: نصف العام | AW6: آخر العام | AX6: المجموع | AY6: اعمال السنة | AZ6: نصف العام | BA6: آخر العام | BB6: المجموع | BC6: اعمال السنة | BD6: نصف العام | BE6: آخر العام | BF6: المجموع | BG6: اعمال السنة | BH6: نصف العام | BI6: آخر العام | BJ6: المجموع | BK6: اعمال السنة | BL6: نصف العام | BM6: آخر العام | BN6: المجموع | BO6: اعمال السنة | BP6: نصف العام | BQ6: آخر العام | BR6: المجموع | BU6: اعمال السنة | BV6: نصف العام | BW6: آخر العام | BX6: المجموع | BY6: اعمال السنة | BZ6: نصف العام | CA6: آخر العام | CB6: المجموع
AH7: تحريرى | AI7: عملى | AJ7: تحريرى | AK7: عملى | AL7: تحريرى | AM7: عملى
M8: عظمى | N8: 10 | O8: 20 | P8: 20 | Q8: 50 | R8: 10 | S8: 20 | T8: 20 | U8: 50 | V8: 6 | W8: 12 | X8: 12 | Y8: 30 | Z8: 8 | AA8: 16 | AB8: 16 | AC8: 40 | AD8: 6 | AE8: 12 | AF8: 12 | AG8: 30 | AH8: 6 | AI8: 4 | AJ8: 12 | AK8: 8 | AL8: 12 | AM8: 8 | AN8: 30 | AO8: 20 | AP8: 50 | AQ8: 10 | AR8: 20 | AS8: 20 | AT8: 50 | AU8: 10 | AV8: 20 | AW8: 20 | AX8: 50 | AY8: 10 | AZ8: 20 | BA8: 20 | BB8: 50 | BC8: 10 | BD8: 20 | BE8: 20 | BF8: 50 | BG8: 10 | BH8: 20 | BI8: 20 | BJ8: 50 | BK8: 10 | BL8: 20 | BM8: 20 | BN8: 50 | BO8: 10 | BP8: 20 | BQ8: 20 | BR8: 50 | BS8: 240 | BT8: 600 | BU8: 4 | BV8: 8 | BW8: 8 | BX8: 20 | BY8: 4 | BZ8: 8 | CA8: 8 | CB8: 20 | DC8: دين و وطنية | DD8: باقى المواد
F9: =الرئيسية!$E$9 -> 2021-10-01 | M9: صغرى | N9: 0 | O9: 0 | P9: 5 | Q9: 25 | R9: 0 | S9: 0 | T9: 5 | U9: 25 | V9: 0 | W9: 0 | X9: 3 | Y9: 9 | Z9: 0 | AA9: 0 | AB9: 4 | AC9: 20 | AD9: 0 | AE9: 0 | AF9: 3 | AG9: 15 | AH9: 0 | AI9: 0 | AJ9: 0 | AK9: 0 | AL9: 3 | AM9: 2 | AN9: 15 | AO9: 10 | AP9: 25 | AQ9: 0 | AR9: 0 | AS9: 5 | AT9: 25 | AU9: 0 | AV9: 0 | AW9: 5 | AX9: 25 | AY9: 0 | AZ9: 0 | BA9: 5 | BB9: 25 | BC9: 0 | BD9: 0 | BE9: 5 | BF9: 25 | BG9: 0 | BH9: 0 | BI9: 5 | BJ9: 25 | BK9: 0 | BL9: 0 | BM9: 5 | BN9: 25 | BO9: 0 | BP9: 0 | BQ9: 5 | BR9: 25 | BS9: 0 | BT9: 300 | BU9: 0 | BV9: 0 | BW9: 2 | BX9: 10 | BY9: 0 | BZ9: 0 | CA9: 2 | CB9: 10
A10: 1 | B10: 1 | C10: طالب اولى 1 | D10: 1/1 | E10: 2000-12-09 | F10: 23 - 09 - 20 | G10: مصرى | H10: مسلم | I10: بنين | J10: انتظام | K10: صباحى | M10: 71 | N10: 5 | O10: 10.5 | P10: 9.5 | Q10: =IF(P10="غ","غ",SUM(N10,O10,P10)) -> 25 | R10: 8 | S10: 7 | T10: 13 | U10: =IF(T10="غ","غ",SUM(R10,S10,T10)) -> 28 | V10: 5.5 | W10: 7.6 | X10: 9 | Y10: =IF(X10="غ","غ",SUM(V10,W10,X10)) -> 22.1 | Z10: 6.5 | AA10: 14 | AB10: 10 | AC10: =IF(AB10="غ","غ",SUM(Z10,AA10,AB10)) -> 30.5 | AD10: 3.5 | AE10: 7.5 | AF10: 10 | AG10: =IF(AF10="غ","غ",SUM(AD10,AE10,AF10)) -> 21 | AH10: 4 | AI10: 3 | AJ10: 6 | AK10: 5 | AL10: 7 | AM10: 6 | AN10: =IF(AL10="غ","غ",SUM(AH10,AJ10,AL10)) -> 17 | AO10: =IF(AM10="غ","غ",SUM(AI10,AK10,AM10)) -> 14 | AP10: =IF(OR(AN10="غ",AO10="غ"),"غ",SUM(AN10,AO10)) -> 31 | AQ10: 8.5 | AR10: 10 | AS10: 15 | AT10: =IF(AS10="غ","غ",SUM(AQ10,AR10,AS10)) -> 33.5 | AU10: 8 | AV10: 13 | AW10: 10 | AX10: =IF(AW10="غ","غ",SUM(AU10,AV10,AW10)) -> 31 | AY10: 9 | AZ10: 9.5 | BA10: 10.5 | BB10: =IF(BA10="غ","غ",SUM(AY10,AZ10,BA10)) -> 29 | BC10: 9 | BD10: 10 | BE10: 15 | BF10: =IF(BE10="غ","غ",SUM(BC10,BD10,BE10)) -> 34 | BG10: 8 | BH10: 9 | BI10: 16 | BJ10: =IF(BI10="غ","غ",SUM(BG10,BH10,BI10)) -> 33 | BK10: 8.5 | BL10: 13.5 | BM10: 11.5 | BN10: =IF(BM10="غ","غ",SUM(BK10,BL10,BM10)) -> 33.5 | BO10: 8 | BP10: 11 | BQ10: 14 | BR10: =IF(BQ10="غ","غ",SUM(BO10,BP10,BQ10)) -> 33 | BS10: =IF(C10="","",SUM(O10,S10,W10,AE10,AR10,AV10,AZ10,BD10,BH10,BL10,BP10,AA10,AJ10,AK10)) -> 133.6 | BT10: =SUM(Q10,U10,Y10,AG10,AT10,AX10,BB10,BF10,BJ10,BN10,BR10,AC10,AP10) -> 384.6 | BU10: 3.5 | BV10: 5.5 | BW10: 7 | BX10: =IF(BW10="غ","غ",SUM(BU10,BV10,BW10)) -> 16 | BY10: 3 | BZ10: 7 | CA10: 7 | CB10: =IF(CA10="غ","غ",SUM(BY10,BZ10,CA10)) -> 17 | CC10: =IF(I10="","",IF(I10="بنات",IF(CE10=0,"ناجحة",IF(DD10>2,"راسبة","دورثان")),IF(I10="بنين",IF(CE10=0,"ناجح",IF(DD10>2,"راسب","دورثان"))))) -> ناجح | CD10: =IF(C10="","",IF(AND($L10="باقية",$CC10="راسبة"),"وليس لها حق الاعادة",IF(AND($L10<>"باقية",$CC10="راسبة"),"و لها حق الاعادة",IF(AND($L10="باقى",$CC10="راسب"),"وليس له حق الاعادة",IF(AND($L10<>"باقى",$CC10="راسب"),"و له حق الاعادة",IF($CC10="ناجحة","و منقولة للصف الثانى",IF($CC10="ناجح","و منقول للصف الثانى",IF($CC10="دورثان","فى : "&CONCATENATE($CM10,$CN10,$CO10,$CQ10,$CR10,$CS10,$CT10,$CU10,$CV10,$CW10,$CX10,$CY10,$CP10,$CZ10,$DA10,$DB10))))))))) -> و منقول للصف الثانى | CE10: =IF(C10="","",$DC10+$DD10) -> 0 | CF10: 1 | CG10: 1/3 | CM10: =IF(C10="","",IF(OR(P10<$P$9,P10="غ",Q10<$Q$9),CM$5&" - ","")) ->  | CN10: =IF(C10="","",IF(OR(T10<$T$9,T10="غ",U10<$U$9),CN$5&" - ","")) ->  | CO10: =IF(C10="","",IF(OR(X10<$X$9,X10="غ",Y10<$Y$9),CO$5&" - ","")) ->  | CP10: =IF(C10="","",IF(OR(AB10<$AB$9,AB10="غ",AC10<$AC$9),CP$5&" - ","")) ->  | CQ10: =IF(C10="","",IF(OR(AF10<$AF$9,AF10="غ",AG10<$AG$9),CQ$5&" - ","")) ->  | CR10: =IF(C10="","",IF(OR(AL10<$AL$9,AM10<$AM$9,AN10<$AN$9,AN10="غ",AO10<$AO$9,AO10="غ"),CR$5&" - ","")) ->  | CS10: =IF(C10="","",IF(OR(AS10<$AS$9,AS10="غ",AT10<$AT$9),CS$5&" - ","")) ->  | CT10: =IF(C10="","",IF(OR(AW10<$AW$9,AW10="غ",AX10<$AX$9),CT$5&" - ","")) ->  | CU10: =IF(C10="","",IF(OR(BA10<$BA$9,BA10="غ",BB10<$BB$9),CU$5&" - ","")) ->  | CV10: =IF(C10="","",IF(OR(BE10<$BE$9,BE10="غ",BF10<$BF$9),CV$5&" - ","")) ->  | CW10: =IF(C10="","",IF(OR(BI10<$BI$9,BI10="غ",BJ10<$BJ$9),CW$5&" - ","")) ->  | CX10: =IF(C10="","",IF(OR(BM10<$BM$9,BM10="غ",BN10<$BN$9),CX$5&" - ","")) ->  | CY10: =IF(C10="","",IF(OR(BQ10<$BQ$9,BQ10="غ",BR10<$BR$9),CY$5&" - ","")) ->  | CZ10: =IF(C10="","",IF(BT10<$BT$9,CZ$5&" - ","")) ->  | DA10: =IF(C10="","",IF(OR(BW10<$BW$9,BW10="غ",BX10<$BX$9),DA$5&" - ","")) ->  | DB10: =IF(C10="","",IF(OR(CA10<$CA$9,CA10="غ",CB10<$CB$9),DB$5,"")) ->  | DC10: =COUNTIF($CZ10:$DB10,"?*") -> 0 | DD10: =COUNTIF($CM10:$CY10,"?*") -> 0
A11: 2 | B11: 2 | C11: طالب اولى 10 | D11: 1/1 | E11: 2004-02-16 | F11: 14 - 07 - 17 | G11: مصرى | H11: مسلم | I11: بنين | J11: انتظام | K11: صباحى | M11: 80 | N11: 8 | O11: 12 | P11: 11 | Q11: 31 | R11: 8 | S11: 14 | T11: 14 | U11: 36 | V11: 5.5 | W11: 7.6 | X11: 10 | Y11: 23.1 | Z11: 6.5 | AA11: 15 | AB11: 16 | AC11: 37.5 | AD11: 3.5 | AE11: 4 | AF11: 8.5 | AG11: 16 | AH11: 4 | AI11: 3 | AJ11: 7.5 | AK11: 5 | AL11: 7 | AM11: 5 | AN11: 18.5 | AO11: 13 | AP11: 31.5 | AQ11: 8.5 | AR11: 14 | AS11: 16 | AT11: 38.5 | AU11: 8.5 | AV11: 14 | AW11: 12.5 | AX11: 35 | AY11: 9 | AZ11: 10 | BA11: 10 | BB11: 29 | BC11: 8.5 | BD11: 17 | BE11: 15 | BF11: 40.5 | BG11: 8 | BH11: 10 | BI11: 13.5 | BJ11: 31.5 | BK11: 8.5 | BL11: 19 | BM11: 13 | BN11: 40.5 | BO11: 8 | BP11: 16 | BQ11: 14 | BR11: 38 | BS11: 165.1 | BT11: 428.1 | BU11: 3.5 | BV11: 5 | BW11: 7 | BX11: 15.5 | BY11: 3 | BZ11: 6 | CA11: 7 | CB11: 16 | CC11: ناجح | CD11: و منقول للصف الثانى | CE11: 0 | CF11: 1 | CG11: 1/3 | DC11: 0 | DD11: 0
A12: 3 | B12: 3 | C12: طالب اولى 100 | D12: 3/1 | E12: 2003-04-19 | F12: 12 - 05 - 18 | G12: مصرى | H12: مسلم | I12: بنين | J12: انتظام | K12: صباحى | M12: 170 | N12: 8 | O12: 12.5 | P12: 13 | Q12: 33.5 | R12: 8.5 | S12: 10.8 | T12: 15.2 | U12: 34.5 | V12: 4.5 | W12: 3.6 | X12: 8.4 | Y12: 16.5 | Z12: 7 | AA12: 13 | AB12: 10 | AC12: 30 | AD12: 5.5 | AE12: 10.5 | AF12: 9.5 | AG12: 25.5 | AH12: 4.5 | AI12: 2.5 | AJ12: 8.5 | AK12: 5 | AL12: 8 | AM12: 5 | AN12: 21 | AO12: 12.5 | AP12: 33.5 | AQ12: 9 | AR12: 17 | AS12: 12 | AT12: 38 | AU12: 9 | AV12: 19.5 | AW12: 14.5 | AX12: 43 | AY12: 9 | AZ12: 17 | BA12: 14 | BB12: 40 | BC12: 9 | BD12: 18 | BE12: 14 | BF12: 41 | BG12: 8 | BH12: 16.5 | BI12: 16.5 | BJ12: 41 | BK12: 9 | BL12: 8 | BM12: 8 | BN12: 25 | BO12: 8 | BP12: 14 | BQ12: 16 | BR12: 38 | BS12: 173.9 | BT12: 439.5 | BU12: 3.5 | BV12: 5.5 | BW12: 7.5 | BX12: 16.5 | BY12: 3.5 | BZ12: 6 | CA12: 6.5 | CB12: 16 | CC12: ناجح | CD12: و منقول للصف الثانى | CE12: 0 | CF12: 6 | CG12: 6/3 | DC12: 0 | DD12: 0
A13: 4 | B13: 4 | C13: طالب اولى 101 | D13: 3/1 | E13: 2002-03-25 | F13: 07 - 06 - 19 | G13: مصرى | H13: مسلم | I13: بنين | J13: انتظام | K13: صباحى | M13: 171 | N13: 8 | O13: 14 | P13: 13.5 | Q13: 35.5 | R13: 8.5 | S13: 10.8 | T13: 17.2 | U13: 36.5 | V13: 4.5 | W13: 5.2 | X13: 8 | Y13: 17.7 | Z13: 7 | AA13: 13 | AB13: 15 | AC13: 35 | AD13: 2.5 | AE13: 6.5 | AF13: 10 | AG13: 19 | AH13: 4.5 | AI13: 3 | AJ13: 8.5 | AK13: 6 | AL13: 8 | AM13: 6 | AN13: 21 | AO13: 15 | AP13: 36 | AQ13: 9 | AR13: 17 | AS13: 15 | AT13: 41 | AU13: 9 | AV13: 18.5 | AW13: 11.5 | AX13: 39 | AY13: 9 | AZ13: 10 | BA13: 9 | BB13: 28 | BC13: 9 | BD13: 19 | BE13: 14 | BF13: 42 | BG13: 8 | BH13: 5 | BI13: 13 | BJ13: 26 | BK13: 8.5 | BL13: 11 | BM13: 12 | BN13: 31.5 | BO13: 8 | BP13: 14 | BQ13: 17 | BR13: 39 | BS13: 158.5 | BT13: 426.2 | BU13: 3.5 | BV13: 4.5 | BW13: 7.5 | BX13: 15.5 | BY13: 3.5 | BZ13: 6 | CA13: 7.5 | CB13: 17 | CC13: ناجح | CD13: و منقول للصف الثانى | CE13: 0 | CF13: 6 | CG13: 6/3 | DC13: 0 | DD13: 0
A14: 5 | B14: 5 | C14: طالب اولى 102 | D14: 3/1 | E14: 2004-02-25 | F14: 05 - 07 - 17 | G14: مصرى | H14: مسلم | I14: بنين | J14: انتظام | K14: صباحى | M14: 172 | N14: 8.5 | O14: 16 | P14: 17 | Q14: 41.5 | R14: 8.5 | S14: 11.6 | T14: 18 | U14: 38.1 | V14: 4.5 | W14: 6 | X14: 8 | Y14: 18.5 | Z14: 7 | AA14: 13 | AB14: 13 | AC14: 33 | AD14: 5.5 | AE14: 4 | AF14: 12 | AG14: 21.5 | AH14: 4.5 | AI14: 3 | AJ14: 8.5 | AK14: 5 | AL14: 8 | AM14: 5 | AN14: 21 | AO14: 13 | AP14: 34 | AQ14: 9 | AR14: 17 | AS14: 20 | AT14: 46 | AU14: 9 | AV14: 19 | AW14: 15.5 | AX14: 43.5 | AY14: 9 | AZ14: 16.5 | BA14: 15 | BB14: 40.5 | BC14: 9 | BD14: 17 | BE14: 14 | BF14: 40 | BG14: 8 | BH14: 11.5 | BI14: 11 | BJ14: 30.5 | BK14: 9 | BL14: 11 | BM14: 10 | BN14: 30 | BO14: 8 | BP14: 13 | BQ14: 16 | BR14: 37 | BS14: 169.1 | BT14: 454.1 | BU14: 3.5 | BV14: 5 | BW14: 7.5 | BX14: 16 | BY14: 3.5 | BZ14: 6 | CA14: 7.5 | CB14: 17 | CC14: ناجح | CD14: و منقول للصف الثانى | CE14: 0 | CF14: 6 | CG14: 6/3 | DC14: 0 | DD14: 0
A15: 6 | B15: 6 | C15: طالب اولى 103 | D15: 3/1 | E15: 2003-09-17 | F15: 14 - 00 - 18 | G15: مصرى | H15: مسلم | I15: بنين | J15: انتظام | K15: صباحى | M15: 173 | N15: 8 | O15: 15 | P15: 12.5 | Q15: 35.5 | R15: 9 | S15: 12 | T15: 16.8 | U15: 37.8 | V15: 4.5 | W15: 4.4 | X15: 8.4 | Y15: 17.3 | Z15: 7 | AA15: 14 | AB15: 13 | AC15: 34 | AD15: 5.5 | AE15: 5 | AF15: 9 | AG15: 19.5 | AH15: 4.5 | AI15: 2.5 | AJ15: 9 | AK15: 6 | AL15: 8 | AM15: 5 | AN15: 21.5 | AO15: 13.5 | AP15: 35 | AQ15: 9.5 | AR15: 17 | AS15: 11 | AT15: 37.5 | AU15: 9 | AV15: 19 | AW15: 12 | AX15: 40 | AY15: 9 | AZ15: 16.5 | BA15: 12.5 | BB15: 38 | BC15: 9 | BD15: 18 | BE15: 15 | BF15: 42 | BG15: 8 | BH15: 11.5 | BI15: 11.5 | BJ15: 31 | BK15: 8.5 | BL15: 11 | BM15: 7 | BN15: 26.5 | BO15: 8 | BP15: 14 | BQ15: 14 | BR15: 36 | BS15: 172.4 | BT15: 430.1 | BU15: 4 | BV15: 6 | BW15: 7 | BX15: 17 | BY15: 3.5 | BZ15: 6.5 | CA15: 6.5 | CB15: 16.5 | CC15: ناجح | CD15: و منقول للصف الثانى | CE15: 0 | CF15: 6 | CG15: 6/3 | DC15: 0 | DD15: 0
A16: 7 | B16: 7 | C16: طالب اولى 104 | D16: 3/1 | E16: 2004-01-01 | F16: 00 - 09 - 17 | G16: مصرى | H16: مسلم | I16: بنين | J16: انتظام | K16: صباحى | M16: 174 | N16: 8 | O16: 15.5 | P16: 15 | Q16: 38.5 | R16: 9 | S16: 10.4 | T16: 18.4 | U16: 37.8 | V16: 4.5 | W16: 4.8 | X16: 8.4 | Y16: 17.7 | Z16: 7 | AA16: 14 | AB16: 12 | AC16: 33 | AD16: 5.5 | AE16: 11 | AF16: 9.5 | AG16: 26 | AH16: 4.5 | AI16: 2.5 | AJ16: 8.5 | AK16: 5 | AL16: 8 | AM16: 6 | AN16: 21 | AO16: 13.5 | AP16: 34.5 | AQ16: 9.5 | AR16: 17 | AS16: 9 | AT16: 35.5 | AU16: 9 | AV16: 19.5 | AW16: 17.5 | AX16: 46 | AY16: 9 | AZ16: 16.5 | BA16: 13 | BB16: 38.5 | BC16: 9 | BD16: 18 | BE16: 16 | BF16: 43 | BG16: 8 | BH16: 17 | BI16: 13.5 | BJ16: 38.5 | BK16: 9 | BL16: 8 | BM16: 8 | BN16: 25 | BO16: 8 | BP16: 8 | BQ16: 14 | BR16: 30 | BS16: 173.2 | BT16: 444 | BU16: 4 | BV16: 5.5 | BW16: 7 | BX16: 16.5 | BY16: 3.5 | BZ16: 6 | CA16: 7.5 | CB16: 17 | CC16: ناجح | CD16: و منقول للصف الثانى | CE16: 0 | CF16: 6 | CG16: 6/3 | DC16: 0 | DD16: 0
A17: 8 | B17: 8 | C17: طالب اولى 105 | D17: 3/1 | E17: 2003-09-25 | F17: 06 - 00 - 18 | G17: مصرى | H17: مسلم | I17: بنين | J17: انتظام | K17: صباحى | M17: 175 | N17: 8 | O17: 14 | P17: 14 | Q17: 36 | R17: 9 | S17: 10.4 | T17: 10 | U17: 29.4 | V17: 4.5 | W17: 6 | X17: 8 | Y17: 18.5 | Z17: 7 | AA17: 12 | AB17: 9 | AC17: 28 | AD17: 5.5 | AE17: 5 | AF17: 10.5 | AG17: 21 | AH17: 4.5 | AI17: 2.5 | AJ17: 9 | AK17: 6 | AL17: 8 | AM17: 5 | AN17: 21.5 | AO17: 13.5 | AP17: 35 | AQ17: 9 | AR17: 17 | AS17: 10 | AT17: 36 | AU17: 9 | AV17: 19.5 | AW17: 14 | AX17: 42.5 | AY17: 9 | AZ17: 13 | BA17: 9 | BB17: 31 | BC17: 9 | BD17: 18.5 | BE17: 14 | BF17: 41.5 | BG17: 8 | BH17: 13 | BI17: 13.5 | BJ17: 34.5 | BK17: 8.5 | BL17: 9 | BM17: 7.5 | BN17: 25 | BO17: 8 | BP17: 11 | BQ17: 13 | BR17: 32 | BS17: 163.4 | BT17: 410.4 | BU17: 4 | BV17: 5 | BW17: 8 | BX17: 17 | BY17: 3.5 | BZ17: 6.5 | CA17: 7 | CB17: 17 | CC17: ناجح | CD17: و منقول للصف الثانى | CE17: 0 | CF17: 6 | CG17: 6/3 | DC17: 0 | DD17: 0
A18: 9 | B18: 9 | C18: طالب اولى 106 | D18: 3/1 | E18: 2003-02-16 | F18: 13 - 07 - 18 | G18: مصرى | H18: مسلم | I18: بنين | J18: انتظام | K18: صباحى | M18: 176 | N18: 8 | O18: 12.5 | P18: 12.5 | Q18: 33 | R18: 8.5 | S18: 8.4 | T18: 9.2 | U18: 26.1 | V18: 4.5 | W18: 6.4 | X18: 8 | Y18: 18.9 | Z18: 7 | AA18: 12 | AB18: 11 | AC18: 30 | AD18: 3 | AE18: 0 | AF18: 7.5 | AG18: 10.5 | AH18: 4.5 | AI18: 2.5 | AJ18: 9 | AK18: 5 | AL18: 8 | AM18: 5 | AN18: 21.5 | AO18: 12.5 | AP18: 34 | AQ18: 9 | AR18: 15 | AS18: 10 | AT18: 34 | AU18: 9 | AV18: 15 | AW18: 7 | AX18: 31 | AY18: 9 | AZ18: 7.5 | BA18: 6 | BB18: 22.5 | BC18: 9 | BD18: 15 | BE18: 15 | BF18: 39 | BG18: 8 | BH18: 0 | BI18: 8.5 | BJ18: 16.5 | BK18: 8.5 | BL18: 7 | BM18: 9.5 | BN18: 25 | BO18: 8 | BP18: 10 | BQ18: 14 | BR18: 32 | BS18: 122.8 | BT18: 352.5 | BU18: 4 | BV18: 4.5 | BW18: 5.5 | BX18: 14 | BY18: 3.5 | BZ18: 5.5 | CA18: 6.5 | CB18: 15.5 | CC18: راسب | CD18: و له حق الاعادة | CE18: 3 | CF18: 6 | CG18: 6/3 | CQ18: رياضة عامة - | CU18: سكرتارية اجنبية - | CW18: محاسبة مالية - | DC18: 0 | DD18: 3
A19: 10 | B19: 10 | C19: طالب اولى 107 | D19: 3/1 | E19: 2003-07-06 | F19: 26 - 02 - 18 | G19: مصرى | H19: مسلم | I19: بنين | J19: انتظام | K19: صباحى | M19: 177 | N19: 8.5 | O19: 15 | P19: 14.5 | Q19: 38 | R19: 8.5 | S19: 11.6 | T19: 15.2 | U19: 35.3 | V19: 4.5 | W19: 6.8 | X19: 8.4 | Y19: 19.7 | Z19: 7 | AA19: 13 | AB19: 9 | AC19: 29 | AD19: 3 | AE19: 9.5 | AF19: 8 | AG19: 20.5 | AH19: 4 | AI19: 2.5 | AJ19: 9 | AK19: 5 | AL19: 8 | AM19: 5 | AN19: 21 | AO19: 12.5 | AP19: 33.5 | AQ19: 9 | AR19: 16 | AS19: 10 | AT19: 35 | AU19: 9 | AV19: 17.5 | AW19: 15 | AX19: 41.5 | AY19: 9 | AZ19: 16.5 | BA19: 10 | BB19: 35.5 | BC19: 9 | BD19: 18 | BE19: 14 | BF19: 41 | BG19: 8 | BH19: 14 | BI19: 15 | BJ19: 37 | BK19: 8.5 | BL19: 8 | BM19: 4 | BN19: 20.5 | BO19: 8 | BP19: 13 | BQ19: 15 | BR19: 36 | BS19: 172.9 | BT19: 422.5 | BU19: 4 | BV19: 4 | BW19: 7.5 | BX19: 15.5 | BY19: 3.5 | BZ19: 6.5 | CA19: 7 | CB19: 17 | CC19: دورثان | CD19: فى : تسويق - | CE19: 1 | CF19: 6 | CG19: 6/3 | CX19: تسويق - | DC19: 0 | DD19: 1
A20: 11 | B20: 11 | C20: طالب اولى 108 | D20: 3/1 | E20: 2003-01-19 | F20: 13 - 08 - 18 | G20: مصرى | H20: مسلم | I20: بنين | J20: انتظام | K20: صباحى | M20: 178 | N20: 8 | O20: 14 | P20: 14 | Q20: 36 | R20: 8.5 | S20: 11.2 | T20: 14.8 | U20: 34.5 | V20: 5.5 | W20: 8 | X20: 8 | Y20: 21.5 | Z20: 7 | AA20: 12 | AB20: 11 | AC20: 30 | AD20: 3 | AE20: 6 | AF20: 7 | AG20: 16 | AH20: 4.5 | AI20: 3 | AJ20: 9 | AK20: 5 | AL20: 8 | AM20: 6 | AN20: 21.5 | AO20: 14 | AP20: 35.5 | AQ20: 9.5 | AR20: 14 | AS20: 9 | AT20: 32.5 | AU20: 9 | AV20: 18.5 | AW20: 13 | AX20: 40.5 | AY20: 9 | AZ20: 15 | BA20: 13.5 | BB20: 37.5 | BC20: 9 | BD20: 18.5 | BE20: 15 | BF20: 42.5 | BG20: 8 | BH20: 11.5 | BI20: 14.5 | BJ20: 34 | BK20: 9 | BL20: 9 | BM20: 10 | BN20: 28 | BO20: 8 | BP20: 14 | BQ20: 15 | BR20: 37 | BS20: 165.7 | BT20: 425.5 | BU20: 4 | BV20: 5.5 | BW20: 6.5 | BX20: 16 | BY20: 3.5 | BZ20: 6.5 | CA20: 7 | CB20: 17 | CC20: ناجح | CD20: و منقول للصف الثانى | CE20: 0 | CF20: 6 | CG20: 6/3 | DC20: 0 | DD20: 0
A21: 12 | B21: 12 | C21: طالب اولى 109 | D21: 3/1 | E21: 2003-04-22 | F21: 09 - 05 - 18 | G21: مصرى | H21: مسلم | I21: بنين | J21: انتظام | K21: صباحى | M21: 179 | N21: 8 | O21: 13.5 | P21: 14 | Q21: 35.5 | R21: 8.5 | S21: 10.4 | T21: 14.8 | U21: 33.7 | V21: 4.5 | W21: 5.6 | X21: 8.4 | Y21: 18.5 | Z21: 7 | AA21: 11 | AB21: 10 | AC21: 28 | AD21: 5.5 | AE21: 6 | AF21: 7 | AG21: 18.5 | AH21: 4.5 | AI21: 3 | AJ21: 9 | AK21: 5 | AL21: 8 | AM21: 5 | AN21: 21.5 | AO21: 13 | AP21: 34.5 | AQ21: 9.5 | AR21: 17 | AS21: 7 | AT21: 33.5 | AU21: 9 | AV21: 18 | AW21: 10.5 | AX21: 37.5 | AY21: 9 | AZ21: 11 | BA21: 9.5 | BB21: 29.5 | BC21: 9 | BD21: 19 | BE21: 15 | BF21: 43 | BG21: 8 | BH21: 9.5 | BI21: 13 | BJ21: 30.5 | BK21: 9 | BL21: 7 | BM21: 9 | BN21: 25 | BO21: 8 | BP21: 12 | BQ21: 15 | BR21: 35 | BS21: 154 | BT21: 402.7 | BU21: 4 | BV21: 4 | BW21: 7 | BX21: 15 | BY21: 3.5 | BZ21: 6 | CA21: 7 | CB21: 16.5 | CC21: ناجح | CD21: و منقول للصف الثانى | CE21: 0 | CF21: 6 | CG21: 6/3 | DC21: 0 | DD21: 0
A22: 13 | B22: 13 | C22: طالب اولى 11 | D22: 1/1 | E22: 2004-01-26 | F22: 06 - 08 - 17 | G22: مصرى | H22: مسلم | I22: بنين | J22: انتظام | K22: صباحى | M22: 81 | N22: 8 | O22: 13.5 | P22: 12.5 | Q22: 34 | R22: 8 | S22: 12 | T22: 16.4 | U22: 36.4 | V22: 5.5 | W22: 8 | X22: 10 | Y22: 23.5 | Z22: 6.5 | AA22: 16 | AB22: 16 | AC22: 38.5 | AD22: 3.5 | AE22: 5.5 | AF22: 9.5 | AG22: 18.5 | AH22: 4 | AI22: 3 | AJ22: 7.5 | AK22: 5 | AL22: 7 | AM22: 6 | AN22: 18.5 | AO22: 14 | AP22: 32.5 | AQ22: 8.5 | AR22: 14 | AS22: 14 | AT22: 36.5 | AU22: 8 | AV22: 15 | AW22: 11.5 | AX22: 34.5 | AY22: 9 | AZ22: 11 | BA22: 6.5 | BB22: 26.5 | BC22: 9 | BD22: 17 | BE22: 15 | BF22: 41 | BG22: 8 | BH22: 11 | BI22: 12.5 | BJ22: 31.5 | BK22: 8.5 | BL22: 19.5 | BM22: 14 | BN22: 42 | BO22: 8 | BP22: 16 | BQ22: 14 | BR22: 38 | BS22: 171 | BT22: 433.4 | BU22: 3.5 | BV22: 5.5 | BW22: 6 | BX22: 15 | BY22: 3 | BZ22: 6.5 | CA22: 6.5 | CB22: 16 | CC22: ناجح | CD22: و منقول للصف الثانى | CE22: 0 | CF22: 1 | CG22: 1/3 | DC22: 0 | DD22: 0
A23: 14 | B23: 14 | C23: طالب اولى 110 | D23: 3/1 | E23: 2003-10-01 | F23: 00 - 00 - 18 | G23: مصرى | H23: مسلم | I23: بنين | J23: انتظام | K23: صباحى | M23: 180 | N23: 8 | O23: 14.5 | P23: 14.5 | Q23: 37 | R23: 8.5 | S23: 10.4 | T23: 14.4 | U23: 33.3 | V23: 4.5 | W23: 5.2 | X23: 8.4 | Y23: 18.1 | Z23: 7 | AA23: 12 | AB23: 11 | AC23: 30 | AD23: 5.5 | AE23: 6.5 | AF23: 5.5 | AG23: 17.5 | AH23: 4.5 | AI23: 3 | AJ23: 9 | AK23: 6 | AL23: 7 | AM23: 6 | AN23: 20.5 | AO23: 15 | AP23: 35.5 | AQ23: 9.5 | AR23: 16 | AS23: 11 | AT23: 36.5 | AU23: 9 | AV23: 18.5 | AW23: 12.5 | AX23: 40 | AY23: 9 | AZ23: 11.5 | BA23: 10.5 | BB23: 31 | BC23: 9 | BD23: 19 | BE23: 15 | BF23: 43 | BG23: 8 | BH23: 8 | BI23: 14 | BJ23: 30 | BK23: 8.5 | BL23: 6 | BM23: 10.5 | BN23: 25 | BO23: 8 | BP23: 14 | BQ23: 16 | BR23: 38 | BS23: 156.6 | BT23: 414.9 | BU23: 4 | BV23: 4.5 | BW23: 7 | BX23: 15.5 | BY23: 3.5 | BZ23: 6 | CA23: 7 | CB23: 16.5 | CC23: ناجح | CD23: و منقول للصف الثانى | CE23: 0 | CF23: 6 | CG23: 6/3 | DC23: 0 | DD23: 0
A24: 15 | B24: 15 | C24: طالب اولى 111 | D24: 3/1 | E24: 2003-10-01 | F24: 00 - 00 - 18 | G24: مصرى | H24: مسلم | I24: بنين | J24: انتظام | K24: صباحى | M24: 181 | N24: 8.5 | O24: 13 | P24: 16.5 | Q24: 38 | R24: 8.5 | S24: 10.8 | T24: 17.2 | U24: 36.5 | V24: 4.5 | W24: 7.2 | X24: 8.4 | Y24: 20.1 | Z24: 7 | AA24: 13 | AB24: 13 | AC24: 33 | AD24: 3 | AE24: 5.5 | AF24: 8.5 | AG24: 17 | AH24: 4.5 | AI24: 3 | AJ24: 8 | AK24: 6 | AL24: 8 | AM24: 5 | AN24: 20.5 | AO24: 14 | AP24: 34.5 | AQ24: 9 | AR24: 15 | AS24: 8 | AT24: 32 | AU24: 9 | AV24: 16.5 | AW24: 11.5 | AX24: 37 | AY24: 9 | AZ24: 16.5 | BA24: 6 | BB24: 31.5 | BC24: 9 | BD24: 20 | BE24: 15 | BF24: 44 | BG24: 8 | BH24: 14 | BI24: 12 | BJ24: 34 | BK24: 9 | BL24: 11 | BM24: 7 | BN24: 27 | BO24: 8 | BP24: 13 | BQ24: 14 | BR24: 35 | BS24: 169.5 | BT24: 419.6 | BU24: 4 | BV24: 5 | BW24: 7 | BX24: 16 | BY24: 3.5 | BZ24: 6 | CA24: 7 | CB24: 16.5 | CC24: ناجح | CD24: و منقول للصف الثانى | CE24: 0 | CF24: 6 | CG24: 6/3 | DC24: 0 | DD24: 0
A25: 16 | B25: 16 | C25: طالب اولى 112 | D25: 3/1 | E25: 2003-07-10 | F25: 22 - 02 - 18 | G25: مصرى | H25: مسلم | I25: بنين | J25: انتظام | K25: صباحى | M25: 182 | N25: 8 | O25: 13.5 | P25: 14.5 | Q25: 36 | R25: 9 | S25: 11.6 | T25: 16.4 | U25: 37 | V25: 4.5 | W25: 5.6 | X25: 8.4 | Y25: 18.5 | Z25: 7 | AA25: 13 | AB25: 9 | AC25: 29 | AD25: 5.5 | AE25: 8 | AF25: 9.5 | AG25: 23 | AH25: 4.5 | AI25: 3 | AJ25: 9 | AK25: 6 | AL25: 8 | AM25: 6 | AN25: 21.5 | AO25: 15 | AP25: 36.5 | AQ25: 9.5 | AR25: 15 | AS25: 10 | AT25: 34.5 | AU25: 9 | AV25: 19.5 | AW25: 13.5 | AX25: 42 | AY25: 9 | AZ25: 19.5 | BA25: 14.5 | BB25: 43 | BC25: 9 | BD25: 18 | BE25: 16 | BF25: 43 | BG25: 8 | BH25: 13 | BI25: 15.5 | BJ25: 36.5 | BK25: 7.5 | BL25: 17 | BM25: 7 | BN25: 31.5 | BO25: 8 | BP25: 17 | BQ25: 14 | BR25: 39 | BS25: 185.7 | BT25: 449.5 | BU25: 4 | BV25: 5 | BW25: 7 | BX25: 16 | BY25: 3.5 | BZ25: 6.5 | CA25: 7.5 | CB25: 17.5 | CC25: ناجح | CD25: و منقول للصف الثانى | CE25: 0 | CF25: 6 | CG25: 6/3 | DC25: 0 | DD25: 0
A26: 17 | B26: 17 | C26: طالب اولى 113 | D26: 3/1 | E26: 2003-06-27 | F26: 04 - 03 - 18 | G26: مصرى | H26: مسلم | I26: بنين | J26: انتظام | K26: صباحى | M26: 29 | N26: 8.5 | O26: 14 | P26: 13.5 | Q26: 36 | R26: 9 | S26: 11.6 | T26: 11.2 | U26: 31.8 | V26: 4.5 | W26: 9.6 | X26: 8.8 | Y26: 22.9 | Z26: 7 | AA26: 12 | AB26: 16 | AC26: 35 | AD26: 3 | AE26: 6 | AF26: 9.5 | AG26: 18.5 | AH26: 4 | AI26: 2.5 | AJ26: 8 | AK26: 6 | AL26: 7 | AM26: 5 | AN26: 19 | AO26: 13.5 | AP26: 32.5 | AQ26: 9 | AR26: 13 | AS26: 14 | AT26: 36 | AU26: 8.5 | AV26: 18 | AW26: 16.5 | AX26: 43 | AY26: 9 | AZ26: 15 | BA26: 12 | BB26: 36 | BC26: 8 | BD26: 19 | BE26: 19 | BF26: 46 | BG26: 8 | BH26: 12 | BI26: 13.5 | BJ26: 33.5 | BK26: 8 | BL26: 12 | BM26: 10 | BN26: 30 | BO26: 8 | BP26: 12 | BQ26: 16 | BR26: 36 | BS26: 168.2 | BT26: 437.2 | BU26: 4 | BV26: 6.5 | BW26: 8 | BX26: 18.5 | BY26: 3.5 | BZ26: 6 | CA26: 7.5 | CB26: 17 | CC26: ناجح | CD26: و منقول للصف الثانى | CE26: 0 | CF26: 6 | CG26: 6/3 | DC26: 0 | DD26: 0
A27: 18 | B27: 18 | C27: طالب اولى 114 | D27: 3/1 | E27: 2003-10-01 | F27: 00 - 00 - 18 | G27: مصرى | H27: مسلم | I27: بنين | J27: انتظام | K27: صباحى | M27: 30 | N27: 8 | O27: 13 | P27: 10.5 | Q27: 31.5 | R27: 9 | S27: 9.2 | T27: 12.4 | U27: 30.6 | V27: 4.5 | W27: 9.6 | X27: 8 | Y27: 22.1 | Z27: 7 | AA27: 12 | AB27: 15 | AC27: 34 | AD27: 3 | AE27: 8 | AF27: 8 | AG27: 19 | AH27: 4 | AI27: 2.5 | AJ27: 8 | AK27: 6 | AL27: 6 | AM27: 6 | AN27: 18 | AO27: 14.5 | AP27: 32.5 | AQ27: 9.5 | AR27: 16 | AS27: 11 | AT27: 36.5 | AU27: 8.5 | AV27: 18 | AW27: 17 | AX27: 43.5 | AY27: 9 | AZ27: 15 | BA27: 10 | BB27: 34 | BC27: 8 | BD27: 19 | BE27: 18 | BF27: 45 | BG27: 8 | BH27: 13.5 | BI27: 13.5 | BJ27: 35 | BK27: 9 | BL27: 13.5 | BM27: 8 | BN27: 30.5 | BO27: 8 | BP27: 10 | BQ27: 16 | BR27: 34 | BS27: 170.8 | BT27: 428.2 | BU27: 4 | BV27: 6 | BW27: 8 | BX27: 18 | BY27: 3.5 | BZ27: 6 | CA27: 7 | CB27: 16.5 | CC27: ناجح | CD27: و منقول للصف الثانى | CE27: 0 | CF27: 6 | CG27: 6/3 | DC27: 0 | DD27: 0
A28: 19 | B28: 19 | C28: طالب اولى 115 | D28: 3/1 | E28: 2004-01-15 | F28: 17 - 08 - 17 | G28: مصرى | H28: مسلم | I28: بنين | J28: انتظام | K28: صباحى | M28: 31 | N28: 8 | O28: 15 | P28: 11.5 | Q28: 34.5 | R28: 8.5 | S28: 10 | T28: 6 | U28: 24.5 | V28: 4.5 | W28: 9.6 | X28: 8 | Y28: 22.1 | Z28: 7 | AA28: 13 | AB28: 16 | AC28: 36 | AD28: 4 | AE28: 8.5 | AF28: 8 | AG28: 20.5 | AH28: 4.5 | AI28: 2.5 | AJ28: 7 | AK28: 6 | AL28: 6 | AM28: 5 | AN28: 17.5 | AO28: 13.5 | AP28: 31 | AQ28: 9.5 | AR28: 16 | AS28: 10 | AT28: 35.5 | AU28: 9 | AV28: 19 | AW28: 16.5 | AX28: 44.5 | AY28: 9 | AZ28: 14.5 | BA28: 7.5 | BB28: 31 | BC28: 8 | BD28: 18 | BE28: 17 | BF28: 43 | BG28: 8 | BH28: 13 | BI28: 13 | BJ28: 34 | BK28: 8.5 | BL28: 15 | BM28: 8 | BN28: 31.5 | BO28: 8 | BP28: 11 | BQ28: 17 | BR28: 36 | BS28: 175.6 | BT28: 424.1 | BU28: 4 | BV28: 6.5 | BW28: 7.5 | BX28: 18 | BY28: 3.5 | BZ28: 6 | CA28: 4.5 | CB28: 14 | CC28: دورثان | CD28: فى : لغة انجليزية - | CE28: 1 | CF28: 7 | CG28: 7/3 | CN28: لغة انجليزية - | DC28: 0 | DD28: 1
A29: 20 | B29: 20 | C29: طالب اولى 116 | D29: 3/1 | E29: 2003-09-28 | F29: 03 - 00 - 18 | G29: مصرى | H29: مسلم | I29: بنين | J29: انتظام | K29: صباحى | M29: 32 | N29: 8.5 | O29: 13 | P29: 12 | Q29: 33.5 | R29: 9 | S29: 8.4 | T29: 6.4 | U29: 23.8 | V29: 4.5 | W29: 8.4 | X29: 7.6 | Y29: 20.5 | Z29: 7 | AA29: غ | AB29: 16 | AC29: 23 | AD29: 5.5 | AE29: 11 | AF29: 9.5 | AG29: 26 | AH29: 4 | AI29: 2.5 | AJ29: 9 | AK29: 6 | AL29: 6 | AM29: 5 | AN29: 19 | AO29: 13.5 | AP29: 32.5 | AQ29: 9.5 | AR29: غ | AS29: 15.5 | AT29: 25 | AU29: 9.5 | AV29: 19.5 | AW29: 17.5 | AX29: 46.5 | AY29: 9 | AZ29: 16 | BA29: 13.5 | BB29: 38.5 | BC29: 8 | BD29: 20 | BE29: 19 | BF29: 47 | BG29: 8 | BH29: 18.5 | BI29: 17 | BJ29: 43.5 | BK29: 8.5 | BL29: 15 | BM29: 10 | BN29: 33.5 | BO29: 8 | BP29: 13 | BQ29: 17 | BR29: 38 | BS29: 157.8 | BT29: 431.3 | BU29: 4 | BV29: 7 | BW29: 7.5 | BX29: 18.5 | BY29: 3.5 | BZ29: 7 | CA29: 5.5 | CB29: 16 | CC29: دورثان | CD29: فى : لغة انجليزية - | CE29: 1 | CF29: 7 | CG29: 7/3 | CN29: لغة انجليزية - | DC29: 0 | DD29: 1
A30: 21 | B30: 21 | C30: طالب اولى 117 | D30: 3/1 | E30: 2003-04-28 | F30: 03 - 05 - 18 | G30: مصرى | H30: مسلم | I30: بنين | J30: انتظام | K30: صباحى | M30: 33 | N30: 8 | O30: 15 | P30: 13 | Q30: 36 | R30: 8 | S30: 8.8 | T30: 6.4 | U30: 23.2 | V30: 5.5 | W30: 10.4 | X30: 8 | Y30: 23.9 | Z30: 7 | AA30: 12 | AB30: 10 | AC30: 29 | AD30: 3 | AE30: 6.5 | AF30: 8 | AG30: 17.5 | AH30: 4.5 | AI30: 2.5 | AJ30: 9 | AK30: 6 | AL30: 6 | AM30: 6 | AN30: 19.5 | AO30: 14.5 | AP30: 34 | AQ30: 9.5 | AR30: 17 | AS30: 10 | AT30: 36.5 | AU30: 9.5 | AV30: 18.5 | AW30: 16.5 | AX30: 44.5 | AY30: 9 | AZ30: 15.5 | BA30: 11.5 | BB30: 36 | BC30: 8 | BD30: 20 | BE30: 17 | BF30: 45 | BG30: 8 | BH30: 18 | BI30: 16.5 | BJ30: 42.5 | BK30: 8.5 | BL30: 13 | BM30: 8 | BN30: 29.5 | BO30: 8 | BP30: 11 | BQ30: 18 | BR30: 37 | BS30: 180.7 | BT30: 434.6 | BU30: 4 | BV30: 7 | BW30: 7.5 | BX30: 18.5 | BY30: 3.5 | BZ30: 7 | CA30: 6.5 | CB30: 17 | CC30: دورثان | CD30: فى : لغة انجليزية - | CE30: 1 | CF30: 7 | CG30: 7/3 | CN30: لغة انجليزية - | DC30: 0 | DD30: 1
A31: 22 | B31: 22 | C31: طالب اولى 118 | D31: 3/1 | E31: 2003-02-11 | F31: 18 - 07 - 18 | G31: مصرى | H31: مسلم | I31: بنين | J31: انتظام | K31: صباحى | M31: 34 | N31: 8 | O31: 14 | P31: 14 | Q31: 36 | R31: 8.5 | S31: 11.6 | T31: 6.4 | U31: 26.5 | V31: 4.5 | W31: 9.2 | X31: 7.6 | Y31: 21.3 | Z31: 7 | AA31: 12 | AB31: 15 | AC31: 34 | AD31: 3 | AE31: 8.5 | AF31: 5 | AG31: 16.5 | AH31: 4.5 | AI31: 2.5 | AJ31: 9 | AK31: 5 | AL31: 6 | AM31: 5 | AN31: 19.5 | AO31: 12.5 | AP31: 32 | AQ31: 9.5 | AR31: 16 | AS31: 13 | AT31: 38.5 | AU31: 8.5 | AV31: 18.5 | AW31: 17.5 | AX31: 44.5 | AY31: 9 | AZ31: 15 | BA31: 11.5 | BB31: 35.5 | BC31: 8 | BD31: 20 | BE31: 16 | BF31: 44 | BG31: 8 | BH31: 18 | BI31: 16.5 | BJ31: 42.5 | BK31: 9 | BL31: 11.5 | BM31: 9 | BN31: 29.5 | BO31: 8 | BP31: 11 | BQ31: 16 | BR31: 35 | BS31: 179.3 | BT31: 435.8 | BU31: 4 | BV31: 5 | BW31: 7.5 | BX31: 16.5 | BY31: 3.5 | BZ31: 6.5 | CA31: 5.5 | CB31: 15.5 | CC31: ناجح | CD31: و منقول للصف الثانى | CE31: 0 | CF31: 7 | CG31: 7/3 | DC31: 0 | DD31: 0
A32: 23 | B32: 23 | C32: طالب اولى 119 | D32: 3/1 | E32: 2003-08-05 | F32: 27 - 01 - 18 | G32: مصرى | H32: مسلم | I32: بنين | J32: انتظام | K32: صباحى | M32: 35 | N32: 8 | O32: 12.5 | P32: 12.5 | Q32: 33 | R32: 7.5 | S32: 8.8 | T32: 2.8 | U32: 19.1 | V32: 4.5 | W32: 8.8 | X32: 9.2 | Y32: 22.5 | Z32: 7 | AA32: 12 | AB32: 15 | AC32: 34 | AD32: 3 | AE32: 0.5 | AF32: 4.5 | AG32: 8 | AH32: 4 | AI32: 3 | AJ32: 9 | AK32: 6 | AL32: 6 | AM32: 6 | AN32: 19 | AO32: 15 | AP32: 34 | AQ32: 9 | AR32: 16 | AS32: 14 | AT32: 39 | AU32: 8.5 | AV32: 17.5 | AW32: 13.5 | AX32: 39.5 | AY32: 9 | AZ32: 8.5 | BA32: 6 | BB32: 23.5 | BC32: 8 | BD32: 19 | BE32: 16 | BF32: 43 | BG32: 8 | BH32: 13.5 | BI32: 9.5 | BJ32: 31 | BK32: 9 | BL32: 9.5 | BM32: 9 | BN32: 27.5 | BO32: 8 | BP32: 10 | BQ32: 16 | BR32: 34 | BS32: 151.6 | BT32: 388.1 | BU32: 4 | BV32: 5.5 | BW32: 7.5 | BX32: 17 | BY32: 3.5 | BZ32: 6 | CA32: 7 | CB32: 16.5 | CC32: راسب | CD32: و له حق الاعادة | CE32: 3 | CF32: 7 | CG32: 7/3 | CN32: لغة انجليزية - | CQ32: رياضة عامة - | CU32: سكرتارية اجنبية - | DC32: 0 | DD32: 3
A33: 24 | B33: 24 | C33: طالب اولى 12 | D33: 1/1 | E33: 2003-07-01 | F33: 00 - 03 - 18 | G33: مصرى | H33: مسلم | I33: بنين | J33: انتظام | K33: صباحى | M33: 82 | N33: 8 | O33: 13.5 | P33: 11.5 | Q33: 33 | R33: 8 | S33: 14.4 | T33: 15.2 | U33: 37.6 | V33: 5.5 | W33: 6.8 | X33: 10 | Y33: 22.3 | Z33: 6.5 | AA33: 13 | AB33: 16 | AC33: 35.5 | AD33: 3.5 | AE33: 5 | AF33: 7.5 | AG33: 16 | AH33: 4 | AI33: 3 | AJ33: 7 | AK33: 5 | AL33: 7 | AM33: 6 | AN33: 18 | AO33: 14 | AP33: 32 | AQ33: 9 | AR33: 14 | AS33: 11 | AT33: 34 | AU33: 8 | AV33: 14.5 | AW33: 11.5 | AX33: 34 | AY33: 9 | AZ33: 10 | BA33: 9 | BB33: 28 | BC33: 9 | BD33: 17 | BE33: 13 | BF33: 39 | BG33: 7.5 | BH33: 9.5 | BI33: 11.5 | BJ33: 28.5 | BK33: 8.5 | BL33: 17.5 | BM33: 14 | BN33: 40 | BO33: 8 | BP33: 16 | BQ33: 14 | BR33: 38 | BS33: 163.2 | BT33: 417.9 | BU33: 3.5 | BV33: 5 | BW33: 7 | BX33: 15.5 | BY33: 3 | BZ33: 7 | CA33: 6 | CB33: 16 | CC33: ناجح | CD33: و منقول للصف الثانى | CE33: 0 | CF33: 1 | CG33: 1/3 | DC33: 0 | DD33: 0
A34: 25 | B34: 25 | C34: طالب اولى 120 | D34: 3/1 | E34: 2003-07-20 | F34: 12 - 02 - 18 | G34: مصرى | H34: مسلم | I34: بنين | J34: انتظام | K34: صباحى | M34: 36 | N34: 8 | O34: 13.5 | P34: غ | Q34: غ | R34: 8.5 | S34: 10 | T34: غ | U34: غ | V34: 4.5 | W34: 8.8 | X34: غ | Y34: غ | Z34: 7 | AA34: 13 | AB34: غ | AC34: غ | AD34: 3 | AE34: 1.5 | AF34: غ | AG34: غ | AH34: 4.5 | AI34: 2.5 | AJ34: 9 | AK34: 5 | AL34: غ | AM34: غ | AN34: غ | AO34: غ | AP34: غ | AQ34: 9 | AR34: 14 | AS34: غ | AT34: غ | AU34: 8.5 | AV34: 17.5 | AW34: غ | AX34: غ | AY34: 9 | AZ34: 12.5 | BA34: غ | BB34: غ | BC34: 8 | BD34: 20 | BE34: غ | BF34: غ | BG34: 8 | BH34: 10.5 | BI34: غ | BJ34: غ | BK34: 8 | BL34: 15 | BM34: غ | BN34: غ | BO34: 8 | BP34: 9 | BQ34: غ | BR34: غ | BS34: 159.3 | BT34: 0 | BU34: 4 | BV34: 5 | BW34: غ | BX34: غ | BY34: 3.5 | BZ34: 6 | CA34: غ | CB34: غ | CC34: راسب | CD34: و له حق الاعادة | CE34: 16 | CF34: 7 | CG34: 7/3 | CM34: لغة عربية - | CN34: لغة انجليزية - | CO34: لغة فرنسية - | CP34: جغرافيا - | CQ34: رياضة عامة - | CR34: حاسب ألى - | CS34: اقتصاد - | CT34: سكرتارية عربية - | CU34: سكرتارية اجنبية - | CV34: ادارة اعمال - | CW34: محاسبة مالية - | CX34: تسويق - | CY34: قانون تجارى - | CZ34: مجموع كلى - | DA34: تربية دينية - | DB34: مواطنة | DC34: 3 | DD34: 13
A35: 26 | B35: 26 | C35: طالب اولى 121 | D35: 4/1 | E35: 2003-02-02 | F35: 27 - 07 - 18 | G35: مصرى | H35: مسلم | I35: بنين | J35: انتظام | K35: صباحى | M35: 37 | N35: 8 | O35: 16 | P35: 17.5 | Q35: 41.5 | R35: 9 | S35: 12.4 | T35: 14 | U35: 35.4 | V35: 4.5 | W35: 9.6 | X35: 8.4 | Y35: 22.5 | Z35: 7 | AA35: 13 | AB35: 16 | AC35: 36 | AD35: 3 | AE35: 7 | AF35: 8.5 | AG35: 18.5 | AH35: 4.5 | AI35: 3 | AJ35: 9 | AK35: 5 | AL35: 5 | AM35: 6 | AN35: 18.5 | AO35: 14 | AP35: 32.5 | AQ35: 9 | AR35: 15 | AS35: 15 | AT35: 39 | AU35: 8.5 | AV35: 19 | AW35: 18 | AX35: 45.5 | AY35: 9 | AZ35: 15 | BA35: 14.5 | BB35: 38.5 | BC35: 8 | BD35: 20 | BE35: 19 | BF35: 47 | BG35: 8 | BH35: 11.5 | BI35: 16.5 | BJ35: 36 | BK35: 8.5 | BL35: 15 | BM35: 14 | BN35: 37.5 | BO35: 8 | BP35: 13 | BQ35: 18 | BR35: 39 | BS35: 180.5 | BT35: 468.9 | BU35: 4 | BV35: 7 | BW35: 7.5 | BX35: 18.5 | BY35: 3.5 | BZ35: 6 | CA35: 7.5 | CB35: 17 | CC35: ناجح | CD35: و منقول للصف الثانى | CE35: 0 | CF35: 7 | CG35: 7/3 | DC35: 0 | DD35: 0
A36: 27 | B36: 27 | C36: طالب اولى 122 | D36: 4/1 | E36: 2003-05-25 | F36: 07 - 04 - 18 | G36: مصرى | H36: مسلم | I36: بنين | J36: انتظام | K36: صباحى | M36: 38 | N36: 8.5 | O36: 14.5 | P36: 14.5 | Q36: 37.5 | R36: 8.5 | S36: 9.2 | T36: 11.2 | U36: 28.9 | V36: 4.5 | W36: 8 | X36: 8.8 | Y36: 21.3 | Z36: 7 | AA36: 12 | AB36: 16 | AC36: 35 | AD36: 3 | AE36: 9.5 | AF36: 10.5 | AG36: 23 | AH36: 4 | AI36: 3 | AJ36: 9 | AK36: 5 | AL36: 7 | AM36: 5 | AN36: 20 | AO36: 13 | AP36: 33 | AQ36: 9 | AR36: 18 | AS36: 16 | AT36: 43 | AU36: 8.5 | AV36: 17.5 | AW36: 16.5 | AX36: 42.5 | AY36: 9 | AZ36: 17 | BA36: 14 | BB36: 40 | BC36: 8 | BD36: 20 | BE36: 17 | BF36: 45 | BG36: 8 | BH36: 17.5 | BI36: 17.5 | BJ36: 43 | BK36: 9 | BL36: 14 | BM36: 14 | BN36: 37 | BO36: 8 | BP36: 11 | BQ36: 18 | BR36: 37 | BS36: 182.2 | BT36: 466.2 | BU36: 4 | BV36: 7 | BW36: 7.5 | BX36: 18.5 | BY36: 3.5 | BZ36: 6.5 | CA36: 7 | CB36: 17 | CC36: ناجح | CD36: و منقول للصف الثانى | CE36: 0 | CF36: 7 | CG36: 7/3 | DC36: 0 | DD36: 0
A37: 28 | B37: 28 | C37: طالب اولى 123 | D37: 4/1 | E37: 2003-08-05 | F37: 27 - 01 - 18 | G37: مصرى | H37: مسلم | I37: بنين | J37: انتظام | K37: صباحى | M37: 39 | N37: 8.5 | O37: 10.5 | P37: 7.5 | Q37: 26.5 | R37: 9 | S37: 10 | T37: 5.2 | U37: 24.2 | V37: 4.5 | W37: 8.4 | X37: 7.2 | Y37: 20.1 | Z37: 7 | AA37: 11 | AB37: 13 | AC37: 31 | AD37: 3 | AE37: 1 | AF37: 6.5 | AG37: 10.5 | AH37: 4.5 | AI37: 2.5 | AJ37: 9 | AK37: 6 | AL37: 5 | AM37: 5 | AN37: 18.5 | AO37: 13.5 | AP37: 32 | AQ37: 9 | AR37: 17 | AS37: 7 | AT37: 33 | AU37: 9 | AV37: 17.5 | AW37: 14.5 | AX37: 41 | AY37: 9 | AZ37: 9 | BA37: 5 | BB37: 23 | BC37: 8 | BD37: 20 | BE37: 17 | BF37: 45 | BG37: 8 | BH37: 8 | BI37: 10 | BJ37: 26 | BK37: 8.5 | BL37: 13.5 | BM37: 9 | BN37: 31 | BO37: 8 | BP37: 11 | BQ37: 14 | BR37: 33 | BS37: 151.9 | BT37: 376.3 | BU37: 3 | BV37: 4.5 | BW37: 6 | BX37: 13.5 | BY37: 3.5 | BZ37: 6.5 | CA37: 4.5 | CB37: 14.5 | CC37: راسب | CD37: و له حق الاعادة | CE37: 3 | CF37: 7 | CG37: 7/3 | CN37: لغة انجليزية - | CQ37: رياضة عامة - | CU37: سكرتارية اجنبية - | DC37: 0 | DD37: 3
A38: 29 | B38: 29 | C38: طالب اولى 124 | D38: 4/1 | E38: 2003-09-11 | F38: 20 - 00 - 18 | G38: مصرى | H38: مسلم | I38: بنين | J38: انتظام | K38: صباحى | M38: 40 | N38: 8.5 | O38: 14.5 | P38: 12.5 | Q38: 35.5 | R38: 8.5 | S38: 9.2 | T38: 8 | U38: 25.7 | V38: 4.5 | W38: 8.4 | X38: 7.6 | Y38: 20.5 | Z38: 7 | AA38: 12 | AB38: 15 | AC38: 34 | AD38: 5.5 | AE38: 7.5 | AF38: 9 | AG38: 22 | AH38: 4 | AI38: 3 | AJ38: 9 | AK38: 5 | AL38: 6 | AM38: 5 | AN38: 19 | AO38: 13 | AP38: 32 | AQ38: 9 | AR38: 17 | AS38: 15 | AT38: 41 | AU38: 9 | AV38: 19 | AW38: 17 | AX38: 45 | AY38: 9 | AZ38: 16 | BA38: 10 | BB38: 35 | BC38: 8 | BD38: 18 | BE38: 17 | BF38: 43 | BG38: 8 | BH38: 12.5 | BI38: 12 | BJ38: 32.5 | BK38: 8 | BL38: 14 | BM38: 9 | BN38: 31 | BO38: 8 | BP38: 15 | BQ38: 17 | BR38: 40 | BS38: 177.1 | BT38: 437.2 | BU38: 3 | BV38: 6 | BW38: 7.5 | BX38: 16.5 | BY38: 3.5 | BZ38: 6.5 | CA38: 6.5 | CB38: 16.5 | CC38: ناجح | CD38: و منقول للصف الثانى | CE38: 0 | CF38: 7 | CG38: 7/3 | DC38: 0 | DD38: 0
A39: 30 | B39: 30 | C39: طالب اولى 125 | D39: 4/1 | E39: 2004-02-02 | F39: 28 - 07 - 17 | G39: مصرى | H39: مسلم | I39: بنين | J39: انتظام | K39: صباحى | M39: 41 | N39: 8 | O39: 7.5 | P39: 9.5 | Q39: 25 | R39: 8.5 | S39: 6.8 | T39: 5.2 | U39: 20.5 | V39: 4.5 | W39: 8 | X39: 8 | Y39: 20.5 | Z39: 7 | AA39: 9 | AB39: 15 | AC39: 31 | AD39: 3 | AE39: 0.5 | AF39: 7 | AG39: 10.5 | AH39: 4 | AI39: 2.5 | AJ39: 9 | AK39: 5 | AL39: 6 | AM39: 5 | AN39: 19 | AO39: 12.5 | AP39: 31.5 | AQ39: 9 | AR39: 17 | AS39: 12 | AT39: 38 | AU39: 9 | AV39: 17.5 | AW39: 13 | AX39: 39.5 | AY39: 9 | AZ39: 9.5 | BA39: 2 | BB39: 20.5 | BC39: 8 | BD39: 17.5 | BE39: 15 | BF39: 40.5 | BG39: 8 | BH39: 5.5 | BI39: 11.5 | BJ39: 25 | BK39: 8 | BL39: 10 | BM39: 7 | BN39: 25 | BO39: 8 | BP39: 10 | BQ39: 14 | BR39: 32 | BS39: 132.8 | BT39: 359.5 | BU39: 3 | BV39: 3 | BW39: 7.5 | BX39: 13.5 | BY39: 3.5 | BZ39: 5 | CA39: 4 | CB39: 12.5 | CC39: راسب | CD39: و له حق الاعادة | CE39: 3 | CF39: 7 | CG39: 7/3 | CN39: لغة انجليزية - | CQ39: رياضة عامة - | CU39: سكرتارية اجنبية - | DC39: 0 | DD39: 3
A40: 31 | B40: 31 | C40: طالب اولى 126 | D40: 4/1 | E40: 2003-10-30 | F40: 02 - 11 - 17 | G40: مصرى | H40: مسلم | I40: بنين | J40: انتظام | K40: صباحى | M40: 42 | N40: 8 | O40: 10 | P40: 11 | Q40: 29 | R40: 7.5 | S40: 7.6 | T40: 8.4 | U40: 23.5 | V40: 4.5 | W40: 9.6 | X40: 8 | Y40: 22.1 | Z40: 7 | AA40: 12 | AB40: 16 | AC40: 35 | AD40: 3 | AE40: 5.5 | AF40: 8.5 | AG40: 17 | AH40: 4 | AI40: 3 | AJ40: 9 | AK40: 5 | AL40: 6 | AM40: 5 | AN40: 19 | AO40: 13 | AP40: 32 | AQ40: 9 | AR40: 16 | AS40: 14 | AT40: 39 | AU40: 8.5 | AV40: 19 | AW40: 15 | AX40: 42.5 | AY40: 9 | AZ40: 13 | BA40: 5 | BB40: 27 | BC40: 8 | BD40: 18.5 | BE40: 17 | BF40: 43.5 | BG40: 8 | BH40: 11 | BI40: 14 | BJ40: 33 | BK40: 8.5 | BL40: 13 | BM40: 8 | BN40: 29.5 | BO40: 8 | BP40: 14 | BQ40: 16 | BR40: 38 | BS40: 163.2 | BT40: 411.1 | BU40: 3 | BV40: 6 | BW40: 7.5 | BX40: 16.5 | BY40: 3.5 | BZ40: 6.5 | CA40: 6 | CB40: 16 | CC40: دورثان | CD40: فى : لغة انجليزية - | CE40: 1 | CF40: 7 | CG40: 7/3 | CN40: لغة انجليزية - | DC40: 0 | DD40: 1
A41: 32 | B41: 32 | C41: طالب اولى 127 | D41: 4/1 | E41: 2003-10-14 | F41: 18 - 11 - 17 | G41: مصرى | H41: مسلم | I41: بنين | J41: انتظام | K41: صباحى | M41: 43 | N41: 8 | O41: 12 | P41: 11 | Q41: 31 | R41: 8.5 | S41: 9.2 | T41: 8 | U41: 25.7 | V41: 4.5 | W41: 9.2 | X41: 8.4 | Y41: 22.1 | Z41: 7 | AA41: 10 | AB41: 15 | AC41: 32 | AD41: 3 | AE41: 3 | AF41: 9 | AG41: 15 | AH41: 4 | AI41: 3 | AJ41: 9 | AK41: 6 | AL41: 7 | AM41: 5 | AN41: 20 | AO41: 14 | AP41: 34 | AQ41: 9 | AR41: 17 | AS41: 14 | AT41: 40 | AU41: 9 | AV41: 17.5 | AW41: 17 | AX41: 43.5 | AY41: 9 | AZ41: 11.5 | BA41: 7 | BB41: 27.5 | BC41: 8 | BD41: 17.5 | BE41: 17 | BF41: 42.5 | BG41: 8 | BH41: 8 | BI41: 10.5 | BJ41: 26.5 | BK41: 8 | BL41: 12.5 | BM41: 9 | BN41: 29.5 | BO41: 8 | BP41: 10 | BQ41: 14 | BR41: 32 | BS41: 152.4 | BT41: 401.3 | BU41: 4 | BV41: 4 | BW41: 7 | BX41: 15 | BY41: 3.5 | BZ41: 6 | CA41: 7 | CB41: 16.5 | CC41: ناجح | CD41: و منقول للصف الثانى | CE41: 0 | CF41: 7 | CG41: 7/3 | DC41: 0 | DD41: 0
A42: 33 | B42: 33 | C42: طالب اولى 128 | D42: 4/1 | E42: 2002-11-01 | F42: 00 - 11 - 18 | G42: مصرى | H42: مسلم | I42: بنين | J42: انتظام | K42: صباحى | M42: 44 | N42: 8.5 | O42: 15.5 | P42: 13 | Q42: 37 | R42: 8.5 | S42: 9.2 | T42: 11.2 | U42: 28.9 | V42: 4.5 | W42: 8.8 | X42: 8.4 | Y42: 21.7 | Z42: 7 | AA42: 11 | AB42: 16 | AC42: 34 | AD42: 3 | AE42: 5 | AF42: 8.5 | AG42: 16.5 | AH42: 4 | AI42: 3 | AJ42: 9 | AK42: 6 | AL42: 7 | AM42: 6 | AN42: 20 | AO42: 15 | AP42: 35 | AQ42: 9 | AR42: 15 | AS42: 14 | AT42: 38 | AU42: 9 | AV42: 18 | AW42: 14.5 | AX42: 41.5 | AY42: 9 | AZ42: 15.5 | BA42: 5.5 | BB42: 30 | BC42: 8 | BD42: 18.5 | BE42: 17 | BF42: 43.5 | BG42: 8 | BH42: 12.5 | BI42: 13 | BJ42: 33.5 | BK42: 8.5 | BL42: 13 | BM42: 9 | BN42: 30.5 | BO42: 8 | BP42: 14 | BQ42: 17 | BR42: 39 | BS42: 171 | BT42: 429.1 | BU42: 4 | BV42: 5 | BW42: 7.5 | BX42: 16.5 | BY42: 3.5 | BZ42: 6.5 | CA42: 7 | CB42: 17 | CC42: ناجح | CD42: و منقول للصف الثانى | CE42: 0 | CF42: 7 | CG42: 7/3 | DC42: 0 | DD42: 0
A43: 34 | B43: 34 | C43: طالب اولى 129 | D43: 4/1 | E43: 2003-09-17 | F43: 14 - 00 - 18 | G43: مصرى | H43: مسلم | I43: بنين | J43: انتظام | K43: صباحى | M43: 45 | N43: 8.5 | O43: 16 | P43: 11 | Q43: 35.5 | R43: 9 | S43: 10.8 | T43: 8.8 | U43: 28.6 | V43: 4.5 | W43: 6.8 | X43: 8.8 | Y43: 20.1 | Z43: 7 | AA43: 11 | AB43: 16 | AC43: 34 | AD43: 3 | AE43: 7 | AF43: 9 | AG43: 19 | AH43: 4.5 | AI43: 2.5 | AJ43: 8 | AK43: 4 | AL43: 6 | AM43: 5 | AN43: 18.5 | AO43: 11.5 | AP43: 30 | AQ43: 9 | AR43: 16 | AS43: 14 | AT43: 39 | AU43: 9 | AV43: 15.5 | AW43: 17 | AX43: 41.5 | AY43: 9 | AZ43: 15 | BA43: 9.5 | BB43: 33.5 | BC43: 8 | BD43: 18 | BE43: 17 | BF43: 43 | BG43: 8 | BH43: 15 | BI43: 12.5 | BJ43: 35.5 | BK43: 8.5 | BL43: 14 | BM43: 10 | BN43: 32.5 | BO43: 8 | BP43: 10 | BQ43: 18 | BR43: 36 | BS43: 167.1 | BT43: 428.2 | BU43: 4 | BV43: 5 | BW43: 7.5 | BX43: 16.5 | BY43: 3.5 | BZ43: 6 | CA43: 7 | CB43: 16.5 | CC43: ناجح | CD43: و منقول للصف الثانى | CE43: 0 | CF43: 7 | CG43: 7/3 | DC43: 0 | DD43: 0
A44: 35 | B44: 35 | C44: طالب اولى 13 | D44: 1/1 | E44: 2002-12-15 | F44: 17 - 09 - 18 | G44: مصرى | H44: مسلم | I44: بنين | J44: انتظام | K44: صباحى | M44: 83 | N44: 7.5 | O44: 14 | P44: 15 | Q44: 36.5 | R44: 8 | S44: 13.2 | T44: 15.6 | U44: 36.8 | V44: 5.5 | W44: 7.6 | X44: 10 | Y44: 23.1 | Z44: 6.5 | AA44: 16 | AB44: 16 | AC44: 38.5 | AD44: 3.5 | AE44: 5.5 | AF44: 9.5 | AG44: 18.5 | AH44: 4 | AI44: 3 | AJ44: 7.5 | AK44: 5 | AL44: 7 | AM44: 5 | AN44: 18.5 | AO44: 13 | AP44: 31.5 | AQ44: 8.5 | AR44: 14 | AS44: 14 | AT44: 36.5 | AU44: 8 | AV44: 12 | AW44: 12 | AX44: 32 | AY44: 9 | AZ44: 9 | BA44: 5.5 | BB44: 23.5 | BC44: 9 | BD44: 17 | BE44: 15 | BF44: 41 | BG44: 7.5 | BH44: 11 | BI44: 12.5 | BJ44: 31 | BK44: 8.5 | BL44: 17.5 | BM44: 14 | BN44: 40 | BO44: 8 | BP44: 16 | BQ44: 11 | BR44: 35 | BS44: 165.3 | BT44: 423.9 | BU44: 3.5 | BV44: 4.5 | BW44: 7.5 | BX44: 15.5 | BY44: 3 | BZ44: 7.5 | CA44: 7 | CB44: 17.5 | CC44: دورثان | CD44: فى : سكرتارية اجنبية - | CE44: 1 | CF44: 1 | CG44: 1/3 | CU44: سكرتارية اجنبية - | DC44: 0 | DD44: 1
A45: 36 | B45: 36 | C45: طالب اولى 130 | D45: 4/1 | E45: 2003-08-08 | F45: 24 - 01 - 18 | G45: مصرى | H45: مسلم | I45: بنين | J45: انتظام | K45: صباحى | M45: 46 | N45: 8.5 | O45: 16.5 | P45: 13 | Q45: 38 | R45: 8.5 | S45: 11.6 | T45: 8.4 | U45: 28.5 | V45: 4.5 | W45: 9.2 | X45: 9.6 | Y45: 23.3 | Z45: 7 | AA45: 11 | AB45: 15 | AC45: 33 | AD45: 3 | AE45: 7 | AF45: 10 | AG45: 20 | AH45: 4.5 | AI45: 3 | AJ45: 9 | AK45: 5 | AL45: 7 | AM45: 6 | AN45: 20.5 | AO45: 14 | AP45: 34.5 | AQ45: 9 | AR45: 17 | AS45: 17 | AT45: 43 | AU45: 9 | AV45: 19 | AW45: 16 | AX45: 44 | AY45: 9 | AZ45: 18 | BA45: 11 | BB45: 38 | BC45: 8 | BD45: 20 | BE45: 16 | BF45: 44 | BG45: 8 | BH45: 16 | BI45: 15.5 | BJ45: 39.5 | BK45: 9 | BL45: 17 | BM45: 14 | BN45: 40 | BO45: 8 | BP45: 13 | BQ45: 16 | BR45: 37 | BS45: 189.3 | BT45: 462.8 | BU45: 4 | BV45: 4.5 | BW45: 8 | BX45: 16.5 | BY45: 3.5 | BZ45: 6 | CA45: 7 | CB45: 16.5 | CC45: ناجح | CD45: و منقول للصف الثانى | CE45: 0 | CF45: 7 | CG45: 7/3 | DC45: 0 | DD45: 0
A46: 37 | B46: 37 | C46: طالب اولى 131 | D46: 4/1 | E46: 2003-09-11 | F46: 20 - 00 - 18 | G46: مصرى | H46: مسلم | I46: بنين | J46: انتظام | K46: صباحى | M46: 47 | N46: 8.5 | O46: 7.5 | P46: 9 | Q46: 25 | R46: 8.5 | S46: 5.2 | T46: 1.6 | U46: 15.3 | V46: 4.5 | W46: 7.2 | X46: 7.2 | Y46: 18.9 | Z46: 7 | AA46: 11 | AB46: 13 | AC46: 31 | AD46: 3 | AE46: 1 | AF46: 1 | AG46: 5 | AH46: 4.5 | AI46: 3 | AJ46: 7 | AK46: 5 | AL46: 4 | AM46: 6 | AN46: 15.5 | AO46: 14 | AP46: 29.5 | AQ46: 9 | AR46: 14 | AS46: 8 | AT46: 31 | AU46: 8.5 | AV46: 10.5 | AW46: 11 | AX46: 30 | AY46: 9 | AZ46: 6.5 | BA46: 1 | BB46: 16.5 | BC46: 8 | BD46: 13.5 | BE46: 15 | BF46: 36.5 | BG46: 8 | BH46: 9 | BI46: 4.5 | BJ46: 21.5 | BK46: 9 | BL46: 11.5 | BM46: 18 | BN46: 38.5 | BO46: 8 | BP46: 8 | BQ46: 9 | BR46: 25 | BS46: 116.9 | BT46: 323.7 | BU46: 4 | BV46: 2.5 | BW46: 7 | BX46: 13.5 | BY46: 3.5 | BZ46: 5 | CA46: 4.5 | CB46: 13 | CC46: راسب | CD46: و له حق الاعادة | CE46: 4 | CF46: 7 | CG46: 7/3 | CN46: لغة انجليزية - | CQ46: رياضة عامة - | CU46: سكرتارية اجنبية - | CW46: محاسبة مالية - | DC46: 0 | DD46: 4
A47: 38 | B47: 38 | C47: طالب اولى 132 | D47: 4/1 | E47: 2003-07-21 | F47: 11 - 02 - 18 | G47: مصرى | H47: مسلم | I47: بنين | J47: انتظام | K47: صباحى | M47: 48 | N47: 8 | O47: 14 | P47: 14.5 | Q47: 36.5 | R47: 8.5 | S47: 9.2 | T47: 5.2 | U47: 22.9 | V47: 4.5 | W47: 9.6 | X47: 7.6 | Y47: 21.7 | Z47: 7 | AA47: 11 | AB47: 16 | AC47: 34 | AD47: 5.5 | AE47: 1 | AF47: 11 | AG47: 17.5 | AH47: 4.5 | AI47: 2.5 | AJ47: 9 | AK47: 6 | AL47: 5 | AM47: 6 | AN47: 18.5 | AO47: 14.5 | AP47: 33 | AQ47: 9 | AR47: 17 | AS47: 13 | AT47: 39 | AU47: 8.5 | AV47: 17.5 | AW47: 17 | AX47: 43 | AY47: 9 | AZ47: 12.5 | BA47: 11 | BB47: 32.5 | BC47: 8 | BD47: 20 | BE47: 15 | BF47: 43 | BG47: 8 | BH47: 12.5 | BI47: 17 | BJ47: 37.5 | BK47: 8.5 | BL47: 15 | BM47: 14 | BN47: 37.5 | BO47: 8 | BP47: 11 | BQ47: 18 | BR47: 37 | BS47: 165.3 | BT47: 435.1 | BU47: 4 | BV47: 3 | BW47: 7.5 | BX47: 14.5 | BY47: 3.5 | BZ47: 5 | CA47: 6.5 | CB47: 15 | CC47: دورثان | CD47: فى : لغة انجليزية - | CE47: 1 | CF47: 7 | CG47: 7/3 | CN47: لغة انجليزية - | DC47: 0 | DD47: 1
A48: 39 | B48: 39 | C48: طالب اولى 133 | D48: 4/1 | E48: 2003-02-14 | F48: 15 - 07 - 18 | G48: مصرى | H48: مسلم | I48: بنين | J48: انتظام | K48: صباحى | M48: 49 | N48: 8 | O48: 16.5 | P48: 18 | Q48: 42.5 | R48: 8.5 | S48: 12.8 | T48: 12 | U48: 33.3 | V48: 4.5 | W48: 7.6 | X48: 8.8 | Y48: 20.9 | Z48: 7 | AA48: 15 | AB48: 15 | AC48: 37 | AD48: 3 | AE48: 2 | AF48: 10 | AG48: 15 | AH48: 4 | AI48: 3 | AJ48: 5 | AK48: 5 | AL48: 7 | AM48: 6 | AN48: 16 | AO48: 14 | AP48: 30 | AQ48: 9 | AR48: 18 | AS48: 18 | AT48: 45 | AU48: 8.5 | AV48: 17 | AW48: 14.5 | AX48: 40 | AY48: 9 | AZ48: 16 | BA48: 9 | BB48: 34 | BC48: 8 | BD48: 19 | BE48: 17 | BF48: 44 | BG48: 8 | BH48: 15 | BI48: 18.5 | BJ48: 41.5 | BK48: 9 | BL48: 18.5 | BM48: 18 | BN48: 45.5 | BO48: 8 | BP48: 19 | BQ48: 18 | BR48: 45 | BS48: 186.4 | BT48: 473.7 | BU48: 4 | BV48: 7 | BW48: 7 | BX48: 18 | BY48: 3.5 | BZ48: 5 | CA48: 7 | CB48: 15.5 | CC48: ناجح | CD48: و منقول للصف الثانى | CE48: 0 | CF48: 7 | CG48: 7/3 | DC48: 0 | DD48: 0
A49: 40 | B49: 40 | C49: طالب اولى 134 | D49: 4/1 | E49: 2003-03-05 | F49: 27 - 06 - 18 | G49: مصرى | H49: مسلم | I49: بنين | J49: انتظام | K49: صباحى | M49: 50 | N49: 8 | O49: 14.5 | P49: 13.5 | Q49: 36 | R49: 8.5 | S49: 11.2 | T49: 10 | U49: 29.7 | V49: 4.5 | W49: 8 | X49: 8.4 | Y49: 20.9 | Z49: 7 | AA49: 14 | AB49: 16 | AC49: 37 | AD49: 3 | AE49: 3 | AF49: 9 | AG49: 15 | AH49: 4.5 | AI49: 2.5 | AJ49: 6 | AK49: 5 | AL49: 7 | AM49: 6 | AN49: 17.5 | AO49: 13.5 | AP49: 31 | AQ49: 9 | AR49: 19 | AS49: 18 | AT49: 46 | AU49: 8.5 | AV49: 15 | AW49: 14.5 | AX49: 38 | AY49: 9 | AZ49: 10 | BA49: 9 | BB49: 28 | BC49: 8 | BD49: 19 | BE49: 18 | BF49: 45 | BG49: 8 | BH49: 12 | BI49: 14.5 | BJ49: 34.5 | BK49: 8.5 | BL49: 17 | BM49: 14 | BN49: 39.5 | BO49: 8 | BP49: 19 | BQ49: 18 | BR49: 45 | BS49: 172.7 | BT49: 445.6 | BU49: 4 | BV49: 7 | BW49: 7.5 | BX49: 18.5 | BY49: 3.5 | BZ49: 6 | CA49: 5 | CB49: 14.5 | CC49: ناجح | CD49: و منقول للصف الثانى | CE49: 0 | CF49: 8 | CG49: 8/3 | DC49: 0 | DD49: 0
A50: 41 | B50: 41 | C50: طالب اولى 135 | D50: 4/1 | E50: 2003-05-04 | F50: 28 - 04 - 18 | G50: مصرى | H50: مسلم | I50: بنين | J50: انتظام | K50: صباحى | M50: 51 | N50: 8 | O50: 15.5 | P50: 16.5 | Q50: 40 | R50: 8.5 | S50: 13.6 | T50: 13.2 | U50: 35.3 | V50: 4.5 | W50: 8.4 | X50: 8.8 | Y50: 21.7 | Z50: 7 | AA50: 16 | AB50: 16 | AC50: 39 | AD50: 5.5 | AE50: 10 | AF50: 9 | AG50: 24.5 | AH50: 4.5 | AI50: 3 | AJ50: 6 | AK50: 6 | AL50: 7 | AM50: 6 | AN50: 17.5 | AO50: 15 | AP50: 32.5 | AQ50: 9 | AR50: 19 | AS50: 17 | AT50: 45 | AU50: 8.5 | AV50: 17.5 | AW50: 16 | AX50: 42 | AY50: 9 | AZ50: 18 | BA50: 12.5 | BB50: 39.5 | BC50: 8 | BD50: 20 | BE50: 19 | BF50: 47 | BG50: 8 | BH50: 16.5 | BI50: 16 | BJ50: 40.5 | BK50: 8.5 | BL50: 19 | BM50: 16 | BN50: 43.5 | BO50: 8 | BP50: 20 | BQ50: 18 | BR50: 46 | BS50: 205.5 | BT50: 496.5 | BU50: 4 | BV50: 7 | BW50: 7.5 | BX50: 18.5 | BY50: 3.5 | BZ50: 6 | CA50: 7 | CB50: 16.5 | CC50: ناجح | CD50: و منقول للصف الثانى | CE50: 0 | CF50: 8 | CG50: 8/3 | DC50: 0 | DD50: 0
A51: 42 | B51: 42 | C51: طالب اولى 136 | D51: 4/1 | E51: 2003-05-29 | F51: 03 - 04 - 18 | G51: مصرى | H51: مسلم | I51: بنين | J51: انتظام | K51: صباحى | M51: 52 | N51: 8 | O51: 16.5 | P51: 18 | Q51: 42.5 | R51: 8.5 | S51: 14 | T51: 12 | U51: 34.5 | V51: 4.5 | W51: 7.6 | X51: 10 | Y51: 22.1 | Z51: 7 | AA51: 16 | AB51: 16 | AC51: 39 | AD51: 3 | AE51: 6 | AF51: 9.5 | AG51: 18.5 | AH51: 4.5 | AI51: 3 | AJ51: 6 | AK51: 6 | AL51: 7 | AM51: 5 | AN51: 17.5 | AO51: 14 | AP51: 31.5 | AQ51: 9 | AR51: 19 | AS51: 18 | AT51: 46 | AU51: 8.5 | AV51: 17.5 | AW51: 18 | AX51: 44 | AY51: 9 | AZ51: 18 | BA51: 15.5 | BB51: 42.5 | BC51: 8 | BD51: 20 | BE51: 19 | BF51: 47 | BG51: 8 | BH51: 18 | BI51: 20 | BJ51: 46 | BK51: 8.5 | BL51: 19 | BM51: 17 | BN51: 44.5 | BO51: 8 | BP51: 20 | BQ51: 17 | BR51: 45 | BS51: 203.6 | BT51: 503.1 | BU51: 4 | BV51: 6.5 | BW51: 6.5 | BX51: 17 | BY51: 3.5 | BZ51: 5.5 | CA51: 7 | CB51: 16 | CC51: ناجح | CD51: و منقول للصف الثانى | CE51: 0 | CF51: 8 | CG51: 8/3 | DC51: 0 | DD51: 0
A52: 43 | B52: 43 | C52: طالب اولى 137 | D52: 4/1 | E52: 2003-07-13 | F52: 19 - 02 - 18 | G52: مصرى | H52: مسلم | I52: بنين | J52: انتظام | K52: صباحى | M52: 53 | N52: 8 | O52: 9.5 | P52: 10 | Q52: 27.5 | R52: 8.5 | S52: 14 | T52: 9.2 | U52: 31.7 | V52: 4.5 | W52: 8.4 | X52: 8.4 | Y52: 21.3 | Z52: 7 | AA52: 15 | AB52: 14 | AC52: 36 | AD52: 3 | AE52: 5.5 | AF52: 6.5 | AG52: 15 | AH52: 4 | AI52: 2.5 | AJ52: 6 | AK52: 5 | AL52: 7 | AM52: 6 | AN52: 17 | AO52: 13.5 | AP52: 30.5 | AQ52: 9 | AR52: 19 | AS52: 15 | AT52: 43 | AU52: 9 | AV52: 9.5 | AW52: 14 | AX52: 32.5 | AY52: 9 | AZ52: 8.5 | BA52: 5 | BB52: 22.5 | BC52: 8 | BD52: 18.5 | BE52: 17 | BF52: 43.5 | BG52: 8 | BH52: 12 | BI52: 10 | BJ52: 30 | BK52: 9 | BL52: 18 | BM52: 7 | BN52: 34 | BO52: 8 | BP52: 18 | BQ52: 17 | BR52: 43 | BS52: 166.9 | BT52: 410.5 | BU52: 4 | BV52: 5.5 | BW52: 6.5 | BX52: 16 | BY52: 3.5 | BZ52: 5.5 | CA52: 6 | CB52: 15 | CC52: دورثان | CD52: فى : سكرتارية اجنبية - | CE52: 1 | CF52: 8 | CG52: 8/3 | CU52: سكرتارية اجنبية - | DC52: 0 | DD52: 1
A53: 44 | B53: 44 | C53: طالب اولى 138 | D53: 4/1 | E53: 2003-11-22 | F53: 09 - 10 - 17 | G53: مصرى | H53: مسلم | I53: بنين | J53: انتظام | K53: صباحى | M53: 54 | N53: 8 | O53: 14.5 | P53: 17.5 | Q53: 40 | R53: 8.5 | S53: 14 | T53: 12.4 | U53: 34.9 | V53: 5 | W53: 8.8 | X53: 9.6 | Y53: 23.4 | Z53: 7 | AA53: 16 | AB53: 16 | AC53: 39 | AD53: 3 | AE53: 10.5 | AF53: 8.5 | AG53: 22 | AH53: 4.5 | AI53: 3 | AJ53: 6 | AK53: 5 | AL53: 8 | AM53: 6 | AN53: 18.5 | AO53: 14 | AP53: 32.5 | AQ53: 9 | AR53: 19 | AS53: 18 | AT53: 46 | AU53: 9 | AV53: 19 | AW53: 14 | AX53: 42 | AY53: 9 | AZ53: 17 | BA53: 13.5 | BB53: 39.5 | BC53: 8 | BD53: 20 | BE53: 17 | BF53: 45 | BG53: 8 | BH53: 16 | BI53: 15 | BJ53: 39 | BK53: 9 | BL53: 18 | BM53: 16 | BN53: 43 | BO53: 8 | BP53: 20 | BQ53: 17 | BR53: 45 | BS53: 203.8 | BT53: 491.3 | BU53: 4 | BV53: 7 | BW53: 7 | BX53: 18 | BY53: 3.5 | BZ53: 6.5 | CA53: 7 | CB53: 17 | CC53: ناجح | CD53: و منقول للصف الثانى | CE53: 0 | CF53: 8 | CG53: 8/3 | DC53: 0 | DD53: 0
A54: 45 | B54: 45 | C54: طالب اولى 139 | D54: 4/1 | E54: 2004-01-11 | F54: 21 - 08 - 17 | G54: مصرى | H54: مسلم | I54: بنين | J54: انتظام | K54: صباحى | M54: 55 | N54: 8 | O54: 15.5 | P54: 16.5 | Q54: 40 | R54: 8.5 | S54: 14.4 | T54: 12.4 | U54: 35.3 | V54: 5 | W54: 8.4 | X54: 10 | Y54: 23.4 | Z54: 7 | AA54: 16 | AB54: 16 | AC54: 39 | AD54: 3 | AE54: 8.5 | AF54: 10.5 | AG54: 22 | AH54: 4.5 | AI54: 3 | AJ54: 6 | AK54: 5 | AL54: 7 | AM54: 5 | AN54: 17.5 | AO54: 13 | AP54: 30.5 | AQ54: 9 | AR54: 19 | AS54: 19 | AT54: 47 | AU54: 9 | AV54: 19.5 | AW54: 17 | AX54: 45.5 | AY54: 9 | AZ54: 18.5 | BA54: 18.5 | BB54: 46 | BC54: 8 | BD54: 20 | BE54: 19 | BF54: 47 | BG54: 8 | BH54: 17.5 | BI54: 17.5 | BJ54: 43 | BK54: 9 | BL54: 19 | BM54: 17 | BN54: 45 | BO54: 8 | BP54: 20 | BQ54: 17 | BR54: 45 | BS54: 207.3 | BT54: 508.7 | BU54: 4 | BV54: 7.5 | BW54: 7.5 | BX54: 19 | BY54: 3.5 | BZ54: 6 | CA54: 6 | CB54: 15.5 | CC54: ناجح | CD54: و منقول للصف الثانى | CE54: 0 | CF54: 8 | CG54: 8/3 | DC54: 0 | DD54: 0
A55: 46 | B55: 46 | C55: طالب اولى 14 | D55: 1/1 | E55: 2003-10-28 | F55: 04 - 11 - 17 | G55: مصرى | H55: مسلم | I55: بنين | J55: انتظام | K55: صباحى | M55: 84 | N55: 8 | O55: 11.5 | P55: 12.5 | Q55: 32 | R55: 8 | S55: 13.2 | T55: 15.2 | U55: 36.4 | V55: 5.5 | W55: 7.6 | X55: 10 | Y55: 23.1 | Z55: 6.5 | AA55: 15 | AB55: 15 | AC55: 36.5 | AD55: 3.5 | AE55: 5 | AF55: 10 | AG55: 18.5 | AH55: 4 | AI55: 3 | AJ55: 7.5 | AK55: 5 | AL55: 7 | AM55: 5 | AN55: 18.5 | AO55: 13 | AP55: 31.5 | AQ55: 8.5 | AR55: 14 | AS55: 15 | AT55: 37.5 | AU55: 8 | AV55: 13.5 | AW55: 13 | AX55: 34.5 | AY55: 9 | AZ55: 7.5 | BA55: 8 | BB55: 24.5 | BC55: 9 | BD55: 17 | BE55: 14 | BF55: 40 | BG55: 7.5 | BH55: 9.5 | BI55: 14.5 | BJ55: 31.5 | BK55: 8 | BL55: 14 | BM55: 14 | BN55: 36 | BO55: 8 | BP55: 16 | BQ55: 13 | BR55: 37 | BS55: 156.3 | BT55: 419 | BU55: 3.5 | BV55: 4.5 | BW55: 7.5 | BX55: 15.5 | BY55: 3 | BZ55: 6.5 | CA55: 7 | CB55: 16.5 | CC55: دورثان | CD55: فى : سكرتارية اجنبية - | CE55: 1 | CF55: 1 | CG55: 1/3 | CU55: سكرتارية اجنبية - | DC55: 0 | DD55: 1
A56: 47 | B56: 47 | C56: طالب اولى 140 | D56: 4/1 | E56: 2003-08-11 | F56: 21 - 01 - 18 | G56: مصرى | H56: مسلم | I56: بنين | J56: انتظام | K56: صباحى | M56: 56 | N56: 8 | O56: 15 | P56: 16.5 | Q56: 39.5 | R56: 8.5 | S56: 14.4 | T56: 12 | U56: 34.9 | V56: 4.5 | W56: 10 | X56: 9.6 | Y56: 24.1 | Z56: 7 | AA56: 15 | AB56: 16 | AC56: 38 | AD56: 3 | AE56: 10 | AF56: 10 | AG56: 23 | AH56: 4.5 | AI56: 3 | AJ56: 7 | AK56: 6 | AL56: 7 | AM56: 6 | AN56: 18.5 | AO56: 15 | AP56: 33.5 | AQ56: 9 | AR56: 19 | AS56: 18 | AT56: 46 | AU56: 9 | AV56: 18.5 | AW56: 17 | AX56: 44.5 | AY56: 9 | AZ56: 16.5 | BA56: 17 | BB56: 42.5 | BC56: 8 | BD56: 20 | BE56: 18 | BF56: 46 | BG56: 8 | BH56: 18 | BI56: 19 | BJ56: 45 | BK56: 9 | BL56: 19 | BM56: 19 | BN56: 47 | BO56: 8 | BP56: 20 | BQ56: 16 | BR56: 44 | BS56: 208.4 | BT56: 508 | BU56: 4 | BV56: 6 | BW56: 8 | BX56: 18 | BY56: 3.5 | BZ56: 5.5 | CA56: 7 | CB56: 16 | CC56: ناجح | CD56: و منقول للصف الثانى | CE56: 0 | CF56: 8 | CG56: 8/3 | DC56: 0 | DD56: 0
A57: 48 | B57: 48 | C57: طالب اولى 141 | D57: 4/1 | E57: 2004-01-15 | F57: 17 - 08 - 17 | G57: مصرى | H57: مسلم | I57: بنين | J57: انتظام | K57: صباحى | M57: 183 | N57: 9 | O57: 17 | P57: 15 | Q57: 41 | R57: 8.5 | S57: 13.6 | T57: 9.2 | U57: 31.3 | V57: 4.5 | W57: 4.8 | X57: 7.6 | Y57: 16.9 | Z57: 7 | AA57: 16 | AB57: 16 | AC57: 39 | AD57: 3.5 | AE57: 3.5 | AF57: 10 | AG57: 17 | AH57: 4.5 | AI57: 3 | AJ57: 6 | AK57: 5 | AL57: 8 | AM57: 6 | AN57: 18.5 | AO57: 14 | AP57: 32.5 | AQ57: 9 | AR57: 19 | AS57: 18 | AT57: 46 | AU57: 9 | AV57: 16 | AW57: 12.5 | AX57: 37.5 | AY57: 9 | AZ57: 11 | BA57: 5 | BB57: 25 | BC57: 8 | BD57: 19.5 | BE57: 13 | BF57: 40.5 | BG57: 8 | BH57: 9 | BI57: 2 | BJ57: 19 | BK57: 9 | BL57: 18.5 | BM57: 14 | BN57: 41.5 | BO57: 8 | BP57: 20 | BQ57: 17 | BR57: 45 | BS57: 178.9 | BT57: 432.2 | BU57: 4 | BV57: 6.5 | BW57: 7.5 | BX57: 18 | BY57: 3.5 | BZ57: 6.5 | CA57: 7 | CB57: 17 | CC57: دورثان | CD57: فى : محاسبة مالية - | CE57: 1 | CF57: 8 | CG57: 8/3 | CW57: محاسبة مالية - | DC57: 0 | DD57: 1
A58: 49 | B58: 49 | C58: طالب اولى 142 | D58: 4/1 | E58: 2003-07-29 | F58: 03 - 02 - 18 | G58: مصرى | H58: مسلم | I58: بنين | J58: انتظام | K58: صباحى | M58: 184 | N58: 8 | O58: 18 | P58: 17.5 | Q58: 43.5 | R58: 8.5 | S58: 14.4 | T58: 11.6 | U58: 34.5 | V58: 4.5 | W58: 8.8 | X58: 9.2 | Y58: 22.5 | Z58: 7 | AA58: 16 | AB58: 16 | AC58: 39 | AD58: 3.5 | AE58: 7 | AF58: 10.5 | AG58: 21 | AH58: 4.5 | AI58: 3 | AJ58: 6 | AK58: 5 | AL58: 9 | AM58: 5 | AN58: 19.5 | AO58: 13 | AP58: 32.5 | AQ58: 9 | AR58: 19 | AS58: 18 | AT58: 46 | AU58: 8.5 | AV58: 17.5 | AW58: 14 | AX58: 40 | AY58: 9 | AZ58: 15 | BA58: 15.5 | BB58: 39.5 | BC58: 8 | BD58: 19 | BE58: 17 | BF58: 44 | BG58: 8 | BH58: 15.5 | BI58: 15 | BJ58: 38.5 | BK58: 9 | BL58: 19 | BM58: 16 | BN58: 44 | BO58: 8 | BP58: 20 | BQ58: 17 | BR58: 45 | BS58: 200.2 | BT58: 490 | BU58: 4 | BV58: 6.5 | BW58: 7.5 | BX58: 18 | BY58: 3.5 | BZ58: 6 | CA58: 7.5 | CB58: 17 | CC58: ناجح | CD58: و منقول للصف الثانى | CE58: 0 | CF58: 8 | CG58: 8/3 | DC58: 0 | DD58: 0
A59: 50 | B59: 50 | C59: طالب اولى 143 | D59: 4/1 | E59: 2003-04-20 | F59: 11 - 05 - 18 | G59: مصرى | H59: مسلم | I59: بنين | J59: انتظام | K59: صباحى | M59: 185 | N59: 8 | O59: 8 | P59: 10.5 | Q59: 26.5 | R59: 8.5 | S59: 14.4 | T59: 12 | U59: 34.9 | V59: 4.5 | W59: 7.2 | X59: 8.8 | Y59: 20.5 | Z59: 7 | AA59: 16 | AB59: 13 | AC59: 36 | AD59: 3 | AE59: 1.5 | AF59: 10.5 | AG59: 15 | AH59: 4.5 | AI59: 2.5 | AJ59: 6 | AK59: 6 | AL59: 7 | AM59: 6 | AN59: 17.5 | AO59: 14.5 | AP59: 32 | AQ59: 9 | AR59: 16 | AS59: 15 | AT59: 40 | AU59: 9 | AV59: 14.5 | AW59: 12.5 | AX59: 36 | AY59: 9 | AZ59: 10 | BA59: 11 | BB59: 30 | BC59: 8 | BD59: 17 | BE59: 16 | BF59: 41 | BG59: 8 | BH59: 13.5 | BI59: 15.5 | BJ59: 37 | BK59: 9 | BL59: 18 | BM59: 11 | BN59: 38 | BO59: 8 | BP59: 18 | BQ59: 17 | BR59: 43 | BS59: 166.1 | BT59: 429.9 | BU59: 4 | BV59: 6.5 | BW59: 7.5 | BX59: 18 | BY59: 3.5 | BZ59: 6 | CA59: 6 | CB59: 15.5 | CC59: ناجح | CD59: و منقول للصف الثانى | CE59: 0 | CF59: 8 | CG59: 8/3 | DC59: 0 | DD59: 0
A60: 51 | B60: 51 | C60: طالب اولى 144 | D60: 4/1 | E60: 2003-09-17 | F60: 14 - 00 - 18 | G60: مصرى | H60: مسلم | I60: بنين | J60: انتظام | K60: صباحى | M60: 186 | N60: 9 | O60: 17.5 | P60: 18.5 | Q60: 45 | R60: 8.5 | S60: 15.2 | T60: 13.6 | U60: 37.3 | V60: 5 | W60: 8.4 | X60: 8.8 | Y60: 22.2 | Z60: 7 | AA60: 16 | AB60: 16 | AC60: 39 | AD60: 3.5 | AE60: 10 | AF60: 11.5 | AG60: 25 | AH60: 4.5 | AI60: 3 | AJ60: 6 | AK60: 5 | AL60: 9 | AM60: 5 | AN60: 19.5 | AO60: 13 | AP60: 32.5 | AQ60: 9 | AR60: 19 | AS60: 19 | AT60: 47 | AU60: 9 | AV60: 19.5 | AW60: 17.5 | AX60: 46 | AY60: 9 | AZ60: 19 | BA60: 17 | BB60: 45 | BC60: 8 | BD60: 20 | BE60: 17 | BF60: 45 | BG60: 8 | BH60: 18.5 | BI60: 19 | BJ60: 45.5 | BK60: 9 | BL60: 19 | BM60: 18 | BN60: 46 | BO60: 8 | BP60: 20 | BQ60: 18 | BR60: 46 | BS60: 213.1 | BT60: 521.5 | BU60: 4 | BV60: 7 | BW60: 7.5 | BX60: 18.5 | BY60: 3.5 | BZ60: 6 | CA60: 7 | CB60: 16.5 | CC60: ناجح | CD60: و منقول للصف الثانى | CE60: 0 | CF60: 8 | CG60: 8/3 | DC60: 0 | DD60: 0
A61: 52 | B61: 52 | C61: طالب اولى 145 | D61: 4/1 | E61: 2004-01-01 | F61: 00 - 09 - 17 | G61: مصرى | H61: مسلم | I61: بنين | J61: انتظام | K61: صباحى | M61: 187 | N61: 9 | O61: 16 | P61: 19 | Q61: 44 | R61: 8.5 | S61: 14.8 | T61: 12.4 | U61: 35.7 | V61: 5 | W61: 8.8 | X61: 9.6 | Y61: 23.4 | Z61: 7 | AA61: 16 | AB61: 16 | AC61: 39 | AD61: 5.5 | AE61: 9.5 | AF61: 9.5 | AG61: 24.5 | AH61: 4.5 | AI61: 3 | AJ61: 6 | AK61: 6 | AL61: 8 | AM61: 5 | AN61: 18.5 | AO61: 14 | AP61: 32.5 | AQ61: 9 | AR61: 19 | AS61: 15 | AT61: 43 | AU61: 9.5 | AV61: 19 | AW61: 17.5 | AX61: 46 | AY61: 9 | AZ61: 17.5 | BA61: 17.5 | BB61: 44 | BC61: 8 | BD61: 18 | BE61: 14 | BF61: 40 | BG61: 8 | BH61: 18.5 | BI61: 19 | BJ61: 45.5 | BK61: 9 | BL61: 18 | BM61: 17 | BN61: 44 | BO61: 8 | BP61: 20 | BQ61: 18 | BR61: 46 | BS61: 207.1 | BT61: 507.6 | BU61: 4 | BV61: 7 | BW61: 7.5 | BX61: 18.5 | BY61: 3.5 | BZ61: 6 | CA61: 7 | CB61: 16.5 | CC61: ناجح | CD61: و منقول للصف الثانى | CE61: 0 | CF61: 8 | CG61: 8/3 | DC61: 0 | DD61: 0
A62: 53 | B62: 53 | C62: طالب اولى 146 | D62: 4/1 | E62: 2003-06-10 | F62: 21 - 03 - 18 | G62: مصرى | H62: مسلم | I62: بنين | J62: انتظام | K62: صباحى | M62: 188 | N62: 8 | O62: 14.5 | P62: 13.5 | Q62: 36 | R62: 8.5 | S62: 15.2 | T62: 11.2 | U62: 34.9 | V62: 4.5 | W62: 7.2 | X62: 9.6 | Y62: 21.3 | Z62: 7 | AA62: 14 | AB62: 16 | AC62: 37 | AD62: 3 | AE62: 2 | AF62: 10 | AG62: 15 | AH62: 4.5 | AI62: 2.5 | AJ62: 6 | AK62: 6 | AL62: 9 | AM62: 5 | AN62: 19.5 | AO62: 13.5 | AP62: 33 | AQ62: 9 | AR62: 19 | AS62: 16 | AT62: 44 | AU62: 9 | AV62: 18.5 | AW62: 17.5 | AX62: 45 | AY62: 9 | AZ62: 15 | BA62: 13 | BB62: 37 | BC62: 8 | BD62: 17.5 | BE62: 16 | BF62: 41.5 | BG62: 8 | BH62: 16.5 | BI62: 13.5 | BJ62: 38 | BK62: 9 | BL62: 19 | BM62: 16 | BN62: 44 | BO62: 8 | BP62: 20 | BQ62: 17 | BR62: 45 | BS62: 190.4 | BT62: 471.7 | BU62: 4 | BV62: 7 | BW62: 7.5 | BX62: 18.5 | BY62: 3.5 | BZ62: 6 | CA62: 7 | CB62: 16.5 | CC62: ناجح | CD62: و منقول للصف الثانى | CE62: 0 | CF62: 8 | CG62: 8/3 | DC62: 0 | DD62: 0
A63: 54 | B63: 54 | C63: طالب اولى 147 | D63: 4/1 | E63: 2003-03-15 | F63: 17 - 06 - 18 | G63: مصرى | H63: مسلم | I63: بنين | J63: انتظام | K63: صباحى | M63: 189 | N63: 8.5 | O63: 12.5 | P63: 16.5 | Q63: 37.5 | R63: 8.5 | S63: 14.8 | T63: 11.2 | U63: 34.5 | V63: 4.5 | W63: 7.6 | X63: 8.8 | Y63: 20.9 | Z63: 7 | AA63: 14 | AB63: 16 | AC63: 37 | AD63: 3 | AE63: 2.5 | AF63: 9.5 | AG63: 15 | AH63: 4.5 | AI63: 3 | AJ63: 6 | AK63: 6 | AL63: 8 | AM63: 6 | AN63: 18.5 | AO63: 15 | AP63: 33.5 | AQ63: 9 | AR63: 19 | AS63: 16 | AT63: 44 | AU63: 8.5 | AV63: 18 | AW63: 19 | AX63: 45.5 | AY63: 9 | AZ63: 16.5 | BA63: 14 | BB63: 39.5 | BC63: 8 | BD63: 19 | BE63: 17 | BF63: 44 | BG63: 8 | BH63: 17.5 | BI63: 13 | BJ63: 38.5 | BK63: 9 | BL63: 19 | BM63: 17 | BN63: 45 | BO63: 8 | BP63: 20 | BQ63: 17 | BR63: 45 | BS63: 192.4 | BT63: 479.9 | BU63: 4 | BV63: 7 | BW63: 7.5 | BX63: 18.5 | BY63: 3.5 | BZ63: 5.5 | CA63: 7 | CB63: 16 | CC63: ناجح | CD63: و منقول للصف الثانى | CE63: 0 | CF63: 8 | CG63: 8/3 | DC63: 0 | DD63: 0
A64: 55 | B64: 55 | C64: طالب اولى 148 | D64: 4/1 | E64: 2003-03-18 | F64: 14 - 06 - 18 | G64: مصرى | H64: مسلم | I64: بنين | J64: انتظام | K64: صباحى | M64: 190 | N64: 8.5 | O64: 9.5 | P64: 19 | Q64: 37 | R64: 8.5 | S64: 14.4 | T64: 10.8 | U64: 33.7 | V64: 4.5 | W64: 6 | X64: 8.8 | Y64: 19.3 | Z64: 7 | AA64: 12 | AB64: 16 | AC64: 35 | AD64: 3 | AE64: 5 | AF64: 7 | AG64: 15 | AH64: 4.5 | AI64: 3 | AJ64: 6 | AK64: 6 | AL64: 8 | AM64: 5 | AN64: 18.5 | AO64: 14 | AP64: 32.5 | AQ64: 9 | AR64: 19 | AS64: 16 | AT64: 44 | AU64: 9 | AV64: 15.5 | AW64: 17 | AX64: 41.5 | AY64: 9 | AZ64: 14.5 | BA64: 14 | BB64: 37.5 | BC64: 8 | BD64: 18 | BE64: 17 | BF64: 43 | BG64: 8 | BH64: 16 | BI64: 15 | BJ64: 39 | BK64: 9 | BL64: 18 | BM64: 15 | BN64: 42 | BO64: 8 | BP64: 19 | BQ64: 17 | BR64: 44 | BS64: 178.9 | BT64: 463.5 | BU64: 4 | BV64: 7 | BW64: 7.5 | BX64: 18.5 | BY64: 3.5 | BZ64: 5.5 | CA64: 7 | CB64: 16 | CC64: ناجح | CD64: و منقول للصف الثانى | CE64: 0 | CF64: 8 | CG64: 8/3 | DC64: 0 | DD64: 0
A65: 56 | B65: 56 | C65: طالب اولى 149 | D65: 4/1 | E65: 2003-09-08 | F65: 23 - 00 - 18 | G65: مصرى | H65: مسلم | I65: بنين | J65: انتظام | K65: صباحى | M65: 191 | N65: 8.5 | O65: 15 | P65: 16.5 | Q65: 40 | R65: 8.5 | S65: 15.6 | T65: 11.6 | U65: 35.7 | V65: 4.5 | W65: 6.4 | X65: 8.8 | Y65: 19.7 | Z65: 7 | AA65: 15 | AB65: 16 | AC65: 38 | AD65: 5.5 | AE65: 9 | AF65: 9 | AG65: 23.5 | AH65: 4.5 | AI65: 3 | AJ65: 6 | AK65: 6 | AL65: 8 | AM65: 5 | AN65: 18.5 | AO65: 14 | AP65: 32.5 | AQ65: 9 | AR65: 19 | AS65: 16 | AT65: 44 | AU65: 9 | AV65: 17 | AW65: 16 | AX65: 42 | AY65: 9 | AZ65: 13.5 | BA65: 14.5 | BB65: 37 | BC65: 8 | BD65: 18 | BE65: 17 | BF65: 43 | BG65: 8 | BH65: 17 | BI65: 17.5 | BJ65: 42.5 | BK65: 9 | BL65: 18 | BM65: 14 | BN65: 41 | BO65: 8 | BP65: 20 | BQ65: 17 | BR65: 45 | BS65: 195.5 | BT65: 483.9 | BU65: 4 | BV65: 7 | BW65: 7.5 | BX65: 18.5 | BY65: 3.5 | BZ65: 6.5 | CA65: 7 | CB65: 17 | CC65: ناجح | CD65: و منقول للصف الثانى | CE65: 0 | CF65: 8 | CG65: 8/3 | DC65: 0 | DD65: 0
A66: 57 | B66: 57 | C66: طالب اولى 15 | D66: 1/1 | E66: 2003-07-26 | F66: 06 - 02 - 18 | G66: مصرى | H66: مسلم | I66: بنين | J66: انتظام | K66: صباحى | M66: 85 | N66: 8 | O66: 13.5 | P66: 13.5 | Q66: 35 | R66: 8 | S66: 11.6 | T66: 14.8 | U66: 34.4 | V66: 4.5 | W66: 9.2 | X66: 9.6 | Y66: 23.3 | Z66: 7 | AA66: 15 | AB66: 16 | AC66: 38 | AD66: 3.5 | AE66: 5.5 | AF66: 9 | AG66: 18 | AH66: 4 | AI66: 2.5 | AJ66: 7.5 | AK66: 6 | AL66: 7 | AM66: 6 | AN66: 18.5 | AO66: 14.5 | AP66: 33 | AQ66: 8.5 | AR66: 14 | AS66: 14 | AT66: 36.5 | AU66: 8 | AV66: 15 | AW66: 11 | AX66: 34 | AY66: 9 | AZ66: 8.5 | BA66: 7.5 | BB66: 25 | BC66: 9 | BD66: 17 | BE66: 16 | BF66: 42 | BG66: 7.5 | BH66: 12 | BI66: 13.5 | BJ66: 33 | BK66: 8.5 | BL66: 17.5 | BM66: 14 | BN66: 40 | BO66: 8 | BP66: 16 | BQ66: 14 | BR66: 38 | BS66: 168.3 | BT66: 430.2 | BU66: 3.5 | BV66: 4.5 | BW66: 7.5 | BX66: 15.5 | BY66: 3 | BZ66: 6.5 | CA66: 6.5 | CB66: 16 | CC66: ناجح | CD66: و منقول للصف الثانى | CE66: 0 | CF66: 1 | CG66: 1/3 | DC66: 0 | DD66: 0
A67: 58 | B67: 58 | C67: طالب اولى 150 | D67: 4/1 | E67: 2003-08-09 | F67: 23 - 01 - 18 | G67: مصرى | H67: مسلم | I67: بنين | J67: انتظام | K67: صباحى | M67: 192 | N67: 8 | O67: 16 | P67: 15 | Q67: 39 | R67: 8.5 | S67: 14.4 | T67: 12.4 | U67: 35.3 | V67: 4.5 | W67: 9.2 | X67: 10 | Y67: 23.7 | Z67: 7 | AA67: 15 | AB67: 16 | AC67: 38 | AD67: 3 | AE67: 7.5 | AF67: 10 | AG67: 20.5 | AH67: 4.5 | AI67: 3 | AJ67: 6 | AK67: 5 | AL67: 9 | AM67: 6 | AN67: 19.5 | AO67: 14 | AP67: 33.5 | AQ67: 9 | AR67: 19 | AS67: 19 | AT67: 47 | AU67: 9 | AV67: 16.5 | AW67: 16.5 | AX67: 42 | AY67: 9 | AZ67: 12 | BA67: 15 | BB67: 36 | BC67: 8 | BD67: 20 | BE67: 17 | BF67: 45 | BG67: 8 | BH67: 15.5 | BI67: 17 | BJ67: 40.5 | BK67: 9 | BL67: 19 | BM67: 14 | BN67: 42 | BO67: 8 | BP67: 20 | BQ67: 18 | BR67: 46 | BS67: 195.1 | BT67: 488.5 | BU67: 4 | BV67: 7 | BW67: 7.5 | BX67: 18.5 | BY67: 3.5 | BZ67: 6 | CA67: 7.5 | CB67: 17 | CC67: ناجح | CD67: و منقول للصف الثانى | CE67: 0 | CF67: 8 | CG67: 8/3 | DC67: 0 | DD67: 0
A68: 59 | B68: 59 | C68: طالب اولى 151 | D68: 4/1 | E68: 2004-01-11 | F68: 21 - 08 - 17 | G68: مصرى | H68: مسلم | I68: بنين | J68: انتظام | K68: صباحى | M68: 193 | N68: 8.5 | O68: 16.5 | P68: 17 | Q68: 42 | R68: 8.5 | S68: 14 | T68: 12.4 | U68: 34.9 | V68: 5 | W68: 9.2 | X68: 10 | Y68: 24.2 | Z68: 7 | AA68: 15 | AB68: 16 | AC68: 38 | AD68: 2.5 | AE68: 9 | AF68: 10 | AG68: 21.5 | AH68: 4.5 | AI68: 2.5 | AJ68: 6 | AK68: 5 | AL68: 8 | AM68: 6 | AN68: 18.5 | AO68: 13.5 | AP68: 32 | AQ68: 9 | AR68: 19 | AS68: 19 | AT68: 47 | AU68: 9 | AV68: 18 | AW68: 17 | AX68: 44 | AY68: 9 | AZ68: 18.5 | BA68: 16 | BB68: 43.5 | BC68: 8 | BD68: 20 | BE68: 17 | BF68: 45 | BG68: 8 | BH68: 16.5 | BI68: 17.5 | BJ68: 42 | BK68: 9 | BL68: 19 | BM68: 20 | BN68: 48 | BO68: 8 | BP68: 20 | BQ68: 18 | BR68: 46 | BS68: 205.7 | BT68: 508.1 | BU68: 4 | BV68: 7 | BW68: 8 | BX68: 19 | BY68: 3.5 | BZ68: 6 | CA68: 7 | CB68: 16.5 | CC68: ناجح | CD68: و منقول للصف الثانى | CE68: 0 | CF68: 8 | CG68: 8/3 | DC68: 0 | DD68: 0
A69: 60 | B69: 60 | C69: طالب اولى 152 | D69: 4/1 | E69: 2003-08-26 | F69: 06 - 01 - 18 | G69: مصرى | H69: مسلم | I69: بنين | J69: انتظام | K69: صباحى | M69: 194 | N69: 8.5 | O69: 15.5 | P69: 17 | Q69: 41 | R69: 8.5 | S69: 14.8 | T69: 12.8 | U69: 36.1 | V69: 4.5 | W69: 9.6 | X69: 10.4 | Y69: 24.5 | Z69: 7 | AA69: 13 | AB69: 15 | AC69: 35 | AD69: 5.5 | AE69: 9 | AF69: 10 | AG69: 24.5 | AH69: 4.5 | AI69: 3 | AJ69: 6 | AK69: 7 | AL69: 8 | AM69: 6 | AN69: 18.5 | AO69: 16 | AP69: 34.5 | AQ69: 9 | AR69: 19 | AS69: 14 | AT69: 42 | AU69: 9 | AV69: 18 | AW69: 17 | AX69: 44 | AY69: 9 | AZ69: 17 | BA69: 14.5 | BB69: 40.5 | BC69: 8 | BD69: 20 | BE69: 17 | BF69: 45 | BG69: 8 | BH69: 16.5 | BI69: 16.5 | BJ69: 41 | BK69: 9 | BL69: 19 | BM69: 18 | BN69: 46 | BO69: 8 | BP69: 20 | BQ69: 16 | BR69: 44 | BS69: 204.4 | BT69: 498.1 | BU69: 4 | BV69: 7 | BW69: 8 | BX69: 19 | BY69: 3.5 | BZ69: 6 | CA69: 6.5 | CB69: 16 | CC69: ناجح | CD69: و منقول للصف الثانى | CE69: 0 | CF69: 8 | CG69: 8/3 | DC69: 0 | DD69: 0
A70: 61 | B70: 61 | C70: طالب اولى 153 | D70: 4/1 | E70: 2001-09-01 | F70: 00 - 01 - 20 | G70: مصرى | H70: مسلم | I70: بنين | J70: انتظام | K70: صباحى | M70: 195 | O70: 9 | P70: 16 | Q70: 25 | S70: 18 | T70: 18.5 | U70: 36.5 | W70: 9.5 | X70: 8 | Y70: 17.5 | AA70: 16.5 | AB70: 19 | AC70: 35.5 | AE70: 6.5 | AF70: 9 | AG70: 15.5 | AJ70: 10 | AK70: 7 | AL70: 7.5 | AM70: 7 | AN70: 17.5 | AO70: 14 | AP70: 31.5 | AR70: 17.5 | AS70: 16.5 | AT70: 34 | AV70: 17 | AW70: غ | AX70: غ | AZ70: 11 | BA70: 14.5 | BB70: 25.5 | BD70: 20 | BE70: 16.5 | BF70: 36.5 | BH70: 10 | BI70: 15.5 | BJ70: 25.5 | BL70: 23 | BM70: 16.5 | BN70: 39.5 | BP70: 23.5 | BQ70: 17.5 | BR70: 41 | BS70: 198.5 | BT70: 363.5 | BV70: 3.5 | BW70: 9 | BX70: 12.5 | BZ70: 9.5 | CA70: غ | CB70: غ | CC70: دورثان | CD70: فى : سكرتارية عربية - مواطنة | CE70: 2 | CF70: 9 | CG70: 9/3 | CT70: سكرتارية عربية - | DB70: مواطنة | DC70: 1 | DD70: 1
A71: 62 | B71: 62 | C71: طالب اولى 154 | D71: 4/1 | E71: 2001-08-19 | F71: 13 - 01 - 20 | G71: مصرى | H71: مسلم | I71: بنين | J71: انتظام | K71: صباحى | M71: 196 | O71: 7 | P71: 18 | Q71: 25 | S71: 19 | T71: 17.5 | U71: 36.5 | W71: 9 | X71: 8 | Y71: 17 | AA71: 16.5 | AB71: 20 | AC71: 36.5 | AE71: 6.5 | AF71: 9 | AG71: 15.5 | AJ71: 10 | AK71: 7 | AL71: 9 | AM71: 7 | AN71: 19 | AO71: 14 | AP71: 33 | AR71: 17.5 | AS71: 14 | AT71: 31.5 | AV71: 17 | AW71: 8.5 | AX71: 25.5 | AZ71: 9 | BA71: 11 | BB71: 20 | BD71: 21.5 | BE71: 15 | BF71: 36.5 | BH71: 12.5 | BI71: 12.5 | BJ71: 25 | BL71: 21 | BM71: 16.5 | BN71: 37.5 | BP71: 20 | BQ71: 16.5 | BR71: 36.5 | BS71: 193.5 | BT71: 376 | BV71: 3.5 | BW71: 9 | BX71: 12.5 | BZ71: 8 | CA71: 8.5 | CB71: 16.5 | CC71: دورثان | CD71: فى : سكرتارية اجنبية - | CE71: 1 | CF71: 9 | CG71: 9/3 | CU71: سكرتارية اجنبية - | DC71: 0 | DD71: 1
A72: 63 | B72: 63 | C72: طالب اولى 155 | D72: 4/1 | E72: 2000-04-23 | F72: 08 - 05 - 21 | G72: مصرى | H72: مسلم | I72: بنين | J72: انتظام | K72: صباحى | M72: 197 | O72: 13.5 | P72: 14 | Q72: 27.5 | S72: 20.5 | T72: 19.5 | U72: 40 | W72: 9 | X72: 8 | Y72: 17 | AA72: 16.5 | AB72: 17.5 | AC72: 34 | AE72: 5.5 | AF72: 10 | AG72: 15.5 | AJ72: 10 | AK72: 7 | AL72: 9 | AM72: 7 | AN72: 19 | AO72: 14 | AP72: 33 | AR72: 17.5 | AS72: 17.5 | AT72: 35 | AV72: 19.5 | AW72: 12.5 | AX72: 32 | AZ72: 7.5 | BA72: 14.5 | BB72: 22 | BD72: 17.5 | BE72: 16.5 | BF72: 34 | BH72: 17 | BI72: 15 | BJ72: 32 | BL72: 21 | BM72: 16.5 | BN72: 37.5 | BP72: 23.5 | BQ72: 19 | BR72: 42.5 | BS72: 205.5 | BT72: 402 | BV72: 6.5 | BW72: 7.5 | BX72: 14 | BZ72: 9 | CA72: 9 | CB72: 18 | CC72: دورثان | CD72: فى : سكرتارية اجنبية - | CE72: 1 | CF72: 9 | CG72: 9/3 | CU72: سكرتارية اجنبية - | DC72: 0 | DD72: 1
A73: 64 | B73: 64 | C73: طالب اولى 156 | D73: 4/1 | E73: 2002-03-03 | F73: 29 - 06 - 19 | G73: مصرى | H73: مسلم | I73: بنين | J73: انتظام | K73: صباحى | M73: 198 | O73: 17.5 | P73: 13 | Q73: 30.5 | S73: 19.5 | T73: 19.5 | U73: 39 | W73: 8.5 | X73: 9 | Y73: 17.5 | AA73: 17.5 | AB73: 20 | AC73: 37.5 | AE73: 5 | AF73: 10 | AG73: 15 | AJ73: 10 | AK73: 7 | AL73: 9 | AM73: 7 | AN73: 19 | AO73: 14 | AP73: 33 | AR73: 20 | AS73: 17.5 | AT73: 37.5 | AV73: 20 | AW73: 12.5 | AX73: 32.5 | AZ73: 12.5 | BA73: 9.5 | BB73: 22 | BD73: 21.5 | BE73: 19 | BF73: 40.5 | BH73: 17 | BI73: 16.5 | BJ73: 33.5 | BL73: 20 | BM73: 17.5 | BN73: 37.5 | BP73: 23.5 | BQ73: 20 | BR73: 43.5 | BS73: 219.5 | BT73: 419.5 | BV73: 9 | BW73: 7 | BX73: 16 | BZ73: 9.5 | CA73: 8.5 | CB73: 18 | CC73: دورثان | CD73: فى : سكرتارية اجنبية - | CE73: 1 | CF73: 9 | CG73: 9/3 | CU73: سكرتارية اجنبية - | DC73: 0 | DD73: 1
A74: 65 | B74: 65 | C74: طالب اولى 157 | D74: 4/1 | E74: 2000-08-26 | F74: 06 - 01 - 21 | G74: مصرى | H74: مسلم | I74: بنين | J74: انتظام | K74: صباحى | M74: 199 | O74: 12.5 | P74: 12.5 | Q74: =IF(P74="غ","غ",SUM(N74,O74,P74)) -> 25 | S74: 17.5 | T74: 19.5 | U74: =IF(T74="غ","غ",SUM(R74,S74,T74)) -> 37 | W74: 9.5 | X74: 8.5 | Y74: =IF(X74="غ","غ",SUM(V74,W74,X74)) -> 18 | AA74: 17.5 | AB74: 16.5 | AC74: =IF(AB74="غ","غ",SUM(Z74,AA74,AB74)) -> 34 | AE74: 7 | AF74: 9.5 | AG74: =IF(AF74="غ","غ",SUM(AD74,AE74,AF74)) -> 16.5 | AJ74: 10 | AK74: 7 | AL74: 9 | AM74: 7 | AN74: =IF(AL74="غ","غ",SUM(AH74,AJ74,AL74)) -> 19 | AO74: =IF(AM74="غ","غ",SUM(AI74,AK74,AM74)) -> 14 | AP74: =IF(OR(AN74="غ",AO74="غ"),"غ",SUM(AN74,AO74)) -> 33 | AR74: 17.5 | AS74: 19 | AT74: =IF(AS74="غ","غ",SUM(AQ74,AR74,AS74)) -> 36.5 | AV74: 19.5 | AW74: 14 | AX74: =IF(AW74="غ","غ",SUM(AU74,AV74,AW74)) -> 33.5 | AZ74: 11 | BA74: 14.5 | BB74: =IF(BA74="غ","غ",SUM(AY74,AZ74,BA74)) -> 25.5 | BD74: 21.5 | BE74: 19 | BF74: =IF(BE74="غ","غ",SUM(BC74,BD74,BE74)) -> 40.5 | BH74: 17.5 | BI74: 16.5 | BJ74: =IF(BI74="غ","غ",SUM(BG74,BH74,BI74)) -> 34 | BL74: 21.5 | BM74: 16.5 | BN74: =IF(BM74="غ","غ",SUM(BK74,BL74,BM74)) -> 38 | BP74: 23.5 | BQ74: 19 | BR74: =IF(BQ74="غ","غ",SUM(BO74,BP74,BQ74)) -> 42.5 | BS74: =IF(C74="","",SUM(O74,S74,W74,AE74,AR74,AV74,AZ74,BD74,BH74,BL74,BP74,AA74,AJ74,AK74)) -> 213 | BT74: =SUM(Q74,U74,Y74,AG74,AT74,AX74,BB74,BF74,BJ74,BN74,BR74,AC74,AP74) -> 414 | BV74: 5 | BW74: 9 | BX74: =IF(BW74="غ","غ",SUM(BU74,BV74,BW74)) -> 14 | BZ74: 9.5 | CA74: 8.5 | CB74: =IF(CA74="غ","غ",SUM(BY74,BZ74,CA74)) -> 18 | CC74: =IF(I74="","",IF(I74="بنات",IF(CE74=0,"ناجحة",IF(DD74>2,"راسبة","دورثان")),IF(I74="بنين",IF(CE74=0,"ناجح",IF(DD74>2,"راسب","دورثان"))))) -> ناجح | CD74: =IF(C74="","",IF(AND($L74="باقية",$CC74="راسبة"),"وليس لها حق الاعادة",IF(AND($L74<>"باقية",$CC74="راسبة"),"و لها حق الاعادة",IF(AND($L74="باقى",$CC74="راسب"),"وليس له حق الاعادة",IF(AND($L74<>"باقى",$CC74="راسب"),"و له حق الاعادة",IF($CC74="ناجحة","و منقولة للصف الثانى",IF($CC74="ناجح","و منقول للصف الثانى",IF($CC74="دورثان","فى : "&CONCATENATE($CM74,$CN74,$CO74,$CQ74,$CR74,$CS74,$CT74,$CU74,$CV74,$CW74,$CX74,$CY74,$CP74,$CZ74,$DA74,$DB74))))))))) -> و منقول للصف الثانى | CE74: =IF(C74="","",$DC74+$DD74) -> 0 | CF74: 9 | CG74: 9/3 | CM74: =IF(C74="","",IF(OR(P74<$P$9,P74="غ",Q74<$Q$9),CM$5&" - ","")) ->  | CN74: =IF(C74="","",IF(OR(T74<$T$9,T74="غ",U74<$U$9),CN$5&" - ","")) ->  | CO74: =IF(C74="","",IF(OR(X74<$X$9,X74="غ",Y74<$Y$9),CO$5&" - ","")) ->  | CP74: =IF(C74="","",IF(OR(AB74<$AB$9,AB74="غ",AC74<$AC$9),CP$5&" - ","")) ->  | CQ74: =IF(C74="","",IF(OR(AF74<$AF$9,AF74="غ",AG74<$AG$9),CQ$5&" - ","")) ->  | CR74: =IF(C74="","",IF(OR(AL74<$AL$9,AM74<$AM$9,AN74<$AN$9,AN74="غ",AO74<$AO$9,AO74="غ"),CR$5&" - ","")) ->  | CS74: =IF(C74="","",IF(OR(AS74<$AS$9,AS74="غ",AT74<$AT$9),CS$5&" - ","")) ->  | CT74: =IF(C74="","",IF(OR(AW74<$AW$9,AW74="غ",AX74<$AX$9),CT$5&" - ","")) ->  | CU74: =IF(C74="","",IF(OR(BA74<$BA$9,BA74="غ",BB74<$BB$9),CU$5&" - ","")) ->  | CV74: =IF(C74="","",IF(OR(BE74<$BE$9,BE74="غ",BF74<$BF$9),CV$5&" - ","")) ->  | CW74: =IF(C74="","",IF(OR(BI74<$BI$9,BI74="غ",BJ74<$BJ$9),CW$5&" - ","")) ->  | CX74: =IF(C74="","",IF(OR(BM74<$BM$9,BM74="غ",BN74<$BN$9),CX$5&" - ","")) ->  | CY74: =IF(C74="","",IF(OR(BQ74<$BQ$9,BQ74="غ",BR74<$BR$9),CY$5&" - ","")) ->  | CZ74: =IF(C74="","",IF(BT74<$BT$9,CZ$5&" - ","")) ->  | DA74: =IF(C74="","",IF(OR(BW74<$BW$9,BW74="غ",BX74<$BX$9),DA$5&" - ","")) ->  | DB74: =IF(C74="","",IF(OR(CA74<$CA$9,CA74="غ",CB74<$CB$9),DB$5,"")) ->  | DC74: =COUNTIF($CZ74:$DB74,"?*") -> 0 | DD74: =COUNTIF($CM74:$CY74,"?*") -> 0
A75: 66 | B75: 66 | C75: طالب اولى 158 | D75: 4/1 | E75: 1999-12-01 | F75: 00 - 10 - 21 | G75: مصرى | H75: مسلم | I75: بنين | J75: انتظام | K75: صباحى | M75: 200 | O75: 17.5 | P75: 17.5 | Q75: 35 | S75: 18 | T75: 19.5 | U75: 37.5 | W75: 9.5 | X75: 9 | Y75: 18.5 | AA75: 17.5 | AB75: 20 | AC75: 37.5 | AE75: 4.5 | AF75: 7 | AG75: 11.5 | AJ75: 10 | AK75: 8 | AL75: 9 | AM75: 7 | AN75: 19 | AO75: 15 | AP75: 34 | AR75: 17.5 | AS75: 17.5 | AT75: 35 | AV75: 21 | AW75: 12.5 | AX75: 33.5 | AZ75: 9.5 | BA75: 10.5 | BB75: 20 | BD75: 21.5 | BE75: 19 | BF75: 40.5 | BH75: 13.5 | BI75: 17.5 | BJ75: 31 | BL75: 21 | BM75: 17.5 | BN75: 38.5 | BP75: 22.5 | BQ75: 21 | BR75: 43.5 | BS75: 211.5 | BT75: 416 | BV75: 9 | BW75: 7 | BX75: 16 | BZ75: 7.5 | CA75: 9 | CB75: 16.5 | CC75: دورثان | CD75: فى : رياضة عامة - سكرتارية اجنبية - | CE75: 2 | CF75: 9 | CG75: 9/3 | CQ75: رياضة عامة - | CU75: سكرتارية اجنبية - | DC75: 0 | DD75: 2
A76: 67 | B76: 67 | C76: طالب اولى 159 | D76: 4/1 | E76: 2002-08-24 | F76: 08 - 01 - 19 | G76: مصرى | H76: مسلم | I76: بنين | J76: انتظام | K76: صباحى | M76: 201 | O76: 9.5 | P76: 15.5 | Q76: 25 | S76: 20 | T76: 18 | U76: 38 | W76: 9 | X76: 8 | Y76: 17 | AA76: 17.5 | AB76: 19 | AC76: 36.5 | AE76: 6.5 | AF76: 9 | AG76: 15.5 | AJ76: 10 | AK76: 7 | AL76: 9 | AM76: 7 | AN76: 19 | AO76: 14 | AP76: 33 | AR76: 17.5 | AS76: 16.5 | AT76: 34 | AV76: 16.5 | AW76: 13.5 | AX76: 30 | AZ76: 10.5 | BA76: 10.5 | BB76: 21 | BD76: 21.5 | BE76: 19 | BF76: 40.5 | BH76: 12 | BI76: 17.5 | BJ76: 29.5 | BL76: 21.5 | BM76: 16.5 | BN76: 38 | BP76: 23.5 | BQ76: 20 | BR76: 43.5 | BS76: 202.5 | BT76: 401.5 | BV76: غ | BW76: 10 | BX76: 10 | BZ76: 7 | CA76: 9 | CB76: 16 | CC76: دورثان | CD76: فى : سكرتارية اجنبية - | CE76: 1 | CF76: 9 | CG76: 9/3 | CU76: سكرتارية اجنبية - | DC76: 0 | DD76: 1
A77: 68 | B77: 68 | C77: طالب اولى 16 | D77: 1/1 | E77: 2003-10-20 | F77: 12 - 11 - 17 | G77: مصرى | H77: مسلم | I77: بنين | J77: انتظام | K77: صباحى | M77: 86 | N77: 8 | O77: 13.5 | P77: 16 | Q77: 37.5 | R77: 8 | S77: 13.2 | T77: 15.6 | U77: 36.8 | V77: 4.5 | W77: 7.6 | X77: 10.4 | Y77: 22.5 | Z77: 6.5 | AA77: 15 | AB77: 16 | AC77: 37.5 | AD77: 3.5 | AE77: 7 | AF77: 9.5 | AG77: 20 | AH77: 4 | AI77: 3 | AJ77: 7.5 | AK77: 5 | AL77: 7 | AM77: 5 | AN77: 18.5 | AO77: 13 | AP77: 31.5 | AQ77: 8.5 | AR77: 14 | AS77: 15 | AT77: 37.5 | AU77: 8.5 | AV77: 16 | AW77: 12 | AX77: 36.5 | AY77: 9 | AZ77: 9.5 | BA77: 11 | BB77: 29.5 | BC77: 9 | BD77: 17 | BE77: 16 | BF77: 42 | BG77: 7.5 | BH77: 12 | BI77: 13.5 | BJ77: 33 | BK77: 8.5 | BL77: 17.5 | BM77: 14 | BN77: 40 | BO77: 8 | BP77: 16 | BQ77: 14 | BR77: 38 | BS77: 170.8 | BT77: 442.3 | BU77: 3.5 | BV77: 4.5 | BW77: 6 | BX77: 14 | BY77: 3 | BZ77: 6.5 | CA77: 7 | CB77: 16.5 | CC77: ناجح | CD77: و منقول للصف الثانى | CE77: 0 | CF77: 1 | CG77: 1/3 | DC77: 0 | DD77: 0
A78: 69 | B78: 69 | C78: طالب اولى 160 | D78: 4/1 | E78: 2002-07-11 | F78: 21 - 02 - 19 | G78: مصرى | H78: مسلم | I78: بنين | J78: انتظام | K78: صباحى | M78: 202 | O78: 4.5 | P78: غ | Q78: غ | S78: 20 | T78: 17 | U78: 37 | W78: 9 | X78: 10.5 | Y78: 19.5 | AA78: 16.5 | AB78: 20 | AC78: 36.5 | AE78: 7 | AF78: 8.5 | AG78: 15.5 | AJ78: 10 | AK78: 7 | AL78: 9 | AM78: 7 | AN78: 19 | AO78: 14 | AP78: 33 | AR78: 20 | AS78: 15 | AT78: 35 | AV78: 19 | AW78: 12.5 | AX78: 31.5 | AZ78: 10 | BA78: 10.5 | BB78: 20.5 | BD78: 19 | BE78: 19 | BF78: 38 | BH78: 12.5 | BI78: 17 | BJ78: 29.5 | BL78: 22.5 | BM78: 14 | BN78: 36.5 | BP78: 23.5 | BQ78: 20 | BR78: 43.5 | BS78: 200.5 | BT78: 376 | BV78: 8 | BW78: غ | BX78: غ | BZ78: 8 | CA78: 8 | CB78: 16 | CC78: دورثان | CD78: فى : لغة عربية - سكرتارية اجنبية - تربية دينية - | CE78: 3 | CF78: 9 | CG78: 9/3 | CM78: لغة عربية - | CU78: سكرتارية اجنبية - | DA78: تربية دينية - | DC78: 1 | DD78: 2
A79: 70 | B79: 70 | C79: طالب اولى 161 | D79: 5/1 | E79: 1995-05-20 | F79: 12 - 04 - 26 | G79: مصرى | H79: مسلم | I79: بنين | J79: انتظام | K79: صباحى | M79: 203 | O79: 13.5 | P79: 12.5 | Q79: 26 | S79: 16.5 | T79: 16.5 | U79: 33 | W79: 8.5 | X79: 9 | Y79: 17.5 | AA79: 17.5 | AB79: 19 | AC79: 36.5 | AE79: 4 | AF79: 11.5 | AG79: 15.5 | AJ79: 10 | AK79: 7 | AL79: 9 | AM79: 7 | AN79: 19 | AO79: 14 | AP79: 33 | AR79: 20 | AS79: 17.5 | AT79: 37.5 | AV79: 19.5 | AW79: 13.5 | AX79: 33 | AZ79: 9.5 | BA79: 14 | BB79: 23.5 | BD79: 17.5 | BE79: 19 | BF79: 36.5 | BH79: 15.5 | BI79: 17 | BJ79: 32.5 | BL79: 20 | BM79: 17.5 | BN79: 37.5 | BP79: 23.5 | BQ79: 20 | BR79: 43.5 | BS79: 202.5 | BT79: 405.5 | BV79: 7.5 | BW79: 7.5 | BX79: 15 | BZ79: 7.5 | CA79: 9 | CB79: 16.5 | CC79: دورثان | CD79: فى : سكرتارية اجنبية - | CE79: 1 | CF79: 9 | CG79: 9/3 | CU79: سكرتارية اجنبية - | DC79: 0 | DD79: 1
A80: 71 | B80: 71 | C80: طالب اولى 162 | D80: 5/1 | E80: 2002-06-14 | F80: 17 - 03 - 19 | G80: مصرى | H80: مسلم | I80: بنين | J80: انتظام | K80: صباحى | M80: 204 | O80: 11 | P80: 14 | Q80: 25 | S80: 19.5 | T80: 20 | U80: 39.5 | W80: 9.5 | X80: 7.5 | Y80: 17 | AA80: 17.5 | AB80: 19 | AC80: 36.5 | AE80: 7.5 | AF80: 9 | AG80: 16.5 | AJ80: 10 | AK80: 7 | AL80: 9 | AM80: 7 | AN80: 19 | AO80: 14 | AP80: 33 | AR80: 15 | AS80: 16.5 | AT80: 31.5 | AV80: 17.5 | AW80: 12 | AX80: 29.5 | AZ80: 13 | BA80: 14 | BB80: 27 | BD80: 21.5 | BE80: 17.5 | BF80: 39 | BH80: 13.5 | BI80: 14 | BJ80: 27.5 | BL80: 21.5 | BM80: 17.5 | BN80: 39 | BP80: 22.5 | BQ80: 17.5 | BR80: 40 | BS80: 206.5 | BT80: 401 | BV80: 3 | BW80: 9 | BX80: 12 | BZ80: 9.5 | CA80: 9 | CB80: 18.5 | CC80: ناجح | CD80: و منقول للصف الثانى | CE80: 0 | CF80: 9 | CG80: 9/3 | DC80: 0 | DD80: 0
A81: 72 | B81: 72 | C81: طالب اولى 163 | D81: 5/1 | E81: 2000-02-02 | F81: 28 - 07 - 21 | G81: مصرى | H81: مسلم | I81: بنين | J81: انتظام | K81: صباحى | M81: 205 | O81: 4.5 | P81: 20.5 | Q81: 25 | S81: 16 | T81: 18.5 | U81: 34.5 | W81: 8.5 | X81: 7.5 | Y81: 16 | AA81: 17.5 | AB81: 17.5 | AC81: 35 | AE81: 5.5 | AF81: 10 | AG81: 15.5 | AJ81: 9 | AK81: 8 | AL81: 7.5 | AM81: 7 | AN81: 16.5 | AO81: 15 | AP81: 31.5 | AR81: 20 | AS81: 17.5 | AT81: 37.5 | AV81: 15 | AW81: 12 | AX81: 27 | AZ81: 9.5 | BA81: 10.5 | BB81: 20 | BD81: 20 | BE81: 19 | BF81: 39 | BH81: 9 | BI81: 16 | BJ81: 25 | BL81: 19 | BM81: 15 | BN81: 34 | BP81: 23.5 | BQ81: 20 | BR81: 43.5 | BS81: 185 | BT81: 383.5 | BV81: 6.5 | BW81: 9 | BX81: 15.5 | BZ81: 9 | CA81: 7 | CB81: 16 | CC81: دورثان | CD81: فى : سكرتارية اجنبية - | CE81: 1 | CF81: 9 | CG81: 9/3 | CU81: سكرتارية اجنبية - | DC81: 0 | DD81: 1
A82: 73 | B82: 73 | C82: طالب اولى 164 | D82: 5/1 | E82: 2002-08-22 | F82: 10 - 01 - 19 | G82: مصرى | H82: مسلم | I82: بنين | J82: انتظام | K82: صباحى | M82: 206 | O82: 12 | P82: 14.5 | Q82: 26.5 | S82: 17 | T82: 18.5 | U82: 35.5 | W82: 9 | X82: 8.5 | Y82: 17.5 | AA82: 17.5 | AB82: 20 | AC82: 37.5 | AE82: 4.5 | AF82: 10.5 | AG82: 15 | AJ82: 9 | AK82: 8 | AL82: 9 | AM82: 7 | AN82: 18 | AO82: 15 | AP82: 33 | AR82: 15 | AS82: 17.5 | AT82: 32.5 | AV82: 17 | AW82: 12.5 | AX82: 29.5 | AZ82: 11 | BA82: 13 | BB82: 24 | BD82: 21.5 | BE82: 19 | BF82: 40.5 | BH82: 12 | BI82: 17.5 | BJ82: 29.5 | BL82: 22 | BM82: 16.5 | BN82: 38.5 | BP82: 21.5 | BQ82: 19 | BR82: 40.5 | BS82: 197 | BT82: 400 | BV82: 7 | BW82: 7 | BX82: 14 | BZ82: 9.5 | CA82: 8.5 | CB82: 18 | CC82: دورثان | CD82: فى : سكرتارية اجنبية - | CE82: 1 | CF82: 9 | CG82: 9/3 | CU82: سكرتارية اجنبية - | DC82: 0 | DD82: 1
A83: 74 | B83: 74 | C83: طالب اولى 165 | D83: 5/1 | E83: 2001-12-15 | F83: 17 - 09 - 19 | G83: مصرى | H83: مسلم | I83: بنين | J83: انتظام | K83: صباحى | M83: 207 | O83: 14.5 | P83: 15.5 | Q83: 30 | S83: 17.5 | T83: 19 | U83: 36.5 | W83: 9.5 | X83: 7.5 | Y83: 17 | AA83: 16.5 | AB83: 19 | AC83: 35.5 | AE83: 5.5 | AF83: 9.5 | AG83: 15 | AJ83: 10 | AK83: 7 | AL83: 9 | AM83: 7 | AN83: 19 | AO83: 14 | AP83: 33 | AR83: 17.5 | AS83: 17.5 | AT83: 35 | AV83: 19.5 | AW83: 13 | AX83: 32.5 | AZ83: 10 | BA83: 11.5 | BB83: 21.5 | BD83: 21.5 | BE83: 17.5 | BF83: 39 | BH83: 17.5 | BI83: 17.5 | BJ83: 35 | BL83: 20 | BM83: 17.5 | BN83: 37.5 | BP83: 23.5 | BQ83: 17.5 | BR83: 41 | BS83: 210 | BT83: 408.5 | BV83: 7 | BW83: 9 | BX83: 16 | BZ83: 9.5 | CA83: 8.5 | CB83: 18 | CC83: دورثان | CD83: فى : سكرتارية اجنبية - | CE83: 1 | CF83: 9 | CG83: 9/3 | CU83: سكرتارية اجنبية - | DC83: 0 | DD83: 1
A84: 75 | B84: 75 | C84: طالب اولى 166 | D84: 5/1 | E84: 2002-09-08 | F84: 23 - 00 - 19 | G84: مصرى | H84: مسلم | I84: بنين | J84: انتظام | K84: صباحى | M84: 208 | O84: 12.5 | P84: 12.5 | Q84: 25 | S84: 18.5 | T84: 17.5 | U84: 36 | W84: 9 | X84: 8.5 | Y84: 17.5 | AA84: 16.5 | AB84: 19 | AC84: 35.5 | AE84: 7 | AF84: 9 | AG84: 16 | AJ84: 10 | AK84: 7 | AL84: 9 | AM84: 7 | AN84: 19 | AO84: 14 | AP84: 33 | AR84: 20 | AS84: 17.5 | AT84: 37.5 | AV84: 21 | AW84: 12.5 | AX84: 33.5 | AZ84: 11 | BA84: 15.5 | BB84: 26.5 | BD84: 21.5 | BE84: 17.5 | BF84: 39 | BH84: 17 | BI84: 15 | BJ84: 32 | BL84: 20.5 | BM84: 12.5 | BN84: 33 | BP84: 21.5 | BQ84: 21 | BR84: 42.5 | BS84: 213 | BT84: 407 | BV84: 9 | BW84: 9 | BX84: 18 | BZ84: 9.5 | CA84: 8.5 | CB84: 18 | CC84: ناجح | CD84: و منقول للصف الثانى | CE84: 0 | CF84: 9 | CG84: 9/3 | DC84: 0 | DD84: 0
A85: 76 | B85: 76 | C85: طالب اولى 167 | D85: 5/1 | E85: 2001-08-07 | F85: 25 - 01 - 20 | G85: مصرى | H85: مسلم | I85: بنين | J85: انتظام | K85: صباحى | M85: 209 | O85: 12.5 | P85: 12.5 | Q85: 25 | S85: 16 | T85: 17 | U85: 33 | W85: 9 | X85: 7 | Y85: 16 | AA85: 17.5 | AB85: 12.5 | AC85: 30 | AE85: 7.5 | AF85: 7.5 | AG85: 15 | AJ85: 10 | AK85: 7 | AL85: 9 | AM85: 7 | AN85: 19 | AO85: 14 | AP85: 33 | AR85: 17.5 | AS85: 12.5 | AT85: 30 | AV85: 18 | AW85: 11.5 | AX85: 29.5 | AZ85: 9.5 | BA85: 10.5 | BB85: 20 | BD85: 20 | BE85: 16.5 | BF85: 36.5 | BH85: 19.5 | BI85: 14 | BJ85: 33.5 | BL85: 17 | BM85: 16.5 | BN85: 33.5 | BP85: 22.5 | BQ85: 20 | BR85: 42.5 | BS85: 203.5 | BT85: 377.5 | BV85: 4 | BW85: 9 | BX85: 13 | BZ85: 8 | CA85: 8.5 | CB85: 16.5 | CC85: دورثان | CD85: فى : سكرتارية اجنبية - | CE85: 1 | CF85: 9 | CG85: 9/3 | CU85: سكرتارية اجنبية - | DC85: 0 | DD85: 1
A86: 77 | B86: 77 | C86: طالب اولى 168 | D86: 5/1 | E86: 1982-11-29 | F86: 02 - 10 - 38 | G86: مصرى | H86: مسلم | I86: بنين | J86: انتظام | K86: صباحى | M86: 210 | O86: 12 | P86: 15 | Q86: 27 | S86: 20.5 | T86: 18.5 | U86: 39 | W86: 9 | X86: 9 | Y86: 18 | AA86: 16.5 | AB86: 20 | AC86: 36.5 | AE86: 6.5 | AF86: 10 | AG86: 16.5 | AJ86: 10 | AK86: 8 | AL86: 9 | AM86: 8 | AN86: 19 | AO86: 16 | AP86: 35 | AR86: 20 | AS86: 17.5 | AT86: 37.5 | AV86: 17.5 | AW86: 12.5 | AX86: 30 | AZ86: 11.5 | BA86: 9 | BB86: 20.5 | BD86: 21.5 | BE86: 20 | BF86: 41.5 | BH86: 17 | BI86: 13.5 | BJ86: 30.5 | BL86: 16.5 | BM86: 19 | BN86: 35.5 | BP86: 21.5 | BQ86: 20 | BR86: 41.5 | BS86: 208 | BT86: 409 | BV86: 9 | BW86: 9 | BX86: 18 | BZ86: 9 | CA86: 9 | CB86: 18 | CC86: دورثان | CD86: فى : سكرتارية اجنبية - | CE86: 1 | CF86: 9 | CG86: 9/3 | CU86: سكرتارية اجنبية - | DC86: 0 | DD86: 1
A87: 78 | B87: 78 | C87: طالب اولى 169 | D87: 5/1 | E87: 2002-12-01 | F87: 00 - 10 - 18 | G87: مصرى | H87: مسلم | I87: بنين | J87: انتظام | K87: صباحى | M87: 1 | O87: 7 | P87: 18 | Q87: 25 | S87: 18 | T87: 18 | U87: 36 | W87: 9 | X87: 10.5 | Y87: 19.5 | AA87: 16.5 | AB87: 16.5 | AC87: 33 | AE87: 7 | AF87: 10 | AG87: 17 | AJ87: 10 | AK87: 7 | AL87: 7.5 | AM87: 7 | AN87: 17.5 | AO87: 14 | AP87: 31.5 | AR87: 19.5 | AS87: 15 | AT87: 34.5 | AV87: 18 | AW87: 12.5 | AX87: 30.5 | AZ87: 8.5 | BA87: 12 | BB87: 20.5 | BD87: 21.5 | BE87: 19 | BF87: 40.5 | BH87: 11 | BI87: 16 | BJ87: 27 | BL87: 22.5 | BM87: 14 | BN87: 36.5 | BP87: 18.5 | BQ87: 20 | BR87: 38.5 | BS87: 194 | BT87: 390 | BV87: 5.5 | BW87: 6 | BX87: 11.5 | BZ87: 9 | CA87: 5 | CB87: 14 | CC87: دورثان | CD87: فى : سكرتارية اجنبية - | CE87: 1 | CF87: 9 | CG87: 9/3 | CU87: سكرتارية اجنبية - | DC87: 0 | DD87: 1
A88: 79 | B88: 79 | C88: طالب اولى 17 | D88: 1/1 | E88: 2003-03-17 | F88: 15 - 06 - 18 | G88: مصرى | H88: مسلم | I88: بنين | J88: انتظام | K88: صباحى | M88: 87 | N88: 8 | O88: 12 | P88: 14 | Q88: 34 | R88: 8 | S88: 13.6 | T88: 15.6 | U88: 37.2 | V88: 4.5 | W88: 7.6 | X88: 10 | Y88: 22.1 | Z88: 7 | AA88: 15 | AB88: 15 | AC88: 37 | AD88: 3.5 | AE88: 5.5 | AF88: 8.5 | AG88: 17.5 | AH88: 4 | AI88: 2.5 | AJ88: 7.5 | AK88: 5 | AL88: 7 | AM88: 5 | AN88: 18.5 | AO88: 12.5 | AP88: 31 | AQ88: 8.5 | AR88: 14 | AS88: 15 | AT88: 37.5 | AU88: 8 | AV88: 17.5 | AW88: 13 | AX88: 38.5 | AY88: 9 | AZ88: 7 | BA88: 11.5 | BB88: 27.5 | BC88: 8.5 | BD88: 17 | BE88: 13 | BF88: 38.5 | BG88: 8 | BH88: 12 | BI88: 11.5 | BJ88: 31.5 | BK88: 8.5 | BL88: 16.5 | BM88: 14 | BN88: 39 | BO88: 8 | BP88: 16 | BQ88: 13 | BR88: 37 | BS88: 166.2 | BT88: 428.3 | BU88: 3.5 | BV88: 5.5 | BW88: 5.5 | BX88: 14.5 | BY88: 3 | BZ88: 6.5 | CA88: 6.5 | CB88: 16 | CC88: ناجح | CD88: و منقول للصف الثانى | CE88: 0 | CF88: 1 | CG88: 1/3 | DC88: 0 | DD88: 0
A89: 80 | B89: 80 | C89: طالب اولى 170 | D89: 5/1 | E89: 2001-02-16 | F89: 13 - 07 - 20 | G89: مصرى | H89: مسلم | I89: بنين | J89: انتظام | K89: صباحى | M89: 2 | O89: 17.5 | P89: 17.5 | Q89: 35 | S89: 18.5 | T89: 19 | U89: 37.5 | W89: 9 | X89: 8.5 | Y89: 17.5 | AA89: 17.5 | AB89: 15.5 | AC89: 33 | AE89: 7 | AF89: 9 | AG89: 16 | AJ89: 10 | AK89: 8 | AL89: 7.5 | AM89: 7 | AN89: 17.5 | AO89: 15 | AP89: 32.5 | AR89: 20 | AS89: 16.5 | AT89: 36.5 | AV89: 18 | AW89: 14.5 | AX89: 32.5 | AZ89: 11.5 | BA89: 15 | BB89: 26.5 | BD89: 21.5 | BE89: 19 | BF89: 40.5 | BH89: 20 | BI89: 16 | BJ89: 36 | BL89: 23 | BM89: 11 | BN89: 34 | BP89: 21.5 | BQ89: 19 | BR89: 40.5 | BS89: 223 | BT89: 418 | BV89: 7.5 | BW89: 7.5 | BX89: 15 | BZ89: 9 | CA89: 7.5 | CB89: 16.5 | CC89: ناجح | CD89: و منقول للصف الثانى | CE89: 0 | CF89: 9 | CG89: 9/3 | DC89: 0 | DD89: 0
A90: 81 | B90: 81 | C90: طالب اولى 171 | D90: 5/1 | E90: 2002-10-01 | F90: 00 - 00 - 19 | G90: مصرى | H90: مسلم | I90: بنين | J90: انتظام | K90: صباحى | M90: 3 | O90: 14 | P90: 20 | Q90: 34 | S90: 16 | T90: 16 | U90: 32 | W90: 10 | X90: 9 | Y90: 19 | AA90: 16.5 | AB90: 17.5 | AC90: 34 | AE90: 7 | AF90: 12 | AG90: 19 | AJ90: 10 | AK90: 8 | AL90: 9 | AM90: 7 | AN90: 19 | AO90: 15 | AP90: 34 | AR90: 17.5 | AS90: 17.5 | AT90: 35 | AV90: 16.5 | AW90: 15 | AX90: 31.5 | AZ90: 9.5 | BA90: 14.5 | BB90: 24 | BD90: 21.5 | BE90: 19 | BF90: 40.5 | BH90: 17.5 | BI90: 17.5 | BJ90: 35 | BL90: 16.5 | BM90: 17.5 | BN90: 34 | BP90: 21.5 | BQ90: 16.5 | BR90: 38 | BS90: 202 | BT90: 410 | BV90: 8 | BW90: 8.5 | BX90: 16.5 | BZ90: 7.5 | CA90: 7.5 | CB90: 15 | CC90: دورثان | CD90: فى : سكرتارية اجنبية - | CE90: 1 | CF90: 9 | CG90: 9/3 | CU90: سكرتارية اجنبية - | DC90: 0 | DD90: 1
A91: 82 | B91: 82 | C91: طالب اولى 172 | D91: 5/1 | E91: 2002-07-14 | F91: 18 - 02 - 19 | G91: مصرى | H91: مسلم | I91: بنين | J91: انتظام | K91: صباحى | M91: 4 | O91: 17.5 | P91: 20 | Q91: 37.5 | S91: 12.5 | T91: 14.5 | U91: 27 | W91: 10 | X91: 8.5 | Y91: 18.5 | AA91: 16.5 | AB91: 16.5 | AC91: 33 | AE91: 7.5 | AF91: 12 | AG91: 19.5 | AJ91: 10 | AK91: 8 | AL91: 9 | AM91: 7 | AN91: 19 | AO91: 15 | AP91: 34 | AR91: 20 | AS91: 14 | AT91: 34 | AV91: 16.5 | AW91: 15 | AX91: 31.5 | AZ91: 6 | BA91: 8 | BB91: 14 | BD91: 21.5 | BE91: 10 | BF91: 31.5 | BH91: 14 | BI91: 18 | BJ91: 32 | BL91: 15.5 | BM91: 16.5 | BN91: 32 | BP91: 21.5 | BQ91: 17.5 | BR91: 39 | BS91: 197 | BT91: 383.5 | BV91: 6.5 | BW91: 8 | BX91: 14.5 | BZ91: 8 | CA91: 5.5 | CB91: 13.5 | CC91: دورثان | CD91: فى : سكرتارية اجنبية - | CE91: 1 | CF91: 10 | CG91: 10/3 | CU91: سكرتارية اجنبية - | DC91: 0 | DD91: 1
A92: 83 | B92: 83 | C92: طالب اولى 173 | D92: 5/1 | E92: 2002-11-14 | F92: 17 - 10 - 18 | G92: مصرى | H92: مسلم | I92: بنين | J92: انتظام | K92: صباحى | M92: 5 | O92: 14.5 | P92: 15 | Q92: 29.5 | S92: 16 | T92: 16 | U92: 32 | W92: 9.5 | X92: 8.5 | Y92: 18 | AA92: 16.5 | AB92: 16.5 | AC92: 33 | AE92: 6.5 | AF92: 8.5 | AG92: 15 | AJ92: 10 | AK92: 7 | AL92: 9 | AM92: 7 | AN92: 19 | AO92: 14 | AP92: 33 | AR92: 17.5 | AS92: 19 | AT92: 36.5 | AV92: 16.5 | AW92: 15 | AX92: 31.5 | AZ92: 8.5 | BA92: 11.5 | BB92: 20 | BD92: 20 | BE92: 15 | BF92: 35 | BH92: 10.5 | BI92: 15 | BJ92: 25.5 | BL92: 15 | BM92: 19 | BN92: 34 | BP92: 23.5 | BQ92: 17.5 | BR92: 41 | BS92: 191.5 | BT92: 384 | BV92: 7 | BW92: 9 | BX92: 16 | BZ92: 8 | CA92: 5 | CB92: 13 | CC92: دورثان | CD92: فى : سكرتارية اجنبية - | CE92: 1 | CF92: 10 | CG92: 10/3 | CU92: سكرتارية اجنبية - | DC92: 0 | DD92: 1
A93: 84 | B93: 84 | C93: طالب اولى 174 | D93: 5/1 | E93: 2002-10-19 | F93: 13 - 11 - 18 | G93: مصرى | H93: مسلم | I93: بنين | J93: انتظام | K93: صباحى | M93: 6 | O93: 9 | P93: 16 | Q93: 25 | S93: 14 | T93: 14.5 | U93: 28.5 | W93: 10 | X93: 9 | Y93: 19 | AA93: 16.5 | AB93: 16.5 | AC93: 33 | AE93: 8 | AF93: 7 | AG93: 15 | AJ93: 10 | AK93: 8 | AL93: 9 | AM93: 7 | AN93: 19 | AO93: 15 | AP93: 34 | AR93: 20 | AS93: 16.5 | AT93: 36.5 | AV93: 12 | AW93: 14.5 | AX93: 26.5 | AZ93: 4.5 | BA93: 4 | BB93: 8.5 | BD93: 21.5 | BE93: 17.5 | BF93: 39 | BH93: 14 | BI93: 18 | BJ93: 32 | BL93: 16.5 | BM93: 19 | BN93: 35.5 | BP93: 21.5 | BQ93: 14 | BR93: 35.5 | BS93: 185.5 | BT93: 368 | BV93: 6.5 | BW93: 6.5 | BX93: 13 | BZ93: 7.5 | CA93: 5.5 | CB93: 13 | CC93: دورثان | CD93: فى : سكرتارية اجنبية - | CE93: 1 | CF93: 10 | CG93: 10/3 | CU93: سكرتارية اجنبية - | DC93: 0 | DD93: 1
A94: 85 | B94: 85 | C94: طالب اولى 175 | D94: 5/1 | E94: 1983-01-30 | F94: 02 - 08 - 38 | G94: مصرى | H94: مسلم | I94: بنين | J94: انتظام | K94: صباحى | M94: 7 | O94: 15.5 | P94: 22.5 | Q94: 38 | S94: 15 | T94: 16 | U94: 31 | W94: 10.5 | X94: 10 | Y94: 20.5 | AA94: 19 | AB94: 20 | AC94: 39 | AE94: 7.5 | AF94: 9.5 | AG94: 17 | AJ94: 10 | AK94: 7 | AL94: 9 | AM94: 7 | AN94: 19 | AO94: 14 | AP94: 33 | AR94: 20 | AS94: 17.5 | AT94: 37.5 | AV94: 14 | AW94: 14 | AX94: 28 | AZ94: 12 | BA94: 12 | BB94: 24 | BD94: 21.5 | BE94: 20 | BF94: 41.5 | BH94: 19.5 | BI94: 21 | BJ94: 40.5 | BL94: 16.5 | BM94: 17.5 | BN94: 34 | BP94: 22.5 | BQ94: 22.5 | BR94: 45 | BS94: 210.5 | BT94: 429 | BV94: 8 | BW94: 9.5 | BX94: 17.5 | BZ94: 9.5 | CA94: 8 | CB94: 17.5 | CC94: دورثان | CD94: فى : سكرتارية اجنبية - | CE94: 1 | CF94: 10 | CG94: 10/3 | CU94: سكرتارية اجنبية - | DC94: 0 | DD94: 1
A95: 86 | B95: 86 | C95: طالب اولى 176 | D95: 5/1 | E95: 2001-04-25 | F95: 06 - 05 - 20 | G95: مصرى | H95: مسلم | I95: بنين | J95: انتظام | K95: صباحى | M95: 8 | O95: 11.5 | P95: 15.5 | Q95: 27 | S95: 15.5 | T95: 14.5 | U95: 30 | W95: 10.5 | X95: 9 | Y95: 19.5 | AA95: 16.5 | AB95: 18.5 | AC95: 35 | AE95: 6.5 | AF95: 9 | AG95: 15.5 | AJ95: 10 | AK95: 7 | AL95: 9 | AM95: 7 | AN95: 19 | AO95: 14 | AP95: 33 | AR95: 20 | AS95: 17.5 | AT95: 37.5 | AV95: 14.5 | AW95: 15 | AX95: 29.5 | AZ95: 12.5 | BA95: 13.5 | BB95: 26 | BD95: 19 | BE95: 17.5 | BF95: 36.5 | BH95: 12 | BI95: 19.5 | BJ95: 31.5 | BL95: 16.5 | BM95: 19 | BN95: 35.5 | BP95: 22.5 | BQ95: 19 | BR95: 41.5 | BS95: 194.5 | BT95: 398 | BV95: 8 | BW95: 9.5 | BX95: 17.5 | BZ95: 7.5 | CA95: 5 | CB95: 12.5 | CC95: ناجح | CD95: و منقول للصف الثانى | CE95: 0 | CF95: 10 | CG95: 10/3 | DC95: 0 | DD95: 0
A96: 87 | B96: 87 | C96: طالب اولى 177 | D96: 5/1 | E96: 2001-12-01 | F96: 00 - 10 - 19 | G96: مصرى | H96: مسلم | I96: بنين | J96: انتظام | K96: صباحى | M96: 9 | O96: 13 | P96: 16 | Q96: 29 | S96: 14 | T96: 13.5 | U96: 27.5 | W96: 9.5 | X96: 8 | Y96: 17.5 | AA96: 16.5 | AB96: غ | AC96: غ | AE96: 5.5 | AF96: 9.5 | AG96: 15 | AJ96: 10 | AK96: 7 | AL96: 9 | AM96: 7 | AN96: 19 | AO96: 14 | AP96: 33 | AR96: 20 | AS96: غ | AT96: غ | AV96: 13 | AW96: 12.5 | AX96: 25.5 | AZ96: 6.5 | BA96: 13.5 | BB96: 20 | BD96: 21.5 | BE96: 17.5 | BF96: 39 | BH96: 16.5 | BI96: 20 | BJ96: 36.5 | BL96: 15.5 | BM96: 19 | BN96: 34.5 | BP96: 22.5 | BQ96: 20 | BR96: 42.5 | BS96: 191 | BT96: 320 | BV96: 8 | BW96: 9.5 | BX96: 17.5 | BZ96: 7 | CA96: 5.5 | CB96: 12.5 | CC96: راسب | CD96: و له حق الاعادة | CE96: 3 | CF96: 10 | CG96: 10/3 | CP96: جغرافيا - | CS96: اقتصاد - | CU96: سكرتارية اجنبية - | DC96: 0 | DD96: 3
A97: 88 | B97: 88 | C97: طالب اولى 178 | D97: 5/1 | E97: 2002-11-08 | F97: 23 - 10 - 18 | G97: مصرى | H97: مسلم | I97: بنين | J97: انتظام | K97: صباحى | M97: 10 | O97: 21.5 | P97: 20 | Q97: 41.5 | S97: 21.5 | T97: 20 | U97: 41.5 | W97: 8.5 | X97: 14.5 | Y97: 23 | AA97: 12.5 | AB97: 20 | AC97: 32.5 | AE97: 10 | AF97: 14.5 | AG97: 24.5 | AJ97: 9 | AK97: 7 | AL97: 11.5 | AM97: 7 | AN97: 20.5 | AO97: 14 | AP97: 34.5 | AR97: 17.5 | AS97: 19 | AT97: 36.5 | AV97: 23.5 | AW97: 22.5 | AX97: 46 | AZ97: 19 | BA97: 22.5 | BB97: 41.5 | BD97: 19 | BE97: 19 | BF97: 38 | BH97: 8.5 | BI97: 25 | BJ97: 33.5 | BL97: 15 | BM97: 21.5 | BN97: 36.5 | BP97: 18.5 | BQ97: 25 | BR97: 43.5 | BS97: 211 | BT97: 473 | BV97: 7.5 | BW97: 9 | BX97: 16.5 | BZ97: 8 | CA97: 7.5 | CB97: 15.5 | CC97: ناجح | CD97: و منقول للصف الثانى | CE97: 0 | CF97: 10 | CG97: 10/3 | DC97: 0 | DD97: 0
A98: 89 | B98: 89 | C98: طالب اولى 179 | D98: 5/1 | E98: 2000-03-01 | F98: 00 - 07 - 21 | G98: مصرى | H98: مسلم | I98: بنين | J98: انتظام | K98: صباحى | M98: 11 | O98: 11.5 | P98: 15 | Q98: 26.5 | S98: 10.5 | T98: 15.5 | U98: 26 | W98: 9.5 | X98: 8.5 | Y98: 18 | AA98: 15 | AB98: 16.5 | AC98: 31.5 | AE98: 6.5 | AF98: 8.5 | AG98: 15 | AJ98: 9 | AK98: 7 | AL98: 9 | AM98: 7 | AN98: 18 | AO98: 14 | AP98: 32 | AR98: 19 | AS98: 16.5 | AT98: 35.5 | AV98: 14.5 | AW98: 14 | AX98: 28.5 | AZ98: 6.5 | BA98: 1.5 | BB98: 8 | BD98: 19 | BE98: 9 | BF98: 28 | BH98: 11 | BI98: 9.5 | BJ98: 20.5 | BL98: 15.5 | BM98: 17.5 | BN98: 33 | BP98: 22.5 | BQ98: 15 | BR98: 37.5 | BS98: 177 | BT98: 340 | BV98: 5 | BW98: 9.5 | BX98: 14.5 | BZ98: 7 | CA98: 3.5 | CB98: 10.5 | CC98: دورثان | CD98: فى : سكرتارية اجنبية - محاسبة مالية - | CE98: 2 | CF98: 10 | CG98: 10/3 | CU98: سكرتارية اجنبية - | CW98: محاسبة مالية - | DC98: 0 | DD98: 2
A99: 90 | B99: 90 | C99: طالب اولى 18 | D99: 1/1 | E99: 2003-12-01 | F99: 00 - 10 - 17 | G99: مصرى | H99: مسلم | I99: بنين | J99: انتظام | K99: صباحى | M99: 88 | N99: 8 | O99: 14.5 | P99: 16.5 | Q99: 39 | R99: 8 | S99: 15.6 | T99: 14.8 | U99: 38.4 | V99: 4.5 | W99: 6.8 | X99: 9.6 | Y99: 20.9 | Z99: 7 | AA99: 14 | AB99: 15 | AC99: 36 | AD99: 3.5 | AE99: 7 | AF99: 9 | AG99: 19.5 | AH99: 4 | AI99: 2.5 | AJ99: 8 | AK99: 5 | AL99: 7 | AM99: 6 | AN99: 19 | AO99: 13.5 | AP99: 32.5 | AQ99: 8.5 | AR99: 16 | AS99: 15 | AT99: 39.5 | AU99: 8 | AV99: 14 | AW99: 13 | AX99: 35 | AY99: 9 | AZ99: 8 | BA99: 11 | BB99: 28 | BC99: 9 | BD99: 15 | BE99: 14 | BF99: 38 | BG99: 8 | BH99: 12.5 | BI99: 13 | BJ99: 33.5 | BK99: 8.5 | BL99: 17 | BM99: 16 | BN99: 41.5 | BO99: 8 | BP99: 16 | BQ99: 16 | BR99: 40 | BS99: 169.4 | BT99: 441.8 | BU99: 3.5 | BV99: 7 | BW99: 6.5 | BX99: 17 | BY99: 3 | BZ99: 6 | CA99: 6.5 | CB99: 15.5 | CC99: ناجح | CD99: و منقول للصف الثانى | CE99: 0 | CF99: 1 | CG99: 1/3 | DC99: 0 | DD99: 0
A100: 91 | B100: 91 | C100: طالب اولى 180 | D100: 5/1 | E100: 1998-04-19 | F100: 12 - 05 - 23 | G100: مصرى | H100: مسلم | I100: بنين | J100: انتظام | K100: صباحى | M100: 12 | O100: 10 | P100: 16 | Q100: 26 | S100: 14 | T100: 12 | U100: 26 | W100: 9.5 | X100: 7.5 | Y100: 17 | AA100: 16.5 | AB100: 15 | AC100: 31.5 | AE100: 7 | AF100: 8.5 | AG100: 15.5 | AJ100: 10 | AK100: 8 | AL100: 9 | AM100: 7 | AN100: 19 | AO100: 15 | AP100: 34 | AR100: 16.5 | AS100: 17.5 | AT100: 34 | AV100: 12.5 | AW100: 14 | AX100: 26.5 | AZ100: 6.5 | BA100: 13.5 | BB100: 20 | BD100: 19 | BE100: 19 | BF100: 38 | BH100: 7 | BI100: 19.5 | BJ100: 26.5 | BL100: 16.5 | BM100: 19 | BN100: 35.5 | BP100: 22.5 | BQ100: 16.5 | BR100: 39 | BS100: 175.5 | BT100: 369.5 | BV100: 2.5 | BW100: 9 | BX100: 11.5 | BZ100: 7 | CA100: 8 | CB100: 15 | CC100: دورثان | CD100: فى : سكرتارية اجنبية - | CE100: 1 | CF100: 10 | CG100: 10/3 | CU100: سكرتارية اجنبية - | DC100: 0 | DD100: 1
A101: 92 | B101: 92 | C101: طالب اولى 181 | D101: 5/1 | E101: 1994-12-28 | F101: 04 - 09 - 26 | G101: مصرى | H101: مسلم | I101: بنين | J101: انتظام | K101: صباحى | M101: 13 | O101: 9.5 | P101: 18 | Q101: 27.5 | S101: 11.5 | T101: 15 | U101: 26.5 | W101: 10.5 | X101: 9.5 | Y101: 20 | AA101: 16.5 | AB101: 16.5 | AC101: 33 | AE101: 7 | AF101: 10.5 | AG101: 17.5 | AJ101: 10 | AK101: 7 | AL101: 9 | AM101: 7 | AN101: 19 | AO101: 14 | AP101: 33 | AR101: 19 | AS101: 17.5 | AT101: 36.5 | AV101: 15.5 | AW101: 14.5 | AX101: 30 | AZ101: 11.5 | BA101: 11.5 | BB101: 23 | BD101: 20 | BE101: 19 | BF101: 39 | BH101: 9.5 | BI101: 19 | BJ101: 28.5 | BL101: 15.5 | BM101: 16.5 | BN101: 32 | BP101: 22.5 | BQ101: 20 | BR101: 42.5 | BS101: 185.5 | BT101: 389 | BV101: 9 | BW101: 9 | BX101: 18 | BZ101: 9 | CA101: 9 | CB101: 18 | CC101: دورثان | CD101: فى : سكرتارية اجنبية - | CE101: 1 | CF101: 10 | CG101: 10/3 | CU101: سكرتارية اجنبية - | DC101: 0 | DD101: 1
A102: 93 | B102: 93 | C102: طالب اولى 182 | D102: 5/1 | E102: 2000-02-26 | F102: 04 - 07 - 21 | G102: مصرى | H102: مسلم | I102: بنين | J102: انتظام | K102: صباحى | M102: 14 | O102: 12.5 | P102: 16 | Q102: 28.5 | S102: 17.5 | T102: 16.5 | U102: 34 | W102: 9.5 | X102: 9 | Y102: 18.5 | AA102: 16.5 | AB102: 18.5 | AC102: 35 | AE102: 7.5 | AF102: 12 | AG102: 19.5 | AJ102: 10 | AK102: 8 | AL102: 9 | AM102: 7 | AN102: 19 | AO102: 15 | AP102: 34 | AR102: 20 | AS102: 17.5 | AT102: 37.5 | AV102: 17 | AW102: 15 | AX102: 32 | AZ102: 11 | BA102: 12 | BB102: 23 | BD102: 20 | BE102: 0 | BF102: 20 | BH102: 17.5 | BI102: 14 | BJ102: 31.5 | BL102: 16.5 | BM102: 20 | BN102: 36.5 | BP102: 22.5 | BQ102: 16.5 | BR102: 39 | BS102: 206 | BT102: 389 | BV102: 6 | BW102: 9.5 | BX102: 15.5 | BZ102: 7.5 | CA102: 2.5 | CB102: 10 | CC102: دورثان | CD102: فى : سكرتارية اجنبية - ادارة اعمال - | CE102: 2 | CF102: 10 | CG102: 10/3 | CU102: سكرتارية اجنبية - | CV102: ادارة اعمال - | DC102: 0 | DD102: 2
A103: 94 | B103: 94 | C103: طالب اولى 183 | D103: 5/1 | E103: 2001-10-01 | F103: 00 - 00 - 20 | G103: مصرى | H103: مسلم | I103: بنين | J103: انتظام | K103: صباحى | M103: 15 | O103: 14 | P103: 21 | Q103: 35 | S103: 17.5 | T103: 16.5 | U103: 34 | W103: 11.5 | X103: 10 | Y103: 21.5 | AA103: 16.5 | AB103: 18.5 | AC103: 35 | AE103: 7.5 | AF103: 13.5 | AG103: 21 | AJ103: 10 | AK103: 8 | AL103: 9 | AM103: 7 | AN103: 19 | AO103: 15 | AP103: 34 | AR103: 20 | AS103: 17.5 | AT103: 37.5 | AV103: 17 | AW103: 14.5 | AX103: 31.5 | AZ103: 11 | BA103: 15 | BB103: 26 | BD103: 20 | BE103: 16.5 | BF103: 36.5 | BH103: 19 | BI103: 18 | BJ103: 37 | BL103: 16.5 | BM103: 20 | BN103: 36.5 | BP103: 22.5 | BQ103: 16.5 | BR103: 39 | BS103: 211 | BT103: 424.5 | BV103: 9 | BW103: 9.5 | BX103: 18.5 | BZ103: 7.5 | CA103: 9.5 | CB103: 17 | CC103: ناجح | CD103: و منقول للصف الثانى | CE103: 0 | CF103: 10 | CG103: 10/3 | DC103: 0 | DD103: 0
A104: 95 | B104: 95 | C104: طالب اولى 184 | D104: 5/1 | E104: 2001-07-20 | F104: 12 - 02 - 20 | G104: مصرى | H104: مسلم | I104: بنين | J104: انتظام | K104: صباحى | M104: 16 | O104: 11.5 | P104: 14 | Q104: 25.5 | S104: 11 | T104: 9 | U104: 20 | W104: 9.5 | X104: 8.5 | Y104: 18 | AA104: 15 | AB104: 18.5 | AC104: 33.5 | AE104: 7.5 | AF104: 10.5 | AG104: 18 | AJ104: 10 | AK104: 8 | AL104: 9 | AM104: 7 | AN104: 19 | AO104: 15 | AP104: 34 | AR104: 17.5 | AS104: 17.5 | AT104: 35 | AV104: 12 | AW104: 14 | AX104: 26 | AZ104: 8.5 | BA104: 7.5 | BB104: 16 | BD104: 20 | BE104: 14 | BF104: 34 | BH104: 5 | BI104: 9.5 | BJ104: 14.5 | BL104: 16.5 | BM104: 19 | BN104: 35.5 | BP104: 22.5 | BQ104: 20 | BR104: 42.5 | BS104: 174.5 | BT104: 352.5 | BV104: 7 | BW104: 9 | BX104: 16 | BZ104: 7.5 | CA104: 5.5 | CB104: 13 | CC104: راسب | CD104: و له حق الاعادة | CE104: 3 | CF104: 10 | CG104: 10/3 | CN104: لغة انجليزية - | CU104: سكرتارية اجنبية - | CW104: محاسبة مالية - | DC104: 0 | DD104: 3
A105: 96 | B105: 96 | C105: طالب اولى 185 | D105: 5/1 | E105: 1987-09-06 | F105: 25 - 00 - 34 | G105: مصرى | H105: مسلم | I105: بنين | J105: انتظام | K105: صباحى | M105: 17 | O105: 12.5 | P105: 21 | Q105: 33.5 | S105: 17.5 | T105: 14.5 | U105: 32 | W105: 10 | X105: 9.5 | Y105: 19.5 | AA105: 16.5 | AB105: 18.5 | AC105: 35 | AE105: 7 | AF105: 12.5 | AG105: 19.5 | AJ105: 10 | AK105: 8 | AL105: 9 | AM105: 8 | AN105: 19 | AO105: 16 | AP105: 35 | AR105: 17.5 | AS105: 17.5 | AT105: 35 | AV105: 15 | AW105: 15.5 | AX105: 30.5 | AZ105: 12 | BA105: 17 | BB105: 29 | BD105: 21.5 | BE105: 19 | BF105: 40.5 | BH105: 17 | BI105: 19 | BJ105: 36 | BL105: 17 | BM105: 19 | BN105: 36 | BP105: 21.5 | BQ105: 20 | BR105: 41.5 | BS105: 203 | BT105: 423 | BV105: 9 | BW105: 9 | BX105: 18 | BZ105: 8 | CA105: 9.5 | CB105: 17.5 | CC105: ناجح | CD105: و منقول للصف الثانى | CE105: 0 | CF105: 10 | CG105: 10/3 | DC105: 0 | DD105: 0
A106: 97 | B106: 97 | C106: طالب اولى 186 | D106: 5/1 | E106: 2000-05-29 | F106: 03 - 04 - 21 | G106: مصرى | H106: مسلم | I106: بنين | J106: انتظام | K106: صباحى | M106: 18 | O106: 12.5 | P106: 19.5 | Q106: 32 | S106: 16 | T106: 13.5 | U106: 29.5 | W106: 11 | X106: 9 | Y106: 20 | AA106: 16.5 | AB106: 16.5 | AC106: 33 | AE106: 8 | AF106: 13.5 | AG106: 21.5 | AJ106: 10 | AK106: 8 | AL106: 9 | AM106: 7 | AN106: 19 | AO106: 15 | AP106: 34 | AR106: 20 | AS106: 19 | AT106: 39 | AV106: 15.5 | AW106: 16.5 | AX106: 32 | AZ106: 8.5 | BA106: 15 | BB106: 23.5 | BD106: 21.5 | BE106: 20 | BF106: 41.5 | BH106: 14.5 | BI106: 19 | BJ106: 33.5 | BL106: 15.5 | BM106: 19 | BN106: 34.5 | BP106: 22.5 | BQ106: 19 | BR106: 41.5 | BS106: 200 | BT106: 415.5 | BV106: 6.5 | BW106: 9 | BX106: 15.5 | BZ106: 8 | CA106: 5.5 | CB106: 13.5 | CC106: دورثان | CD106: فى : سكرتارية اجنبية - | CE106: 1 | CF106: 10 | CG106: 10/3 | CU106: سكرتارية اجنبية - | DC106: 0 | DD106: 1
A107: 98 | B107: 98 | C107: طالب اولى 187 | D107: 5/1 | E107: 2002-06-24 | F107: 07 - 03 - 19 | G107: مصرى | H107: مسلم | I107: بنين | J107: انتظام | K107: صباحى | M107: 19 | O107: 12 | P107: 17.5 | Q107: 29.5 | S107: 14.5 | T107: 14.5 | U107: 29 | W107: 10 | X107: 8.5 | Y107: 18.5 | AA107: 16.5 | AB107: 16.5 | AC107: 33 | AE107: 6.5 | AF107: 11.5 | AG107: 18 | AJ107: 10 | AK107: 7 | AL107: 9 | AM107: 7 | AN107: 19 | AO107: 14 | AP107: 33 | AR107: 20 | AS107: 16.5 | AT107: 36.5 | AV107: 14 | AW107: 14 | AX107: 28 | AZ107: 8.5 | BA107: 11.5 | BB107: 20 | BD107: 21.5 | BE107: 17.5 | BF107: 39 | BH107: 7.5 | BI107: 17.5 | BJ107: 25 | BL107: 16.5 | BM107: 17.5 | BN107: 34 | BP107: 22.5 | BQ107: 16.5 | BR107: 39 | BS107: 187 | BT107: 382.5 | BV107: 7 | BW107: 9 | BX107: 16 | BZ107: 8 | CA107: 6.5 | CB107: 14.5 | CC107: دورثان | CD107: فى : سكرتارية اجنبية - | CE107: 1 | CF107: 10 | CG107: 10/3 | CU107: سكرتارية اجنبية - | DC107: 0 | DD107: 1
A108: 99 | B108: 99 | C108: طالب اولى 188 | D108: 5/1 | E108: 2000-10-15 | F108: 17 - 11 - 20 | G108: مصرى | H108: مسلم | I108: بنين | J108: انتظام | K108: صباحى | M108: 20 | O108: 9.5 | P108: 19 | Q108: 28.5 | S108: 15 | T108: 16 | U108: 31 | W108: 10 | X108: 7.5 | Y108: 17.5 | AA108: 16.5 | AB108: 16.5 | AC108: 33 | AE108: 5 | AF108: 10 | AG108: 15 | AJ108: 10 | AK108: 7 | AL108: 9 | AM108: 7 | AN108: 19 | AO108: 14 | AP108: 33 | AR108: 20 | AS108: 14 | AT108: 34 | AV108: 15 | AW108: 14 | AX108: 29 | AZ108: 9.5 | BA108: 11 | BB108: 20.5 | BD108: 21.5 | BE108: 10 | BF108: 31.5 | BH108: 4.5 | BI108: 11.5 | BJ108: 16 | BL108: 17 | BM108: 17.5 | BN108: 34.5 | BP108: 21.5 | BQ108: 16.5 | BR108: 38 | BS108: 182 | BT108: 361.5 | BV108: 7.5 | BW108: 9 | BX108: 16.5 | BZ108: 7.5 | CA108: 5.5 | CB108: 13 | CC108: دورثان | CD108: فى : سكرتارية اجنبية - محاسبة مالية - | CE108: 2 | CF108: 10 | CG108: 10/3 | CU108: سكرتارية اجنبية - | CW108: محاسبة مالية - | DC108: 0 | DD108: 2
A109: 100 | B109: 100 | C109: طالب اولى 189 | D109: 5/1 | E109: 2002-11-30 | F109: 01 - 10 - 18 | G109: مصرى | H109: مسلم | I109: بنين | J109: انتظام | K109: صباحى | M109: 21 | O109: 16 | P109: 19.5 | Q109: 35.5 | S109: 22 | T109: 15.5 | U109: 37.5 | W109: 8 | X109: 12 | Y109: 20 | AA109: 17.5 | AB109: 17.5 | AC109: 35 | AE109: 8 | AF109: 11.5 | AG109: 19.5 | AJ109: 10 | AK109: 7 | AL109: 9 | AM109: 7 | AN109: 19 | AO109: 14 | AP109: 33 | AR109: 20 | AS109: 19 | AT109: 39 | AV109: 17.5 | AW109: 16.5 | AX109: 34 | AZ109: 15 | BA109: 9.5 | BB109: 24.5 | BD109: 21.5 | BE109: 13.5 | BF109: 35 | BH109: 14.5 | BI109: 13.5 | BJ109: 28 | BL109: 15 | BM109: 15 | BN109: 30 | BP109: 21.5 | BQ109: 17.5 | BR109: 39 | BS109: 213.5 | BT109: 410 | BV109: 5 | BW109: 9 | BX109: 14 | BZ109: 9 | CA109: 9 | CB109: 18 | CC109: دورثان | CD109: فى : سكرتارية اجنبية - | CE109: 1 | CF109: 10 | CG109: 10/3 | CU109: سكرتارية اجنبية - | DC109: 0 | DD109: 1
A110: 101 | B110: 101 | C110: طالب اولى 19 | D110: 1/1 | E110: 2003-02-01 | F110: 00 - 08 - 18 | G110: مصرى | H110: مسلم | I110: بنين | J110: انتظام | K110: صباحى | M110: 89 | N110: 8 | O110: 13.5 | P110: 12 | Q110: 33.5 | R110: 8 | S110: 14.4 | T110: 15.2 | U110: 37.6 | V110: 5.5 | W110: 6.4 | X110: 9.6 | Y110: 21.5 | Z110: 7 | AA110: 15 | AB110: 15 | AC110: 37 | AD110: 3.5 | AE110: 5 | AF110: 9.5 | AG110: 18 | AH110: 4 | AI110: 3 | AJ110: 8.5 | AK110: 5 | AL110: 7 | AM110: 5 | AN110: 19.5 | AO110: 13 | AP110: 32.5 | AQ110: 8.5 | AR110: 16 | AS110: 14 | AT110: 38.5 | AU110: 8 | AV110: 14.5 | AW110: 13 | AX110: 35.5 | AY110: 9 | AZ110: 6.5 | BA110: 10 | BB110: 25.5 | BC110: 9 | BD110: 17 | BE110: 14 | BF110: 40 | BG110: 8 | BH110: 13.5 | BI110: 14.5 | BJ110: 36 | BK110: 8.5 | BL110: 17.5 | BM110: 16 | BN110: 42 | BO110: 8 | BP110: 16 | BQ110: 13 | BR110: 37 | BS110: 168.8 | BT110: 434.6 | BU110: 3.5 | BV110: 6 | BW110: 7.5 | BX110: 17 | BY110: 3 | BZ110: 7 | CA110: 7 | CB110: 17 | CC110: ناجح | CD110: و منقول للصف الثانى | CE110: 0 | CF110: 1 | CG110: 1/3 | DC110: 0 | DD110: 0
A111: 102 | B111: 102 | C111: طالب اولى 190 | D111: 5/1 | E111: 2001-12-05 | F111: 27 - 09 - 19 | G111: مصرى | H111: مسلم | I111: بنين | J111: انتظام | K111: صباحى | M111: 22 | O111: 14 | P111: 12.5 | Q111: 26.5 | S111: 18.5 | T111: 15 | U111: 33.5 | W111: 8 | X111: 12 | Y111: 20 | AA111: 17.5 | AB111: 16.5 | AC111: 34 | AE111: 8 | AF111: 11.5 | AG111: 19.5 | AJ111: 10 | AK111: 7 | AL111: 9 | AM111: 7 | AN111: 19 | AO111: 14 | AP111: 33 | AR111: 17.5 | AS111: 15 | AT111: 32.5 | AV111: 14 | AW111: 15.5 | AX111: 29.5 | AZ111: 12 | BA111: 10.5 | BB111: 22.5 | BD111: 16.5 | BE111: 15 | BF111: 31.5 | BH111: 17 | BI111: 16 | BJ111: 33 | BL111: 17 | BM111: 15 | BN111: 32 | BP111: 22.5 | BQ111: 17.5 | BR111: 40 | BS111: 199.5 | BT111: 387.5 | BV111: 5.5 | BW111: 9 | BX111: 14.5 | BZ111: 8 | CA111: 6.5 | CB111: 14.5 | CC111: دورثان | CD111: فى : سكرتارية اجنبية - | CE111: 1 | CF111: 10 | CG111: 10/3 | CU111: سكرتارية اجنبية - | DC111: 0 | DD111: 1
A112: 103 | B112: 103 | C112: طالب اولى 191 | D112: 5/1 | E112: 2000-01-13 | F112: 19 - 08 - 21 | G112: مصرى | H112: مسلم | I112: بنين | J112: انتظام | K112: صباحى | M112: 23 | O112: 15 | P112: 16.5 | Q112: 31.5 | S112: 20 | T112: 17 | U112: 37 | W112: 8.5 | X112: 11.5 | Y112: 20 | AA112: 17.5 | AB112: 15 | AC112: 32.5 | AE112: 7.5 | AF112: 10.5 | AG112: 18 | AJ112: 10 | AK112: 7 | AL112: 9 | AM112: 7 | AN112: 19 | AO112: 14 | AP112: 33 | AR112: 20 | AS112: 14 | AT112: 34 | AV112: 15 | AW112: 14.5 | AX112: 29.5 | AZ112: 14 | BA112: 10.5 | BB112: 24.5 | BD112: 21.5 | BE112: 15 | BF112: 36.5 | BH112: 13.5 | BI112: 14.5 | BJ112: 28 | BL112: 22 | BM112: 18.5 | BN112: 40.5 | BP112: 16.5 | BQ112: 17.5 | BR112: 34 | BS112: 208 | BT112: 399 | BV112: 7 | BW112: 9 | BX112: 16 | BZ112: 9.5 | CA112: 7.5 | CB112: 17 | CC112: دورثان | CD112: فى : سكرتارية اجنبية - | CE112: 1 | CF112: 11 | CG112: 1/2 | CU112: سكرتارية اجنبية - | DC112: 0 | DD112: 1
A113: 104 | B113: 104 | C113: طالب اولى 192 | D113: 5/1 | E113: 2001-03-21 | F113: 11 - 06 - 20 | G113: مصرى | H113: مسلم | I113: بنين | J113: انتظام | K113: صباحى | M113: 24 | O113: 14.5 | P113: غ | Q113: غ | S113: 16 | T113: غ | U113: غ | W113: 8 | X113: غ | Y113: غ | AA113: 17.5 | AB113: غ | AC113: غ | AE113: 7.5 | AF113: غ | AG113: غ | AJ113: 10 | AK113: 7 | AL113: غ | AM113: غ | AN113: غ | AO113: غ | AP113: غ | AR113: 19 | AS113: غ | AT113: غ | AV113: 14 | AW113: غ | AX113: غ | AZ113: 9 | BA113: 0 | BB113: 9 | BD113: 21.5 | BE113: غ | BF113: غ | BH113: 6.5 | BI113: غ | BJ113: غ | BL113: 15.5 | BN113: 15.5 | BP113: 22.5 | BQ113: غ | BR113: غ | BS113: 188.5 | BT113: 24.5 | BV113: 5 | BW113: غ | BX113: غ | BZ113: 7.5 | CA113: غ | CB113: غ | CC113: راسب | CD113: و له حق الاعادة | CE113: 16 | CF113: 11 | CG113: 1/2 | CM113: لغة عربية - | CN113: لغة انجليزية - | CO113: لغة فرنسية - | CP113: جغرافيا - | CQ113: رياضة عامة - | CR113: حاسب ألى - | CS113: اقتصاد - | CT113: سكرتارية عربية - | CU113: سكرتارية اجنبية - | CV113: ادارة اعمال - | CW113: محاسبة مالية - | CX113: تسويق - | CY113: قانون تجارى - | CZ113: مجموع كلى - | DA113: تربية دينية - | DB113: مواطنة | DC113: 3 | DD113: 13
A114: 105 | B114: 105 | C114: طالب اولى 193 | D114: 5/1 | E114: 2002-07-14 | F114: 18 - 02 - 19 | G114: مصرى | H114: مسلم | I114: بنين | J114: انتظام | K114: صباحى | M114: 25 | O114: 14 | P114: 13 | Q114: 27 | S114: 16.5 | T114: 10.5 | U114: 27 | W114: 8.5 | X114: 11 | Y114: 19.5 | AA114: 15 | AB114: 14 | AC114: 29 | AE114: 4.5 | AF114: 10.5 | AG114: 15 | AJ114: 10 | AK114: 7 | AL114: 9 | AM114: 7 | AN114: 19 | AO114: 14 | AP114: 33 | AR114: 19 | AS114: 12.5 | AT114: 31.5 | AV114: 12 | AW114: 13.5 | AX114: 25.5 | AZ114: 11.5 | BA114: 8.5 | BB114: 20 | BD114: 21.5 | BE114: 7.5 | BF114: 29 | BH114: 12.5 | BI114: 7.5 | BJ114: 20 | BL114: 15.5 | BM114: 17.5 | BN114: 33 | BP114: 22.5 | BQ114: 20 | BR114: 42.5 | BS114: 190 | BT114: 352 | BV114: غ | BW114: 10 | BX114: 10 | BZ114: 8 | CA114: 6.5 | CB114: 14.5 | CC114: دورثان | CD114: فى : سكرتارية اجنبية - محاسبة مالية - | CE114: 2 | CF114: 11 | CG114: 1/2 | CU114: سكرتارية اجنبية - | CW114: محاسبة مالية - | DC114: 0 | DD114: 2
A115: 106 | B115: 106 | C115: طالب اولى 194 | D115: 5/1 | E115: 2001-12-09 | F115: 23 - 09 - 19 | G115: مصرى | H115: مسلم | I115: بنين | J115: انتظام | K115: صباحى | M115: 26 | O115: 11.5 | P115: 14.5 | Q115: 26 | S115: 22.5 | T115: 11.5 | U115: 34 | W115: 9 | X115: 10.5 | Y115: 19.5 | AA115: 16.5 | AB115: 20 | AC115: 36.5 | AE115: 6.5 | AF115: 8.5 | AG115: 15 | AJ115: 9 | AK115: 8 | AL115: 9 | AM115: 7 | AN115: 18 | AO115: 15 | AP115: 33 | AR115: 19 | AS115: 12.5 | AT115: 31.5 | AV115: 13 | AW115: 12.5 | AX115: 25.5 | AZ115: 13 | BA115: 8.5 | BB115: 21.5 | BD115: 21.5 | BE115: 17.5 | BF115: 39 | BH115: 9.5 | BI115: 1.5 | BJ115: 11 | BL115: 15 | BM115: 12.5 | BN115: 27.5 | BP115: 21.5 | BQ115: 12.5 | BR115: 34 | BS115: 195.5 | BT115: 354 | BV115: 3 | BW115: 10 | BX115: 13 | BZ115: 7.5 | CA115: 5.5 | CB115: 13 | CC115: دورثان | CD115: فى : سكرتارية اجنبية - محاسبة مالية - | CE115: 2 | CF115: 11 | CG115: 1/2 | CU115: سكرتارية اجنبية - | CW115: محاسبة مالية - | DC115: 0 | DD115: 2
A116: 107 | B116: 107 | C116: طالب اولى 195 | D116: 5/1 | E116: 2001-01-01 | F116: 00 - 09 - 20 | G116: مصرى | H116: مسلم | I116: بنين | J116: انتظام | K116: صباحى | M116: 27 | O116: 16 | P116: 15.5 | Q116: 31.5 | S116: 19.5 | T116: 12 | U116: 31.5 | W116: 10.5 | X116: 13 | Y116: 23.5 | AA116: 19 | AB116: 15 | AC116: 34 | AE116: 6.5 | AF116: 13.5 | AG116: 20 | AJ116: 10 | AK116: 8 | AL116: 9 | AM116: 8 | AN116: 19 | AO116: 16 | AP116: 35 | AR116: 19 | AS116: 14 | AT116: 33 | AV116: 14 | AW116: 14.5 | AX116: 28.5 | AZ116: 14.5 | BA116: 5.5 | BB116: 20 | BD116: 21.5 | BE116: 13.5 | BF116: 35 | BH116: 14 | BI116: 14.5 | BJ116: 28.5 | BL116: 17 | BM116: 9 | BN116: 26 | BP116: 20 | BQ116: 17.5 | BR116: 37.5 | BS116: 209.5 | BT116: 384 | BV116: 6.5 | BW116: 7.5 | BX116: 14 | BZ116: 8 | CA116: 6.5 | CB116: 14.5 | CC116: دورثان | CD116: فى : سكرتارية اجنبية - | CE116: 1 | CF116: 11 | CG116: 1/2 | CU116: سكرتارية اجنبية - | DC116: 0 | DD116: 1
A117: 108 | B117: 108 | C117: طالب اولى 196 | D117: 5/1 | E117: 2001-07-19 | F117: 13 - 02 - 20 | G117: مصرى | H117: مسلم | I117: بنين | J117: انتظام | K117: صباحى | M117: 28 | O117: 11.5 | P117: 13.5 | Q117: 25 | S117: 14.5 | T117: 10.5 | U117: 25 | W117: 9.5 | X117: 11.5 | Y117: 21 | AA117: 19 | AB117: 15 | AC117: 34 | AE117: 6 | AF117: 10 | AG117: 16 | AJ117: 6.5 | AK117: 8 | AL117: 9 | AM117: 7 | AN117: 15.5 | AO117: 15 | AP117: 30.5 | AR117: 19 | AS117: 14 | AT117: 33 | AV117: 12.5 | AW117: 12.5 | AX117: 25 | AZ117: 8 | BA117: 4.5 | BB117: 12.5 | BD117: 19 | BE117: 11.5 | BF117: 30.5 | BH117: 8.5 | BI117: 5 | BJ117: 13.5 | BL117: 16.5 | BM117: 15 | BN117: 31.5 | BP117: 22.5 | BQ117: 17.5 | BR117: 40 | BS117: 181 | BT117: 337.5 | BV117: 5 | BW117: 7.5 | BX117: 12.5 | BZ117: 8 | CA117: 7 | CB117: 15 | CC117: دورثان | CD117: فى : سكرتارية اجنبية - محاسبة مالية - | CE117: 2 | CF117: 11 | CG117: 1/2 | CU117: سكرتارية اجنبية - | CW117: محاسبة مالية - | DC117: 0 | DD117: 2
A118: 109 | B118: 109 | C118: طالب اولى 197 | D118: 5/1 | E118: 2001-04-24 | F118: 07 - 05 - 20 | G118: مصرى | H118: مسلم | I118: بنين | J118: انتظام | K118: صباحى | M118: 57 | O118: 17 | P118: 14.5 | Q118: 31.5 | S118: 19 | T118: 15.5 | U118: 34.5 | W118: 10 | X118: 11.5 | Y118: 21.5 | AA118: 19 | AB118: 15 | AC118: 34 | AE118: 7 | AF118: 12.5 | AG118: 19.5 | AJ118: 10 | AK118: 8 | AL118: 9 | AM118: 7 | AN118: 19 | AO118: 15 | AP118: 34 | AR118: 20 | AS118: 16.5 | AT118: 36.5 | AV118: 17 | AW118: 15 | AX118: 32 | AZ118: 15 | BA118: 13 | BB118: 28 | BD118: 21.5 | BE118: 16.5 | BF118: 38 | BH118: 13.5 | BI118: 12 | BJ118: 25.5 | BL118: 19 | BM118: 16.5 | BN118: 35.5 | BP118: 22.5 | BQ118: 17.5 | BR118: 40 | BS118: 218.5 | BT118: 410.5 | BV118: 6.5 | BW118: 9 | BX118: 15.5 | BZ118: 9 | CA118: 8.5 | CB118: 17.5 | CC118: ناجح | CD118: و منقول للصف الثانى | CE118: 0 | CF118: 11 | CG118: 1/2 | DC118: 0 | DD118: 0
A119: 110 | B119: 110 | C119: طالب اولى 198 | D119: 5/1 | E119: 2000-11-20 | F119: 11 - 10 - 20 | G119: مصرى | H119: مسلم | I119: بنين | J119: انتظام | K119: صباحى | M119: 58 | O119: 12 | P119: 13 | Q119: 25 | S119: 9.5 | T119: 8.5 | U119: 18 | W119: 7.5 | X119: 11 | Y119: 18.5 | AA119: 15 | AB119: 14 | AC119: 29 | AE119: 5 | AF119: 10.5 | AG119: 15.5 | AJ119: 10 | AK119: 7 | AL119: 9 | AM119: 7 | AN119: 19 | AO119: 14 | AP119: 33 | AR119: 19 | AS119: 11.5 | AT119: 30.5 | AV119: 10 | AW119: 15 | AX119: 25 | AZ119: 10 | BA119: 7.5 | BB119: 17.5 | BD119: 21.5 | BE119: 12.5 | BF119: 34 | BH119: 13.5 | BI119: 11.5 | BJ119: 25 | BL119: 14.5 | BM119: 16.5 | BN119: 31 | BP119: 10 | BQ119: 19 | BR119: 29 | BS119: 164.5 | BT119: 331 | BV119: 6 | BW119: 8.5 | BX119: 14.5 | BZ119: 7 | CA119: 4 | CB119: 11 | CC119: دورثان | CD119: فى : لغة انجليزية - سكرتارية اجنبية - | CE119: 2 | CF119: 11 | CG119: 1/2 | CN119: لغة انجليزية - | CU119: سكرتارية اجنبية - | DC119: 0 | DD119: 2
A120: 111 | B120: 111 | C120: طالب اولى 199 | D120: 5/1 | E120: 2000-08-21 | F120: 11 - 01 - 21 | G120: مصرى | H120: مسلم | I120: بنين | J120: انتظام | K120: صباحى | M120: 59 | O120: 12 | P120: 14 | Q120: 26 | S120: 21 | T120: 13.5 | U120: 34.5 | W120: 9.5 | X120: 11 | Y120: 20.5 | AA120: 17.5 | AB120: 20 | AC120: 37.5 | AE120: 8 | AF120: 12.5 | AG120: 20.5 | AJ120: 9.5 | AK120: 7 | AL120: 9 | AM120: 7 | AN120: 18.5 | AO120: 14 | AP120: 32.5 | AR120: 19 | AS120: 12.5 | AT120: 31.5 | AV120: 16 | AW120: 17 | AX120: 33 | AZ120: 17 | BA120: 10 | BB120: 27 | BD120: 21.5 | BE120: 16.5 | BF120: 38 | BH120: 16.5 | BI120: 14.5 | BJ120: 31 | BL120: 16 | BM120: 17.5 | BN120: 33.5 | BP120: 22.5 | BQ120: 17.5 | BR120: 40 | BS120: 213 | BT120: 405.5 | BV120: 7 | BW120: 9 | BX120: 16 | BZ120: 7.5 | CA120: 5.5 | CB120: 13 | CC120: ناجح | CD120: و منقول للصف الثانى | CE120: 0 | CF120: 11 | CG120: 1/2 | DC120: 0 | DD120: 0
A121: 112 | B121: 112 | C121: طالب اولى 2 | D121: 1/1 | E121: 2003-06-16 | F121: 15 - 03 - 18 | G121: مصرى | H121: مسلم | I121: بنين | J121: انتظام | K121: صباحى | M121: 72 | N121: 8 | O121: 14 | P121: 13 | Q121: 35 | R121: 8 | S121: 12.8 | T121: 14.4 | U121: 35.2 | V121: 5.5 | W121: 7.6 | X121: 10.4 | Y121: 23.5 | Z121: 6.5 | AA121: 16 | AB121: 16 | AC121: 38.5 | AD121: 3.5 | AE121: 5 | AF121: 10 | AG121: 18.5 | AH121: 4 | AI121: 2.5 | AJ121: 7.5 | AK121: 5 | AL121: 7 | AM121: 5 | AN121: 18.5 | AO121: 12.5 | AP121: 31 | AQ121: 8.5 | AR121: 14 | AS121: 16 | AT121: 38.5 | AU121: 8 | AV121: 16 | AW121: 13 | AX121: 37 | AY121: 9 | AZ121: 14 | BA121: 9.5 | BB121: 32.5 | BC121: 9 | BD121: 17 | BE121: 15 | BF121: 41 | BG121: 8 | BH121: 15 | BI121: 13 | BJ121: 36 | BK121: 8.5 | BL121: 19 | BM121: 14 | BN121: 41.5 | BO121: 8 | BP121: 16 | BQ121: 14 | BR121: 38 | BS121: 178.9 | BT121: 446.2 | BU121: 3.5 | BV121: 5 | BW121: 7 | BX121: 15.5 | BY121: 3 | BZ121: 7 | CA121: 7 | CB121: 17 | CC121: ناجح | CD121: و منقول للصف الثانى | CE121: 0 | CF121: 1 | CG121: 1/3 | DC121: 0 | DD121: 0
A122: 113 | B122: 113 | C122: طالب اولى 20 | D122: 1/1 | E122: 2001-09-01 | F122: 00 - 01 - 20 | G122: مصرى | H122: مسلم | I122: بنين | J122: انتظام | K122: صباحى | M122: 90 | N122: 8 | O122: 11.5 | P122: 10 | Q122: 29.5 | R122: 8 | S122: 14.4 | T122: 13.6 | U122: 36 | V122: 5.5 | W122: 6.4 | X122: 9.6 | Y122: 21.5 | Z122: 7 | AA122: 13 | AB122: 15 | AC122: 35 | AD122: 3.5 | AE122: 7.5 | AF122: 10 | AG122: 21 | AH122: 4 | AI122: 3 | AJ122: 8.5 | AK122: 5 | AL122: 7 | AM122: 5 | AN122: 19.5 | AO122: 13 | AP122: 32.5 | AQ122: 8.5 | AR122: 16 | AS122: 12 | AT122: 36.5 | AU122: 8 | AV122: 16 | AW122: 13 | AX122: 37 | AY122: 9 | AZ122: 12.5 | BA122: 13.5 | BB122: 35 | BC122: 9 | BD122: 17 | BE122: 13 | BF122: 39 | BG122: 8 | BH122: 13.5 | BI122: 15.5 | BJ122: 37 | BK122: 8.5 | BL122: 17.5 | BM122: 17 | BN122: 43 | BO122: 8 | BP122: 16 | BQ122: 16 | BR122: 40 | BS122: 174.8 | BT122: 443 | BU122: 3.5 | BV122: 6 | BW122: 7.5 | BX122: 17 | BY122: 3 | BZ122: 7 | CA122: 6.5 | CB122: 16.5 | CC122: ناجح | CD122: و منقول للصف الثانى | CE122: 0 | CF122: 2 | CG122: 2/3 | DC122: 0 | DD122: 0
A123: 114 | B123: 114 | C123: طالب اولى 200 | D123: 5/1 | E123: 2000-03-19 | F123: 13 - 06 - 21 | G123: مصرى | H123: مسلم | I123: بنين | J123: انتظام | K123: صباحى | M123: 60 | O123: 12 | P123: 13.5 | Q123: 25.5 | S123: 17.5 | T123: 13.5 | U123: 31 | W123: 9.5 | X123: 11.5 | Y123: 21 | AA123: 16.5 | AB123: 15 | AC123: 31.5 | AE123: 5 | AF123: 10 | AG123: 15 | AJ123: 9 | AK123: 8 | AL123: 9 | AM123: 7 | AN123: 18 | AO123: 15 | AP123: 33 | AR123: 16.5 | AS123: 15 | AT123: 31.5 | AV123: 11 | AW123: 14.5 | AX123: 25.5 | AZ123: 12 | BA123: 8 | BB123: 20 | BD123: 21.5 | BE123: 15 | BF123: 36.5 | BH123: 7 | BI123: 10.5 | BJ123: 17.5 | BL123: 17 | BM123: 12.5 | BN123: 29.5 | BP123: 20 | BQ123: 19 | BR123: 39 | BS123: 182.5 | BT123: 356.5 | BV123: 6.5 | BW123: 9 | BX123: 15.5 | BZ123: 7 | CA123: 8.5 | CB123: 15.5 | CC123: دورثان | CD123: فى : سكرتارية اجنبية - محاسبة مالية - | CE123: 2 | CF123: 11 | CG123: 1/2 | CU123: سكرتارية اجنبية - | CW123: محاسبة مالية - | DC123: 0 | DD123: 2
A124: 115 | B124: 115 | C124: طالب اولى 201 | D124: 6/1 | E124: 1993-09-02 | F124: 29 - 00 - 28 | G124: مصرى | H124: مسلم | I124: بنين | J124: انتظام | K124: صباحى | M124: 61 | O124: 15 | P124: 19.5 | Q124: 34.5 | S124: 18.5 | T124: 15 | U124: 33.5 | W124: 9.5 | X124: 12 | Y124: 21.5 | AA124: 17.5 | AB124: 19 | AC124: 36.5 | AE124: 6.5 | AF124: 11.5 | AG124: 18 | AJ124: 10 | AK124: 7 | AL124: 9 | AM124: 7 | AN124: 19 | AO124: 14 | AP124: 33 | AR124: 20 | AS124: 17.5 | AT124: 37.5 | AV124: 13.5 | AW124: 15 | AX124: 28.5 | AZ124: 11.5 | BA124: 9 | BB124: 20.5 | BD124: 21.5 | BE124: 16.5 | BF124: 38 | BH124: 18.5 | BI124: 12.5 | BJ124: 31 | BL124: 17 | BM124: 20 | BN124: 37 | BP124: 22.5 | BQ124: 17.5 | BR124: 40 | BS124: 208.5 | BT124: 409.5 | BV124: 7 | BW124: 9 | BX124: 16 | BZ124: 8 | CA124: 7 | CB124: 15 | CC124: دورثان | CD124: فى : سكرتارية اجنبية - | CE124: 1 | CF124: 11 | CG124: 1/2 | CU124: سكرتارية اجنبية - | DC124: 0 | DD124: 1
A125: 116 | B125: 116 | C125: طالب اولى 202 | D125: 6/1 | E125: 2003-03-08 | F125: 24 - 06 - 18 | G125: مصرى | H125: مسلم | I125: بنين | J125: انتظام | K125: صباحى | M125: 62 | O125: 16 | P125: 14 | Q125: 30 | S125: 17 | T125: 14 | U125: 31 | W125: 7.5 | X125: 11 | Y125: 18.5 | AA125: 11.5 | AB125: 14 | AC125: 25.5 | AE125: 6.5 | AF125: 12.5 | AG125: 19 | AJ125: 10 | AK125: 7 | AL125: 10 | AM125: 7 | AN125: 20 | AO125: 14 | AP125: 34 | AR125: 20 | AS125: 15 | AT125: 35 | AV125: 15 | AW125: 14.5 | AX125: 29.5 | AZ125: 14 | BA125: 11.5 | BB125: 25.5 | BD125: 21.5 | BE125: 15 | BF125: 36.5 | BH125: 14.5 | BI125: 10.5 | BJ125: 25 | BL125: 18 | BM125: 17.5 | BN125: 35.5 | BP125: 22.5 | BQ125: 17.5 | BR125: 40 | BS125: 201 | BT125: 385 | BV125: 6 | BW125: 9 | BX125: 15 | BZ125: 8 | CA125: 7.5 | CB125: 15.5 | CC125: ناجح | CD125: و منقول للصف الثانى | CE125: 0 | CF125: 11 | CG125: 1/2 | DC125: 0 | DD125: 0
A126: 117 | B126: 117 | C126: طالب اولى 203 | D126: 6/1 | E126: 1999-07-28 | F126: 04 - 02 - 22 | G126: مصرى | H126: مسلم | I126: بنين | J126: انتظام | K126: صباحى | M126: 63 | O126: 11 | P126: 14.5 | Q126: 25.5 | S126: 17 | T126: 9 | U126: 26 | W126: 9.5 | X126: 11 | Y126: 20.5 | AA126: 17.5 | AB126: 14 | AC126: 31.5 | AE126: 5 | AF126: 10 | AG126: 15 | AJ126: 10 | AK126: 7 | AL126: 9 | AM126: 7 | AN126: 19 | AO126: 14 | AP126: 33 | AR126: 20 | AS126: 15 | AT126: 35 | AV126: 10.5 | AW126: 16 | AX126: 26.5 | AZ126: 14.5 | BA126: 10.5 | BB126: 25 | BD126: 21.5 | BE126: 16.5 | BF126: 38 | BH126: 15 | BI126: 12.5 | BJ126: 27.5 | BL126: 17.5 | BM126: 17.5 | BN126: 35 | BP126: 22.5 | BQ126: 17.5 | BR126: 40 | BS126: 198.5 | BT126: 378.5 | BV126: 6 | BW126: 9 | BX126: 15 | BZ126: 8 | CA126: 7.5 | CB126: 15.5 | CC126: ناجح | CD126: و منقول للصف الثانى | CE126: 0 | CF126: 11 | CG126: 1/2 | DC126: 0 | DD126: 0
A127: 118 | B127: 118 | C127: طالب اولى 204 | D127: 6/1 | E127: 2002-10-15 | F127: 17 - 11 - 18 | G127: مصرى | H127: مسلم | I127: بنين | J127: انتظام | K127: صباحى | M127: 64 | O127: 14 | P127: 15 | Q127: 29 | S127: 19 | T127: 14 | U127: 33 | W127: 9.5 | X127: 11 | Y127: 20.5 | AA127: 16.5 | AB127: 17.5 | AC127: 34 | AE127: 3 | AF127: 12.5 | AG127: 15.5 | AJ127: 10 | AK127: 7 | AL127: 9 | AM127: 7 | AN127: 19 | AO127: 14 | AP127: 33 | AR127: 20 | AS127: 16.5 | AT127: 36.5 | AV127: 16 | AW127: 16 | AX127: 32 | AZ127: 12 | BA127: 9.5 | BB127: 21.5 | BD127: 21.5 | BE127: 16.5 | BF127: 38 | BH127: 15.5 | BI127: 16.5 | BJ127: 32 | BL127: 14.5 | BM127: 17.5 | BN127: 32 | BP127: 20 | BQ127: 17.5 | BR127: 37.5 | BS127: 198.5 | BT127: 394.5 | BV127: 6 | BW127: 9 | BX127: 15 | BZ127: 7.5 | CA127: 5.5 | CB127: 13 | CC127: دورثان | CD127: فى : سكرتارية اجنبية - | CE127: 1 | CF127: 11 | CG127: 1/2 | CU127: سكرتارية اجنبية - | DC127: 0 | DD127: 1
A128: 119 | B128: 119 | C128: طالب اولى 205 | D128: 6/1 | E128: 1986-09-10 | F128: 21 - 00 - 35 | G128: مصرى | H128: مسلم | I128: بنين | J128: انتظام | K128: صباحى | M128: 65 | O128: 14 | P128: 15.5 | Q128: 29.5 | S128: 16 | T128: 11 | U128: 27 | W128: 8 | X128: 11 | Y128: 19 | AA128: 17.5 | AB128: 20 | AC128: 37.5 | AE128: 9 | AF128: 12.5 | AG128: 21.5 | AJ128: 10 | AK128: 7 | AL128: 9 | AM128: 8 | AN128: 19 | AO128: 15 | AP128: 34 | AR128: 15 | AS128: 14 | AT128: 29 | AV128: 11.5 | AW128: 15 | AX128: 26.5 | AZ128: 8 | BA128: 2.5 | BB128: 10.5 | BD128: 19 | BE128: 13.5 | BF128: 32.5 | BH128: 14.5 | BI128: 15.5 | BJ128: 30 | BL128: 16.5 | BM128: 18.5 | BN128: 35 | BP128: 22.5 | BQ128: 17.5 | BR128: 40 | BS128: 188.5 | BT128: 372 | BV128: 4.5 | BW128: 9 | BX128: 13.5 | BZ128: 7 | CA128: 5 | CB128: 12 | CC128: دورثان | CD128: فى : سكرتارية اجنبية - | CE128: 1 | CF128: 11 | CG128: 1/2 | CU128: سكرتارية اجنبية - | DC128: 0 | DD128: 1
A129: 120 | B129: 120 | C129: طالب اولى 206 | D129: 6/1 | E129: 2000-07-09 | F129: 23 - 02 - 21 | G129: مصرى | H129: مسلم | I129: بنين | J129: انتظام | K129: صباحى | M129: 66 | O129: 17.5 | P129: 18 | Q129: 35.5 | S129: 22.5 | T129: 17.5 | U129: 40 | W129: 10 | X129: 13 | Y129: 23 | AA129: 17.5 | AB129: 20 | AC129: 37.5 | AE129: 9 | AF129: 12.5 | AG129: 21.5 | AJ129: 10 | AK129: 8 | AL129: 9 | AM129: 7 | AN129: 19 | AO129: 15 | AP129: 34 | AR129: 20 | AS129: 16.5 | AT129: 36.5 | AV129: 19 | AW129: 16 | AX129: 35 | AZ129: 16 | BA129: 14 | BB129: 30 | BD129: 21.5 | BE129: 19 | BF129: 40.5 | BH129: 17 | BI129: 17 | BJ129: 34 | BL129: 17 | BM129: 20 | BN129: 37 | BP129: 22.5 | BQ129: 20 | BR129: 42.5 | BS129: 227.5 | BT129: 447 | BV129: 7 | BW129: 9 | BX129: 16 | BZ129: 9 | CA129: 8.5 | CB129: 17.5 | CC129: ناجح | CD129: و منقول للصف الثانى | CE129: 0 | CF129: 11 | CG129: 1/2 | DC129: 0 | DD129: 0
A130: 121 | B130: 121 | C130: طالب اولى 207 | D130: 6/1 | E130: 2001-06-15 | F130: 16 - 03 - 20 | G130: مصرى | H130: مسلم | I130: بنين | J130: انتظام | K130: صباحى | M130: 67 | O130: 19 | P130: 18 | Q130: 37 | S130: 21.5 | T130: 18 | U130: 39.5 | W130: 9.5 | X130: 12.5 | Y130: 22 | AA130: 17.5 | AB130: 20 | AC130: 37.5 | AE130: 7 | AF130: 12.5 | AG130: 19.5 | AJ130: 10 | AK130: 8 | AL130: 9 | AM130: 7 | AN130: 19 | AO130: 15 | AP130: 34 | AR130: 20 | AS130: 16.5 | AT130: 36.5 | AV130: 19 | AW130: 17.5 | AX130: 36.5 | AZ130: 17.5 | BA130: 14.5 | BB130: 32 | BD130: 21.5 | BE130: 16.5 | BF130: 38 | BH130: 17 | BI130: 20.5 | BJ130: 37.5 | BL130: 17 | BM130: 18.5 | BN130: 35.5 | BP130: 20 | BQ130: 17.5 | BR130: 37.5 | BS130: 224.5 | BT130: 443 | BV130: 7 | BW130: 9 | BX130: 16 | BZ130: 9.5 | CA130: 9 | CB130: 18.5 | CC130: ناجح | CD130: و منقول للصف الثانى | CE130: 0 | CF130: 11 | CG130: 1/2 | DC130: 0 | DD130: 0
A131: 122 | B131: 122 | C131: طالب اولى 208 | D131: 6/1 | E131: 2001-11-04 | F131: 27 - 10 - 19 | G131: مصرى | H131: مسلم | I131: بنين | J131: انتظام | K131: صباحى | M131: 68 | N131: 8 | O131: 11.5 | P131: 12 | Q131: 31.5 | R131: 8 | S131: 14.8 | T131: 9.6 | U131: 32.4 | V131: 5.5 | W131: 8.4 | X131: 9.2 | Y131: 23.1 | Z131: 6.5 | AA131: 13 | AB131: 12 | AC131: 31.5 | AD131: 3.5 | AE131: 6 | AF131: 10 | AG131: 19.5 | AH131: 4 | AI131: 3 | AJ131: 8 | AK131: 5 | AL131: 7 | AM131: 5 | AN131: 19 | AO131: 13 | AP131: 32 | AQ131: 8.5 | AR131: 16 | AS131: 12 | AT131: 36.5 | AU131: 8 | AV131: 13.5 | AW131: 12.5 | AX131: 34 | AY131: 9 | AZ131: 12 | BA131: 11 | BB131: 32 | BC131: 8.5 | BD131: 17 | BE131: 13 | BF131: 38.5 | BG131: 8.5 | BH131: 13 | BI131: 10 | BJ131: 31.5 | BK131: 8.5 | BL131: 13.5 | BM131: 15 | BN131: 37 | BO131: 8 | BP131: 18 | BQ131: 14 | BR131: 40 | BS131: 169.7 | BT131: 419.5 | BU131: 3 | BV131: 5 | BW131: 7 | BX131: 15 | BY131: 3 | BZ131: 7 | CA131: 5.5 | CB131: 15.5 | CC131: ناجح | CD131: و منقول للصف الثانى | CE131: 0 | CF131: 11 | CG131: 1/2 | DC131: 0 | DD131: 0
A132: 123 | B132: 123 | C132: طالب اولى 21 | D132: 1/1 | E132: 2002-03-20 | F132: 12 - 06 - 19 | G132: مصرى | H132: مسلم | I132: بنين | J132: انتظام | K132: صباحى | M132: 91 | N132: 8 | O132: 14.5 | P132: 14 | Q132: 36.5 | R132: 8 | S132: 15.6 | T132: 16.4 | U132: 40 | V132: 4.5 | W132: 8.4 | X132: 9.6 | Y132: 22.5 | Z132: 7 | AA132: 15 | AB132: 16 | AC132: 38 | AD132: 3.5 | AE132: 5 | AF132: 9.5 | AG132: 18 | AH132: 4 | AI132: 2.5 | AJ132: 8.5 | AK132: 6 | AL132: 7 | AM132: 6 | AN132: 19.5 | AO132: 14.5 | AP132: 34 | AQ132: 8.5 | AR132: 16 | AS132: 14 | AT132: 38.5 | AU132: 8.5 | AV132: 17 | AW132: 13 | AX132: 38.5 | AY132: 9 | AZ132: 12 | BA132: 14 | BB132: 35 | BC132: 8.5 | BD132: 18 | BE132: 13 | BF132: 39.5 | BG132: 8 | BH132: 14.5 | BI132: 15.5 | BJ132: 38 | BK132: 8.5 | BL132: 17.5 | BM132: 16 | BN132: 42 | BO132: 8 | BP132: 16 | BQ132: 16 | BR132: 40 | BS132: 184 | BT132: 460.5 | BU132: 3.5 | BV132: 6 | BW132: 7.5 | BX132: 17 | BY132: 3 | BZ132: 7 | CA132: 6.5 | CB132: 16.5 | CC132: ناجح | CD132: و منقول للصف الثانى | CE132: 0 | CF132: 2 | CG132: 2/3 | DC132: 0 | DD132: 0
A133: 124 | B133: 124 | C133: طالب اولى 22 | D133: 1/1 | E133: 2003-09-13 | F133: 18 - 00 - 18 | G133: مصرى | H133: مسلم | I133: بنين | J133: انتظام | K133: صباحى | M133: 92 | N133: 8.5 | O133: 13 | P133: 14 | Q133: 35.5 | R133: 8 | S133: 14.4 | T133: 14.8 | U133: 37.2 | V133: 5.5 | W133: 6.8 | X133: 9.6 | Y133: 21.9 | Z133: 7 | AA133: 15 | AB133: 16 | AC133: 38 | AD133: 3.5 | AE133: 8 | AF133: 10 | AG133: 21.5 | AH133: 4 | AI133: 3 | AJ133: 8.5 | AK133: 6 | AL133: 7 | AM133: 6 | AN133: 19.5 | AO133: 15 | AP133: 34.5 | AQ133: 9 | AR133: 16 | AS133: 14 | AT133: 39 | AU133: 8.5 | AV133: 18.5 | AW133: 13 | AX133: 40 | AY133: 9 | AZ133: 10 | BA133: 12.5 | BB133: 31.5 | BC133: 9 | BD133: 17 | BE133: 14 | BF133: 40 | BG133: 8 | BH133: 13.5 | BI133: 14 | BJ133: 35.5 | BK133: 8.5 | BL133: 17.5 | BM133: 15 | BN133: 41 | BO133: 8 | BP133: 16 | BQ133: 16 | BR133: 40 | BS133: 180.2 | BT133: 455.6 | BU133: 3.5 | BV133: 6 | BW133: 6 | BX133: 15.5 | BY133: 3 | BZ133: 7 | CA133: 6 | CB133: 16 | CC133: ناجح | CD133: و منقول للصف الثانى | CE133: 0 | CF133: 2 | CG133: 2/3 | DC133: 0 | DD133: 0
A134: 125 | B134: 125 | C134: طالب اولى 23 | D134: 1/1 | E134: 2001-12-03 | F134: 29 - 09 - 19 | G134: مصرى | H134: مسلم | I134: بنين | J134: انتظام | K134: صباحى | M134: 93 | N134: 8 | O134: 7.5 | P134: 9.5 | Q134: 25 | R134: 8 | S134: 8 | T134: 10 | U134: 26 | V134: 4.5 | W134: 7.6 | X134: 8.8 | Y134: 20.9 | Z134: 7 | AA134: 12 | AB134: 13 | AC134: 32 | AD134: 3.5 | AE134: 3.5 | AF134: 8 | AG134: 15 | AH134: 4 | AI134: 2.5 | AJ134: 8.5 | AK134: 6 | AL134: 7 | AM134: 6 | AN134: 19.5 | AO134: 14.5 | AP134: 34 | AQ134: 8.5 | AR134: 16 | AS134: 12 | AT134: 36.5 | AU134: 8 | AV134: 12 | AW134: 10 | AX134: 30 | AY134: 9 | AZ134: 3.5 | BA134: 7.5 | BB134: 20 | BC134: 8.5 | BD134: 15 | BE134: 12 | BF134: 35.5 | BG134: 8 | BH134: 12 | BI134: 14.5 | BJ134: 34.5 | BK134: 8.5 | BL134: 16 | BM134: 12 | BN134: 36.5 | BO134: 8 | BP134: 17 | BQ134: 16 | BR134: 41 | BS134: 144.6 | BT134: 386.9 | BU134: 3.5 | BV134: 4 | BW134: 6 | BX134: 13.5 | BY134: 3 | BZ134: 7 | CA134: 4.5 | CB134: 14.5 | CC134: دورثان | CD134: فى : سكرتارية اجنبية - | CE134: 1 | CF134: 2 | CG134: 2/3 | CU134: سكرتارية اجنبية - | DC134: 0 | DD134: 1
A135: 126 | B135: 126 | C135: طالب اولى 24 | D135: 1/1 | E135: 2003-06-15 | F135: 16 - 03 - 18 | G135: مصرى | H135: مسلم | I135: بنين | J135: انتظام | K135: صباحى | M135: 94 | N135: 8 | O135: 13 | P135: 13 | Q135: 34 | R135: 8 | S135: 13.6 | T135: 15.2 | U135: 36.8 | V135: 4.5 | W135: 8 | X135: 9.2 | Y135: 21.7 | Z135: 7 | AA135: 14 | AB135: 15 | AC135: 36 | AD135: 3.5 | AE135: 8 | AF135: 9.5 | AG135: 21 | AH135: 4 | AI135: 3 | AJ135: 9.5 | AK135: 6 | AL135: 8 | AM135: 6 | AN135: 21.5 | AO135: 15 | AP135: 36.5 | AQ135: 8.5 | AR135: 16 | AS135: 15 | AT135: 39.5 | AU135: 8 | AV135: 17.5 | AW135: 12 | AX135: 37.5 | AY135: 9 | AZ135: 11.5 | BA135: 12.5 | BB135: 33 | BC135: 9 | BD135: 17 | BE135: 15 | BF135: 41 | BG135: 8 | BH135: 12.5 | BI135: 13 | BJ135: 33.5 | BK135: 8.5 | BL135: 18.5 | BM135: 17.5 | BN135: 44.5 | BO135: 8 | BP135: 16 | BQ135: 16 | BR135: 40 | BS135: 181.1 | BT135: 455 | BU135: 3.5 | BV135: 5 | BW135: 6.5 | BX135: 15 | BY135: 3 | BZ135: 7 | CA135: 7 | CB135: 17 | CC135: ناجح | CD135: و منقول للصف الثانى | CE135: 0 | CF135: 2 | CG135: 2/3 | DC135: 0 | DD135: 0
A136: 127 | B136: 127 | C136: طالب اولى 25 | D136: 1/1 | E136: 2004-01-01 | F136: 00 - 09 - 17 | G136: مصرى | H136: مسلم | I136: بنين | J136: انتظام | K136: صباحى | M136: 95 | N136: 8 | O136: 12.5 | P136: 10 | Q136: 30.5 | R136: 8 | S136: 14 | T136: 16 | U136: 38 | V136: 4.5 | W136: 6.8 | X136: 9.6 | Y136: 20.9 | Z136: 7 | AA136: 13 | AB136: 15 | AC136: 35 | AD136: 3.5 | AE136: 5 | AF136: 8 | AG136: 16.5 | AH136: 4 | AI136: 2.5 | AJ136: 8.5 | AK136: 6 | AL136: 8 | AM136: 5 | AN136: 20.5 | AO136: 13.5 | AP136: 34 | AQ136: 8.5 | AR136: 16 | AS136: 14 | AT136: 38.5 | AU136: 8.5 | AV136: 17.5 | AW136: 13 | AX136: 39 | AY136: 9 | AZ136: 8.5 | BA136: 10 | BB136: 27.5 | BC136: 9 | BD136: 17 | BE136: 15 | BF136: 41 | BG136: 8 | BH136: 11 | BI136: 15 | BJ136: 34 | BK136: 8.5 | BL136: 18 | BM136: 17 | BN136: 43.5 | BO136: 8 | BP136: 17 | BQ136: 16 | BR136: 41 | BS136: 170.8 | BT136: 439.4 | BU136: 3.5 | BV136: 6 | BW136: 6 | BX136: 15.5 | BY136: 3 | BZ136: 6.5 | CA136: 7 | CB136: 16.5 | CC136: ناجح | CD136: و منقول للصف الثانى | CE136: 0 | CF136: 2 | CG136: 2/3 | DC136: 0 | DD136: 0
A137: 128 | B137: 128 | C137: طالب اولى 26 | D137: 1/1 | E137: 2003-07-18 | F137: 14 - 02 - 18 | G137: مصرى | H137: مسلم | I137: بنين | J137: انتظام | K137: صباحى | M137: 96 | N137: 8 | O137: 9 | P137: 9.5 | Q137: 26.5 | R137: 8 | S137: 12.4 | T137: 15.6 | U137: 36 | V137: 4.5 | W137: 6.8 | X137: 10 | Y137: 21.3 | Z137: 7 | AA137: 15 | AB137: 15 | AC137: 37 | AD137: 3.5 | AE137: 4 | AF137: 8.5 | AG137: 16 | AH137: 4 | AI137: 2.5 | AJ137: 8.5 | AK137: 6 | AL137: 7 | AM137: 6 | AN137: 19.5 | AO137: 14.5 | AP137: 34 | AQ137: 8.5 | AR137: 16 | AS137: 14 | AT137: 38.5 | AU137: 8.5 | AV137: 17.5 | AW137: 11.5 | AX137: 37.5 | AY137: 9 | AZ137: 10 | BA137: 10 | BB137: 29 | BC137: 8.5 | BD137: 17 | BE137: 16 | BF137: 41.5 | BG137: 8 | BH137: 7.5 | BI137: 13.5 | BJ137: 29 | BK137: 8.5 | BL137: 13.5 | BM137: 10 | BN137: 32 | BO137: 8 | BP137: 16 | BQ137: 16 | BR137: 40 | BS137: 159.2 | BT137: 418.3 | BU137: 3.5 | BV137: 4.5 | BW137: 7.5 | BX137: 15.5 | BY137: 3 | BZ137: 6.5 | CA137: 7 | CB137: 16.5 | CC137: ناجح | CD137: و منقول للصف الثانى | CE137: 0 | CF137: 2 | CG137: 2/3 | DC137: 0 | DD137: 0
A138: 129 | B138: 129 | C138: طالب اولى 27 | D138: 1/1 | E138: 2001-05-06 | F138: 26 - 04 - 20 | G138: مصرى | H138: مسلم | I138: بنين | J138: انتظام | K138: صباحى | M138: 97 | N138: 8 | O138: 9.5 | P138: 10.5 | Q138: =IF(P138="غ","غ",SUM(N138,O138,P138)) -> 28 | R138: 8 | S138: 11.6 | T138: 15.2 | U138: =IF(T138="غ","غ",SUM(R138,S138,T138)) -> 34.8 | V138: 4.5 | W138: 7.6 | X138: 9.6 | Y138: =IF(X138="غ","غ",SUM(V138,W138,X138)) -> 21.7 | Z138: 7 | AA138: 15 | AB138: 15 | AC138: =IF(AB138="غ","غ",SUM(Z138,AA138,AB138)) -> 37 | AD138: 3.5 | AE138: 6 | AF138: 9 | AG138: =IF(AF138="غ","غ",SUM(AD138,AE138,AF138)) -> 18.5 | AH138: 4 | AI138: 2.5 | AJ138: 8.5 | AK138: 5 | AL138: 7 | AM138: 6 | AN138: =IF(AL138="غ","غ",SUM(AH138,AJ138,AL138)) -> 19.5 | AO138: =IF(AM138="غ","غ",SUM(AI138,AK138,AM138)) -> 13.5 | AP138: =IF(OR(AN138="غ",AO138="غ"),"غ",SUM(AN138,AO138)) -> 33 | AQ138: 8.5 | AR138: 16 | AS138: 14 | AT138: =IF(AS138="غ","غ",SUM(AQ138,AR138,AS138)) -> 38.5 | AU138: 8 | AV138: 14 | AW138: 12.5 | AX138: =IF(AW138="غ","غ",SUM(AU138,AV138,AW138)) -> 34.5 | AY138: 9 | AZ138: 10 | BA138: 11 | BB138: =IF(BA138="غ","غ",SUM(AY138,AZ138,BA138)) -> 30 | BC138: 8.5 | BD138: 17 | BE138: 14 | BF138: =IF(BE138="غ","غ",SUM(BC138,BD138,BE138)) -> 39.5 | BG138: 8 | BH138: 13 | BI138: 16 | BJ138: =IF(BI138="غ","غ",SUM(BG138,BH138,BI138)) -> 37 | BK138: 8.5 | BL138: 17.5 | BM138: 17 | BN138: =IF(BM138="غ","غ",SUM(BK138,BL138,BM138)) -> 43 | BO138: 8 | BP138: 16 | BQ138: 16 | BR138: =IF(BQ138="غ","غ",SUM(BO138,BP138,BQ138)) -> 40 | BS138: =IF(C138="","",SUM(O138,S138,W138,AE138,AR138,AV138,AZ138,BD138,BH138,BL138,BP138,AA138,AJ138,AK138)) -> 166.7 | BT138: =SUM(Q138,U138,Y138,AG138,AT138,AX138,BB138,BF138,BJ138,BN138,BR138,AC138,AP138) -> 435.5 | BU138: 3.5 | BV138: 5.5 | BW138: 6.5 | BX138: =IF(BW138="غ","غ",SUM(BU138,BV138,BW138)) -> 15.5 | BY138: 3 | BZ138: 7.5 | CA138: 3.5 | CB138: =IF(CA138="غ","غ",SUM(BY138,BZ138,CA138)) -> 14 | CC138: =IF(I138="","",IF(I138="بنات",IF(CE138=0,"ناجحة",IF(DD138>2,"راسبة","دورثان")),IF(I138="بنين",IF(CE138=0,"ناجح",IF(DD138>2,"راسب","دورثان"))))) -> ناجح | CD138: =IF(C138="","",IF(AND($L138="باقية",$CC138="راسبة"),"وليس لها حق الاعادة",IF(AND($L138<>"باقية",$CC138="راسبة"),"و لها حق الاعادة",IF(AND($L138="باقى",$CC138="راسب"),"وليس له حق الاعادة",IF(AND($L138<>"باقى",$CC138="راسب"),"و له حق الاعادة",IF($CC138="ناجحة","و منقولة للصف الثانى",IF($CC138="ناجح","و منقول للصف الثانى",IF($CC138="دورثان","فى : "&CONCATENATE($CM138,$CN138,$CO138,$CQ138,$CR138,$CS138,$CT138,$CU138,$CV138,$CW138,$CX138,$CY138,$CP138,$CZ138,$DA138,$DB138))))))))) -> و منقول للصف الثانى | CE138: =IF(C138="","",$DC138+$DD138) -> 0 | CF138: 2 | CG138: 2/3 | CM138: =IF(C138="","",IF(OR(P138<$P$9,P138="غ",Q138<$Q$9),CM$5&" - ","")) ->  | CN138: =IF(C138="","",IF(OR(T138<$T$9,T138="غ",U138<$U$9),CN$5&" - ","")) ->  | CO138: =IF(C138="","",IF(OR(X138<$X$9,X138="غ",Y138<$Y$9),CO$5&" - ","")) ->  | CP138: =IF(C138="","",IF(OR(AB138<$AB$9,AB138="غ",AC138<$AC$9),CP$5&" - ","")) ->  | CQ138: =IF(C138="","",IF(OR(AF138<$AF$9,AF138="غ",AG138<$AG$9),CQ$5&" - ","")) ->  | CR138: =IF(C138="","",IF(OR(AL138<$AL$9,AM138<$AM$9,AN138<$AN$9,AN138="غ",AO138<$AO$9,AO138="غ"),CR$5&" - ","")) ->  | CS138: =IF(C138="","",IF(OR(AS138<$AS$9,AS138="غ",AT138<$AT$9),CS$5&" - ","")) ->  | CT138: =IF(C138="","",IF(OR(AW138<$AW$9,AW138="غ",AX138<$AX$9),CT$5&" - ","")) ->  | CU138: =IF(C138="","",IF(OR(BA138<$BA$9,BA138="غ",BB138<$BB$9),CU$5&" - ","")) ->  | CV138: =IF(C138="","",IF(OR(BE138<$BE$9,BE138="غ",BF138<$BF$9),CV$5&" - ","")) ->  | CW138: =IF(C138="","",IF(OR(BI138<$BI$9,BI138="غ",BJ138<$BJ$9),CW$5&" - ","")) ->  | CX138: =IF(C138="","",IF(OR(BM138<$BM$9,BM138="غ",BN138<$BN$9),CX$5&" - ","")) ->  | CY138: =IF(C138="","",IF(OR(BQ138<$BQ$9,BQ138="غ",BR138<$BR$9),CY$5&" - ","")) ->  | CZ138: =IF(C138="","",IF(BT138<$BT$9,CZ$5&" - ","")) ->  | DA138: =IF(C138="","",IF(OR(BW138<$BW$9,BW138="غ",BX138<$BX$9),DA$5&" - ","")) ->  | DB138: =IF(C138="","",IF(OR(CA138<$CA$9,CA138="غ",CB138<$CB$9),DB$5,"")) ->  | DC138: =COUNTIF($CZ138:$DB138,"?*") -> 0 | DD138: =COUNTIF($CM138:$CY138,"?*") -> 0
A139: 130 | B139: 130 | C139: طالب اولى 28 | D139: 1/1 | E139: 2003-05-14 | F139: 18 - 04 - 18 | G139: مصرى | H139: مسلم | I139: بنين | J139: انتظام | K139: صباحى | M139: 98 | N139: 8 | O139: 15 | P139: 17 | Q139: 40 | R139: 8 | S139: 15.2 | T139: 15.2 | U139: 38.4 | V139: 4.5 | W139: 7.6 | X139: 9.2 | Y139: 21.3 | Z139: 7 | AA139: 14 | AB139: 16 | AC139: 37 | AD139: 3.5 | AE139: 5 | AF139: 8 | AG139: 16.5 | AH139: 4 | AI139: 2.5 | AJ139: 8.5 | AK139: 5 | AL139: 7 | AM139: 6 | AN139: 19.5 | AO139: 13.5 | AP139: 33 | AQ139: 8.5 | AR139: 16 | AS139: 14 | AT139: 38.5 | AU139: 8 | AV139: 16 | AW139: غ | AX139: غ | AY139: 9 | AZ139: 9 | BA139: 11.5 | BB139: 29.5 | BC139: 9 | BD139: 18 | BE139: 15 | BF139: 42 | BG139: 8 | BH139: 14.5 | BI139: 17.5 | BJ139: 40 | BK139: 8.5 | BL139: 16 | BM139: 16 | BN139: 40.5 | BO139: 8 | BP139: 16 | BQ139: 16 | BR139: 40 | BS139: 175.8 | BT139: 416.7 | BU139: 3.5 | BV139: 6 | BW139: 6.5 | BX139: 16 | BY139: 3 | BZ139: 7 | CA139: غ | CB139: غ | CC139: دورثان | CD139: فى : سكرتارية عربية - مواطنة | CE139: 2 | CF139: 2 | CG139: 2/3 | CT139: سكرتارية عربية - | DB139: مواطنة | DC139: 1 | DD139: 1
A140: 131 | B140: 131 | C140: طالب اولى 29 | D140: 1/1 | E140: 2004-02-01 | F140: 00 - 08 - 17 | G140: مصرى | H140: مسلم | I140: بنين | J140: انتظام | K140: صباحى | M140: 127 | N140: 8 | O140: 14.5 | P140: 16.5 | Q140: 39 | R140: 8 | S140: 16 | T140: 15.6 | U140: 39.6 | V140: 4.5 | W140: 6.8 | X140: 6.4 | Y140: 17.7 | Z140: 7 | AA140: 15 | AB140: 15 | AC140: 37 | AD140: 3.5 | AE140: 5.5 | AF140: 6 | AG140: 15 | AH140: 4 | AI140: 2.5 | AJ140: 8.5 | AK140: 5 | AL140: 7 | AM140: 6 | AN140: 19.5 | AO140: 13.5 | AP140: 33 | AQ140: 8.5 | AR140: 12 | AS140: 13 | AT140: 33.5 | AU140: 8.5 | AV140: 18 | AW140: 13 | AX140: 39.5 | AY140: 9 | AZ140: 10.5 | BA140: 13 | BB140: 32.5 | BC140: 9 | BD140: 17 | BE140: 14 | BF140: 40 | BG140: 7.5 | BH140: 14 | BI140: 14 | BJ140: 35.5 | BK140: 8.5 | BL140: 16 | BM140: 16 | BN140: 40.5 | BO140: 8 | BP140: 16 | BQ140: 16 | BR140: 40 | BS140: 174.8 | BT140: 442.8 | BU140: 3.5 | BV140: 6.5 | BW140: 7.5 | BX140: 17.5 | BY140: 3 | BZ140: 6.5 | CA140: 5.5 | CB140: 15 | CC140: ناجح | CD140: و منقول للصف الثانى | CE140: 0 | CF140: 2 | CG140: 2/3 | DC140: 0 | DD140: 0
A141: 132 | B141: 132 | C141: طالب اولى 3 | D141: 1/1 | E141: 2003-02-23 | F141: 06 - 07 - 18 | G141: مصرى | H141: مسلم | I141: بنين | J141: انتظام | K141: صباحى | M141: 73 | N141: 8 | O141: 7.5 | P141: 11 | Q141: 26.5 | R141: 8 | S141: 13.2 | T141: 15.6 | U141: 36.8 | V141: 5.5 | W141: 7.6 | X141: 10.4 | Y141: 23.5 | Z141: 6.5 | AA141: 16 | AB141: 16 | AC141: 38.5 | AD141: 3.5 | AE141: 5.5 | AF141: 8.5 | AG141: 17.5 | AH141: 4 | AI141: 3 | AJ141: 7.5 | AK141: 6 | AL141: 7 | AM141: 6 | AN141: 18.5 | AO141: 15 | AP141: 33.5 | AQ141: 8.5 | AR141: 13 | AS141: 14 | AT141: 35.5 | AU141: 8 | AV141: 13 | AW141: 12.5 | AX141: 33.5 | AY141: 9 | AZ141: 7.5 | BA141: 8.5 | BB141: 25 | BC141: 9 | BD141: 20 | BE141: 15 | BF141: 44 | BG141: 7.5 | BH141: 13 | BI141: 11.5 | BJ141: 32 | BK141: 9 | BL141: 18 | BM141: 14 | BN141: 41 | BO141: 8 | BP141: 15 | BQ141: 14 | BR141: 37 | BS141: 162.8 | BT141: 424.3 | BU141: 3.5 | BV141: 4.5 | BW141: 7.5 | BX141: 15.5 | BY141: 3 | BZ141: 7.5 | CA141: 6 | CB141: 16.5 | CC141: ناجح | CD141: و منقول للصف الثانى | CE141: 0 | CF141: 1 | CG141: 1/3 | DC141: 0 | DD141: 0
A142: 133 | B142: 133 | C142: طالب اولى 30 | D142: 1/1 | E142: 2003-07-03 | F142: 29 - 02 - 18 | G142: مصرى | H142: مسلم | I142: بنين | J142: انتظام | K142: صباحى | M142: 128 | N142: 8 | O142: 14 | P142: 14.5 | Q142: 36.5 | R142: 8 | S142: 14.4 | T142: 16.4 | U142: 38.8 | V142: 4.5 | W142: 6.4 | X142: 9.6 | Y142: 20.5 | Z142: 7 | AA142: 15 | AB142: 16 | AC142: 38 | AD142: 3.5 | AE142: 4.5 | AF142: 10.5 | AG142: 18.5 | AH142: 4 | AI142: 3 | AJ142: 8.5 | AK142: 5 | AL142: 7 | AM142: 5 | AN142: 19.5 | AO142: 13 | AP142: 32.5 | AQ142: 8.5 | AR142: 16 | AS142: 14 | AT142: 38.5 | AU142: 8.5 | AV142: 19 | AW142: 13.5 | AX142: 41 | AY142: 9 | AZ142: 10.5 | BA142: 12.5 | BB142: 32 | BC142: 9 | BD142: 17 | BE142: 15 | BF142: 41 | BG142: 7.5 | BH142: 12.5 | BI142: 14 | BJ142: 34 | BK142: 8.5 | BL142: 16 | BM142: 17 | BN142: 41.5 | BO142: 8 | BP142: 16 | BQ142: 16 | BR142: 40 | BS142: 174.8 | BT142: 452.8 | BU142: 3.5 | BV142: 6 | BW142: 6 | BX142: 15.5 | BY142: 3 | BZ142: 6 | CA142: 5.5 | CB142: 14.5 | CC142: ناجح | CD142: و منقول للصف الثانى | CE142: 0 | CF142: 2 | CG142: 2/3 | DC142: 0 | DD142: 0
A143: 134 | B143: 134 | C143: طالب اولى 31 | D143: 1/1 | E143: 2003-04-01 | F143: 00 - 06 - 18 | G143: مصرى | H143: مسلم | I143: بنين | J143: انتظام | K143: صباحى | M143: 129 | N143: 8 | O143: 12.5 | P143: 16 | Q143: 36.5 | R143: 8 | S143: 16.8 | T143: 16.8 | U143: 41.6 | V143: 4.5 | W143: 6.4 | X143: 9.6 | Y143: 20.5 | Z143: 7 | AA143: 15 | AB143: 15 | AC143: 37 | AD143: 3.5 | AE143: 6.5 | AF143: 11 | AG143: 21 | AH143: 4 | AI143: 2.5 | AJ143: 8.5 | AK143: 5 | AL143: 7 | AM143: 5 | AN143: 19.5 | AO143: 12.5 | AP143: 32 | AQ143: 8.5 | AR143: 16 | AS143: 13 | AT143: 37.5 | AU143: 8 | AV143: 18 | AW143: 13 | AX143: 39 | AY143: 9 | AZ143: 11 | BA143: 11 | BB143: 31 | BC143: 8.5 | BD143: 17 | BE143: 13 | BF143: 38.5 | BG143: 7.5 | BH143: 13 | BI143: 16.5 | BJ143: 37 | BK143: 8.5 | BL143: 17 | BM143: 16 | BN143: 41.5 | BO143: 8 | BP143: 16 | BQ143: 16 | BR143: 40 | BS143: 178.7 | BT143: 453.1 | BU143: 3.5 | BV143: 6.5 | BW143: 5.5 | BX143: 15.5 | BY143: 3 | BZ143: 6.5 | CA143: 6 | CB143: 15.5 | CC143: ناجح | CD143: و منقول للصف الثانى | CE143: 0 | CF143: 2 | CG143: 2/3 | DC143: 0 | DD143: 0
A144: 135 | B144: 135 | C144: طالب اولى 32 | D144: 1/1 | E144: 2002-11-09 | F144: 22 - 10 - 18 | G144: مصرى | H144: مسلم | I144: بنين | J144: انتظام | K144: صباحى | M144: 130 | N144: 9 | O144: 15.5 | P144: 16.5 | Q144: 41 | R144: 8 | S144: 16 | T144: 14.8 | U144: 38.8 | V144: 5.5 | W144: 7.6 | X144: 9.6 | Y144: 22.7 | Z144: 6.5 | AA144: 15 | AB144: 16 | AC144: 37.5 | AD144: 3.5 | AE144: 3 | AF144: 10.5 | AG144: 17 | AH144: 4 | AI144: 3 | AJ144: 8.5 | AK144: 6 | AL144: 7 | AM144: 5 | AN144: 19.5 | AO144: 14 | AP144: 33.5 | AQ144: 9 | AR144: 16 | AS144: 14 | AT144: 39 | AU144: 8.5 | AV144: 17.5 | AW144: 12.5 | AX144: 38.5 | AY144: 9 | AZ144: 10 | BA144: 13 | BB144: 32 | BC144: 9 | BD144: 18 | BE144: 14 | BF144: 41 | BG144: 7.5 | BH144: 13.5 | BI144: 9.5 | BJ144: 30.5 | BK144: 8.5 | BL144: 17 | BM144: 16 | BN144: 41.5 | BO144: 8 | BP144: 16 | BQ144: 17 | BR144: 41 | BS144: 179.6 | BT144: 454 | BU144: 3.5 | BV144: 6 | BW144: 6 | BX144: 15.5 | BY144: 3 | BZ144: 7 | CA144: 7 | CB144: 17 | CC144: ناجح | CD144: و منقول للصف الثانى | CE144: 0 | CF144: 2 | CG144: 2/3 | DC144: 0 | DD144: 0
A145: 136 | B145: 136 | C145: طالب اولى 33 | D145: 1/1 | E145: 2003-06-24 | F145: 07 - 03 - 18 | G145: مصرى | H145: مسلم | I145: بنين | J145: انتظام | K145: صباحى | M145: 131 | N145: 8 | O145: 14 | P145: 14.5 | Q145: 36.5 | R145: 8 | S145: 15.6 | T145: 15.6 | U145: 39.2 | V145: 5.5 | W145: 6.8 | X145: 8.4 | Y145: 20.7 | Z145: 6.5 | AA145: 15 | AB145: 16 | AC145: 37.5 | AD145: 3.5 | AE145: 1 | AF145: 11 | AG145: 15.5 | AH145: 4 | AI145: 3 | AJ145: 8.5 | AK145: 6 | AL145: 7 | AM145: 5 | AN145: 19.5 | AO145: 14 | AP145: 33.5 | AQ145: 8.5 | AR145: 16 | AS145: 14 | AT145: 38.5 | AU145: 8 | AV145: 17.5 | AW145: 12 | AX145: 37.5 | AY145: 9 | AZ145: 9.5 | BA145: 9 | BB145: 27.5 | BC145: 9 | BD145: 17 | BE145: 13 | BF145: 39 | BG145: 7.5 | BH145: 11.5 | BI145: 13 | BJ145: 32 | BK145: 8.5 | BL145: 16 | BM145: 16 | BN145: 40.5 | BO145: 8 | BP145: 16 | BQ145: 15 | BR145: 39 | BS145: 170.4 | BT145: 436.9 | BU145: 3.5 | BV145: 6.5 | BW145: 6 | BX145: 16 | BY145: 3 | BZ145: 6.5 | CA145: 6.5 | CB145: 16 | CC145: ناجح | CD145: و منقول للصف الثانى | CE145: 0 | CF145: 2 | CG145: 2/3 | DC145: 0 | DD145: 0
A146: 137 | B146: 137 | C146: طالب اولى 34 | D146: 1/1 | E146: 2003-05-20 | F146: 12 - 04 - 18 | G146: مصرى | H146: مسلم | I146: بنين | J146: انتظام | K146: صباحى | M146: 132 | N146: 8 | O146: 11 | P146: 14 | Q146: 33 | R146: 8 | S146: 14.8 | T146: 16.8 | U146: 39.6 | V146: 4.5 | W146: 7.2 | X146: 9.6 | Y146: 21.3 | Z146: 7 | AA146: 15 | AB146: 16 | AC146: 38 | AD146: 3.5 | AE146: 4.5 | AF146: 10.5 | AG146: 18.5 | AH146: 4 | AI146: 2.5 | AJ146: 8.5 | AK146: 5 | AL146: 7 | AM146: 6 | AN146: 19.5 | AO146: 13.5 | AP146: 33 | AQ146: 8.5 | AR146: 16 | AS146: 9 | AT146: 33.5 | AU146: 8 | AV146: 13 | AW146: 11 | AX146: 32 | AY146: 9 | AZ146: 9.5 | BA146: 8 | BB146: 26.5 | BC146: 8 | BD146: 15 | BE146: 13 | BF146: 36 | BG146: 7.5 | BH146: 10 | BI146: 13 | BJ146: 30.5 | BK146: 8.5 | BL146: 13.5 | BM146: 15 | BN146: 37 | BO146: 8 | BP146: 15 | BQ146: 16 | BR146: 39 | BS146: 158 | BT146: 417.9 | BU146: 3.5 | BV146: 5.5 | BW146: 6 | BX146: 15 | BY146: 3 | BZ146: 6.5 | CA146: 5.5 | CB146: 15 | CC146: ناجح | CD146: و منقول للصف الثانى | CE146: 0 | CF146: 2 | CG146: 2/3 | DC146: 0 | DD146: 0
A147: 138 | B147: 138 | C147: طالب اولى 35 | D147: 1/1 | E147: 2003-04-27 | F147: 04 - 05 - 18 | G147: مصرى | H147: مسلم | I147: بنين | J147: انتظام | K147: صباحى | M147: 133 | N147: 7.5 | O147: 13 | P147: 12.5 | Q147: 33 | R147: 8 | S147: 14.4 | T147: 14 | U147: 36.4 | V147: 5.5 | W147: 6.4 | X147: 9.6 | Y147: 21.5 | Z147: 6.5 | AA147: 15 | AB147: 14 | AC147: 35.5 | AD147: 3.5 | AE147: 5 | AF147: 8 | AG147: 16.5 | AH147: 4 | AI147: 3 | AJ147: 8.5 | AK147: 6 | AL147: 7 | AM147: 6 | AN147: 19.5 | AO147: 15 | AP147: 34.5 | AQ147: 9 | AR147: 16 | AS147: 14 | AT147: 39 | AU147: 8 | AV147: 18 | AW147: 12.5 | AX147: 38.5 | AY147: 9 | AZ147: 13.5 | BA147: 14.5 | BB147: 37 | BC147: 9 | BD147: 15 | BE147: 13 | BF147: 37 | BG147: 7.5 | BH147: 10 | BI147: 14.5 | BJ147: 32 | BK147: 8.5 | BL147: 17.5 | BM147: 16 | BN147: 42 | BO147: 8 | BP147: 16 | BQ147: 16 | BR147: 40 | BS147: 174.3 | BT147: 442.9 | BU147: 3.5 | BV147: 5.5 | BW147: 6 | BX147: 15 | BY147: 3 | BZ147: 6.5 | CA147: 6.5 | CB147: 16 | CC147: ناجح | CD147: و منقول للصف الثانى | CE147: 0 | CF147: 2 | CG147: 2/3 | DC147: 0 | DD147: 0
A148: 139 | B148: 139 | C148: طالب اولى 36 | D148: 1/1 | E148: 2002-07-30 | F148: 02 - 02 - 19 | G148: مصرى | H148: مسلم | I148: بنين | J148: انتظام | K148: صباحى | M148: 134 | N148: 8 | O148: 10.5 | P148: 11.5 | Q148: 30 | R148: 8.5 | S148: 12 | T148: 10.8 | U148: 31.3 | V148: 5.5 | W148: 6 | X148: 9.2 | Y148: 20.7 | Z148: 7 | AA148: 13 | AB148: 14 | AC148: 34 | AD148: 3 | AE148: 2.5 | AF148: 9.5 | AG148: 15 | AH148: 4 | AI148: 3 | AJ148: 6 | AK148: 5 | AL148: 7 | AM148: 5 | AN148: 17 | AO148: 13 | AP148: 30 | AQ148: 8.5 | AR148: 16 | AS148: 11 | AT148: 35.5 | AU148: 9 | AV148: 18 | AW148: 13.5 | AX148: 40.5 | AY148: 9 | AZ148: 13.5 | BA148: 15 | BB148: 37.5 | BC148: 8.5 | BD148: 14.5 | BE148: 13 | BF148: 36 | BG148: 9 | BH148: 12 | BI148: 15 | BJ148: 36 | BK148: 9 | BL148: 14 | BM148: 11 | BN148: 34 | BO148: 8 | BP148: 18 | BQ148: 11 | BR148: 37 | BS148: 161 | BT148: 417.5 | BU148: 3.5 | BV148: 4.5 | BW148: 6 | BX148: 14 | BY148: 3.5 | BZ148: 6.5 | CA148: 6 | CB148: 16 | CC148: ناجح | CD148: و منقول للصف الثانى | CE148: 0 | CF148: 2 | CG148: 2/3 | DC148: 0 | DD148: 0
A149: 140 | B149: 140 | C149: طالب اولى 37 | D149: 1/1 | E149: 2003-05-18 | F149: 14 - 04 - 18 | G149: مصرى | H149: مسلم | I149: بنين | J149: انتظام | K149: صباحى | M149: 135 | N149: 8 | O149: 10.5 | P149: 10 | Q149: 28.5 | R149: 8.5 | S149: 12.4 | T149: 12.8 | U149: 33.7 | V149: 5.5 | W149: 6.8 | X149: 9.2 | Y149: 21.5 | Z149: 7 | AA149: 12 | AB149: 15 | AC149: 34 | AD149: 3 | AE149: 3.5 | AF149: 9 | AG149: 15.5 | AH149: 4 | AI149: 3 | AJ149: 6 | AK149: 5 | AL149: 6 | AM149: 6 | AN149: 16 | AO149: 14 | AP149: 30 | AQ149: 8.5 | AR149: 16 | AS149: 12 | AT149: 36.5 | AU149: 9 | AV149: 19 | AW149: 16 | AX149: 44 | AY149: 9 | AZ149: 13.5 | BA149: 17.5 | BB149: 40 | BC149: 8.5 | BD149: 14.5 | BE149: 15 | BF149: 38 | BG149: 9 | BH149: 14 | BI149: 14 | BJ149: 37 | BK149: 9 | BL149: 15 | BM149: 11 | BN149: 35 | BO149: 8 | BP149: 18 | BQ149: 9 | BR149: 35 | BS149: 166.2 | BT149: 428.7 | BU149: 3.5 | BV149: 5 | BW149: 6 | BX149: 14.5 | BY149: 3.5 | BZ149: 6 | CA149: 7 | CB149: 16.5 | CC149: ناجح | CD149: و منقول للصف الثانى | CE149: 0 | CF149: 2 | CG149: 2/3 | DC149: 0 | DD149: 0
A150: 141 | B150: 141 | C150: طالب اولى 38 | D150: 1/1 | E150: 2003-07-20 | F150: 12 - 02 - 18 | G150: مصرى | H150: مسلم | I150: بنين | J150: انتظام | K150: صباحى | M150: 136 | N150: 8 | O150: 13 | P150: 12.5 | Q150: 33.5 | R150: 8.5 | S150: 13.6 | T150: 11.6 | U150: 33.7 | V150: 5.5 | W150: 7.2 | X150: 9.6 | Y150: 22.3 | Z150: 7 | AA150: 16 | AB150: 14 | AC150: 37 | AD150: 3 | AE150: 9.5 | AF150: 9 | AG150: 21.5 | AH150: 4 | AI150: 3 | AJ150: 6 | AK150: 5 | AL150: 6 | AM150: 5 | AN150: 16 | AO150: 13 | AP150: 29 | AQ150: 8.5 | AR150: 16 | AS150: 15 | AT150: 39.5 | AU150: 8.5 | AV150: 16 | AW150: 14.5 | AX150: 39 | AY150: 9 | AZ150: 13 | BA150: 17.5 | BB150: 39.5 | BC150: 8.5 | BD150: 14.5 | BE150: 19 | BF150: 42 | BG150: 9 | BH150: 17.5 | BI150: 16 | BJ150: 42.5 | BK150: 9 | BL150: 17 | BM150: 15 | BN150: 41 | BO150: 8 | BP150: 18 | BQ150: 10 | BR150: 36 | BS150: 182.3 | BT150: 456.5 | BU150: 3.5 | BV150: 6.5 | BW150: 6 | BX150: 16 | BY150: 3.5 | BZ150: 6 | CA150: 6.5 | CB150: 16 | CC150: ناجح | CD150: و منقول للصف الثانى | CE150: 0 | CF150: 2 | CG150: 2/3 | DC150: 0 | DD150: 0
A151: 142 | B151: 142 | C151: طالب اولى 39 | D151: 1/1 | E151: 2003-09-29 | F151: 02 - 00 - 18 | G151: مصرى | H151: مسلم | I151: بنين | J151: انتظام | K151: صباحى | M151: 137 | N151: 8 | O151: 13.5 | P151: 13.5 | Q151: 35 | R151: 8.5 | S151: 12 | T151: 13.2 | U151: 33.7 | V151: 5.5 | W151: 5.6 | X151: 9.2 | Y151: 20.3 | Z151: 7 | AA151: 16 | AB151: 15 | AC151: 38 | AD151: 5.5 | AE151: 11 | AF151: 9.5 | AG151: 26 | AH151: 4 | AI151: 3 | AJ151: 6 | AK151: 5 | AL151: 6 | AM151: 6 | AN151: 16 | AO151: 14 | AP151: 30 | AQ151: 8.5 | AR151: 16 | AS151: 11 | AT151: 35.5 | AU151: 9 | AV151: 19 | AW151: 17.5 | AX151: 45.5 | AY151: 9 | AZ151: 11.5 | BA151: 16 | BB151: 36.5 | BC151: 8.5 | BD151: 14 | BE151: 18 | BF151: 40.5 | BG151: 9 | BH151: 14.5 | BI151: 18 | BJ151: 41.5 | BK151: 9 | BL151: 15.5 | BM151: 13 | BN151: 37.5 | BO151: 8 | BP151: 20 | BQ151: 13 | BR151: 41 | BS151: 179.6 | BT151: 461 | BU151: 3.5 | BV151: 5 | BW151: 6 | BX151: 14.5 | BY151: 3.5 | BZ151: 6.5 | CA151: 6.5 | CB151: 16.5 | CC151: ناجح | CD151: و منقول للصف الثانى | CE151: 0 | CF151: 3 | CG151: 3/3 | DC151: 0 | DD151: 0
A152: 143 | B152: 143 | C152: طالب اولى 4 | D152: 1/1 | E152: 2002-11-10 | F152: 21 - 10 - 18 | G152: مصرى | H152: مسلم | I152: بنين | J152: انتظام | K152: صباحى | M152: 74 | N152: 7.5 | O152: 10.5 | P152: 12.5 | Q152: 30.5 | R152: 8 | S152: 12.8 | T152: 15.6 | U152: 36.4 | V152: 5.5 | W152: 7.6 | X152: 9.6 | Y152: 22.7 | Z152: 6.5 | AA152: 16 | AB152: 15 | AC152: 37.5 | AD152: 3.5 | AE152: 5.5 | AF152: 9 | AG152: 18 | AH152: 4 | AI152: 3 | AJ152: 7.5 | AK152: 5 | AL152: 7 | AM152: 6 | AN152: 18.5 | AO152: 14 | AP152: 32.5 | AQ152: 8.5 | AR152: 14 | AS152: 15 | AT152: 37.5 | AU152: 8 | AV152: 15.5 | AW152: 12.5 | AX152: 36 | AY152: 9 | AZ152: 9.5 | BA152: 8 | BB152: 26.5 | BC152: 9 | BD152: 17 | BE152: 15 | BF152: 41 | BG152: 7.5 | BH152: 9.5 | BI152: 12.5 | BJ152: 29.5 | BK152: 8.5 | BL152: 17.5 | BM152: 13 | BN152: 39 | BO152: 8 | BP152: 16 | BQ152: 14 | BR152: 38 | BS152: 163.9 | BT152: 425.1 | BU152: 3.5 | BV152: 5 | BW152: 7.5 | BX152: 16 | BY152: 3 | BZ152: 6.5 | CA152: 6.5 | CB152: 16 | CC152: ناجح | CD152: و منقول للصف الثانى | CE152: 0 | CF152: 1 | CG152: 1/3 | DC152: 0 | DD152: 0
A153: 144 | B153: 144 | C153: طالب اولى 40 | D153: 1/1 | E153: 2003-09-11 | F153: 20 - 00 - 18 | G153: مصرى | H153: مسلم | I153: بنين | J153: انتظام | K153: صباحى | M153: 138 | N153: 8 | O153: 14.5 | P153: 16 | Q153: 38.5 | R153: 8.5 | S153: 14 | T153: 13.6 | U153: 36.1 | V153: 5.5 | W153: 7.2 | X153: 9.6 | Y153: 22.3 | Z153: 7 | AA153: 15 | AB153: 16 | AC153: 38 | AD153: 5.5 | AE153: 11 | AF153: 9 | AG153: 25.5 | AH153: 4 | AI153: 3 | AJ153: 6.5 | AK153: 6 | AL153: 6 | AM153: 6 | AN153: 16.5 | AO153: 15 | AP153: 31.5 | AQ153: 8.5 | AR153: 16 | AS153: 14 | AT153: 38.5 | AU153: 9 | AV153: 19 | AW153: 13.5 | AX153: 41.5 | AY153: 9 | AZ153: 17.5 | BA153: 17 | BB153: 43.5 | BC153: 8.5 | BD153: 15 | BE153: 17 | BF153: 40.5 | BG153: 9 | BH153: 18 | BI153: 17.5 | BJ153: 44.5 | BK153: 9 | BL153: 15.5 | BM153: 17 | BN153: 41.5 | BO153: 8 | BP153: 19.5 | BQ153: 12 | BR153: 39.5 | BS153: 194.7 | BT153: 481.4 | BU153: 3.5 | BV153: 4.5 | BW153: 6 | BX153: 14 | BY153: 3.5 | BZ153: 6.5 | CA153: 6.5 | CB153: 16.5 | CC153: ناجح | CD153: و منقول للصف الثانى | CE153: 0 | CF153: 3 | CG153: 3/3 | DC153: 0 | DD153: 0
A154: 145 | B154: 145 | C154: طالب اولى 41 | D154: 2/1 | E154: 2004-01-20 | F154: 12 - 08 - 17 | G154: مصرى | H154: مسلم | I154: بنين | J154: انتظام | K154: صباحى | M154: 139 | N154: 8 | O154: 13.5 | P154: 14 | Q154: 35.5 | R154: 8 | S154: 13.2 | T154: 12.4 | U154: 33.6 | V154: 5.5 | W154: 6.4 | X154: 9.6 | Y154: 21.5 | Z154: 7 | AA154: 16 | AB154: 16 | AC154: 39 | AD154: 5.5 | AE154: 10 | AF154: 10 | AG154: 25.5 | AH154: 4 | AI154: 3 | AJ154: 6.5 | AK154: 5 | AL154: 6 | AM154: 5 | AN154: 16.5 | AO154: 13 | AP154: 29.5 | AQ154: 8.5 | AR154: 16 | AS154: 15 | AT154: 39.5 | AU154: 8.5 | AV154: 18 | AW154: 13 | AX154: 39.5 | AY154: 9 | AZ154: 10.5 | BA154: 17.5 | BB154: 37 | BC154: 8.5 | BD154: 11.5 | BE154: 18 | BF154: 38 | BG154: 9 | BH154: 17 | BI154: 17 | BJ154: 43 | BK154: 9 | BL154: 17.5 | BM154: 15 | BN154: 41.5 | BO154: 8 | BP154: 20 | BQ154: 12 | BR154: 40 | BS154: 181.1 | BT154: 463.1 | BU154: 3.5 | BV154: 5 | BW154: 6 | BX154: 14.5 | BY154: 3.5 | BZ154: 6.5 | CA154: 7 | CB154: 17 | CC154: ناجح | CD154: و منقول للصف الثانى | CE154: 0 | CF154: 3 | CG154: 3/3 | DC154: 0 | DD154: 0
A155: 146 | B155: 146 | C155: طالب اولى 42 | D155: 2/1 | E155: 2003-11-29 | F155: 02 - 10 - 17 | G155: مصرى | H155: مسلم | I155: بنين | J155: انتظام | K155: صباحى | M155: 140 | N155: 8 | O155: 11 | P155: 13 | Q155: 32 | R155: 8 | S155: 12.8 | T155: 12 | U155: 32.8 | V155: 5.5 | W155: 6.8 | X155: 9.6 | Y155: 21.9 | Z155: 7 | AA155: 16 | AB155: 15 | AC155: 38 | AD155: 5.5 | AE155: 7 | AF155: 9.5 | AG155: 22 | AH155: 4 | AI155: 3 | AJ155: 6.5 | AK155: 6 | AL155: 6 | AM155: 6 | AN155: 16.5 | AO155: 15 | AP155: 31.5 | AQ155: 8.5 | AR155: 16 | AS155: 13 | AT155: 37.5 | AU155: 8.5 | AV155: 16.5 | AW155: 12.5 | AX155: 37.5 | AY155: 9 | AZ155: 10 | BA155: 16.5 | BB155: 35.5 | BC155: 8.5 | BD155: 15.5 | BE155: 18 | BF155: 42 | BG155: 9 | BH155: 17 | BI155: 17 | BJ155: 43 | BK155: 9 | BL155: 15 | BM155: 15 | BN155: 39 | BO155: 8 | BP155: 16 | BQ155: 10 | BR155: 34 | BS155: 172.1 | BT155: 446.7 | BU155: 3.5 | BV155: 5 | BW155: 7 | BX155: 15.5 | BY155: 3.5 | BZ155: 7 | CA155: 5.5 | CB155: 16 | CC155: ناجح | CD155: و منقول للصف الثانى | CE155: 0 | CF155: 3 | CG155: 3/3 | DC155: 0 | DD155: 0
A156: 147 | B156: 147 | C156: طالب اولى 43 | D156: 2/1 | E156: 2003-07-27 | F156: 05 - 02 - 18 | G156: مصرى | H156: مسلم | I156: بنين | J156: انتظام | K156: صباحى | M156: 141 | N156: 8 | O156: 14.5 | P156: 15.5 | Q156: 38 | R156: 8 | S156: 13.2 | T156: 13.6 | U156: 34.8 | V156: 5.5 | W156: 6.8 | X156: 9.6 | Y156: 21.9 | Z156: 7 | AA156: 16 | AB156: 15 | AC156: 38 | AD156: 5.5 | AE156: 10.5 | AF156: 10 | AG156: 26 | AH156: 4 | AI156: 3 | AJ156: 6.5 | AK156: 5 | AL156: 6 | AM156: 6 | AN156: 16.5 | AO156: 14 | AP156: 30.5 | AQ156: 8.5 | AR156: 16 | AS156: 16 | AT156: 40.5 | AU156: 9 | AV156: 19 | AW156: 16 | AX156: 44 | AY156: 9 | AZ156: 19.5 | BA156: 18 | BB156: 46.5 | BC156: 9 | BD156: 15 | BE156: 18 | BF156: 42 | BG156: 9 | BH156: 19 | BI156: 17.5 | BJ156: 45.5 | BK156: 9 | BL156: 16 | BM156: 15 | BN156: 40 | BO156: 8 | BP156: 20 | BQ156: 16 | BR156: 44 | BS156: 197 | BT156: 491.7 | BU156: 3.5 | BV156: 5.5 | BW156: 6 | BX156: 15 | BY156: 3.5 | BZ156: 7.5 | CA156: 7.5 | CB156: 18.5 | CC156: ناجح | CD156: و منقول للصف الثانى | CE156: 0 | CF156: 3 | CG156: 3/3 | DC156: 0 | DD156: 0
A157: 148 | B157: 148 | C157: طالب اولى 44 | D157: 2/1 | E157: 2004-02-01 | F157: 00 - 08 - 17 | G157: مصرى | H157: مسلم | I157: بنين | J157: انتظام | K157: صباحى | M157: 142 | N157: 8 | O157: 14 | P157: 13.5 | Q157: 35.5 | R157: 8 | S157: 13.6 | T157: 11.2 | U157: 32.8 | V157: 5.5 | W157: 7.6 | X157: 9.6 | Y157: 22.7 | Z157: 7 | AA157: 14 | AB157: 15 | AC157: 36 | AD157: 3 | AE157: 2 | AF157: 10 | AG157: 15 | AH157: 4 | AI157: 3 | AJ157: 6 | AK157: 5 | AL157: 6 | AM157: 5 | AN157: 16 | AO157: 13 | AP157: 29 | AQ157: 8.5 | AR157: 16 | AS157: 16 | AT157: 40.5 | AU157: 8.5 | AV157: 19 | AW157: 16 | AX157: 43.5 | AY157: 9 | AZ157: 17 | BA157: 16.5 | BB157: 42.5 | BC157: 8.5 | BD157: 12.5 | BE157: 18 | BF157: 39 | BG157: 9 | BH157: 14.5 | BI157: 18 | BJ157: 41.5 | BK157: 9 | BL157: 16 | BM157: 12 | BN157: 37 | BO157: 8 | BP157: 20 | BQ157: 8 | BR157: 36 | BS157: 177.2 | BT157: 451 | BU157: 3.5 | BV157: 7 | BW157: 7.5 | BX157: 18 | BY157: 3.5 | BZ157: 7 | CA157: 7 | CB157: 17.5 | CC157: ناجح | CD157: و منقول للصف الثانى | CE157: 0 | CF157: 3 | CG157: 3/3 | DC157: 0 | DD157: 0
A158: 149 | B158: 149 | C158: طالب اولى 45 | D158: 2/1 | E158: 2003-09-24 | F158: 07 - 00 - 18 | G158: مصرى | H158: مسلم | I158: بنين | J158: انتظام | K158: صباحى | M158: 143 | N158: 8 | O158: 13 | P158: 12.5 | Q158: 33.5 | R158: 8.2 | S158: 13.6 | T158: 11.6 | U158: 33.4 | V158: 5.5 | W158: 8 | X158: 9.6 | Y158: 23.1 | Z158: 7 | AA158: 15 | AB158: 15 | AC158: 37 | AD158: 5.5 | AE158: 8.5 | AF158: 10 | AG158: 24 | AH158: 4 | AI158: 3 | AJ158: 6.5 | AK158: 6 | AL158: 6 | AM158: 6 | AN158: 16.5 | AO158: 15 | AP158: 31.5 | AQ158: 8.5 | AR158: 17 | AS158: 16 | AT158: 41.5 | AU158: 9 | AV158: 19.5 | AW158: 15.5 | AX158: 44 | AY158: 9 | AZ158: 18.5 | BA158: 17.5 | BB158: 45 | BC158: 8.5 | BD158: 14.5 | BE158: 18 | BF158: 41 | BG158: 9 | BH158: 17.5 | BI158: 18 | BJ158: 44.5 | BK158: 9 | BL158: 13 | BM158: 15 | BN158: 37 | BO158: 8 | BP158: 20 | BQ158: 13 | BR158: 41 | BS158: 190.6 | BT158: 476.5 | BU158: 3.5 | BV158: 5.5 | BW158: 7.5 | BX158: 16.5 | BY158: 3.5 | BZ158: 7 | CA158: 7.5 | CB158: 18 | CC158: ناجح | CD158: و منقول للصف الثانى | CE158: 0 | CF158: 3 | CG158: 3/3 | DC158: 0 | DD158: 0
A159: 150 | B159: 150 | C159: طالب اولى 46 | D159: 2/1 | E159: 2002-03-04 | F159: 28 - 06 - 19 | G159: مصرى | H159: مسلم | I159: بنين | J159: انتظام | K159: صباحى | M159: 144 | N159: 8 | O159: 3.5 | P159: 13.5 | Q159: 25 | R159: 8.2 | S159: 8.8 | T159: 10.8 | U159: 27.8 | V159: 5.5 | W159: 4.4 | X159: 9.2 | Y159: 19.1 | Z159: 7 | AA159: 13 | AB159: 15 | AC159: 35 | AD159: 3 | AE159: 0 | AF159: 9 | AG159: 12 | AH159: 4 | AI159: 3 | AJ159: 7 | AK159: 5 | AL159: 5 | AM159: 5 | AN159: 16 | AO159: 13 | AP159: 29 | AQ159: 8.5 | AR159: 13 | AS159: 15 | AT159: 36.5 | AU159: 9 | AV159: 10.5 | AW159: 5.5 | AX159: 25 | AY159: 9 | AZ159: 2 | BA159: 9 | BB159: 20 | BC159: 8.5 | BD159: 12 | BE159: 15 | BF159: 35.5 | BG159: 9 | BH159: 11 | BI159: 11 | BJ159: 31 | BK159: 9 | BL159: 11 | BM159: 13 | BN159: 33 | BO159: 8 | BP159: 15 | BQ159: 5 | BR159: 28 | BS159: 116.2 | BT159: 356.9 | BU159: 3.5 | BV159: 4.5 | BW159: 6 | BX159: 14 | BY159: 3.5 | BZ159: 6.5 | CA159: 6.5 | CB159: 16.5 | CC159: دورثان | CD159: فى : رياضة عامة - سكرتارية اجنبية - | CE159: 2 | CF159: 3 | CG159: 3/3 | CQ159: رياضة عامة - | CU159: سكرتارية اجنبية - | DC159: 0 | DD159: 2
A160: 151 | B160: 151 | C160: طالب اولى 47 | D160: 2/1 | E160: 2003-01-05 | F160: 27 - 08 - 18 | G160: مصرى | H160: مسلم | I160: بنين | J160: انتظام | K160: صباحى | M160: 145 | N160: 8 | O160: 14.5 | P160: 13.5 | Q160: 36 | R160: 8.2 | S160: 14.4 | T160: 12 | U160: 34.6 | V160: 5.5 | W160: 6 | X160: 9.6 | Y160: 21.1 | Z160: 7 | AA160: 14 | AB160: 15 | AC160: 36 | AD160: 5.5 | AE160: 1.5 | AF160: 9.5 | AG160: 16.5 | AH160: 4 | AI160: 3 | AJ160: 6.5 | AK160: 6 | AL160: 5 | AM160: 5 | AN160: 15.5 | AO160: 14 | AP160: 29.5 | AQ160: 8.5 | AR160: 16 | AS160: 15 | AT160: 39.5 | AU160: 9 | AV160: 18 | AW160: 16 | AX160: 43 | AY160: 9 | AZ160: 13.5 | BA160: 17.5 | BB160: 40 | BC160: 8.5 | BD160: 15 | BE160: 18 | BF160: 41.5 | BG160: 9 | BH160: 15.5 | BI160: 16.5 | BJ160: 41 | BK160: 9 | BL160: 16.5 | BM160: 14 | BN160: 39.5 | BO160: 8 | BP160: 20 | BQ160: 13 | BR160: 41 | BS160: 177.4 | BT160: 459.2 | BU160: 3.5 | BV160: 5 | BW160: 7.5 | BX160: 16 | BY160: 3.5 | BZ160: 7 | CA160: 7 | CB160: 17.5 | CC160: ناجح | CD160: و منقول للصف الثانى | CE160: 0 | CF160: 3 | CG160: 3/3 | DC160: 0 | DD160: 0
A161: 152 | B161: 152 | C161: طالب اولى 48 | D161: 2/1 | E161: 2003-06-29 | F161: 02 - 03 - 18 | G161: مصرى | H161: مسلم | I161: بنين | J161: انتظام | K161: صباحى | M161: 146 | N161: 8 | O161: 11 | P161: 12.5 | Q161: 31.5 | R161: 8.2 | S161: 12.8 | T161: 11.2 | U161: 32.2 | V161: 5.5 | W161: 6.4 | X161: 9.2 | Y161: 21.1 | Z161: 7 | AA161: 15 | AB161: 15 | AC161: 37 | AD161: 5.5 | AE161: 6 | AF161: 9.5 | AG161: 21 | AH161: 4 | AI161: 3 | AJ161: 7.5 | AK161: 6 | AL161: 6 | AM161: 5 | AN161: 17.5 | AO161: 14 | AP161: 31.5 | AQ161: 8.5 | AR161: 16 | AS161: 16 | AT161: 40.5 | AU161: 8.5 | AV161: 18 | AW161: 12 | AX161: 38.5 | AY161: 9 | AZ161: 8.5 | BA161: 16 | BB161: 33.5 | BC161: 8.5 | BD161: 14 | BE161: 17 | BF161: 39.5 | BG161: 9 | BH161: 9.5 | BI161: 16 | BJ161: 34.5 | BK161: 9 | BL161: 15.5 | BM161: 13 | BN161: 37.5 | BO161: 8 | BP161: 17 | BQ161: 13 | BR161: 38 | BS161: 163.2 | BT161: 436.3 | BU161: 3.5 | BV161: 5 | BW161: 5.5 | BX161: 14 | BY161: 3.5 | BZ161: 7 | CA161: 7 | CB161: 17.5 | CC161: ناجح | CD161: و منقول للصف الثانى | CE161: 0 | CF161: 3 | CG161: 3/3 | DC161: 0 | DD161: 0
A162: 153 | B162: 153 | C162: طالب اولى 49 | D162: 2/1 | E162: 2003-09-19 | F162: 12 - 00 - 18 | G162: مصرى | H162: مسلم | I162: بنين | J162: انتظام | K162: صباحى | M162: 147 | N162: 8 | O162: 10.5 | P162: 9.5 | Q162: 28 | R162: 8.3 | S162: 12 | T162: 10.8 | U162: 31.1 | V162: 5.5 | W162: 6 | X162: 8.8 | Y162: 20.3 | Z162: 7 | AA162: 13 | AB162: 13 | AC162: 33 | AD162: 3 | AE162: 3 | AF162: 9 | AG162: 15 | AH162: 4 | AI162: 3 | AJ162: 7.5 | AK162: 5 | AL162: 6 | AM162: 6 | AN162: 17.5 | AO162: 14 | AP162: 31.5 | AQ162: 8.5 | AR162: 16 | AS162: 16 | AT162: 40.5 | AU162: 8.5 | AV162: 15 | AW162: 12 | AX162: 35.5 | AY162: 9 | AZ162: 7 | BA162: 15.5 | BB162: 31.5 | BC162: 8.5 | BD162: 15 | BE162: 18 | BF162: 41.5 | BG162: 9 | BH162: 7.5 | BI162: 10 | BJ162: 26.5 | BK162: 9 | BL162: 12.5 | BM162: 12 | BN162: 33.5 | BO162: 8 | BP162: 18.5 | BQ162: 8 | BR162: 34.5 | BS162: 148.5 | BT162: 402.4 | BU162: 3.5 | BV162: 4.5 | BW162: 6.5 | BX162: 14.5 | BY162: 3.5 | BZ162: 6.5 | CA162: 7 | CB162: 17 | CC162: ناجح | CD162: و منقول للصف الثانى | CE162: 0 | CF162: 3 | CG162: 3/3 | DC162: 0 | DD162: 0
A163: 154 | B163: 154 | C163: طالب اولى 5 | D163: 1/1 | E163: 2003-02-16 | F163: 13 - 07 - 18 | G163: مصرى | H163: مسلم | I163: بنين | J163: انتظام | K163: صباحى | M163: 75 | N163: 8 | O163: 10 | P163: 9 | Q163: 27 | R163: 8 | S163: 11.6 | T163: 5.6 | U163: 25.2 | V163: 5.5 | W163: 6.8 | X163: 7.6 | Y163: 19.9 | Z163: 6.5 | AA163: 15 | AB163: 12 | AC163: 33.5 | AD163: 3.5 | AE163: 3 | AF163: 8.5 | AG163: 15 | AH163: 4 | AI163: 3 | AJ163: 7 | AK163: 6 | AL163: 4 | AM163: 5 | AN163: 15 | AO163: 14 | AP163: 29 | AQ163: 8.5 | AR163: 19 | AS163: 13 | AT163: 40.5 | AU163: 8 | AV163: 15.5 | AW163: 6 | AX163: 29.5 | AY163: 9 | AZ163: 8 | BA163: 8.5 | BB163: 25.5 | BC163: 9 | BD163: 17 | BE163: 12 | BF163: 38 | BG163: 7.5 | BH163: 15.5 | BI163: 9 | BJ163: 32 | BK163: 8.5 | BL163: 17 | BM163: 11 | BN163: 36.5 | BO163: 8 | BP163: 16 | BQ163: 13 | BR163: 37 | BS163: 167.4 | BT163: 388.6 | BU163: 3.5 | BV163: 3 | BW163: 5.5 | BX163: 12 | BY163: 3 | BZ163: 6 | CA163: 5.5 | CB163: 14.5 | CC163: ناجح | CD163: و منقول للصف الثانى | CE163: 0 | CF163: 1 | CG163: 1/3 | DC163: 0 | DD163: 0
A164: 155 | B164: 155 | C164: طالب اولى 50 | D164: 2/1 | E164: 2003-09-14 | F164: 17 - 00 - 18 | G164: مصرى | H164: مسلم | I164: بنين | J164: انتظام | K164: صباحى | M164: 148 | N164: 8 | O164: 14 | P164: 16 | Q164: 38 | R164: 8.3 | S164: 14 | T164: 11.2 | U164: 33.5 | V164: 5.5 | W164: 8 | X164: 9.6 | Y164: 23.1 | Z164: 7 | AA164: 15 | AB164: 15 | AC164: 37 | AD164: 5.5 | AE164: 10.5 | AF164: 9.5 | AG164: 25.5 | AH164: 4 | AI164: 3 | AJ164: 6.5 | AK164: 6 | AL164: 6 | AM164: 6 | AN164: 16.5 | AO164: 15 | AP164: 31.5 | AQ164: 8.5 | AR164: 17 | AS164: 15 | AT164: 40.5 | AU164: 9 | AV164: 19 | AW164: 15.5 | AX164: 43.5 | AY164: 9 | AZ164: 13.5 | BA164: 18 | BB164: 40.5 | BC164: 8.5 | BD164: 16 | BE164: 18 | BF164: 42.5 | BG164: 9 | BH164: 16.5 | BI164: 18 | BJ164: 43.5 | BK164: 9 | BL164: 12.5 | BM164: 14 | BN164: 35.5 | BO164: 8 | BP164: 20 | BQ164: 12 | BR164: 40 | BS164: 188.5 | BT164: 474.6 | BU164: 3.5 | BV164: 6 | BW164: 6 | BX164: 15.5 | BY164: 3.5 | BZ164: 6.5 | CA164: 7.5 | CB164: 17.5 | CC164: ناجح | CD164: و منقول للصف الثانى | CE164: 0 | CF164: 3 | CG164: 3/3 | DC164: 0 | DD164: 0
A165: 156 | B165: 156 | C165: طالب اولى 51 | D165: 2/1 | E165: 2003-08-23 | F165: 09 - 01 - 18 | G165: مصرى | H165: مسلم | I165: بنين | J165: انتظام | K165: صباحى | M165: 149 | N165: 8 | O165: 14 | P165: 13.5 | Q165: 35.5 | R165: 8.3 | S165: 12.8 | T165: 10.4 | U165: 31.5 | V165: 5.5 | W165: 8.4 | X165: 9.6 | Y165: 23.5 | Z165: 7 | AA165: 15 | AB165: 15 | AC165: 37 | AD165: 5.5 | AE165: 11 | AF165: 9.5 | AG165: 26 | AH165: 4 | AI165: 3 | AJ165: 6.5 | AK165: 6 | AL165: 6 | AM165: 5 | AN165: 16.5 | AO165: 14 | AP165: 30.5 | AQ165: 8.5 | AR165: 17 | AS165: 15 | AT165: 40.5 | AU165: 9 | AV165: 19 | AW165: 17 | AX165: 45 | AY165: 9 | AZ165: 14 | BA165: 17.5 | BB165: 40.5 | BC165: 8.5 | BD165: 17 | BE165: 18 | BF165: 43.5 | BG165: 9 | BH165: 16.5 | BI165: 18.5 | BJ165: 44 | BK165: 9 | BL165: 12.5 | BM165: 14 | BN165: 35.5 | BO165: 8 | BP165: 20 | BQ165: 12 | BR165: 40 | BS165: 189.7 | BT165: 473 | BU165: 3.5 | BV165: 7 | BW165: 7.5 | BX165: 18 | BY165: 3.5 | BZ165: 7 | CA165: 7.5 | CB165: 18 | CC165: ناجح | CD165: و منقول للصف الثانى | CE165: 0 | CF165: 3 | CG165: 3/3 | DC165: 0 | DD165: 0
A166: 157 | B166: 157 | C166: طالب اولى 52 | D166: 2/1 | E166: 2004-01-25 | F166: 07 - 08 - 17 | G166: مصرى | H166: مسلم | I166: بنين | J166: انتظام | K166: صباحى | M166: 150 | N166: 8 | O166: 13.5 | P166: 14 | Q166: 35.5 | R166: 8.3 | S166: 12.4 | T166: 10.4 | U166: 31.1 | V166: 5.5 | W166: 8 | X166: 9.6 | Y166: 23.1 | Z166: 7 | AA166: 16 | AB166: 16 | AC166: 39 | AD166: 5.5 | AE166: 10 | AF166: 9.5 | AG166: 25 | AH166: 4 | AI166: 3 | AJ166: 6.5 | AK166: 5 | AL166: 6 | AM166: 6 | AN166: 16.5 | AO166: 14 | AP166: 30.5 | AQ166: 8.5 | AR166: 17 | AS166: 15 | AT166: 40.5 | AU166: 9 | AV166: 19.5 | AW166: 16 | AX166: 44.5 | AY166: 9 | AZ166: 17.5 | BA166: 17.5 | BB166: 44 | BC166: 8.5 | BD166: 17 | BE166: 18 | BF166: 43.5 | BG166: 9 | BH166: 18.5 | BI166: 16 | BJ166: 43.5 | BK166: 9 | BL166: 14.5 | BM166: 16 | BN166: 39.5 | BO166: 8 | BP166: 20 | BQ166: 16 | BR166: 44 | BS166: 195.4 | BT166: 483.7 | BU166: 3.5 | BV166: 4.5 | BW166: 7.5 | BX166: 15.5 | BY166: 3.5 | BZ166: 7 | CA166: 7 | CB166: 17.5 | CC166: ناجح | CD166: و منقول للصف الثانى | CE166: 0 | CF166: 3 | CG166: 3/3 | DC166: 0 | DD166: 0
A167: 158 | B167: 158 | C167: طالب اولى 53 | D167: 2/1 | E167: 2003-12-15 | F167: 17 - 09 - 17 | G167: مصرى | H167: مسلم | I167: بنين | J167: انتظام | K167: صباحى | M167: 151 | N167: 8 | O167: 12.5 | P167: 14 | Q167: 34.5 | R167: 8.4 | S167: 10 | T167: 10.4 | U167: 28.8 | V167: 5.5 | W167: 7.6 | X167: 9.6 | Y167: 22.7 | Z167: 7 | AA167: 14 | AB167: 15 | AC167: 36 | AD167: 5.5 | AE167: 5 | AF167: 9.5 | AG167: 20 | AH167: 4 | AI167: 3 | AJ167: 6.5 | AK167: 5 | AL167: 6 | AM167: 6 | AN167: 16.5 | AO167: 14 | AP167: 30.5 | AQ167: 8.5 | AR167: 17 | AS167: 14 | AT167: 39.5 | AU167: 9 | AV167: 19 | AW167: 13.5 | AX167: 41.5 | AY167: 9 | AZ167: 13 | BA167: 17 | BB167: 39 | BC167: 8.5 | BD167: 16 | BE167: 18 | BF167: 42.5 | BG167: 9 | BH167: 11.5 | BI167: 14 | BJ167: 34.5 | BK167: 9 | BL167: 13.5 | BM167: 13 | BN167: 35.5 | BO167: 8 | BP167: 18 | BQ167: 12 | BR167: 38 | BS167: 168.6 | BT167: 443 | BU167: 3.5 | BV167: 4 | BW167: 7 | BX167: 14.5 | BY167: 3.5 | BZ167: 7 | CA167: 7.5 | CB167: 18 | CC167: ناجح | CD167: و منقول للصف الثانى | CE167: 0 | CF167: 3 | CG167: 3/3 | DC167: 0 | DD167: 0
A168: 159 | B168: 159 | C168: طالب اولى 54 | D168: 2/1 | E168: 2003-09-28 | F168: 03 - 00 - 18 | G168: مصرى | H168: مسلم | I168: بنين | J168: انتظام | K168: صباحى | M168: 152 | N168: 8 | O168: 14 | P168: 14.5 | Q168: 36.5 | R168: 8.4 | S168: 10.8 | T168: 16.8 | U168: 36 | V168: 5.5 | W168: 6.8 | X168: 6.4 | Y168: 18.7 | Z168: 7 | AA168: 16 | AB168: 13 | AC168: 36 | AD168: 3 | AE168: 9 | AF168: 9 | AG168: 21 | AH168: 4 | AI168: 3 | AJ168: 9 | AK168: 6 | AL168: 6 | AM168: 5 | AN168: 19 | AO168: 14 | AP168: 33 | AQ168: 8.5 | AR168: 18 | AS168: 14 | AT168: 40.5 | AU168: 9 | AV168: 17.5 | AW168: 16 | AX168: 42.5 | AY168: 9 | AZ168: 15 | BA168: 16.5 | BB168: 40.5 | BC168: 8.5 | BD168: 16 | BE168: 18 | BF168: 42.5 | BG168: 9 | BH168: 16.5 | BI168: 14.5 | BJ168: 40 | BK168: 9 | BL168: 18 | BM168: 15 | BN168: 42 | BO168: 8 | BP168: 18 | BQ168: 18 | BR168: 44 | BS168: 190.6 | BT168: 473.2 | BU168: 3.5 | BV168: 5 | BW168: 7 | BX168: 15.5 | BY168: 3.5 | BZ168: 6.5 | CA168: 6 | CB168: 16 | CC168: ناجح | CD168: و منقول للصف الثانى | CE168: 0 | CF168: 3 | CG168: 3/3 | DC168: 0 | DD168: 0
A169: 160 | B169: 160 | C169: طالب اولى 55 | D169: 2/1 | E169: 2004-01-24 | F169: 08 - 08 - 17 | G169: مصرى | H169: مسلم | I169: بنين | J169: انتظام | K169: صباحى | M169: 153 | N169: 8 | O169: 10.5 | P169: 6.5 | Q169: 25 | R169: 8.4 | S169: 8.4 | T169: 15.2 | U169: 32 | V169: 5.5 | W169: 8.4 | X169: 6 | Y169: 19.9 | Z169: 7 | AA169: 16 | AB169: 11 | AC169: 34 | AD169: 5.5 | AE169: 7.5 | AF169: 8 | AG169: 21 | AH169: 4 | AI169: 3 | AJ169: 9 | AK169: 6 | AL169: 7 | AM169: 5 | AN169: 20 | AO169: 14 | AP169: 34 | AQ169: 8.5 | AR169: 13 | AS169: 11 | AT169: 32.5 | AU169: 9 | AV169: 10.5 | AW169: 14 | AX169: 33.5 | AY169: 9 | AZ169: 9 | BA169: 10 | BB169: 28 | BC169: 8.5 | BD169: 15.5 | BE169: 19 | BF169: 43 | BG169: 9 | BH169: 0 | BI169: 16 | BJ169: 25 | BK169: 9 | BL169: 13.5 | BM169: 12 | BN169: 34.5 | BO169: 8 | BP169: 16 | BQ169: 18 | BR169: 42 | BS169: 143.3 | BT169: 404.4 | BU169: 3.5 | BV169: 3.5 | BW169: 7 | BX169: 14 | BY169: 3.5 | BZ169: 5.5 | CA169: 6.5 | CB169: 15.5 | CC169: ناجح | CD169: و منقول للصف الثانى | CE169: 0 | CF169: 3 | CG169: 3/3 | DC169: 0 | DD169: 0
A170: 161 | B170: 161 | C170: طالب اولى 56 | D170: 2/1 | E170: 2003-09-20 | F170: 11 - 00 - 18 | G170: مصرى | H170: مسلم | I170: بنين | J170: انتظام | K170: صباحى | M170: 154 | N170: 8 | O170: 14 | P170: 12 | Q170: 34 | R170: 8.4 | S170: 9.2 | T170: 14.8 | U170: 32.4 | V170: 5.5 | W170: 6.4 | X170: 6 | Y170: 17.9 | Z170: 7 | AA170: 16 | AB170: 12 | AC170: 35 | AD170: 5.5 | AE170: 4.5 | AF170: 6 | AG170: 16 | AH170: 4 | AI170: 3 | AJ170: 9 | AK170: 5 | AL170: 5 | AM170: 6 | AN170: 18 | AO170: 14 | AP170: 32 | AQ170: 8.5 | AR170: 18 | AS170: 15 | AT170: 41.5 | AU170: 9 | AV170: 15 | AW170: 17.5 | AX170: 41.5 | AY170: 9 | AZ170: 9 | BA170: 9 | BB170: 27 | BC170: 8.5 | BD170: 15.5 | BE170: 17 | BF170: 41 | BG170: 9 | BH170: 2.5 | BI170: 13.5 | BJ170: 25 | BK170: 9 | BL170: 16 | BM170: 13 | BN170: 38 | BO170: 8 | BP170: 15 | BQ170: 17 | BR170: 40 | BS170: 155.1 | BT170: 421.3 | BU170: 3.5 | BV170: 5 | BW170: 7 | BX170: 15.5 | BY170: 3.5 | BZ170: 5.5 | CA170: 7 | CB170: 16 | CC170: ناجح | CD170: و منقول للصف الثانى | CE170: 0 | CF170: 3 | CG170: 3/3 | DC170: 0 | DD170: 0
A171: 162 | B171: 162 | C171: طالب اولى 57 | D171: 2/1 | E171: 2003-03-19 | F171: 13 - 06 - 18 | G171: مصرى | H171: مسلم | I171: بنين | J171: انتظام | K171: صباحى | M171: 99 | N171: 8 | O171: 12 | P171: 5 | Q171: 25 | R171: 8.1 | S171: 8.8 | T171: 16 | U171: 32.9 | V171: 5.5 | W171: 6.4 | X171: 6.4 | Y171: 18.3 | Z171: 7 | AA171: 16 | AB171: 10 | AC171: 33 | AD171: 3 | AE171: 5.5 | AF171: 7 | AG171: 15.5 | AH171: 4 | AI171: 3 | AJ171: 9 | AK171: 5 | AL171: 5 | AM171: 5 | AN171: 18 | AO171: 13 | AP171: 31 | AQ171: 8.5 | AR171: 17 | AS171: 17 | AT171: 42.5 | AU171: 9 | AV171: 15.5 | AW171: 17 | AX171: 41.5 | AY171: 9 | AZ171: 7 | BA171: 10 | BB171: 26 | BC171: 8.5 | BD171: 15.5 | BE171: 19 | BF171: 43 | BG171: 9 | BH171: 1 | BI171: 15 | BJ171: 25 | BK171: 9 | BL171: غ | BM171: 16.5 | BN171: 25.5 | BO171: 8 | BP171: 15 | BQ171: 17 | BR171: 40 | BS171: 133.7 | BT171: 399.2 | BU171: 3.5 | BV171: 4 | BW171: 7 | BX171: 14.5 | BY171: 3.5 | BZ171: 6 | CA171: 6 | CB171: 15.5 | CC171: ناجح | CD171: و منقول للصف الثانى | CE171: 0 | CF171: 3 | CG171: 3/3 | DC171: 0 | DD171: 0
A172: 163 | B172: 163 | C172: طالب اولى 58 | D172: 2/1 | E172: 2004-01-15 | F172: 17 - 08 - 17 | G172: مصرى | H172: مسلم | I172: بنين | J172: انتظام | K172: صباحى | M172: 100 | N172: 8 | O172: 12.5 | P172: 12 | Q172: 32.5 | R172: 8.3 | S172: 9.2 | T172: 14.4 | U172: 31.9 | V172: 5.5 | W172: 6 | X172: 7.2 | Y172: 18.7 | Z172: 7 | AA172: 15 | AB172: 13 | AC172: 35 | AD172: 5.5 | AE172: 9.5 | AF172: 9 | AG172: 24 | AH172: 4 | AI172: 3 | AJ172: 9 | AK172: 6 | AL172: 6 | AM172: 5 | AN172: 19 | AO172: 14 | AP172: 33 | AQ172: 8.5 | AR172: 14 | AS172: 14 | AT172: 36.5 | AU172: 9 | AV172: 19.5 | AW172: 16.5 | AX172: 45 | AY172: 9 | AZ172: 17.5 | BA172: 15.5 | BB172: 42 | BC172: 8.5 | BD172: 15.5 | BE172: 18 | BF172: 42 | BG172: 9 | BH172: 16.5 | BI172: 16 | BJ172: 41.5 | BK172: 9 | BL172: 16 | BM172: 14.5 | BN172: 39.5 | BO172: 8 | BP172: 16.5 | BQ172: 17 | BR172: 41.5 | BS172: 182.7 | BT172: 463.1 | BU172: 3.5 | BV172: 6.5 | BW172: 7.5 | BX172: 17.5 | BY172: 3.5 | BZ172: 6 | CA172: 7.5 | CB172: 17 | CC172: ناجح | CD172: و منقول للصف الثانى | CE172: 0 | CF172: 4 | CG172: 4/3 | DC172: 0 | DD172: 0
A173: 164 | B173: 164 | C173: طالب اولى 59 | D173: 2/1 | E173: 2003-08-08 | F173: 24 - 01 - 18 | G173: مصرى | H173: مسلم | I173: بنين | J173: انتظام | K173: صباحى | M173: 101 | N173: 8 | O173: 14.5 | P173: 13 | Q173: 35.5 | R173: 8.5 | S173: 8.8 | T173: 15.6 | U173: 32.9 | V173: 5.5 | W173: 6.4 | X173: 5.6 | Y173: 17.5 | Z173: 7 | AA173: 16 | AB173: 11 | AC173: 34 | AD173: 3 | AE173: 8.5 | AF173: 10 | AG173: 21.5 | AH173: 4 | AI173: 3 | AJ173: 9 | AK173: 5 | AL173: 6 | AM173: 6 | AN173: 19 | AO173: 14 | AP173: 33 | AQ173: 8.5 | AR173: 18 | AS173: 15 | AT173: 41.5 | AU173: 9.5 | AV173: 12 | AW173: 16 | AX173: 37.5 | AY173: 9 | AZ173: 17.5 | BA173: 13.5 | BB173: 40 | BC173: 8.5 | BD173: 15.5 | BE173: 19 | BF173: 43 | BG173: 9 | BH173: 15 | BI173: 16 | BJ173: 40 | BK173: 9 | BL173: 16 | BM173: 11.5 | BN173: 36.5 | BO173: 8 | BP173: 17 | BQ173: 17 | BR173: 42 | BS173: 179.2 | BT173: 454.9 | BU173: 3.5 | BV173: 6 | BW173: 7.5 | BX173: 17 | BY173: 3.5 | BZ173: 7 | CA173: 7.5 | CB173: 18 | CC173: ناجح | CD173: و منقول للصف الثانى | CE173: 0 | CF173: 4 | CG173: 4/3 | DC173: 0 | DD173: 0
A174: 165 | B174: 165 | C174: طالب اولى 6 | D174: 1/1 | E174: 2003-03-12 | F174: 20 - 06 - 18 | G174: مصرى | H174: مسلم | I174: بنين | J174: انتظام | K174: صباحى | M174: 76 | N174: 8 | O174: 12.5 | P174: 12.5 | Q174: 33 | R174: 8 | S174: 11.6 | T174: 10.8 | U174: 30.4 | V174: 5.5 | W174: 7.6 | X174: 9.2 | Y174: 22.3 | Z174: 6.5 | AA174: 15 | AB174: 15 | AC174: 36.5 | AD174: 3.5 | AE174: 5 | AF174: 7.5 | AG174: 16 | AH174: 4 | AI174: 3 | AJ174: 7.5 | AK174: 5 | AL174: 7 | AM174: 5 | AN174: 18.5 | AO174: 13 | AP174: 31.5 | AQ174: 8.5 | AR174: 14 | AS174: 13 | AT174: 35.5 | AU174: 8.5 | AV174: 15 | AW174: 11.5 | AX174: 35 | AY174: 9 | AZ174: 8 | BA174: 1.5 | BB174: 18.5 | BC174: 8.5 | BD174: 17 | BE174: 15 | BF174: 40.5 | BG174: 8 | BH174: 10.5 | BI174: 8.5 | BJ174: 27 | BK174: 8.5 | BL174: 16.5 | BM174: 13 | BN174: 38 | BO174: 8 | BP174: 16 | BQ174: 14 | BR174: 38 | BS174: 161.2 | BT174: 402.2 | BU174: 3.5 | BV174: 5 | BW174: 7 | BX174: 15.5 | BY174: 3 | BZ174: 6 | CA174: 6 | CB174: 15 | CC174: دورثان | CD174: فى : سكرتارية اجنبية - | CE174: 1 | CF174: 1 | CG174: 1/3 | CU174: سكرتارية اجنبية - | DC174: 0 | DD174: 1
A175: 166 | B175: 166 | C175: طالب اولى 60 | D175: 2/1 | E175: 2003-02-02 | F175: 27 - 07 - 18 | G175: مصرى | H175: مسلم | I175: بنين | J175: انتظام | K175: صباحى | M175: 102 | N175: 8 | O175: 15 | P175: 12 | Q175: 35 | R175: 8.4 | S175: 9.2 | T175: 18 | U175: 35.6 | V175: 5.5 | W175: 7.2 | X175: 6 | Y175: 18.7 | Z175: 7 | AA175: 16 | AB175: 13 | AC175: 36 | AD175: 5.5 | AE175: 10 | AF175: 8 | AG175: 23.5 | AH175: 4 | AI175: 3 | AJ175: 9 | AK175: 6 | AL175: 6 | AM175: 6 | AN175: 19 | AO175: 15 | AP175: 34 | AQ175: 8.5 | AR175: 18 | AS175: 17 | AT175: 43.5 | AU175: 9 | AV175: 18.5 | AW175: 17 | AX175: 44.5 | AY175: 9 | AZ175: 18.5 | BA175: 12 | BB175: 39.5 | BC175: 8.5 | BD175: 15.5 | BE175: 18 | BF175: 42 | BG175: 9 | BH175: 13.5 | BI175: 17 | BJ175: 39.5 | BK175: 9 | BL175: 18 | BM175: 14 | BN175: 41 | BO175: 8 | BP175: 19.5 | BQ175: 17 | BR175: 44.5 | BS175: 193.9 | BT175: 477.3 | BU175: 3.5 | BV175: 7 | BW175: 8 | BX175: 18.5 | BY175: 3.5 | BZ175: 6.5 | CA175: 8 | CB175: 18 | CC175: ناجح | CD175: و منقول للصف الثانى | CE175: 0 | CF175: 4 | CG175: 4/3 | DC175: 0 | DD175: 0
A176: 167 | B176: 167 | C176: طالب اولى 61 | D176: 2/1 | E176: 2003-10-27 | F176: 05 - 11 - 17 | G176: مصرى | H176: مسلم | I176: بنين | J176: انتظام | K176: صباحى | M176: 103 | N176: 8 | O176: 14.5 | P176: 12 | Q176: 34.5 | R176: 8.2 | S176: 10 | T176: 18 | U176: 36.2 | V176: 5.5 | W176: 7.6 | X176: 6.8 | Y176: 19.9 | Z176: 7 | AA176: 15 | AB176: 11 | AC176: 33 | AD176: 5.5 | AE176: 10 | AF176: 10 | AG176: 25.5 | AH176: 4 | AI176: 3 | AJ176: 8 | AK176: 6 | AL176: 6 | AM176: 5 | AN176: 18 | AO176: 14 | AP176: 32 | AQ176: 8.5 | AR176: 18 | AS176: 17 | AT176: 43.5 | AU176: 9 | AV176: 17.5 | AW176: 17 | AX176: 43.5 | AY176: 9 | AZ176: 18.5 | BA176: 13.5 | BB176: 41 | BC176: 9 | BD176: 15.5 | BE176: 20 | BF176: 44.5 | BG176: 9 | BH176: 16 | BI176: 19 | BJ176: 44 | BK176: 9 | BL176: 17 | BM176: 16 | BN176: 42 | BO176: 8 | BP176: 17.5 | BQ176: 17 | BR176: 42.5 | BS176: 191.1 | BT176: 482.1 | BU176: 3.5 | BV176: 5.5 | BW176: 8 | BX176: 17 | BY176: 3.5 | BZ176: 6.5 | CA176: 5.5 | CB176: 15.5 | CC176: ناجح | CD176: و منقول للصف الثانى | CE176: 0 | CF176: 4 | CG176: 4/3 | DC176: 0 | DD176: 0
A177: 168 | B177: 168 | C177: طالب اولى 62 | D177: 2/1 | E177: 2003-11-22 | F177: 09 - 10 - 17 | G177: مصرى | H177: مسلم | I177: بنين | J177: انتظام | K177: صباحى | M177: 104 | N177: 8 | O177: 14.5 | P177: 9 | Q177: 31.5 | R177: 8.2 | S177: 10.4 | T177: 17.2 | U177: 35.8 | V177: 5.5 | W177: 6.4 | X177: 6.4 | Y177: 18.3 | Z177: 7 | AA177: 16 | AB177: 11 | AC177: 34 | AD177: 3 | AE177: 5 | AF177: 7 | AG177: 15 | AH177: 4 | AI177: 3 | AJ177: 9 | AK177: 6 | AL177: 6 | AM177: 5 | AN177: 19 | AO177: 14 | AP177: 33 | AQ177: 8.5 | AR177: 14 | AS177: 16 | AT177: 38.5 | AU177: 9 | AV177: 11 | AW177: 17 | AX177: 37 | AY177: 9 | AZ177: 10.5 | BA177: 9.5 | BB177: 29 | BC177: 8.5 | BD177: 15.5 | BE177: 19 | BF177: 43 | BG177: 9 | BH177: 0.5 | BI177: 15.5 | BJ177: 25 | BK177: 9 | BL177: 17 | BM177: 15 | BN177: 41 | BO177: 8 | BP177: 15.5 | BQ177: 16 | BR177: 39.5 | BS177: 151.3 | BT177: 420.6 | BU177: 3.5 | BV177: 5 | BW177: 7.5 | BX177: 16 | BY177: 3.5 | BZ177: 7 | CA177: 7.5 | CB177: 18 | CC177: ناجح | CD177: و منقول للصف الثانى | CE177: 0 | CF177: 4 | CG177: 4/3 | DC177: 0 | DD177: 0
A178: 169 | B178: 169 | C178: طالب اولى 63 | D178: 2/1 | E178: 2002-01-01 | F178: 00 - 09 - 19 | G178: مصرى | H178: مسلم | I178: بنين | J178: انتظام | K178: صباحى | M178: 105 | N178: 8 | O178: 14 | P178: 8.5 | Q178: 30.5 | R178: 8.3 | S178: 8.8 | T178: 16.8 | U178: 33.9 | V178: 5.5 | W178: 7.6 | X178: 6.4 | Y178: 19.5 | Z178: 7 | AA178: 16 | AB178: 11 | AC178: 34 | AD178: 3 | AE178: 5.5 | AF178: 6.5 | AG178: 15 | AH178: 4 | AI178: 3 | AJ178: 9 | AK178: 5 | AL178: 6 | AM178: 6 | AN178: 19 | AO178: 14 | AP178: 33 | AQ178: 8.5 | AR178: 14 | AS178: 17 | AT178: 39.5 | AU178: 9 | AV178: 16.5 | AW178: 15 | AX178: 40.5 | AY178: 9 | AZ178: 9 | BA178: 11.5 | BB178: 29.5 | BC178: 9 | BD178: 15.5 | BE178: 19 | BF178: 43.5 | BG178: 8.5 | BH178: 1.5 | BI178: 15 | BJ178: 25 | BK178: 9 | BL178: 17 | BM178: 15 | BN178: 41 | BO178: 8 | BP178: 14 | BQ178: 17 | BR178: 39 | BS178: 153.4 | BT178: 423.9 | BU178: 3.5 | BV178: 4.5 | BW178: 7.5 | BX178: 15.5 | BY178: 3.5 | BZ178: 6 | CA178: 8 | CB178: 17.5 | CC178: ناجح | CD178: و منقول للصف الثانى | CE178: 0 | CF178: 4 | CG178: 4/3 | DC178: 0 | DD178: 0
A179: 170 | B179: 170 | C179: طالب اولى 64 | D179: 2/1 | E179: 2003-04-04 | F179: 27 - 05 - 18 | G179: مصرى | H179: مسلم | I179: بنين | J179: انتظام | K179: صباحى | M179: 106 | N179: 8 | O179: 13.5 | P179: 11 | Q179: 32.5 | R179: 8.3 | S179: 11.2 | T179: 16 | U179: 35.5 | V179: 5.5 | W179: 9.6 | X179: 7.2 | Y179: 22.3 | Z179: 7 | AA179: 16 | AB179: 13 | AC179: 36 | AD179: 5.5 | AE179: 10.5 | AF179: 9 | AG179: 25 | AH179: 4 | AI179: 3 | AJ179: 9 | AK179: 6 | AL179: 7 | AM179: 5 | AN179: 20 | AO179: 14 | AP179: 34 | AQ179: 8.5 | AR179: 13 | AS179: 16 | AT179: 37.5 | AU179: 9 | AV179: 18.5 | AW179: 16.5 | AX179: 44 | AY179: 9 | AZ179: 14.5 | BA179: 16.5 | BB179: 40 | BC179: 8.5 | BD179: 15.5 | BE179: 20 | BF179: 44 | BG179: 9 | BH179: 17 | BI179: 16 | BJ179: 42 | BK179: 9 | BL179: 16 | BM179: 16 | BN179: 41 | BO179: 8 | BP179: 13 | BQ179: 17 | BR179: 38 | BS179: 183.3 | BT179: 471.8 | BU179: 3.5 | BV179: 4.5 | BW179: 7.5 | BX179: 15.5 | BY179: 3.5 | BZ179: 6 | CA179: 8 | CB179: 17.5 | CC179: ناجح | CD179: و منقول للصف الثانى | CE179: 0 | CF179: 4 | CG179: 4/3 | DC179: 0 | DD179: 0
A180: 171 | B180: 171 | C180: طالب اولى 65 | D180: 2/1 | E180: 2003-05-18 | F180: 14 - 04 - 18 | G180: مصرى | H180: مسلم | I180: بنين | J180: انتظام | K180: صباحى | M180: 107 | N180: 8 | O180: 15.5 | P180: 13.5 | Q180: 37 | R180: 8.3 | S180: 10 | T180: 14.8 | U180: 33.1 | V180: 5.5 | W180: 9.6 | X180: 7.6 | Y180: 22.7 | Z180: 7 | AA180: 16 | AB180: 13 | AC180: 36 | AD180: 5.5 | AE180: 7 | AF180: 10 | AG180: 22.5 | AH180: 4 | AI180: 3 | AJ180: 9 | AK180: 6 | AL180: 6 | AM180: 6 | AN180: 19 | AO180: 15 | AP180: 34 | AQ180: 8.5 | AR180: 14 | AS180: 16 | AT180: 38.5 | AU180: 9.5 | AV180: 17 | AW180: 18.5 | AX180: 45 | AY180: 9 | AZ180: 14 | BA180: 16.5 | BB180: 39.5 | BC180: 8.5 | BD180: 15.5 | BE180: 20 | BF180: 44 | BG180: 9 | BH180: 16.5 | BI180: 18 | BJ180: 43.5 | BK180: 9 | BL180: 15 | BM180: 19 | BN180: 43 | BO180: 8 | BP180: 13 | BQ180: 17 | BR180: 38 | BS180: 178.1 | BT180: 476.8 | BU180: 3.5 | BV180: 4 | BW180: 7.5 | BX180: 15 | BY180: 3.5 | BZ180: 7.5 | CA180: 8 | CB180: 19 | CC180: ناجح | CD180: و منقول للصف الثانى | CE180: 0 | CF180: 4 | CG180: 4/3 | DC180: 0 | DD180: 0
A181: 172 | B181: 172 | C181: طالب اولى 66 | D181: 2/1 | E181: 2003-10-26 | F181: 06 - 11 - 17 | G181: مصرى | H181: مسلم | I181: بنين | J181: انتظام | K181: صباحى | M181: 108 | N181: 8 | O181: 14.5 | P181: 15 | Q181: 37.5 | R181: 8.2 | S181: 10 | T181: 17.2 | U181: 35.4 | V181: 5.5 | W181: 7.2 | X181: 6.4 | Y181: 19.1 | Z181: 7 | AA181: 16 | AB181: 13 | AC181: 36 | AD181: 3 | AE181: 5.5 | AF181: 9.5 | AG181: 18 | AH181: 4 | AI181: 3 | AJ181: 9 | AK181: 6 | AL181: 6 | AM181: 6 | AN181: 19 | AO181: 15 | AP181: 34 | AQ181: 8.5 | AR181: 15 | AS181: 17 | AT181: 40.5 | AU181: 9.5 | AV181: 17.5 | AW181: 16 | AX181: 43 | AY181: 9 | AZ181: 13 | BA181: 15.5 | BB181: 37.5 | BC181: 8.5 | BD181: 16 | BE181: 19 | BF181: 43.5 | BG181: 9 | BH181: 13 | BI181: 15 | BJ181: 37 | BK181: 9 | BL181: 18 | BM181: 17 | BN181: 44 | BO181: 8 | BP181: 14 | BQ181: 17 | BR181: 39 | BS181: 174.7 | BT181: 464.5 | BU181: 3.5 | BV181: 5 | BW181: 7.5 | BX181: 16 | BY181: 3.5 | BZ181: 6.5 | CA181: 8 | CB181: 18 | CC181: ناجح | CD181: و منقول للصف الثانى | CE181: 0 | CF181: 4 | CG181: 4/3 | DC181: 0 | DD181: 0
A182: 173 | B182: 173 | C182: طالب اولى 67 | D182: 2/1 | E182: 2003-11-24 | F182: 07 - 10 - 17 | G182: مصرى | H182: مسلم | I182: بنين | J182: انتظام | K182: صباحى | M182: 109 | N182: 8 | O182: 14 | P182: 12 | Q182: 34 | R182: 8.3 | S182: 10.8 | T182: 16.4 | U182: 35.5 | V182: 5.5 | W182: 7.2 | X182: 8 | Y182: 20.7 | Z182: 7 | AA182: 16 | AB182: 14 | AC182: 37 | AD182: 5.5 | AE182: 11 | AF182: 8.5 | AG182: 25 | AH182: 4 | AI182: 3 | AJ182: 9 | AK182: 6 | AL182: 6 | AM182: 5 | AN182: 19 | AO182: 14 | AP182: 33 | AQ182: 8.5 | AR182: 17 | AS182: 16 | AT182: 41.5 | AU182: 8.5 | AV182: 16.5 | AW182: 16.5 | AX182: 41.5 | AY182: 9 | AZ182: 14 | BA182: 14.5 | BB182: 37.5 | BC182: 8.5 | BD182: 15 | BE182: 20 | BF182: 43.5 | BG182: 9 | BH182: 15.5 | BI182: 17.5 | BJ182: 42 | BK182: 9 | BL182: 17 | BM182: 14 | BN182: 40 | BO182: 8 | BP182: 14 | BQ182: 17 | BR182: 39 | BS182: 183 | BT182: 470.2 | BU182: 3.5 | BV182: 5 | BW182: 7.5 | BX182: 16 | BY182: 3.5 | BZ182: 5.5 | CA182: 5.5 | CB182: 14.5 | CC182: ناجح | CD182: و منقول للصف الثانى | CE182: 0 | CF182: 4 | CG182: 4/3 | DC182: 0 | DD182: 0
A183: 174 | B183: 174 | C183: طالب اولى 68 | D183: 2/1 | E183: 2003-07-10 | F183: 22 - 02 - 18 | G183: مصرى | H183: مسلم | I183: بنين | J183: انتظام | K183: صباحى | M183: 110 | N183: 8 | O183: 15.5 | P183: 13 | Q183: 36.5 | R183: 8.4 | S183: 12.4 | T183: 17.6 | U183: 38.4 | V183: 5.5 | W183: 8 | X183: 8 | Y183: 21.5 | Z183: 7 | AA183: 16 | AB183: 14 | AC183: 37 | AD183: 3 | AE183: 9 | AF183: 10.5 | AG183: 22.5 | AH183: 4 | AI183: 3 | AJ183: 9 | AK183: 6 | AL183: 6 | AM183: 5 | AN183: 19 | AO183: 14 | AP183: 33 | AQ183: 8.5 | AR183: 19 | AS183: 16 | AT183: 43.5 | AU183: 9.5 | AV183: 18.5 | AW183: 17 | AX183: 45 | AY183: 9 | AZ183: 16 | BA183: 17 | BB183: 42 | BC183: 8.5 | BD183: 17 | BE183: 20 | BF183: 45.5 | BG183: 9 | BH183: 17 | BI183: 18 | BJ183: 44 | BK183: 9 | BL183: 17 | BM183: 13 | BN183: 39 | BO183: 8 | BP183: 18 | BQ183: 17 | BR183: 43 | BS183: 198.4 | BT183: 490.9 | BU183: 3.5 | BV183: 5.5 | BW183: 7.5 | BX183: 16.5 | BY183: 3.5 | BZ183: 6 | CA183: 8 | CB183: 17.5 | CC183: ناجح | CD183: و منقول للصف الثانى | CE183: 0 | CF183: 4 | CG183: 4/3 | DC183: 0 | DD183: 0
A184: 175 | B184: 175 | C184: طالب اولى 69 | D184: 2/1 | E184: 2003-06-09 | F184: 22 - 03 - 18 | G184: مصرى | H184: مسلم | I184: بنين | J184: انتظام | K184: صباحى | M184: 111 | N184: 8 | O184: 15.5 | P184: 15.5 | Q184: 39 | R184: 8.2 | S184: 11.2 | T184: 18.4 | U184: 37.8 | V184: 5.5 | W184: 8 | X184: 8 | Y184: 21.5 | Z184: 7 | AA184: 16 | AB184: 14 | AC184: 37 | AD184: 5.5 | AE184: 10 | AF184: 10.5 | AG184: 26 | AH184: 4 | AI184: 3 | AJ184: 9 | AK184: 6 | AL184: 6 | AM184: 6 | AN184: 19 | AO184: 15 | AP184: 34 | AQ184: 8.5 | AR184: 19 | AS184: 16 | AT184: 43.5 | AU184: 9.5 | AV184: 18.5 | AW184: 17 | AX184: 45 | AY184: 9 | AZ184: 17 | BA184: 17.5 | BB184: 43.5 | BC184: 8.5 | BD184: 16 | BE184: 20 | BF184: 44.5 | BG184: 9 | BH184: 16 | BI184: 13.5 | BJ184: 38.5 | BK184: 9 | BL184: 17 | BM184: 13 | BN184: 39 | BO184: 8 | BP184: 17 | BQ184: 17 | BR184: 42 | BS184: 196.2 | BT184: 491.3 | BU184: 3.5 | BV184: 6.5 | BW184: 7.5 | BX184: 17.5 | BY184: 3.5 | BZ184: 6.5 | CA184: 8 | CB184: 18 | CC184: ناجح | CD184: و منقول للصف الثانى | CE184: 0 | CF184: 4 | CG184: 4/3 | DC184: 0 | DD184: 0
A185: 176 | B185: 176 | C185: طالب اولى 7 | D185: 1/1 | E185: 2002-06-25 | F185: 06 - 03 - 19 | G185: مصرى | H185: مسلم | I185: بنين | J185: انتظام | K185: صباحى | M185: 77 | N185: 8.5 | O185: 12 | P185: 10.5 | Q185: 31 | R185: 8 | S185: 15.2 | T185: 14 | U185: 37.2 | V185: 5.5 | W185: 8 | X185: 10 | Y185: 23.5 | Z185: 6.5 | AA185: 16 | AB185: 16 | AC185: 38.5 | AD185: 3.5 | AE185: 5 | AF185: 8.5 | AG185: 17 | AH185: 4 | AI185: 3 | AJ185: 7.5 | AK185: 6 | AL185: 7 | AM185: 5 | AN185: 18.5 | AO185: 14 | AP185: 32.5 | AQ185: 8.5 | AR185: 14 | AS185: 15 | AT185: 37.5 | AU185: 8 | AV185: 16 | AW185: 11.5 | AX185: 35.5 | AY185: 9 | AZ185: 10.5 | BA185: 9.5 | BB185: 29 | BC185: 9 | BD185: 16 | BE185: 15 | BF185: 40 | BG185: 7.5 | BH185: 10 | BI185: 10.5 | BJ185: 28 | BK185: 8.5 | BL185: 16.5 | BM185: 14 | BN185: 39 | BO185: 8 | BP185: 15 | BQ185: 14 | BR185: 37 | BS185: 167.7 | BT185: 425.7 | BU185: 3.5 | BV185: 5 | BW185: 7.5 | BX185: 16 | BY185: 3 | BZ185: 7 | CA185: 6.5 | CB185: 16.5 | CC185: ناجح | CD185: و منقول للصف الثانى | CE185: 0 | CF185: 1 | CG185: 1/3 | DC185: 0 | DD185: 0
A186: 177 | B186: 177 | C186: طالب اولى 70 | D186: 2/1 | E186: 2003-08-10 | F186: 22 - 01 - 18 | G186: مصرى | H186: مسلم | I186: بنين | J186: انتظام | K186: صباحى | M186: 112 | N186: 8 | O186: 16 | P186: 15 | Q186: 39 | R186: 8.4 | S186: 11.6 | T186: 18 | U186: 38 | V186: 5.5 | W186: 8 | X186: 8 | Y186: 21.5 | Z186: 7 | AA186: 16 | AB186: 15 | AC186: 38 | AD186: 5.5 | AE186: 6.5 | AF186: 10.5 | AG186: 22.5 | AH186: 4 | AI186: 3 | AJ186: 8 | AK186: 5 | AL186: 6 | AM186: 5 | AN186: 18 | AO186: 13 | AP186: 31 | AQ186: 8.5 | AR186: 19 | AS186: 16 | AT186: 43.5 | AU186: 9 | AV186: 19 | AW186: 18 | AX186: 46 | AY186: 9 | AZ186: 15 | BA186: 17.5 | BB186: 41.5 | BC186: 8.5 | BD186: 16 | BE186: 20 | BF186: 44.5 | BG186: 9 | BH186: 8.5 | BI186: 16.5 | BJ186: 34 | BK186: 9 | BL186: 17 | BM186: 16 | BN186: 42 | BO186: 8 | BP186: 17 | BQ186: 17 | BR186: 42 | BS186: 182.6 | BT186: 483.5 | BU186: 3.5 | BV186: 4.5 | BW186: 7.5 | BX186: 15.5 | BY186: 3.5 | BZ186: 6.5 | CA186: 7.5 | CB186: 17.5 | CC186: ناجح | CD186: و منقول للصف الثانى | CE186: 0 | CF186: 4 | CG186: 4/3 | DC186: 0 | DD186: 0
A187: 178 | B187: 178 | C187: طالب اولى 71 | D187: 2/1 | E187: 2004-01-06 | F187: 26 - 08 - 17 | G187: مصرى | H187: مسلم | I187: بنين | J187: انتظام | K187: صباحى | M187: 113 | N187: 8 | O187: 16.5 | P187: 16 | Q187: 40.5 | R187: 8.2 | S187: 9.2 | T187: 15.2 | U187: 32.6 | V187: 5.5 | W187: 7.6 | X187: 7.6 | Y187: 20.7 | Z187: 7 | AA187: 16 | AB187: 15 | AC187: 38 | AD187: 3 | AE187: 3 | AF187: 10 | AG187: 16 | AH187: 4 | AI187: 3 | AJ187: 9 | AK187: 5 | AL187: 6 | AM187: 5 | AN187: 19 | AO187: 13 | AP187: 32 | AQ187: 8.5 | AR187: 18 | AS187: 14 | AT187: 40.5 | AU187: 9 | AV187: 19.5 | AW187: 16.5 | AX187: 45 | AY187: 9 | AZ187: 15 | BA187: 13.5 | BB187: 37.5 | BC187: 8.5 | BD187: 16 | BE187: 20 | BF187: 44.5 | BG187: 9 | BH187: 9.5 | BI187: 17 | BJ187: 35.5 | BK187: 9 | BL187: 14.5 | BM187: 18 | BN187: 41.5 | BO187: 8 | BP187: 17.5 | BQ187: 18 | BR187: 43.5 | BS187: 176.3 | BT187: 467.8 | BU187: 3.5 | BV187: 5 | BW187: 7.5 | BX187: 16 | BY187: 3.5 | BZ187: 6.5 | CA187: 7.5 | CB187: 17.5 | CC187: ناجح | CD187: و منقول للصف الثانى | CE187: 0 | CF187: 4 | CG187: 4/3 | DC187: 0 | DD187: 0
A188: 179 | B188: 179 | C188: طالب اولى 72 | D188: 2/1 | E188: 2003-08-10 | F188: 22 - 01 - 18 | G188: مصرى | H188: مسلم | I188: بنين | J188: انتظام | K188: صباحى | M188: 114 | N188: 8 | O188: 16 | P188: 12 | Q188: 36 | R188: 8.4 | S188: 8.8 | T188: 17.6 | U188: 34.8 | V188: 5.5 | W188: 7.2 | X188: 7.6 | Y188: 20.3 | Z188: 7 | AA188: 16 | AB188: 14 | AC188: 37 | AD188: 3 | AE188: 4.5 | AF188: 10.5 | AG188: 18 | AH188: 4 | AI188: 3 | AJ188: 10 | AK188: 5 | AL188: 6 | AM188: 5 | AN188: 20 | AO188: 13 | AP188: 33 | AQ188: 8.5 | AR188: 16 | AS188: 18 | AT188: 42.5 | AU188: 8.5 | AV188: 18 | AW188: 17 | AX188: 43.5 | AY188: 9 | AZ188: 12 | BA188: 12.5 | BB188: 33.5 | BC188: 8.5 | BD188: 16 | BE188: 20 | BF188: 44.5 | BG188: 9 | BH188: 8.5 | BI188: 17 | BJ188: 34.5 | BK188: 9 | BL188: 16 | BM188: 16 | BN188: 41 | BO188: 8 | BP188: 17 | BQ188: 17 | BR188: 42 | BS188: 171 | BT188: 460.6 | BU188: 3.5 | BV188: 4 | BW188: 7.5 | BX188: 15 | BY188: 3.5 | BZ188: 6.5 | CA188: 8 | CB188: 18 | CC188: ناجح | CD188: و منقول للصف الثانى | CE188: 0 | CF188: 4 | CG188: 4/3 | DC188: 0 | DD188: 0
A189: 180 | B189: 180 | C189: طالب اولى 73 | D189: 2/1 | E189: 2003-06-14 | F189: 17 - 03 - 18 | G189: مصرى | H189: مسلم | I189: بنين | J189: انتظام | K189: صباحى | M189: 115 | N189: 8 | O189: 16.5 | P189: 16 | Q189: 40.5 | R189: 8.3 | S189: 14.8 | T189: 8.4 | U189: 31.5 | V189: 5.5 | W189: 7.6 | X189: 9.2 | Y189: 22.3 | Z189: 7 | AA189: 15 | AB189: 16 | AC189: 38 | AD189: 5.5 | AE189: 7.5 | AF189: 9 | AG189: 22 | AH189: 4 | AI189: 3 | AJ189: 6 | AK189: 5 | AL189: 7 | AM189: 5 | AN189: 17 | AO189: 13 | AP189: 30 | AQ189: 8.5 | AR189: 19 | AS189: 14 | AT189: 41.5 | AU189: 9 | AV189: 18.5 | AW189: 15.5 | AX189: 43 | AY189: 9 | AZ189: 13 | BA189: 15.5 | BB189: 37.5 | BC189: 8.5 | BD189: 17 | BE189: 18 | BF189: 43.5 | BG189: 9 | BH189: 17.5 | BI189: 17.5 | BJ189: 44 | BK189: 9 | BL189: 17 | BM189: 14 | BN189: 40 | BO189: 8 | BP189: 16 | BQ189: 17 | BR189: 41 | BS189: 190.4 | BT189: 474.8 | BU189: 3.5 | BV189: 4.5 | BW189: 8 | BX189: 16 | BY189: 3.5 | BZ189: 6.5 | CA189: 6 | CB189: 16 | CC189: ناجح | CD189: و منقول للصف الثانى | CE189: 0 | CF189: 4 | CG189: 4/3 | DC189: 0 | DD189: 0
A190: 181 | B190: 181 | C190: طالب اولى 74 | D190: 2/1 | E190: 2003-10-01 | F190: 00 - 00 - 18 | G190: مصرى | H190: مسلم | I190: بنين | J190: انتظام | K190: صباحى | M190: 116 | N190: 8 | O190: 13 | P190: 14 | Q190: 35 | R190: 8.2 | S190: 15.6 | T190: 10.4 | U190: 34.2 | V190: 5.5 | W190: 8 | X190: 9.6 | Y190: 23.1 | Z190: 7 | AA190: 15 | AB190: 15 | AC190: 37 | AD190: 5.5 | AE190: 2.5 | AF190: 10 | AG190: 18 | AH190: 4 | AI190: 3 | AJ190: 6 | AK190: 6 | AL190: 5 | AM190: 6 | AN190: 15 | AO190: 15 | AP190: 30 | AQ190: 8.5 | AR190: 19 | AS190: 13 | AT190: 40.5 | AU190: 9 | AV190: 18 | AW190: 18 | AX190: 45 | AY190: 9 | AZ190: 11 | BA190: 14.5 | BB190: 34.5 | BC190: 8.5 | BD190: 17 | BE190: 15 | BF190: 40.5 | BG190: 9 | BH190: 14 | BI190: 18 | BJ190: 41 | BK190: 9 | BL190: 17 | BM190: 12 | BN190: 38 | BO190: 8 | BP190: 16 | BQ190: 18 | BR190: 42 | BS190: 178.1 | BT190: 458.8 | BU190: 3.5 | BV190: 4 | BW190: 7 | BX190: 14.5 | BY190: 3.5 | BZ190: 6.5 | CA190: 6 | CB190: 16 | CC190: ناجح | CD190: و منقول للصف الثانى | CE190: 0 | CF190: 4 | CG190: 4/3 | DC190: 0 | DD190: 0
A191: 182 | B191: 182 | C191: طالب اولى 75 | D191: 2/1 | E191: 2003-03-21 | F191: 11 - 06 - 18 | G191: مصرى | H191: مسلم | I191: بنين | J191: انتظام | K191: صباحى | M191: 117 | N191: 8 | O191: 14.5 | P191: 16 | Q191: 38.5 | R191: 8.4 | S191: 15.6 | T191: 7.6 | U191: 31.6 | V191: 5.5 | W191: 7.6 | X191: 9.2 | Y191: 22.3 | Z191: 7 | AA191: 15 | AB191: 16 | AC191: 38 | AD191: 3.5 | AE191: 9.5 | AF191: 10.5 | AG191: 23.5 | AH191: 4 | AI191: 3 | AJ191: 6 | AK191: 5 | AL191: 5 | AM191: 5 | AN191: 15 | AO191: 13 | AP191: 28 | AQ191: 8.5 | AR191: 19 | AS191: 13 | AT191: 40.5 | AU191: 9 | AV191: 18.5 | AW191: 14.5 | AX191: 42 | AY191: 9 | AZ191: 15 | BA191: 17.5 | BB191: 41.5 | BC191: 8.5 | BD191: 17 | BE191: 16 | BF191: 41.5 | BG191: 9 | BH191: 15.5 | BI191: 19.5 | BJ191: 44 | BK191: 9 | BL191: 15 | BM191: 13 | BN191: 37 | BO191: 8 | BP191: 16 | BQ191: 16 | BR191: 40 | BS191: 189.2 | BT191: 468.4 | BU191: 3.5 | BV191: 5 | BW191: 8 | BX191: 16.5 | BY191: 3.5 | BZ191: 6.5 | CA191: 6.5 | CB191: 16.5 | CC191: ناجح | CD191: و منقول للصف الثانى | CE191: 0 | CF191: 4 | CG191: 4/3 | DC191: 0 | DD191: 0
A192: 183 | B192: 183 | C192: طالب اولى 76 | D192: 2/1 | E192: 2003-08-17 | F192: 15 - 01 - 18 | G192: مصرى | H192: مسلم | I192: بنين | J192: انتظام | K192: صباحى | M192: 118 | N192: 8 | O192: 14.5 | P192: 14 | Q192: 36.5 | R192: 8.3 | S192: 15.2 | T192: 8.4 | U192: 31.9 | V192: 5.5 | W192: 7.2 | X192: 10.8 | Y192: 23.5 | Z192: 7 | AA192: 15 | AB192: 16 | AC192: 38 | AD192: 5.5 | AE192: 9 | AF192: 10 | AG192: 24.5 | AH192: 4 | AI192: 3 | AJ192: 6 | AK192: 5 | AL192: 6 | AM192: 6 | AN192: 16 | AO192: 14 | AP192: 30 | AQ192: 8.5 | AR192: 19 | AS192: 12 | AT192: 39.5 | AU192: 9.5 | AV192: 18 | AW192: 16.5 | AX192: 44 | AY192: 9 | AZ192: 13 | BA192: 11 | BB192: 33 | BC192: 8.5 | BD192: 17 | BE192: 16 | BF192: 41.5 | BG192: 9 | BH192: 11 | BI192: 15 | BJ192: 35 | BK192: 9 | BL192: 16 | BM192: 14 | BN192: 39 | BO192: 8 | BP192: 16 | BQ192: 17 | BR192: 41 | BS192: 181.9 | BT192: 457.4 | BU192: 3.5 | BV192: 5 | BW192: 7 | BX192: 15.5 | BY192: 3.5 | BZ192: 6.5 | CA192: 6.5 | CB192: 16.5 | CC192: ناجح | CD192: و منقول للصف الثانى | CE192: 0 | CF192: 4 | CG192: 4/3 | DC192: 0 | DD192: 0
A193: 184 | B193: 184 | C193: طالب اولى 77 | D193: 2/1 | E193: 2003-03-15 | F193: 17 - 06 - 18 | G193: مصرى | H193: مسلم | I193: بنين | J193: انتظام | K193: صباحى | M193: 119 | N193: 8 | O193: 12 | P193: 14 | Q193: 34 | R193: 8.2 | S193: 13.2 | T193: 8 | U193: 29.4 | V193: 5.5 | W193: 6.4 | X193: 10.6 | Y193: 22.5 | Z193: 7 | AA193: 14 | AB193: 16 | AC193: 37 | AD193: 3 | AE193: 4.5 | AF193: 8.5 | AG193: 16 | AH193: 4 | AI193: 3 | AJ193: 6 | AK193: 5 | AL193: 7 | AM193: 5 | AN193: 17 | AO193: 13 | AP193: 30 | AQ193: 8.5 | AR193: 19 | AS193: 11 | AT193: 38.5 | AU193: 9 | AV193: 16.5 | AW193: 14.5 | AX193: 40 | AY193: 9 | AZ193: 10.5 | BA193: 9 | BB193: 28.5 | BC193: 8.5 | BD193: 16 | BE193: 17 | BF193: 41.5 | BG193: 9 | BH193: 15 | BI193: 10.5 | BJ193: 34.5 | BK193: 9 | BL193: 12 | BM193: 12 | BN193: 33 | BO193: 8 | BP193: 16 | BQ193: 13 | BR193: 37 | BS193: 166.1 | BT193: 421.9 | BU193: 3.5 | BV193: 5 | BW193: 8 | BX193: 16.5 | BY193: 3.5 | BZ193: 6.5 | CA193: 6.5 | CB193: 16.5 | CC193: ناجح | CD193: و منقول للصف الثانى | CE193: 0 | CF193: 5 | CG193: 5/3 | DC193: 0 | DD193: 0
A194: 185 | B194: 185 | C194: طالب اولى 78 | D194: 2/1 | E194: 2003-08-06 | F194: 26 - 01 - 18 | G194: مصرى | H194: مسلم | I194: بنين | J194: انتظام | K194: صباحى | M194: 120 | N194: 8 | O194: 13.5 | P194: 15 | Q194: 36.5 | R194: 8.3 | S194: 14.8 | T194: 8.4 | U194: 31.5 | V194: 5.5 | W194: 6.8 | X194: 9.6 | Y194: 21.9 | Z194: 7 | AA194: 14 | AB194: 16 | AC194: 37 | AD194: 3 | AE194: 9.5 | AF194: 9 | AG194: 21.5 | AH194: 4 | AI194: 3 | AJ194: 5 | AK194: 6 | AL194: 6 | AM194: 5 | AN194: 15 | AO194: 14 | AP194: 29 | AQ194: 8.5 | AR194: 19 | AS194: 13 | AT194: 40.5 | AU194: 9.5 | AV194: 17 | AW194: 15.5 | AX194: 42 | AY194: 9 | AZ194: 11.5 | BA194: 11.5 | BB194: 32 | BC194: 9 | BD194: 17 | BE194: 16 | BF194: 42 | BG194: 9 | BH194: 15.5 | BI194: 14 | BJ194: 38.5 | BK194: 9 | BL194: 16 | BM194: 14 | BN194: 39 | BO194: 8 | BP194: 15 | BQ194: 16 | BR194: 39 | BS194: 180.6 | BT194: 450.4 | BU194: 3.5 | BV194: 6 | BW194: 8 | BX194: 17.5 | BY194: 3.5 | BZ194: 6.5 | CA194: 7 | CB194: 17 | CC194: ناجح | CD194: و منقول للصف الثانى | CE194: 0 | CF194: 5 | CG194: 5/3 | DC194: 0 | DD194: 0
A195: 186 | B195: 186 | C195: طالب اولى 79 | D195: 2/1 | E195: 2004-01-25 | F195: 07 - 08 - 17 | G195: مصرى | H195: مسلم | I195: بنين | J195: انتظام | K195: صباحى | M195: 121 | N195: 8 | O195: 13.5 | P195: 14.5 | Q195: 36 | R195: 8.2 | S195: 15.2 | T195: 8.4 | U195: 31.8 | V195: 5.5 | W195: 8.8 | X195: 10.4 | Y195: 24.7 | Z195: 7 | AA195: 15 | AB195: 16 | AC195: 38 | AD195: 5.5 | AE195: 11 | AF195: 9 | AG195: 25.5 | AH195: 4 | AI195: 3 | AJ195: 6 | AK195: 6 | AL195: 5 | AM195: 6 | AN195: 15 | AO195: 15 | AP195: 30 | AQ195: 8.5 | AR195: 19 | AS195: 13 | AT195: 40.5 | AU195: 9 | AV195: 18.5 | AW195: 15 | AX195: 42.5 | AY195: 9 | AZ195: 14.5 | BA195: 9 | BB195: 32.5 | BC195: 9 | BD195: 18 | BE195: 17 | BF195: 44 | BG195: 9 | BH195: 16.5 | BI195: 8 | BJ195: 33.5 | BK195: 9 | BL195: 17 | BM195: 13 | BN195: 39 | BO195: 8 | BP195: 15 | BQ195: 17 | BR195: 40 | BS195: 194 | BT195: 458 | BU195: 3.5 | BV195: 5 | BW195: 8 | BX195: 16.5 | BY195: 3.5 | BZ195: 6.5 | CA195: 6.5 | CB195: 16.5 | CC195: ناجح | CD195: و منقول للصف الثانى | CE195: 0 | CF195: 5 | CG195: 5/3 | DC195: 0 | DD195: 0
A196: 187 | B196: 187 | C196: طالب اولى 8 | D196: 1/1 | E196: 2003-01-01 | F196: 00 - 09 - 18 | G196: مصرى | H196: مسلم | I196: بنين | J196: انتظام | K196: صباحى | M196: 78 | N196: 8.5 | O196: 11.5 | P196: 13.5 | Q196: 33.5 | R196: 8 | S196: 13.2 | T196: 15.6 | U196: 36.8 | V196: 5.5 | W196: 7.6 | X196: 10 | Y196: 23.1 | Z196: 6.5 | AA196: 16 | AB196: 16 | AC196: 38.5 | AD196: 3.5 | AE196: 5.5 | AF196: 9.5 | AG196: 18.5 | AH196: 4 | AI196: 3 | AJ196: 7.5 | AK196: 5 | AL196: 7 | AM196: 5 | AN196: 18.5 | AO196: 13 | AP196: 31.5 | AQ196: 8.5 | AR196: 14 | AS196: 16 | AT196: 38.5 | AU196: 8 | AV196: 14.5 | AW196: 12.5 | AX196: 35 | AY196: 9 | AZ196: 9 | BA196: 5.5 | BB196: 23.5 | BC196: 9 | BD196: 16 | BE196: 15 | BF196: 40 | BG196: 7 | BH196: 15 | BI196: 13.5 | BJ196: 35.5 | BK196: 8.5 | BL196: 17.5 | BM196: 11 | BN196: 37 | BO196: 8 | BP196: 15 | BQ196: 14 | BR196: 37 | BS196: 167.3 | BT196: 428.4 | BU196: 3.5 | BV196: 5 | BW196: 7.5 | BX196: 16 | BY196: 3 | BZ196: 7 | CA196: 7 | CB196: 17 | CC196: دورثان | CD196: فى : سكرتارية اجنبية - | CE196: 1 | CF196: 1 | CG196: 1/3 | CU196: سكرتارية اجنبية - | DC196: 0 | DD196: 1
A197: 188 | B197: 188 | C197: طالب اولى 80 | D197: 2/1 | E197: 2003-08-26 | F197: 06 - 01 - 18 | G197: مصرى | H197: مسلم | I197: بنين | J197: انتظام | K197: صباحى | M197: 122 | N197: 8.5 | O197: 16.5 | P197: 17.5 | Q197: 42.5 | R197: 8.2 | S197: 16 | T197: 9.6 | U197: 33.8 | V197: 5.5 | W197: 7.6 | X197: 9.6 | Y197: 22.7 | Z197: 7 | AA197: 15 | AB197: 16 | AC197: 38 | AD197: 5.5 | AE197: 10.5 | AF197: 10.5 | AG197: 26.5 | AH197: 4 | AI197: 3 | AJ197: 6 | AK197: 6 | AL197: 6 | AM197: 5 | AN197: 16 | AO197: 14 | AP197: 30 | AQ197: 8.5 | AR197: 19 | AS197: 14 | AT197: 41.5 | AU197: 9.5 | AV197: 19 | AW197: 17 | AX197: 45.5 | AY197: 9 | AZ197: 14.5 | BA197: 17 | BB197: 40.5 | BC197: 8.5 | BD197: 15 | BE197: 18 | BF197: 41.5 | BG197: 9 | BH197: 18 | BI197: 16 | BJ197: 43 | BK197: 9 | BL197: 17 | BM197: 13 | BN197: 39 | BO197: 8 | BP197: 16 | BQ197: 16 | BR197: 40 | BS197: 196.1 | BT197: 484.5 | BU197: 3.5 | BV197: 7 | BW197: 8 | BX197: 18.5 | BY197: 3.5 | BZ197: 7 | CA197: 6.5 | CB197: 17 | CC197: ناجح | CD197: و منقول للصف الثانى | CE197: 0 | CF197: 5 | CG197: 5/3 | DC197: 0 | DD197: 0
A198: 189 | B198: 189 | C198: طالب اولى 81 | D198: 3/1 | E198: 2004-01-01 | F198: 00 - 09 - 17 | G198: مصرى | H198: مسلم | I198: بنين | J198: انتظام | K198: صباحى | M198: 123 | N198: 8 | O198: 10 | P198: 12 | Q198: 30 | R198: 8.2 | S198: 10.8 | T198: 5.6 | U198: 24.6 | V198: 5.5 | W198: 8.4 | X198: 10 | Y198: 23.9 | Z198: 7 | AA198: 14 | AB198: 15 | AC198: 36 | AD198: 3.5 | AE198: 1.5 | AF198: 7 | AG198: 12 | AH198: 4 | AI198: 3 | AJ198: 6 | AK198: 6 | AL198: 6 | AM198: 6 | AN198: 16 | AO198: 15 | AP198: 31 | AQ198: 8.5 | AR198: 19 | AS198: 12 | AT198: 39.5 | AU198: 8.5 | AV198: 12 | AW198: 5 | AX198: 25.5 | AY198: 9 | AZ198: 3.5 | BA198: 11 | BB198: 23.5 | BC198: 8.5 | BD198: 17 | BE198: 11 | BF198: 36.5 | BG198: 8.5 | BH198: 11.5 | BI198: 7.5 | BJ198: 27.5 | BK198: 9 | BL198: 16 | BM198: 11 | BN198: 36 | BO198: 8 | BP198: 16 | BQ198: 12 | BR198: 36 | BS198: 151.7 | BT198: 382 | BU198: 3.5 | BV198: 5 | BW198: 8 | BX198: 16.5 | BY198: 3.5 | BZ198: 5.5 | CA198: 5.5 | CB198: 14.5 | CC198: راسب | CD198: و له حق الاعادة | CE198: 3 | CF198: 5 | CG198: 5/3 | CN198: لغة انجليزية - | CQ198: رياضة عامة - | CU198: سكرتارية اجنبية - | DC198: 0 | DD198: 3
A199: 190 | B199: 190 | C199: طالب اولى 82 | D199: 3/1 | E199: 2003-04-19 | F199: 12 - 05 - 18 | G199: مصرى | H199: مسلم | I199: بنين | J199: انتظام | K199: صباحى | M199: 124 | N199: 8 | O199: 11 | P199: 12.5 | Q199: 31.5 | R199: 8.2 | S199: 15.2 | T199: 6.4 | U199: 29.8 | V199: 5.5 | W199: 8.4 | X199: 9.6 | Y199: 23.5 | Z199: 7 | AA199: 15 | AB199: 16 | AC199: 38 | AD199: 3 | AE199: 4.5 | AF199: 10 | AG199: 17.5 | AH199: 4 | AI199: 3 | AJ199: 5 | AK199: 5 | AL199: 6 | AM199: 6 | AN199: 15 | AO199: 14 | AP199: 29 | AQ199: 8.5 | AR199: 19 | AS199: 15 | AT199: 42.5 | AU199: 9 | AV199: 17 | AW199: 12.5 | AX199: 38.5 | AY199: 9 | AZ199: 7.5 | BA199: 12 | BB199: 28.5 | BC199: 8.5 | BD199: 17 | BE199: 14 | BF199: 39.5 | BG199: 9 | BH199: 14 | BI199: 12 | BJ199: 35 | BK199: 9 | BL199: 14.5 | BM199: 14 | BN199: 37.5 | BO199: 8 | BP199: 16 | BQ199: 14 | BR199: 38 | BS199: 169.1 | BT199: 428.8 | BU199: 3.5 | BV199: 5.5 | BW199: 8 | BX199: 17 | BY199: 3.5 | BZ199: 7 | CA199: 6 | CB199: 16.5 | CC199: ناجح | CD199: و منقول للصف الثانى | CE199: 0 | CF199: 5 | CG199: 5/3 | DC199: 0 | DD199: 0
A200: 191 | B200: 191 | C200: طالب اولى 83 | D200: 3/1 | E200: 2004-01-25 | F200: 07 - 08 - 17 | G200: مصرى | H200: مسلم | I200: بنين | J200: انتظام | K200: صباحى | M200: 125 | N200: 8 | O200: 12.5 | P200: 16 | Q200: 36.5 | R200: 8.3 | S200: 14.8 | T200: 10 | U200: 33.1 | V200: 5.5 | W200: 9.2 | X200: 10 | Y200: 24.7 | Z200: 7 | AA200: 15 | AB200: 16 | AC200: 38 | AD200: 5.5 | AE200: 10 | AF200: 11 | AG200: 26.5 | AH200: 4 | AI200: 3 | AJ200: 6 | AK200: 5 | AL200: 7 | AM200: 5 | AN200: 17 | AO200: 13 | AP200: 30 | AQ200: 8.5 | AR200: 19 | AS200: 13 | AT200: 40.5 | AU200: 9 | AV200: 19.5 | AW200: 18.5 | AX200: 47 | AY200: 9 | AZ200: 15 | BA200: 18 | BB200: 42 | BC200: 8.5 | BD200: 19 | BE200: 13 | BF200: 40.5 | BG200: 9 | BH200: 18 | BI200: 18 | BJ200: 45 | BK200: 9 | BL200: 18 | BM200: 16 | BN200: 43 | BO200: 8 | BP200: 15 | BQ200: 18 | BR200: 41 | BS200: 196 | BT200: 487.8 | BU200: 3.5 | BV200: 7 | BW200: 8 | BX200: 18.5 | BY200: 3.5 | BZ200: 8 | CA200: 7.5 | CB200: 19 | CC200: ناجح | CD200: و منقول للصف الثانى | CE200: 0 | CF200: 5 | CG200: 5/3 | DC200: 0 | DD200: 0
A201: 192 | B201: 192 | C201: طالب اولى 84 | D201: 3/1 | E201: 2003-11-26 | F201: 05 - 10 - 17 | G201: مصرى | H201: مسلم | I201: بنين | J201: انتظام | K201: صباحى | M201: 126 | N201: 8 | O201: 13 | P201: 15 | Q201: 36 | R201: 8.4 | S201: 16 | T201: 8.4 | U201: 32.8 | V201: 5.5 | W201: 6.4 | X201: 9.6 | Y201: 21.5 | Z201: 7 | AA201: 14 | AB201: 16 | AC201: 37 | AD201: 3 | AE201: 7.5 | AF201: 9 | AG201: 19.5 | AH201: 4 | AI201: 3 | AJ201: 5 | AK201: 5 | AL201: 6 | AM201: 5 | AN201: 15 | AO201: 13 | AP201: 28 | AQ201: 8.5 | AR201: 19 | AS201: 16 | AT201: 43.5 | AU201: 9 | AV201: 18 | AW201: 13 | AX201: 40 | AY201: 9 | AZ201: 13 | BA201: 13 | BB201: 35 | BC201: 8.5 | BD201: 17 | BE201: 16 | BF201: 41.5 | BG201: 9 | BH201: 12.5 | BI201: 15.5 | BJ201: 37 | BK201: 9 | BL201: 15.5 | BM201: 14 | BN201: 38.5 | BO201: 8 | BP201: 18 | BQ201: 17 | BR201: 43 | BS201: 179.9 | BT201: 453.3 | BU201: 3.5 | BV201: 4 | BW201: 8 | BX201: 15.5 | BY201: 3.5 | BZ201: 7 | CA201: 7 | CB201: 17.5 | CC201: ناجح | CD201: و منقول للصف الثانى | CE201: 0 | CF201: 5 | CG201: 5/3 | DC201: 0 | DD201: 0
A202: 193 | B202: 193 | C202: طالب اولى 85 | D202: 3/1 | E202: 2002-03-20 | F202: 12 - 06 - 19 | G202: مصرى | H202: مسلم | I202: بنين | J202: انتظام | K202: صباحى | M202: 155 | N202: 8 | O202: 11.5 | P202: 11.5 | Q202: =IF(P202="غ","غ",SUM(N202,O202,P202)) -> 31 | R202: 8.3 | S202: 16.4 | T202: 7.6 | U202: =IF(T202="غ","غ",SUM(R202,S202,T202)) -> 32.3 | V202: 5.5 | W202: 8 | X202: 8.8 | Y202: =IF(X202="غ","غ",SUM(V202,W202,X202)) -> 22.3 | Z202: 7 | AA202: 14 | AB202: 15 | AC202: =IF(AB202="غ","غ",SUM(Z202,AA202,AB202)) -> 36 | AD202: 3 | AE202: 7 | AF202: 10.5 | AG202: =IF(AF202="غ","غ",SUM(AD202,AE202,AF202)) -> 20.5 | AH202: 4 | AI202: 3 | AJ202: 6 | AK202: 5 | AL202: 6 | AM202: 5 | AN202: =IF(AL202="غ","غ",SUM(AH202,AJ202,AL202)) -> 16 | AO202: =IF(AM202="غ","غ",SUM(AI202,AK202,AM202)) -> 13 | AP202: =IF(OR(AN202="غ",AO202="غ"),"غ",SUM(AN202,AO202)) -> 29 | AQ202: 9 | AR202: 19 | AS202: 16 | AT202: =IF(AS202="غ","غ",SUM(AQ202,AR202,AS202)) -> 44 | AU202: 9 | AV202: 18 | AW202: 14 | AX202: =IF(AW202="غ","غ",SUM(AU202,AV202,AW202)) -> 41 | AY202: 9 | AZ202: 15 | BA202: 16.5 | BB202: =IF(BA202="غ","غ",SUM(AY202,AZ202,BA202)) -> 40.5 | BC202: 9 | BD202: 17 | BE202: 14 | BF202: =IF(BE202="غ","غ",SUM(BC202,BD202,BE202)) -> 40 | BG202: 8 | BH202: 17.5 | BI202: 19 | BJ202: =IF(BI202="غ","غ",SUM(BG202,BH202,BI202)) -> 44.5 | BK202: 9 | BL202: 14.5 | BM202: 14 | BN202: =IF(BM202="غ","غ",SUM(BK202,BL202,BM202)) -> 37.5 | BO202: 8 | BP202: 18 | BQ202: 14 | BR202: =IF(BQ202="غ","غ",SUM(BO202,BP202,BQ202)) -> 40 | BS202: =IF(C202="","",SUM(O202,S202,W202,AE202,AR202,AV202,AZ202,BD202,BH202,BL202,BP202,AA202,AJ202,AK202)) -> 186.9 | BT202: =SUM(Q202,U202,Y202,AG202,AT202,AX202,BB202,BF202,BJ202,BN202,BR202,AC202,AP202) -> 458.6 | BU202: 3.5 | BV202: 5.5 | BW202: 8 | BX202: =IF(BW202="غ","غ",SUM(BU202,BV202,BW202)) -> 17 | BY202: 3.5 | BZ202: 7 | CA202: 5.5 | CB202: =IF(CA202="غ","غ",SUM(BY202,BZ202,CA202)) -> 16 | CC202: =IF(I202="","",IF(I202="بنات",IF(CE202=0,"ناجحة",IF(DD202>2,"راسبة","دورثان")),IF(I202="بنين",IF(CE202=0,"ناجح",IF(DD202>2,"راسب","دورثان"))))) -> ناجح | CD202: =IF(C202="","",IF(AND($L202="باقية",$CC202="راسبة"),"وليس لها حق الاعادة",IF(AND($L202<>"باقية",$CC202="راسبة"),"و لها حق الاعادة",IF(AND($L202="باقى",$CC202="راسب"),"وليس له حق الاعادة",IF(AND($L202<>"باقى",$CC202="راسب"),"و له حق الاعادة",IF($CC202="ناجحة","و منقولة للصف الثانى",IF($CC202="ناجح","و منقول للصف الثانى",IF($CC202="دورثان","فى : "&CONCATENATE($CM202,$CN202,$CO202,$CQ202,$CR202,$CS202,$CT202,$CU202,$CV202,$CW202,$CX202,$CY202,$CP202,$CZ202,$DA202,$DB202))))))))) -> و منقول للصف الثانى | CE202: =IF(C202="","",$DC202+$DD202) -> 0 | CF202: 5 | CG202: 5/3 | CM202: =IF(C202="","",IF(OR(P202<$P$9,P202="غ",Q202<$Q$9),CM$5&" - ","")) ->  | CN202: =IF(C202="","",IF(OR(T202<$T$9,T202="غ",U202<$U$9),CN$5&" - ","")) ->  | CO202: =IF(C202="","",IF(OR(X202<$X$9,X202="غ",Y202<$Y$9),CO$5&" - ","")) ->  | CP202: =IF(C202="","",IF(OR(AB202<$AB$9,AB202="غ",AC202<$AC$9),CP$5&" - ","")) ->  | CQ202: =IF(C202="","",IF(OR(AF202<$AF$9,AF202="غ",AG202<$AG$9),CQ$5&" - ","")) ->  | CR202: =IF(C202="","",IF(OR(AL202<$AL$9,AM202<$AM$9,AN202<$AN$9,AN202="غ",AO202<$AO$9,AO202="غ"),CR$5&" - ","")) ->  | CS202: =IF(C202="","",IF(OR(AS202<$AS$9,AS202="غ",AT202<$AT$9),CS$5&" - ","")) ->  | CT202: =IF(C202="","",IF(OR(AW202<$AW$9,AW202="غ",AX202<$AX$9),CT$5&" - ","")) ->  | CU202: =IF(C202="","",IF(OR(BA202<$BA$9,BA202="غ",BB202<$BB$9),CU$5&" - ","")) ->  | CV202: =IF(C202="","",IF(OR(BE202<$BE$9,BE202="غ",BF202<$BF$9),CV$5&" - ","")) ->  | CW202: =IF(C202="","",IF(OR(BI202<$BI$9,BI202="غ",BJ202<$BJ$9),CW$5&" - ","")) ->  | CX202: =IF(C202="","",IF(OR(BM202<$BM$9,BM202="غ",BN202<$BN$9),CX$5&" - ","")) ->  | CY202: =IF(C202="","",IF(OR(BQ202<$BQ$9,BQ202="غ",BR202<$BR$9),CY$5&" - ","")) ->  | CZ202: =IF(C202="","",IF(BT202<$BT$9,CZ$5&" - ","")) ->  | DA202: =IF(C202="","",IF(OR(BW202<$BW$9,BW202="غ",BX202<$BX$9),DA$5&" - ","")) ->  | DB202: =IF(C202="","",IF(OR(CA202<$CA$9,CA202="غ",CB202<$CB$9),DB$5,"")) ->  | DC202: =COUNTIF($CZ202:$DB202,"?*") -> 0 | DD202: =COUNTIF($CM202:$CY202,"?*") -> 0
... 500 more rows

Sheet رفع
C1: خاص برفع دراجات مواد الصف الاول | K1: معايير البحث | O1: عدد الاوراق
K2: اختر المادة : | M2: سكرتارية اجنبية | O2: =MAX(D7:D100) -> 4 | P2: ورقــــة | AG2: المواد
K3: الدرجة المطلوب رفعها : | M3: 1
D4: بيانات الأوراق المحتاجة الى الرفع
A5: ملحوظة : يمكنك إخفاء عمود رقم الجلوس ان كان هذا من ضروريات السرية التامة | D5: مسلسل | E5: رقم الجلوس | F5: رقم سرى | G5: الدرجة | H5: عدد مواد الرسوب | AG5: المواد | AH5: عمود المادة
D7: 1 | E7: 96 | F7: 166 | G7: 24 | H7: 2 | AG7: لغة عربية | AH7: 17
D8: 2 | E8: 164 | F8: 206 | G8: 24 | H8: 1 | AG8: لغة انجليزية | AH8: 21
D9: 3 | E9: 171 | F9: 3 | G9: 24 | H9: 1 | AG9: لغة فرنسية | AH9: 25
D10: 4 | E10: 175 | F10: 7 | G10: 24 | H10: 1 | AG10: جغرافيا | AH10: 29
AG11: رياضة عامة | AH11: 33
AG12: حاسب ألى تحريرى | AH12: 40
AG13: حاسب ألى عملى | AH13: 41
AG14: اقتصاد | AH14: 46
AG15: سكرتارية عربية | AH15: 50
AG16: سكرتارية اجنبية | AH16: 54
AG17: ادارة اعمال | AH17: 58
AG18: محاسبة مالية | AH18: 62
AG19: تسويق | AH19: 66
AG20: قانون تجارى | AH20: 70
AG21: تربية دينية | AH21: 76
AG22: تربية قومية | AH22: 80
AG23: مجموع | AH23: 72

Sheet شيت الناجحين
C1: الناجحين | O1: =الرئيسية!$B$2&""&الرئيسية!$C$2 -> ادارة القليوبية | AI1: الناجحين | AQ1: الناجحين | AU1: شيت كنترول الصف الاول - الناجحين
O2: =الرئيسية!$B$3&" "&الرئيسية!$C$3 -> مدرسة التجارية | AU2: للعام الدراسى | BA2: =الرئيسية!$K$2 -> 2019 / 2020
A5: مسلسل | B5: بيانات أساسية | M5: سرى | N5: لغة عربية | R5: لغة انجليزية | V5: لغة فرنسية | Z5: جغرافيا | AD5: رياضة عامة | AH5: حاسب آلى | AQ5: اقتصاد | AU5: سكرتارية عربية | AY5: سكرتارية اجنبية | BC5: ادارة اعمال | BG5: محاسبة مالية | BK5: تسويق | BO5: قانون تجارى | BS5: مجموع نصف العام | BT5: مجموع كلى | BU5: تربية قومية | BY5: تربية دينية | CC5: النتيجة | CD5: الترتيب
B6: جلوس | C6: اسم الطالب | D6: الفصل | E6: تاريخ الميلاد | F6: سن الطالب في | G6: الجنسية | H6: الديانة | I6: النوع | J6: الفئة | K6: الفترة | L6: الحــــالة | N6: اعمال السنة | O6: نصف العام | P6: آخر العام | Q6: المجموع | R6: اعمال السنة | S6: نصف العام | T6: آخر العام | U6: المجموع | V6: اعمال السنة | W6: نصف العام | X6: آخر العام | Y6: المجموع | Z6: اعمال السنة | AA6: نصف العام | AB6: آخر العام | AC6: المجموع | AD6: اعمال السنة | AE6: نصف العام | AF6: آخر العام | AG6: المجموع | AH6: اعمال السنة | AJ6: نصف العام | AL6: آخر العام | AN6: مج تحريرى | AO6: مج عملى | AP6: مج حاسب | AQ6: اعمال السنة | AR6: نصف العام | AS6: آخر العام | AT6: المجموع | AU6: اعمال السنة | AV6: نصف العام | AW6: آخر العام | AX6: المجموع | AY6: اعمال السنة | AZ6: نصف العام | BA6: آخر العام | BB6: المجموع | BC6: اعمال السنة | BD6: نصف العام | BE6: آخر العام | BF6: المجموع | BG6: اعمال السنة | BH6: نصف العام | BI6: آخر العام | BJ6: المجموع | BK6: اعمال السنة | BL6: نصف العام | BM6: آخر العام | BN6: المجموع | BO6: اعمال السنة | BP6: نصف العام | BQ6: آخر العام | BR6: المجموع | BU6: اعمال السنة | BV6: نصف العام | BW6: آخر العام | BX6: المجموع | BY6: اعمال السنة | BZ6: نصف العام | CA6: آخر العام | CB6: المجموع
AH7: تحريرى | AI7: عملى | AJ7: تحريرى | AK7: عملى | AL7: تحريرى | AM7: عملى
M8: عظمى | N8: 10 | O8: 20 | P8: 20 | Q8: 50 | R8: 10 | S8: 20 | T8: 20 | U8: 50 | V8: 6 | W8: 12 | X8: 12 | Y8: 30 | Z8: 8 | AA8: 16 | AB8: 16 | AC8: 40 | AD8: 6 | AE8: 12 | AF8: 12 | AG8: 30 | AH8: 6 | AI8: 4 | AJ8: 12 | AK8: 8 | AL8: 12 | AM8: 8 | AN8: 30 | AO8: 20 | AP8: 50 | AQ8: 10 | AR8: 20 | AS8: 20 | AT8: 50 | AU8: 10 | AV8: 20 | AW8: 20 | AX8: 50 | AY8: 10 | AZ8: 20 | BA8: 20 | BB8: 50 | BC8: 10 | BD8: 20 | BE8: 20 | BF8: 50 | BG8: 10 | BH8: 20 | BI8: 20 | BJ8: 50 | BK8: 10 | BL8: 20 | BM8: 20 | BN8: 50 | BO8: 10 | BP8: 20 | BQ8: 20 | BR8: 50 | BS8: 240 | BT8: 600 | BU8: 4 | BV8: 8 | BW8: 8 | BX8: 20 | BY8: 4 | BZ8: 8 | CA8: 8 | CB8: 20
F9: =الرئيسية!$E$9 -> 2021-10-01 | M9: صغرى | N9: 0 | O9: 0 | P9: 5 | Q9: 25 | R9: 0 | S9: 0 | T9: 0 | U9: 25 | V9: 0 | W9: 0 | X9: 3 | Y9: 9 | Z9: 0 | AA9: 0 | AB9: 4 | AC9: 20 | AD9: 0 | AE9: 0 | AF9: 3 | AG9: 15 | AH9: 0 | AI9: 0 | AJ9: 0 | AK9: 0 | AL9: 3 | AM9: 2 | AN9: 15 | AO9: 10 | AP9: 25 | AQ9: 0 | AR9: 0 | AS9: 5 | AT9: 25 | AU9: 0 | AV9: 0 | AW9: 5 | AX9: 25 | AY9: 0 | AZ9: 0 | BA9: 5 | BB9: 25 | BC9: 0 | BD9: 0 | BE9: 5 | BF9: 25 | BG9: 0 | BH9: 0 | BI9: 5 | BJ9: 25 | BK9: 0 | BL9: 0 | BM9: 5 | BN9: 25 | BO9: 0 | BP9: 0 | BQ9: 5 | BR9: 25 | BS9: 0 | BT9: 300 | BU9: 0 | BV9: 0 | BW9: 2 | BX9: 10 | BY9: 0 | BZ9: 0 | CA9: 2 | CB9: 10

Sheet شيت دور ثانى
C1: الدور الثانى | O1: =الرئيسية!$B$2&""&الرئيسية!$C$2 -> ادارة القليوبية | AU1: شيت كنترول الصف الاول - الدور الثانى | BY1: الدور الثانى
O2: =الرئيسية!$B$3&" "&الرئيسية!$C$3 -> مدرسة التجارية | AU2: للعام الدراسى | BA2: =الرئيسية!$K$2 -> 2019 / 2020 | CD2: قم بتسجيل درجات الملحق اعلى درجة كل مادة من مواد الرسوب على حدة لكل طالب
A5: مسلسل | B5: بيانات أساسية | M5: سرى | N5: لغة عربية | R5: لغة انجليزية | V5: لغة فرنسية | Z5: جغرافيا | AD5: رياضة عامة | AH5: حاسب آلى | AQ5: اقتصاد | AU5: سكرتارية عربية | AY5: سكرتارية اجنبية | BC5: ادارة اعمال | BG5: محاسبة مالية | BK5: تسويق | BO5: قانون تجارى | BS5: مجموع نصف العام | BT5: مجموع كلى | BU5: تربية قومية | BY5: تربية دينية | CC5: النتيجة | CD5: مواد الرسوب | CE5: عدد المواد | CG5: نتيجة الدور الثانى
B6: جلوس | C6: اسم الطالب | D6: الفصل | E6: تاريخ الميلاد | F6: سن الطالب في | G6: الجنسية | H6: الديانة | I6: النوع | J6: الفئة | K6: الفترة | L6: الحــــالة | N6: اعمال السنة | O6: نصف العام | P6: آخر العام | Q6: المجموع | R6: اعمال السنة | S6: نصف العام | T6: آخر العام | U6: المجموع | V6: اعمال السنة | W6: نصف العام | X6: آخر العام | Y6: المجموع | Z6: اعمال السنة | AA6: نصف العام | AB6: آخر العام | AC6: المجموع | AD6: اعمال السنة | AE6: نصف العام | AF6: آخر العام | AG6: المجموع | AH6: اعمال السنة | AJ6: نصف العام | AL6: آخر العام | AN6: مج تحريرى | AO6: مج عملى | AP6: مج حاسب | AQ6: اعمال السنة | AR6: نصف العام | AS6: آخر العام | AT6: المجموع | AU6: اعمال السنة | AV6: نصف العام | AW6: آخر العام | AX6: المجموع | AY6: اعمال السنة | AZ6: نصف العام | BA6: آخر العام | BB6: المجموع | BC6: اعمال السنة | BD6: نصف العام | BE6: آخر العام | BF6: المجموع | BG6: اعمال السنة | BH6: نصف العام | BI6: آخر العام | BJ6: المجموع | BK6: اعمال السنة | BL6: نصف العام | BM6: آخر العام | BN6: المجموع | BO6: اعمال السنة | BP6: نصف العام | BQ6: آخر العام | BR6: المجموع | BU6: اعمال السنة | BV6: نصف العام | BW6: آخر العام | BX6: المجموع | BY6: اعمال السنة | BZ6: نصف العام | CA6: آخر العام | CB6: المجموع
AH7: تحريرى | AI7: عملى | AJ7: تحريرى | AK7: عملى | AL7: تحريرى | AM7: عملى
M8: عظمى | N8: 10 | O8: 20 | P8: 20 | Q8: 50 | R8: 10 | S8: 20 | T8: 20 | U8: 50 | V8: 6 | W8: 12 | X8: 12 | Y8: 30 | Z8: 8 | AA8: 16 | AB8: 16 | AC8: 40 | AD8: 6 | AE8: 12 | AF8: 12 | AG8: 30 | AH8: 6 | AI8: 4 | AJ8: 12 | AK8: 8 | AL8: 12 | AM8: 8 | AN8: 30 | AO8: 20 | AP8: 50 | AQ8: 10 | AR8: 20 | AS8: 20 | AT8: 50 | AU8: 10 | AV8: 20 | AW8: 20 | AX8: 50 | AY8: 10 | AZ8: 20 | BA8: 20 | BB8: 50 | BC8: 10 | BD8: 20 | BE8: 20 | BF8: 50 | BG8: 10 | BH8: 20 | BI8: 20 | BJ8: 50 | BK8: 10 | BL8: 20 | BM8: 20 | BN8: 50 | BO8: 10 | BP8: 20 | BQ8: 20 | BR8: 50 | BS8: 240 | BT8: 600 | BU8: 4 | BV8: 8 | BW8: 8 | BX8: 20 | BY8: 4 | BZ8: 8 | CA8: 8 | CB8: 20
F9: =الرئيسية!$E$9 -> 2021-10-01 | M9: صغرى | N9: 0 | O9: 0 | P9: 5 | Q9: 25 | R9: 0 | S9: 0 | T9: 0 | U9: 25 | V9: 0 | W9: 0 | X9: 3 | Y9: 9 | Z9: 0 | AA9: 0 | AB9: 4 | AC9: 20 | AD9: 0 | AE9: 0 | AF9: 3 | AG9: 15 | AH9: 0 | AI9: 0 | AJ9: 0 | AK9: 0 | AL9: 3 | AM9: 2 | AN9: 15 | AO9: 10 | AP9: 25 | AQ9: 0 | AR9: 0 | AS9: 5 | AT9: 25 | AU9: 0 | AV9: 0 | AW9: 5 | AX9: 25 | AY9: 0 | AZ9: 0 | BA9: 5 | BB9: 25 | BC9: 0 | BD9: 0 | BE9: 5 | BF9: 25 | BG9: 0 | BH9: 0 | BI9: 5 | BJ9: 25 | BK9: 0 | BL9: 0 | BM9: 5 | BN9: 25 | BO9: 0 | BP9: 0 | BQ9: 5 | BR9: 25 | BS9: 0 | BT9: 300 | BU9: 0 | BV9: 0 | BW9: 2 | BX9: 10 | BY9: 0 | BZ9: 0 | CA9: 2 | CB9: 10

Sheet مساعد
Y1: 1 | Z1: 2 | AA1: 3
I2: شيت مساعد دور ثانى | Y2: قبل بداية امتحان الدور الثانى | AA2: بعد الانتهاء من الامتحان و التصحيح و الرصد
Y3: و لا يستخدم بعد تعديل الدرجات مرة أخرى | AA3: اعرف النتيجة أولا ثم رحل الى شيت الملاحق
B5: مسلسل | C5: رقم الجلوس | D5: اسم الطالب | E5: الفصل | F5: النوع | G5: الحالة | H5: رقم السرى | I5: لغة عربية | J5: لغة انجليزية | K5: لغة فرنسية | L5: جغرافيا | M5: رياضة عامة | N5: حاسب ألى | O5: اقتصاد | P5: سكرتارية عربية | Q5: سكرتارية اجنبية | R5: ادارة اعمال | S5: محاسبة مالية | T5: تسويق | U5: قانون تجارى | V5: مجموع | W5: تربية دينية | X5: تربية وطنية | Y5: موادرسوب الدور الأول | Z5: الجزء الخاص بامتحان الدور الثانى
Z7: النتيجة | AA7: وضع الطالب بعد النتيجة
H9: الصغرى | I9: 25 | J9: 25 | K9: 9 | L9: 20 | M9: 15 | N9: 25 | O9: 25 | P9: 25 | Q9: 25 | R9: 25 | S9: 25 | T9: 25 | U9: 25 | V9: 300 | W9: 10 | X9: 10

Sheet شهادات نصف العام
H1: ="مدرسة "&" " &الرئيسية!$C$3 -> مدرسة التجارية | V1: ورقة رقم : | Y1: 1 | AB1: الورقة الحالية
V2: الى ورقة : | Y2: 1
H3: شهادات نصف العام | M3: =الرئيسية!$K$2 -> 2019 / 2020 | AB3: =$Y$1 -> 1
F5: ="مدرسة " &" " &الرئيسية!$C$3 -> مدرسة التجارية | M5: شهادة درجات نصف العام | R5: =الرئيسية!$K$2 -> 2019 / 2020
F6: الاسم / | G6: طالب اولى 1 | O6: الفصل / | Q6: 1/1 | T6: رقم الجلوس / | V6: 1
B7: الشهادة الأولى | F7: المادة | G7: لغة عربية | H7: لغة انجليزية | I7: لغة فرنسية | J7: جغرافيا | K7: رياضة عامة | L7: حاسب ألى | M7: حاسب ألى | N7: اقتصاد | O7: سكرتارية عربية | P7: سكرتارية اجنبية | Q7: ادارة اعمال | R7: محاسبة مالية | S7: تسويق | T7: قانون تجارى | U7: مجموع | V7: تربية دينية | W7: تربية وطنية
F8: العظمى | G8: 20 | H8: 20 | I8: 12 | J8: 16 | K8: 12 | L8: 12 | M8: 8 | N8: 20 | O8: 20 | P8: 20 | Q8: 20 | R8: 20 | S8: 20 | T8: 20 | U8: 240 | V8: 8 | W8: 8
F9: الدرجة | G9: 10.5 | H9: 7 | I9: 7.6 | J9: 14 | K9: 7.5 | L9: 6 | M9: 5 | N9: 10 | O9: 13 | P9: 9.5 | Q9: 10 | R9: 9 | S9: 13.5 | T9: 11 | U9: 133.6 | V9: 5.5 | W9: 7
F11: كنترول الصف الأول | U11: إدارة المدرسة
F15: ="مدرسة " &" " &الرئيسية!$C$3 -> مدرسة التجارية | M15: شهادة درجات نصف العام | R15: =الرئيسية!$K$2 -> 2019 / 2020
F16: الاسم / | G16: طالب اولى 2 | O16: الفصل / | Q16: 1/1 | T16: رقم الجلوس / | V16: 2
B17: الشهادة الثانية | F17: المادة | G17: لغة عربية | H17: لغة انجليزية | I17: لغة فرنسية | J17: جغرافيا | K17: رياضة عامة | L17: حاسب ألى | M17: حاسب ألى | N17: اقتصاد | O17: سكرتارية عربية | P17: سكرتارية اجنبية | Q17: ادارة اعمال | R17: محاسبة مالية | S17: تسويق | T17: قانون تجارى | U17: مجموع | V17: تربية دينية | W17: تربية وطنية
F18: العظمى | G18: 20 | H18: 20 | I18: 12 | J18: 16 | K18: 12 | L18: 12 | M18: 8 | N18: 20 | O18: 20 | P18: 20 | Q18: 20 | R18: 20 | S18: 20 | T18: 20 | U18: 240 | V18: 8 | W18: 8
F19: الدرجة | G19: 14 | H19: 12.8 | I19: 7.6 | J19: 16 | K19: 5 | L19: 7.5 | M19: 5 | N19: 14 | O19: 16 | P19: 14 | Q19: 17 | R19: 15 | S19: 19 | T19: 16 | U19: 178.9 | V19: 5 | W19: 7
F21: كنترول الصف الأول | U21: إدارة المدرسة
F25: ="مدرسة " &" " &الرئيسية!$C$3 -> مدرسة التجارية | M25: شهادة درجات نصف العام | R25: =الرئيسية!$K$2 -> 2019 / 2020
F26: الاسم / | G26: طالب اولى 3 | O26: الفصل / | Q26: 1/1 | T26: رقم الجلوس / | V26: 3
B27: الشهادة الثالثة | F27: المادة | G27: لغة عربية | H27: لغة انجليزية | I27: لغة فرنسية | J27: جغرافيا | K27: رياضة عامة | L27: حاسب ألى | M27: حاسب ألى | N27: اقتصاد | O27: سكرتارية عربية | P27: سكرتارية اجنبية | Q27: ادارة اعمال | R27: محاسبة مالية | S27: تسويق | T27: قانون تجارى | U27: مجموع | V27: تربية دينية | W27: تربية وطنية
F28: العظمى | G28: 20 | H28: 20 | I28: 12 | J28: 16 | K28: 12 | L28: 12 | M28: 8 | N28: 20 | O28: 20 | P28: 20 | Q28: 20 | R28: 20 | S28: 20 | T28: 20 | U28: 240 | V28: 8 | W28: 8
F29: الدرجة | G29: 7.5 | H29: 13.2 | I29: 7.6 | J29: 16 | K29: 5.5 | L29: 7.5 | M29: 6 | N29: 13 | O29: 13 | P29: 7.5 | Q29: 20 | R29: 13 | S29: 18 | T29: 15 | U29: 162.8 | V29: 4.5 | W29: 7.5
F31: كنترول الصف الأول | U31: إدارة المدرسة

Sheet شهادات آخر العام
J1: شهادات درجـــات امتحان آخر العام | S1: ورقة رقم : | V1: 1 | AA1: حدد الخلية ثم اضغط
K2: للعام الدراسى | N2: =الرئيسية!$K$2 -> 2019 / 2020 | S2: الى ورقة رقم : | Y2: ملحوظة هامة : حالة وجود اسم مادة لها دور ثانى رغم حصولها على درجة النجاح هذا يعنى انها ناجحة في مجموع المادة ولكنها لم تحصل على ربع الدرجة في امتحان آخر العام لذا يستوجب وضع الدائرة بهذا الزر مع ذكر السبب يدويا
F5: ="مدرسة" & " " & الرئيسية!$C$3 -> مدرسة التجارية | M5: شهادة نتيجة آخر العام | Q5: =الرئيسية!$K$2 -> 2019 / 2020
F6: الاسم / | G6: طالب اولى 1 | O6: الفصل / | Q6: 1/1 | S6: جلوس / | U6: 1
B7: الشهادة الأولى | F7: المادة | G7: لغة عربية | H7: لغة انجليزية | I7: لغة فرنسية | J7: جغرافيا | K7: رياضة عامة | L7: حاسب ألى | M7: اقتصاد | N7: سكرتارية عربية | O7: سكرتارية اجنبية | P7: ادارة اعمال | Q7: محاسبة مالية | R7: تسويق | S7: قانون تجارى | T7: مجموع | U7: تربية دينية | V7: تربية وطنية
F8: العظمى | G8: 50 | H8: 50 | I8: 30 | J8: 30 | K8: 50 | L8: 50 | M8: 50 | N8: 50 | O8: 50 | P8: 50 | Q8: 50 | R8: 50 | S8: 40 | T8: 600 | U8: 20 | V8: 20
F9: الصغرى | G9: 25 | H9: 25 | I9: 9 | J9: 20 | K9: 15 | L9: 25 | M9: 25 | N9: 25 | O9: 25 | P9: 25 | Q9: 25 | R9: 25 | S9: 25 | T9: 300 | U9: 10 | V9: 10
F10: الدرجة | G10: 25 | H10: 28 | I10: 22.1 | J10: 30.5 | K10: 21 | L10: 31 | M10: 33.5 | N10: 31 | O10: 29 | P10: 34 | Q10: 33 | R10: 33.5 | S10: 33 | T10: 384.6 | U10: 16 | V10: 17
F11: النتيجـــة | G11: ناجح | I11: و منقول للصف الثانى
F12: كنترول الصف الأول | T12: إدارة المدرسة
F15: ="مدرسة" & " " & الرئيسية!$C$3 -> مدرسة التجارية | M15: شهادة نتيجة آخر العام | Q15: =الرئيسية!$K$2 -> 2019 / 2020
F16: الاسم / | G16: طالب اولى 2 | O16: الفصل / | Q16: 1/1 | S16: جلوس / | U16: 2
B17: الشهادة الثانية | F17: المادة | G17: لغة عربية | H17: لغة انجليزية | I17: لغة فرنسية | J17: جغرافيا | K17: رياضة عامة | L17: حاسب ألى | M17: اقتصاد | N17: سكرتارية عربية | O17: سكرتارية اجنبية | P17: ادارة اعمال | Q17: محاسبة مالية | R17: تسويق | S17: قانون تجارى | T17: مجموع | U17: تربية دينية | V17: تربية وطنية
F18: العظمى | G18: 50 | H18: 50 | I18: 30 | J18: 30 | K18: 50 | L18: 50 | M18: 50 | N18: 50 | O18: 50 | P18: 50 | Q18: 50 | R18: 50 | S18: 40 | T18: 600 | U18: 20 | V18: 20
F19: الصغرى | G19: 25 | H19: 25 | I19: 9 | J19: 20 | K19: 15 | L19: 25 | M19: 25 | N19: 25 | O19: 25 | P19: 25 | Q19: 25 | R19: 25 | S19: 25 | T19: 300 | U19: 10 | V19: 10
F20: الدرجة | G20: 35 | H20: 35.2 | I20: 23.5 | J20: 38.5 | K20: 18.5 | L20: 31 | M20: 38.5 | N20: 37 | O20: 32.5 | P20: 41 | Q20: 36 | R20: 41.5 | S20: 38 | T20: 446.2 | U20: 15.5 | V20: 17
F21: النتيجـــة | G21: ناجح | I21: و منقول للصف الثانى
F22: كنترول الصف الأول | T22: إدارة المدرسة
F25: ="مدرسة" & " " & الرئيسية!$C$3 -> مدرسة التجارية | M25: شهادة نتيجة آخر العام | Q25: =الرئيسية!$K$2 -> 2019 / 2020
F26: الاسم / | G26: طالب اولى 3 | O26: الفصل / | Q26: 1/1 | S26: جلوس / | U26: 3
B27: الشهادة الثالثة | F27: المادة | G27: لغة عربية | H27: لغة انجليزية | I27: لغة فرنسية | J27: جغرافيا | K27: رياضة عامة | L27: حاسب ألى | M27: اقتصاد | N27: سكرتارية عربية | O27: سكرتارية اجنبية | P27: ادارة اعمال | Q27: محاسبة مالية | R27: تسويق | S27: قانون تجارى | T27: مجموع | U27: تربية دينية | V27: تربية وطنية | W27: 8
F28: العظمى | G28: 50 | H28: 50 | I28: 30 | J28: 30 | K28: 50 | L28: 50 | M28: 50 | N28: 50 | O28: 50 | P28: 50 | Q28: 50 | R28: 50 | S28: 40 | T28: 600 | U28: 20 | V28: 20
F29: الصغرى | G29: 25 | H29: 25 | I29: 9 | J29: 20 | K29: 15 | L29: 25 | M29: 25 | N29: 25 | O29: 25 | P29: 25 | Q29: 25 | R29: 25 | S29: 25 | T29: 300 | U29: 10 | V29: 10
F30: الدرجة | G30: 26.5 | H30: 36.8 | I30: 23.5 | J30: 38.5 | K30: 17.5 | L30: 33.5 | M30: 35.5 | N30: 33.5 | O30: 25 | P30: 44 | Q30: 32 | R30: 41 | S30: 37 | T30: 424.3 | U30: 15.5 | V30: 16.5
F31: النتيجـــة | G31: ناجح | I31: و منقول للصف الثانى
F32: كنترول الصف الأول | T32: إدارة المدرسة

Sheet شهادات الدور الثانى
J1: شهادات درجـــات امتحان الدور الثانى | S1: ورقة رقم : | V1: 1
K2: للعام الدراسى | N2: =الرئيسية!$K$2 -> 2019 / 2020 | S2: الى ورقة رقم :
F5: ="مدرسة" & " " & الرئيسية!$C$3 -> مدرسة التجارية | M5: شهادة نتيجة آخر العام | Q5: =الرئيسية!$K$2 -> 2019 / 2020
F6: الاسم / | O6: الفصل / | S6: جلوس /
B7: الشهادة الأولى | F7: المادة | G7: لغة عربية | H7: لغة انجليزية | I7: لغة فرنسية | J7: جغرافيا | K7: رياضة عامة | L7: حاسب ألى | M7: اقتصاد | N7: سكرتارية عربية | O7: سكرتارية اجنبية | P7: ادارة اعمال | Q7: محاسبة مالية | R7: تسويق | S7: قانون تجارى | T7: مجموع | U7: تربية دينية | V7: تربية وطنية
F8: العظمى | G8: 50 | H8: 50 | I8: 30 | J8: 40 | K8: 30 | L8: 50 | M8: 50 | N8: 50 | O8: 50 | P8: 50 | Q8: 50 | R8: 50 | S8: 50 | T8: 600 | U8: 20 | V8: 20
F9: الصغرى | G9: 25 | H9: 25 | I9: 9 | J9: 20 | K9: 15 | L9: 25 | M9: 25 | N9: 25 | O9: 25 | P9: 25 | Q9: 25 | R9: 25 | S9: 25 | T9: 300 | U9: 10 | V9: 10
F10: الدرجة
F11: النتيجـــة
F12: كنترول الصف الأول | T12: إدارة المدرسة
F15: ="مدرسة" & " " & الرئيسية!$C$3 -> مدرسة التجارية | M15: شهادة نتيجة آخر العام | Q15: =الرئيسية!$K$2 -> 2019 / 2020
F16: الاسم / | O16: الفصل / | S16: جلوس /
B17: الشهادة الثانية | F17: المادة | G17: لغة عربية | H17: لغة انجليزية | I17: لغة فرنسية | J17: جغرافيا | K17: رياضة عامة | L17: حاسب ألى | M17: اقتصاد | N17: سكرتارية عربية | O17: سكرتارية اجنبية | P17: ادارة اعمال | Q17: محاسبة مالية | R17: تسويق | S17: قانون تجارى | T17: مجموع | U17: تربية دينية | V17: تربية وطنية
F18: العظمى | G18: 50 | H18: 50 | I18: 30 | J18: 40 | K18: 30 | L18: 50 | M18: 50 | N18: 50 | O18: 50 | P18: 50 | Q18: 50 | R18: 50 | S18: 50 | T18: 600 | U18: 20 | V18: 20
F19: الصغرى | G19: 25 | H19: 25 | I19: 9 | J19: 20 | K19: 15 | L19: 25 | M19: 25 | N19: 25 | O19: 25 | P19: 25 | Q19: 25 | R19: 25 | S19: 25 | T19: 300 | U19: 10 | V19: 10
F20: الدرجة
F21: النتيجـــة
F22: كنترول الصف الأول | T22: إدارة المدرسة
F25: ="مدرسة" & " " & الرئيسية!$C$3 -> مدرسة التجارية | M25: شهادة نتيجة آخر العام | Q25: =الرئيسية!$K$2 -> 2019 / 2020
F26: الاسم / | O26: الفصل / | S26: جلوس /
B27: الشهادة الثالثة | F27: المادة | G27: لغة عربية | H27: لغة انجليزية | I27: لغة فرنسية | J27: جغرافيا | K27: رياضة عامة | L27: حاسب ألى | M27: اقتصاد | N27: سكرتارية عربية | O27: سكرتارية اجنبية | P27: ادارة اعمال | Q27: محاسبة مالية | R27: تسويق | S27: قانون تجارى | T27: مجموع | U27: تربية دينية | V27: تربية وطنية | W27: 8
F28: العظمى | G28: 50 | H28: 50 | I28: 30 | J28: 40 | K28: 30 | L28: 50 | M28: 50 | N28: 50 | O28: 50 | P28: 50 | Q28: 50 | R28: 50 | S28: 50 | T28: 600 | U28: 20 | V28: 20
F29: الصغرى | G29: 25 | H29: 25 | I29: 9 | J29: 20 | K29: 15 | L29: 25 | M29: 25 | N29: 25 | O29: 25 | P29: 25 | Q29: 25 | R29: 25 | S29: 25 | T29: 300 | U29: 10 | V29: 10
F30: الدرجة
F31: النتيجـــة
F32: كنترول الصف الأول | T32: إدارة المدرسة

Sheet كشف الملاحق
D1: ="مدرسة "&" " &الرئيسية!$C$3 -> مدرسة التجارية | H1: كشف الملاحق
D2: كنترول الصف الاول | H2: للعام الدراسى | I2: =الرئيسية!$K$2 -> 2019 / 2020
D3: كشف رقم : | F3: 1 | H3: موعد امتحان الدور الثانى فى0000 / 00000 / 00000
D4: م | E4: جلوس | F4: اسم الطالبة | G4: الفصل | H4: مواد الرسوب | I4: العدد | J4: التوقيع بالعلم
D40: كنترول الصف الاول | I40: ادارة المدرسة

Sheet كشف الراسبين
D1: ="ادارة "&" " &الرئيسية!$C$2 -> ادارة القليوبية | H1: كشف الطلبة الراسبين
D2: ="مدرسة "&" " &الرئيسية!$C$3 -> مدرسة التجارية | H2: ="للعام الدراسى"&" "&الرئيسية!$K$2 -> للعام الدراسى 2019 / 2020
D3: كشف رقم : | F3: 1
D4: م | E4: جلوس | F4: اسم الطالبة | G4: النتيجة | H4: مـــــواد الرســـــــــوب | I4: توقيع الطالب بالعلم
D31: كنترول الصف الاول | H31: كنترول الصف الاول

Sheet باقون
D1: ="ادارة "&" " &الرئيسية!$C$2 -> ادارة القليوبية | G1: كشوف الراسبون فى امتحان الدور الثانى
B2: يستخدم بعد امتحان الدور الثانى | D2: ="مدرسة "&" " &الرئيسية!$C$3 -> مدرسة التجارية | G2: للعام الدراسى : | H2: =الرئيسية!$K$2 -> 2019 / 2020
D3: كنترول الصف الاول | H3: كشف رقم : | I3: 1
D4: م | E4: جلوس | F4: اسم الطالبة | G4: الموقف من الدراسة | H4: توقيع الطالب بالعلم
D35: كنترول الصف الاول | H35: ادارة المدرسة

Sheet النسبة
G1: ="ادارة"&" "&الرئيسية!$C$2 -> ادارة القليوبية | J1: العام الدراسى | N1: =الرئيسية!$K$2 -> 2019 / 2020
G2: ="مدرسة" &" "&الرئيسية!$C$3 -> مدرسة التجارية | N2: كشف رقم : | O2: 1
H3: كشف بأسماء الحاصلين على مجموع 75 % فأكثر
F4: مسلسل | G4: جلوس | H4: اسم الطالبة | I4: المجموع | J4: النسبة | L4: مسلسل | M4: جلوس | N4: اسم الطالبة | O4: المجموع | P4: النسبة
A5: المجموع المطلوب الحصول على نسبته
B9: العدد
B10: 0
G49: كنترول الصف الاول | N49: ادارة المدرسة

Sheet اوائل المدرسة
D1: بسم الله الرحمن الرحيم | H1: ="مدرسة" &" "&الرئيسية!$C$3 -> مدرسة التجارية
D2: ="ادارة"&" "&الرئيسية!$C$2 -> ادارة القليوبية | H2: كنترول الصف الاول
F3: العشرة الاوائل نصف العام | G3: =الرئيسية!$K$2 -> 2019 / 2020 | L3: اختر الفترة
D4: م | E4: جلوس | F4: الاسم | G4: الفصل | H4: المجموع | I4: الترتيب
L5: آخر العام
D21: مع تحيات / كنترول الصف الأول | J21: إدارة المدرســـة

Sheet رصد
D1: الصف الاول التجارى | G1: متابعة رصد درجات | K1: نصف العام | P1: العام الدراسى | R1: =الرئيسية!$K$2 -> 2019 / 2020
D3: المـــــــــادة | E3: لغة عربية | F3: لغة انجليزية | G3: لغة فرنسية | H3: جغرافيا | I3: رياضة عامة | J3: حاسب ألى تحريرى | K3: حاسب ألى عملى | L3: اقتصاد | M3: سكرتارية عربية | N3: سكرتارية اجنبية | O3: ادارة اعمال | P3: محاسبة مالية | Q3: تسويق | R3: قانون تجارى | S3: تربية دينية | T3: تربية وطنية | V3: تستخدم الخلية K1 للتبديل بين أنواع الرصد
D4: المرصود من الدرجـــــات
D5: الغياب من اعمال السنة
D6: المتبقى من الرصد
D7: الاجمــــــــــــــالى

Sheet جودة
B1: مديرية التربية والتعليم | H1: النسب والبيانات المتعلقة ببيانات الجودة للصف الاول
B2: ="ادارة"&" "&الرئيسية!$C$2 -> ادارة القليوبية | J2: للعام الدراسى | M2: =الرئيسية!$K$2 -> 2019 / 2020
B3: ="مدرسة "&" " &الرئيسية!$C$3 -> مدرسة التجارية
B5: الفترة | D5: المواد البيان | H5: لغة عربية | I5: لغة انجليزية | J5: لغة فرنسية | K5: جغرافيا | L5: رياضة عامة | M5: حاسب ألى تحريرى | N5: حاسب ألى عملى | O5: اقتصاد | P5: سكرتارية عربية | Q5: سكرتارية اجنبية | R5: ادارة اعمال | S5: محاسبة مالية | T5: تسويق | U5: قانون تجارى | V5: تربية دينية | W5: تربية وطنية
D6: عدد الطلاب الحاضرين فى المادة
B7: نصف العام | D7: عدد الطلاب الحاصلين 50% فأكثر بنصف العام
D8: نسبة الحاصلين على 50% فاكثر
D9: عدد الطلاب الحاصلين 65% فأكثر بنصف العام
D10: نسبة الحاصلين على 65% فاكثر
B11: آخر العام | D11: عدد الطلاب الحاضرين فى المادة
D12: عدد الطلاب الناجحين ( ربع الدرجة )
D13: النسبة المئوية للحاصلين على ربع الدرجة
D14: عدد الحاصلين على 65% فاكثر فى كل مادة
D15: نسبة الحاصلين على 65% فاكثر فى كل مادة
B16: كنترول الصف الاول | J16: مسئول الجودة | U16: ادارة المدرسة

Sheet العملى
G1: ="ادارة"&" "&الرئيسية!$C$2 -> ادارة القليوبية | I1: العام الدراسى | M1: =الرئيسية!$K$2 -> 2019 / 2020 | O1: اضغط لتنشيط قائمة الفصول | S1: فصول
G2: ="مدرسة "&" " &الرئيسية!$C$3 -> مدرسة التجارية | M2: فصل: | N2: 1/1 | S2: 1/1
G3: درجات امتحان العملى لمادة الحاسب الآلى - نصف العام | S3: 2/1
F4: مسلسل | G4: جلوس | H4: اسم الطالبة | I4: الدرجة | K4: مسلسل | L4: جلوس | M4: اسم الطالبة | N4: الدرجة | S4: 3/1
S5: 4/1
S6: 5/1
S7: 6/1
F9: 1 | K9: 31
F10: 2 | K10: 32
F11: 3 | K11: 33
F12: 4 | K12: 34
F13: 5 | K13: 35
F14: 6 | K14: 36
F15: 7 | K15: 37
F16: 8 | K16: 38
F17: 9 | K17: 39
F18: 10 | K18: 40
F19: 11 | K19: 41
F20: 12 | K20: 42
F21: 13 | K21: 43
F22: 14 | K22: 44
F23: 15 | K23: 45
F24: 16 | K24: 46
F25: 17 | K25: 47
F26: 18 | K26: 48
F27: 19 | K27: 49
F28: 20 | K28: 50
F29: 21 | K29: 51
F30: 22 | K30: 52
F31: 23 | K31: 53
F32: 24 | K32: 54
F33: 25 | K33: 55
F34: 26 | K34: 56
F35: 27 | K35: 57
F36: 28 | K36: 58
F37: 29 | K37: 59
F38: 30 | K38: 60
G39: كنترول الصف الاول | M39: توقيع الممتحن /

Sheet النهائية
E1: ="ادارة"&" "&الرئيسية!$C$2 -> ادارة القليوبية | G1: الصف الاول | K1: الحاصلون على الدرجة النهائية فى المادة | S1: لغة عربية | T1: لغة انجليزية | U1: لغة فرنسية | V1: رياضة عامة | W1: حاسب آلى تحريرى | X1: حاسب آلى عملى | Y1: اقتصاد | Z1: سكرتارية عربية | AA1: سكرتارية اجنبية | AB1: ادارة اعمال | AC1: محاسبة مالية | AD1: تسويق | AE1: قانون تجارى | AF1: جغرافيا | AG1: تربية دينية | AH1: تربية وطنية
E2: ="مدرسة "&" " &الرئيسية!$C$3 -> مدرسة التجارية | G2: =الرئيسية!$K$2 -> 2019 / 2020 | K2: كشف رقم: | L2: 1
D3: المادة : | F3: لغة عربية
D4: امتحان : | F4: نصف العام
D5: مسلسل | E5: جلوس | F5: اسم الطالبة | G5: الفصل | I5: مسلسل | J5: جلوس | K5: اسم الطالبة | L5: الفصل
E40: كنترول الصف الاول | G40: رئيس الكنترول | K40: ادارة المدرسة

Sheet سرى
D2: توزيع الارقام السرية لجميع ارقام الجلوس
D3: الرجا ملء جميع البيانات ( يدويا ) قبل الضغط على زر الترحيل
D4: يصلح في حالة السرى التنازلى | G4: ملحوظة هامة : ابتعد عن الخلايا الملونة | M4: بيانات يستعان بها عند التوزيع
A5: متابعة ما تم توزيعه | D5: المجموعة | E5: ارقام الجلوس | G5: ارقام السرى | I5: تطابق التوزيع | M5: صباحى | R5: مسائى
A6: الموزع حتى الآن : - | C6: =SUM($I$7:$I$18) -> 208 | E6: من | F6: الى | G6: من | H6: الى | I6: عدد الجلوس | J6: عدد السرى | L6: م | M6: الشريحة | N6: عدد الشريحة | O6: اول رقم جلوس | P6: آخر رقم جلوس | R6: النوع | S6: عدد الشريحة | T6: اول رقم جلوس | U6: آخر رقم جلوس
D7: 1 | E7: 1 | F7: 28 | G7: 71 | H7: 98 | I7: =IF(OR(E7="",F7=""),"",F7-E7+1) -> 28 | J7: =IF(OR(G7="",H7=""),"",IF(G7<H7,H7-G7+1,IF(G7>H7,G7-H7+1,""))) -> 28 | L7: 1 | M7: بنات - انتظام | R7: بنات - انتظام
D8: 2 | E8: 29 | F8: 56 | G8: 127 | H8: 154 | I8: =IF(OR(E8="",F8=""),"",F8-E8+1) -> 28 | J8: =IF(OR(G8="",H8=""),"",IF(G8<H8,H8-G8+1,IF(G8>H8,G8-H8+1,""))) -> 28 | L8: 2 | M8: بنات - خدمات | R8: بنات - خدمات
D9: 3 | E9: 57 | F9: 84 | G9: 99 | H9: 126 | I9: 28 | J9: 28 | L9: 3 | M9: بنين - انتظام | N9: 208 | O9: 1 | P9: 208 | R9: بنين - انتظام
D10: 4 | E10: 85 | F10: 112 | G10: 155 | H10: 182 | I10: 28 | J10: 28 | L10: 4 | M10: بنين - خدمات | R10: بنين - خدمات
D11: 5 | E11: 113 | F11: 140 | G11: 29 | H11: 56 | I11: 28 | J11: 28 | N11: =SUM(N7:N10) -> 208 | S11: =SUM(S7:S10) -> 0
D12: 6 | E12: 141 | F12: 168 | G12: 183 | H12: 210 | I12: 28 | J12: 28
D13: 7 | E13: 169 | F13: 196 | G13: 1 | H13: 28 | I13: 28 | J13: 28
D14: 8 | E14: 197 | F14: 208 | G14: 57 | H14: 68 | I14: 12 | J14: 12
D15: 9
D16: 10
D17: 11
D18: 12

Sheet احصائيات
E1: ="ادارة"&" "&الرئيسية!$C$2 -> ادارة القليوبية | H1: احصائيات المواد | K1: آخر العام فقط
E2: ="مدرسة "&" " &الرئيسية!$C$3 -> مدرسة التجارية | H2: الصف الاول
F3: =الرئيسية!$J$2&الرئيسية!$K$2 -> للعام الدراسى : 2019 / 2020 | J3: العدد : | K3: 617
E4: م | F4: اســـــم المــــادة | G4: حاضـــــرون | H4: غائبـــــون | I4: ناجحـــــــون | J4: راســـــبون | K4: النسبة المئوية
E5: 1 | F5: لغة عربية
E6: 2 | F6: لغة انجليزية
E7: 3 | F7: لغة فرنسية
E8: 4 | F8: جغرافيا
E9: 5 | F9: رياضة عامة
E10: 6 | F10: حاسب ألى
E11: 7 | F11: اقتصاد
E12: 8 | F12: سكرتارية عربية
E13: 9 | F13: سكرتارية اجنبية
E14: 10 | F14: ادارة اعمال
E15: 11 | F15: محاسبة مالية
E16: 12 | F16: تسويق
E17: 13 | F17: قانون تجارى
E18: 14 | F18: تربية دينية
E19: 15 | F19: تربية وطنية
E20: كنترول الصف الاول | J20: إدارة المدرسة
